Workbook

Sheet Frontpage

Sheet Introduction
B1: =MID(CELL("filename",A1),1+FIND("]",CELL("filename",A1)),99) -> Introduction
D4: Introduction to the spreadsheet/model | H4: Notes on this version of the DHAT model
D5: This sheet constitutes the District Heating Assessment Tool (DHAT). The user will mainly be working in the yellow calculation sheets. The primary results can be found in the green Graphics sheet and the secondary results can be found in the black Results and Evaluation sheets. The yellow calculation sheets are basing its calculations on input data and data found in the blue data sheets. The user should verify the data in the blue data sheets before using tool. | H5: This is the German version of the DHAT, which was updated with German data in September 2025. The data in this model is for training purposes. The results should be used with caution and data from the model should not be used in calculations outside this model.
D6: The most logical order to work through the yellow calculationsheets is:
D7: ="- " &MID(CELL("filename",Centralised!A1),FIND("]",CELL("filename",Centralised!A1))+1,20) -> - Centralised
D8: ="- " &MID(CELL("filename",Individual!A1),FIND("]",CELL("filename",Individual!A1))+1,20) -> - Individual
D9: ="- " &MID(CELL("filename",Network!A1),FIND("]",CELL("filename",Network!A1))+1,20) -> - Network
D10: ="- " &MID(CELL("filename",Scenarios!A1),FIND("]",CELL("filename",Scenarios!A1))+1,20) -> - Scenarios
D11: ="- " &MID(CELL("filename",Storylines!A1),FIND("]",CELL("filename",Storylines!A1))+1,20) -> - Storylines
D12: ="- " &MID(CELL("filename",Graphics!A1),FIND("]",CELL("filename",Graphics!A1))+1,20) -> - Graphics
D14: Process diagram
B30: Colour standards for sheets
D33: Blue sheets indicate that the user should enter data or verify existing data.
D34: White sheets are informational sheets for the user regarding the model.
D35: Green sheets are primary results
D36: Black sheets are the secundary results.
D37: Orange sheets are calculation sheets.
B40: Colour standards for cells
D43: Text
D44: Input data
D45: Generated data
D46: Link to other cells
D47: Formulas
D48: Tentative data
C51: Table of contents
D54: Overview of the sheets, tables and figures
D55: =Logging!A1 -> Logging
C56: =Logging!C8 -> Table L1 | D56: =Logging!D8 -> Present and latest scenario results and their difference (DH advantage, EUR/MWh)
C57: =Logging!C17 -> Table L2 | D57: =Logging!D17 -> Scenario result history
C58: =Logging!C5 -> Figure L1 | D58: =Logging!D5 -> Logged History of the Scenarios
D60: =Centralised!A1 -> Centralised plant mixes
C61: =Centralised!B22 -> Table C1 | D61: =Centralised!C22 -> Technology data and utilisation of plants from active scenario
C62: =Centralised!E42 -> Table C2 | D62: =Centralised!F42 -> Mixes table
C63: =Centralised!E298 -> Table C3 | D63: =Centralised!F298 -> Active Mix
C64: =Centralised!X45 -> Table C4 | D64: =Centralised!Y45 -> Coal CHP : Effect use by hour, MW
C65: =Centralised!AL45 -> Table C5 | D65: =Centralised!AM45 -> Coal CHP : Demand by hour, MW
C66: =Centralised!AT45 -> Table C6 | D66: =Centralised!AU45 -> Coal CHP : Effect use by ordered hour, MW
C67: =Centralised!X25 -> Table C7 | D67: =Centralised!Y25 -> Coal CHP : Marginal Cost breakdown, EUR/MWh
C68: =Centralised!B4 -> Figure C1 | D68: =Centralised!C4 -> Effect use by hour, MW
C69: =Centralised!H4 -> Figure C2 | D69: =Centralised!I4 -> Effect use by ordered hour, MW
C70: =Centralised!B7 -> Figure C3 | D70: =Centralised!C7 -> Marginal Cost Breakdown, EUR/MWh
C71: =Centralised!Q4 -> Figure C4 | D71: =Centralised!R4 -> Demand by hour, MW
D73: =[1]Individual!A1 -> Individual plant mixes
C74: =[1]Individual!D26 -> Table I1 | D74: =[1]Individual!E26 -> Technology for new individual plant mix
C75: =[1]Individual!D46 -> Table I2 | D75: =[1]Individual!E46 -> Mixes Table
C76: =[1]Individual!D152 -> Table I3 | D76: =[1]Individual!E152 -> Active mix
C77: =[1]Individual!C4 -> Figure I1 | D77: =[1]Individual!D4 -> Marginal cost indicators for Fuel mix
D79: =Network!A1 -> Network costs
C80: =Network!D5 -> Table N1 | D80: =Network!E5 -> Network Costs
C81: =Network!D18 -> Table N2 | D81: =Network!E18 -> Network Configuration Basis
C82: =Network!D35 -> Table N3 | D82: =Network!E35 -> Chosen assumptions for network in active scenario
C83: =Network!C42 -> Table N4 | D83: =Network!D42 -> Database of assumptions and results for various networks
D85: =Scenarios!A1 -> Scenario definition
C86: =Scenarios!B10 -> Table S1 | D86: =Scenarios!C10 -> Assumptions for currently selected scenario
C87: =Scenarios!B16 -> Table S2 | D87: =Scenarios!C16 -> Saved scenarios
D89: =Storylines!A1 -> Storylines
C90: =Storylines!B5 -> Table SL1 | D90: =Storylines!C5 -> Storylines
C91: =Storylines!B24 -> Table SL2 | D91: =Storylines!C24 -> Scenario composition of storyline
C92: =Storylines!B43 -> Table SL3 | D92: =Storylines!C43 -> Results in storyline:
C93: =Storylines!B112 -> Table SL4 | D93: =Storylines!C112 -> Divisors
D95: =Graphics!A1 -> Graphics
C96: =Graphics!I14 -> Table G1.1 | D96: =Graphics!J14 -> LCOE cost breakdown for the entire period - NPV total (Basis storyline)
C97: =Graphics!I46 -> Table G1.2 | D97: =Graphics!J46 -> LCOE cost breakdown - NPV total (Basis storyline)
C98: =Graphics!I77 -> Table G2 | D98: =Graphics!J77 -> DH LCOE DH cost breakdown - NPV total (Basis storyline)
C99: =Graphics!I108 -> Table G3.1 | D99: =Graphics!J108 -> Greenhousegas emissions - NPV total, High case
C100: =Graphics!I139 -> Table G3.2 | D100: =Graphics!J139 -> Greenhousegas emissions of the DH scenarios compared to one Individual Mix
C101: =Graphics!I169 -> Table G4 | D101: =Graphics!J169 -> Total CAPEX, MEUR, High case
C102: =Graphics!I200 -> Table G5 | D102: =Graphics!J200 -> Payback times
C103: =Graphics!I231 -> Table G6 | D103: =Graphics!J231 -> DH Company cashflow (wo. Externalities) - NPV total (Basis storyline)
C104: =Graphics!I290 -> Table G8.1 | D104: =Graphics!J290 -> LCOE of the DH scenarios compared to one Baseline Mix for the entire period (Gas 100%) - NPV total (Basis storyline)
C105: =Graphics!I325 -> Table G8.2 | D105: =Graphics!J325 -> LCOE of the DH scenarios compared to one Individual Mix (Gas 100%) - NPV total (Basis storyline)
C106: =Graphics!B9 -> Figure G1.1 | D106: =Graphics!J14 -> LCOE cost breakdown for the entire period - NPV total (Basis storyline)
C107: =Graphics!B41 -> Figure G1.2 | D107: =Graphics!J46 -> LCOE cost breakdown - NPV total (Basis storyline)
C108: =Graphics!$B$72 -> Figure G2 | D108: =Graphics!J77 -> DH LCOE DH cost breakdown - NPV total (Basis storyline)
C109: =Graphics!$B$103 -> Figure G3.1 | D109: =Graphics!J108 -> Greenhousegas emissions - NPV total, High case
C110: =Graphics!B134 -> Figure G3.2 | D110: =Graphics!J139 -> Greenhousegas emissions of the DH scenarios compared to one Individual Mix
C111: =Graphics!$B$165 -> Figure G4 | D111: =Graphics!J169 -> Total CAPEX, MEUR, High case
C112: =Graphics!$B$196 -> Figure G5 | D112: =Graphics!J200 -> Payback times
C113: =Graphics!$B$227 -> Figure G6 | D113: =Graphics!J231 -> DH Company cashflow (wo. Externalities) - NPV total (Basis storyline)
C114: =Graphics!B285 -> Figure G8.1 | D114: =Graphics!J290 -> LCOE of the DH scenarios compared to one Baseline Mix for the entire period (Gas 100%) - NPV total (Basis storyline)
C115: =Graphics!B320 -> Figure G8.2 | D115: =Graphics!J325 -> LCOE of the DH scenarios compared to one Individual Mix (Gas 100%) - NPV total (Basis storyline)
D117: =Results!A1 -> Results
C118: =Results!B9 -> Table R1 | D118: =Results!C9 -> Results for currently selected scenario
C119: =Results!F8 -> Table R2 | D119: =Results!G8 -> Results for all scenarios
D121: =Evaluation!A1 -> Evaluation of economic, technical and environmental performance
C122: =Evaluation!B11 -> Table E1 | D122: =Evaluation!C11 -> Phase in of DH technologies
C123: =Evaluation!B17 -> Table E2 | D123: =Evaluation!C17 -> Electricity
C124: =Evaluation!B27 -> Table E3 | D124: =Evaluation!C27 -> Fuel price by technology, EUR/GWh
C125: =Evaluation!B44 -> Table E4 | D125: =Evaluation!C44 -> Fuel costs by technology, DH plants, million EUR
C126: =Evaluation!B59 -> Table E5 | D126: =Evaluation!C59 -> Capital Expenditure accounting DH plants, million EUR
C127: =Evaluation!B91 -> Table E6 | D127: =Evaluation!C91 -> Emissions, all DH technologies, ton/year
C128: =Evaluation!B104 -> Table E7 | D128: =Evaluation!C104 -> Cost breakdown, all DH technologies, million EUR/year
C129: =Evaluation!B127 -> Table E8 | D129: =Evaluation!C127 -> Heat consumption
C130: =Evaluation!B132 -> Table E9 | D130: =Evaluation!C132 -> Fuel price by technology, EUR/GWh
C131: =Evaluation!B148 -> Table E10 | D131: =Evaluation!C148 -> Fuel cost by technology, non-DH with DH-project, million EUR
C132: =Evaluation!B164 -> Table E11 | D132: =Evaluation!C164 -> Capital Expenditure accounting non-DH with DH-project, million EUR
C133: =Evaluation!B179 -> Table E12 | D133: =Evaluation!C179 -> Emissions, non-DH with project, ton/year
C134: =Evaluation!B192 -> Table E13 | D134: =Evaluation!C192 -> Cost breakdown, non-DH with DH project, million EUR/year
C135: =Evaluation!B205 -> Table E14 | D135: =Evaluation!C205 -> Fuel distribution costs, million EUR/year
C136: =Evaluation!B218 -> Table E15 | D136: =Evaluation!C218 -> Consumers DH advantage, million EUR/year
C137: =Evaluation!B226 -> Table E16 | D137: =Evaluation!C226 -> District heating company
C138: =Evaluation!B239 -> Table E17 | D138: =Evaluation!C239 -> Price subsidy / tax
D140: =Fuels!A1 -> Fuel characteristics
C141: =Fuels!C9 -> Table F1 | D141: =Fuels!D9 -> Fuel prices by fuel @DH plant, EUR/GJ
C142: =Fuels!C27 -> Table F2 | D142: =Fuels!D27 -> Prices for scenarios
C143: =Fuels!C119 -> Table F3 | D143: =Fuels!D119 -> Electricity CO₂ content, kg/MWh
C144: =Fuels!C127 -> Table F4 | D144: =Fuels!D127 -> Additional transport costs to individual compared to DH plant, EUR/GJ
C145: =Fuels!C144 -> Table F5 | D145: =Fuels!D144 -> Fuel CO2e content, kg/GJ
C146: =Fuels!C164 -> Table F6 | D146: =Fuels!D164 -> SO2 content, kg/GJ
D148: =Technologies!A1 -> Technologies
C149: =Technologies!B5 -> Table T1 | D149: =Technologies!C5 -> Individual technologies
C150: =Technologies!B30 -> Table T2 | D150: =Technologies!C30 -> District heating technologies
D152: =Demand!A1 -> Demand
C153: =Demand!B5 -> Table D1 | D153: =Demand!C5 -> Chosen climate zone
C154: =Demand!B10 -> Table D2 | D154: =Demand!C10 -> Climate zones demand profile
C155: =Demand!K10 -> Table D3 | D155: =Demand!L10 -> Pct of max solar prod
D157: =Options!A1 -> Options to choose from building scenarios
C158: =Options!B5 -> Table O1 | D158: =Options!C5 -> Damage costs, EUR/ton
C159: =Options!B14 -> Table O2 | D159: =Options!C14 -> CO₂ equivalent factors, ton CO₂ eq. per ton
C160: =Options!B23 -> Table O3 | D160: =Options!C23 -> Composition of condensing plants substituted and resulting unit emission
D162: =Support!A1 -> Support
D163: ="Miscelanious support tables (" &Support!B6& " - " &Support!P5& ")" -> Miscelanious support tables (Table SUP.A1 - Table SUP.A18)

Sheet Logging
A1: Logging | O1: Diff: | P1: =SUM(D12:S12)-SUM(D13:S13) -> 
A2: Log of chances in selected result indicators for all scenarios.
C5: Figure L1 | D5: Logged History of the Scenarios
C6: Source: | D6: =C17 -> Table L2
C8: Table L1 | D8: Present and latest scenario results and their difference (DH advantage, EUR/MWh)
C9: date | D9: =Results!G9 -> Excess heat | E9: =Results!H9 -> Heat pump air only | F9: =Results!I9 -> Heat pump + gas boiler | G9: =Results!J9 -> CHP Gas | H9: =Results!K9 -> Coal heat | I9: =Results!L9 -> 0 | J9: =Results!M9 -> 0 | K9: =Results!N9 -> 0 | L9: =Results!O9 -> 0 | M9: =Results!P9 -> 0 | N9: =Results!Q9 -> 0 | O9: =Results!R9 -> 0 | P9: =Results!S9 -> 0 | Q9: =Results!T9 -> 0 | R9: =Results!U9 -> 0 | S9: =Results!V9 -> 0
C10: DH costs mill. EUR | D10: =SUMIFS(Results!$G$32:$BO$32,Results!$G$9:$BO$9,D$9)-SUMIFS(Results!$G$33:$BO$33,Results!$G$9:$BO$9,D$9) -> 814.0601699 | E10: =SUMIFS(Results!$G$32:$BO$32,Results!$G$9:$BO$9,E$9)-SUMIFS(Results!$G$33:$BO$33,Results!$G$9:$BO$9,E$9) -> 527.7810863 | F10: =SUMIFS(Results!$G$32:$BO$32,Results!$G$9:$BO$9,F$9)-SUMIFS(Results!$G$33:$BO$33,Results!$G$9:$BO$9,F$9) -> 484.5727272 | G10: =SUMIFS(Results!$G$32:$BO$32,Results!$G$9:$BO$9,G$9)-SUMIFS(Results!$G$33:$BO$33,Results!$G$9:$BO$9,G$9) -> 199.697422 | H10: =SUMIFS(Results!$G$32:$BO$32,Results!$G$9:$BO$9,H$9)-SUMIFS(Results!$G$33:$BO$33,Results!$G$9:$BO$9,H$9) -> -916.3773053 | I10: =SUMIFS(Results!$G$32:$BO$32,Results!$G$9:$BO$9,I$9)-SUMIFS(Results!$G$33:$BO$33,Results!$G$9:$BO$9,I$9) ->  | J10: =SUMIFS(Results!$G$32:$BO$32,Results!$G$9:$BO$9,J$9)-SUMIFS(Results!$G$33:$BO$33,Results!$G$9:$BO$9,J$9) ->  | K10: =SUMIFS(Results!$G$32:$BO$32,Results!$G$9:$BO$9,K$9)-SUMIFS(Results!$G$33:$BO$33,Results!$G$9:$BO$9,K$9) ->  | L10: =SUMIFS(Results!$G$32:$BO$32,Results!$G$9:$BO$9,L$9)-SUMIFS(Results!$G$33:$BO$33,Results!$G$9:$BO$9,L$9) ->  | M10: =SUMIFS(Results!$G$32:$BO$32,Results!$G$9:$BO$9,M$9)-SUMIFS(Results!$G$33:$BO$33,Results!$G$9:$BO$9,M$9) ->  | N10: =SUMIFS(Results!$G$32:$BO$32,Results!$G$9:$BO$9,N$9)-SUMIFS(Results!$G$33:$BO$33,Results!$G$9:$BO$9,N$9) ->  | O10: =SUMIFS(Results!$G$32:$BO$32,Results!$G$9:$BO$9,O$9)-SUMIFS(Results!$G$33:$BO$33,Results!$G$9:$BO$9,O$9) ->  | P10: =SUMIFS(Results!$G$32:$BO$32,Results!$G$9:$BO$9,P$9)-SUMIFS(Results!$G$33:$BO$33,Results!$G$9:$BO$9,P$9) ->  | Q10: =SUMIFS(Results!$G$32:$BO$32,Results!$G$9:$BO$9,Q$9)-SUMIFS(Results!$G$33:$BO$33,Results!$G$9:$BO$9,Q$9) ->  | R10: =SUMIFS(Results!$G$32:$BO$32,Results!$G$9:$BO$9,R$9)-SUMIFS(Results!$G$33:$BO$33,Results!$G$9:$BO$9,R$9) ->  | S10: =SUMIFS(Results!$G$32:$BO$32,Results!$G$9:$BO$9,S$9)-SUMIFS(Results!$G$33:$BO$33,Results!$G$9:$BO$9,S$9) -> 
C11: Demand GWh | D11: =SUMIFS(Results!$G$14:$BO$14,Results!$G$9:$BO$9,D$9) -> 9112.040955 | E11: =SUMIFS(Results!$G$14:$BO$14,Results!$G$9:$BO$9,E$9) -> 9112.040955 | F11: =SUMIFS(Results!$G$14:$BO$14,Results!$G$9:$BO$9,F$9) -> 9112.040955 | G11: =SUMIFS(Results!$G$14:$BO$14,Results!$G$9:$BO$9,G$9) -> 9112.040955 | H11: =SUMIFS(Results!$G$14:$BO$14,Results!$G$9:$BO$9,H$9) -> 9112.040955 | I11: =SUMIFS(Results!$G$14:$BO$14,Results!$G$9:$BO$9,I$9) -> 0 | J11: =SUMIFS(Results!$G$14:$BO$14,Results!$G$9:$BO$9,J$9) -> 0 | K11: =SUMIFS(Results!$G$14:$BO$14,Results!$G$9:$BO$9,K$9) -> 0 | L11: =SUMIFS(Results!$G$14:$BO$14,Results!$G$9:$BO$9,L$9) -> 0 | M11: =SUMIFS(Results!$G$14:$BO$14,Results!$G$9:$BO$9,M$9) -> 0 | N11: =SUMIFS(Results!$G$14:$BO$14,Results!$G$9:$BO$9,N$9) -> 0 | O11: =SUMIFS(Results!$G$14:$BO$14,Results!$G$9:$BO$9,O$9) -> 0 | P11: =SUMIFS(Results!$G$14:$BO$14,Results!$G$9:$BO$9,P$9) -> 0 | Q11: =SUMIFS(Results!$G$14:$BO$14,Results!$G$9:$BO$9,Q$9) -> 0 | R11: =SUMIFS(Results!$G$14:$BO$14,Results!$G$9:$BO$9,R$9) -> 0 | S11: =SUMIFS(Results!$G$14:$BO$14,Results!$G$9:$BO$9,S$9) -> 0 | T11: Initials | U11: Comment | W11: # Log entries
C12: =NOW() -> 2025-09-26T08:57:41.880 | D12: =D10/D11*Support_thousand -> 89.33894984 | E12: =E10/E11*Support_thousand -> 57.92128118 | F12: 53.17938424 | G12: 21.9157731 | H12: -100.5677334 | W12: =COUNT(C19:C44) -> 5
C13: Last result | D13: =INDEX(D$19:D$44,$W$12) -> 89.33894984 | E13: 57.92128118 | F13: 53.17938424 | G13: 21.9157731 | H13: -100.5677334
C14: Source: | D14: =Results!F8&" & "&C17 -> Table R2 & Table L2
C17: Table L2 | D17: Scenario result history
D18: =D9 -> Excess heat | E18: =E9 -> Heat pump air only | F18: Heat pump + gas boiler | G18: CHP Gas | H18: Coal heat | I18: 0 | J18: 0 | K18: 0 | L18: 0 | M18: 0 | N18: 0 | O18: 0 | P18: 0 | Q18: 0 | R18: 0 | S18: 0 | T18: =T11 -> Initials | U18: =U11 -> Comment
C19: 2023-11-06T21:31:39.920
C20: 2025-09-25T09:04:22.800 | D20: 103.9651371 | E20: 58.69542199 | F20: 72.89421389 | G20: 420.5142384 | H20: -100.5677334
C21: 2025-09-25T09:04:31.280 | D21: 103.9651371 | E21: 58.69542199 | F21: 72.89421389 | G21: 420.5142384 | H21: -100.5677334
C22: 2025-09-25T21:08:38.760 | D22: 89.33894984 | E22: 57.92128118 | F22: 53.17938424 | G22: 21.9157731 | H22: -100.5677334
C23: 2025-09-25T21:08:47.480 | D23: 89.33894984 | E23: 57.92128118 | F23: 53.17938424 | G23: 21.9157731 | H23: -100.5677334
C45: Source: | D45: =C8 -> Table L1

Sheet Centralised
A1: Centralised plant mixes
A2: Timing, merit order and fuel use by technology.
B4: Figure C1 | C4: Effect use by hour, MW | H4: Figure C2 | I4: Effect use by ordered hour, MW | Q4: Figure C4 | R4: Demand by hour, MW
B5: Source: | C5: =X45 -> Table C4 | H5: Source: | I5: =AT45 -> Table C6 | Q5: Source: | R5: =AL45 -> Table C5
B7: Figure C3 | C7: Marginal Cost Breakdown, EUR/MWh
B8: Source: | C8: =X25 -> Table C7
B9: Note: This marginal cost differs from LCOE because it does not contain transmission and distribution costs
B10: Note: The long run MC includes cost of capital where the short run MC does not
X11: Table C.A4 | Y11: Auxilirary table for active scenario | AK11: Table C.A6 | AL11: Demand and suply recapitualted
X12: Indices | Z12: 1 | AA12: 2 | AB12: 3 | AC12: 4 | AD12: 5 | AE12: 6 | AF12: 7 | AG12: 8 | AH12: 9 | AI12: 10 | AK12: Solar avail. | AL12: FLH/year | AM12: =SUM(AM47:AM8806) -> 1398.689292
X13: Technology | Z13: =INDEX($F$25:$F$34,Z$12) -> Large CHP - coal | AA13: Heat Pump -excess heat | AB13: Gas boiler | AC13: 0 | AD13: 0 | AE13: 0 | AF13: 0 | AG13: 0 | AH13: 0 | AI13: 0 | AK13: Climate profile | AL13: offset | AM13: =MATCH($E$27,Demand!$C$12:$H$12,0) -> 3
X14: Lifetime | Z14: =INDEX($H$25:$H$34,Z$12) -> 25 | AA14: 25 | AB14: 25 | AC14: 0 | AD14: 0 | AE14: 0 | AF14: 0 | AG14: 0 | AH14: 0 | AI14: 0 | AK14: Network loss | AL14: % of total | AM14: =$E$28 -> 0.16
X15: CAPEX (MEUR) | Z15: =INDEX($T$25:$T$34,Z$12) -> 160.2 | AA15: 0 | AB15: 4.72 | AC15: 0 | AD15: 0 | AE15: 0 | AF15: 0 | AG15: 0 | AH15: 0 | AI15: 0 | AK15: Peak share | AL15: % of total | AM15: =Q34/SUM(Q25:Q34) -> 0
X16: FOPEX (MEUR) | Z16: =INDEX($U$25:$U$34,Z$12) -> 2.64 | AA16: 0 | AB16: 0.016 | AC16: 0 | AD16: 0 | AE16: 0 | AF16: 0 | AG16: 0 | AH16: 0 | AI16: 0 | AK16: Max capacity | AL16: MW | AM16: =SUM($G$25:$G$34) -> 140 | AN16: =IF(Centralised_MaxCap<Centralised_MaxLoad,"WARNING: Capacity too low","Sum: Capacity is ok") -> Sum: Capacity is ok
X17: Fuel (GWh) | Z17: =INDEX($S$25:$S$34,Z$12) -> 795.0697695 | AA17: 0 | AB17: 49.05039245 | AC17: 0 | AD17: 0 | AE17: 0 | AF17: 0 | AG17: 0 | AH17: 0 | AI17: 0 | AK17: Max load | AL17: MW | AM17: =MAX(AO47:AO8806) -> 132.1428569
X18: Heat (GWh) | Z18: =INDEX($Q$25:$Q$34,Z$12) -> 349.8306986 | AA18: 0 | AB18: 46.59787283 | AC18: 0 | AD18: 0 | AE18: 0 | AF18: 0 | AG18: 0 | AH18: 0 | AI18: 0 | AK18: Net demand | AL18: GWh/y | AM18: =SUM(AP47:AP8806)/Support_thousand -> 333
E19: Figures is from here | X19: Electricity sale (GWh) | Z19: =INDEX($R$25:$R$34,Z$12) -> 365.732094 | AA19: 0 | AB19: 0 | AC19: 0 | AD19: 0 | AE19: 0 | AF19: 0 | AG19: 0 | AH19: 0 | AI19: 0 | AK19: WW share | AL19: GWh/y | AM19: =SUM(BG47:BG8806)/Support_thousand -> 66.6 | AN19: =IFERROR(AM19/AM18,0) -> 0.2
X20: Fuel price EUR/MWh) | Z20: =IFERROR(VLOOKUP(Z13,Technologies!$B$34:$S$65,18,0),0)*3.6 -> 5.381284404 | AA20: =IFERROR(VLOOKUP(AA13,Technologies!$B$34:$S$65,18,0),0)*3.6 -> 129.1545675 | AB20: =IFERROR(VLOOKUP(AB13,Technologies!$B$34:$S$65,18,0),0)*3.6 -> 39.03922528 | AC20: =IFERROR(VLOOKUP(AC13,Technologies!$B$34:$S$65,18,0),0)*3.6 -> 0 | AD20: =IFERROR(VLOOKUP(AD13,Technologies!$B$34:$S$65,18,0),0)*3.6 -> 0 | AE20: =IFERROR(VLOOKUP(AE13,Technologies!$B$34:$S$65,18,0),0)*3.6 -> 0 | AF20: =IFERROR(VLOOKUP(AF13,Technologies!$B$34:$S$65,18,0),0)*3.6 -> 0 | AG20: =IFERROR(VLOOKUP(AG13,Technologies!$B$34:$S$65,18,0),0)*3.6 -> 0 | AH20: =IFERROR(VLOOKUP(AH13,Technologies!$B$34:$S$65,18,0),0)*3.6 -> 0 | AI20: =IFERROR(VLOOKUP(AI13,Technologies!$B$34:$S$65,18,0),0)*3.6 -> 0 | AK20: Heat losses | AL20: GWh/y | AM20: =SUM(AN47:AN8806)/Support_thousand -> 63.42857143 | AN20: =IFERROR(AM20/AM21,0) -> 0.16
X21: Electricity sales price (EUR/MWh) | Z21: =Fuels!$BJ$25*3.6 -> 46.11921878 | AA21: =Fuels!$BJ$25*3.6 -> 46.11921878 | AB21: =Fuels!$BJ$25*3.6 -> 46.11921878 | AC21: =Fuels!$BJ$25*3.6 -> 46.11921878 | AD21: =Fuels!$BJ$25*3.6 -> 46.11921878 | AE21: =Fuels!$BJ$25*3.6 -> 46.11921878 | AF21: =Fuels!$BJ$25*3.6 -> 46.11921878 | AG21: =Fuels!$BJ$25*3.6 -> 46.11921878 | AH21: =Fuels!$BJ$25*3.6 -> 46.11921878 | AI21: =Fuels!$BJ$25*3.6 -> 46.11921878 | AK21: Gross demand | AL21: GWh/y | AM21: =SUM(AO47:AO8806)/Support_thousand -> 396.4285714
B22: Table C1 | C22: Technology data and utilisation of plants from active scenario | X22: Demand share | Z22: =Z18/SUM($Z$18:$AI$18) -> 0.8824558163 | AA22: 0 | AB22: 0.1175441837 | AC22: 0 | AD22: 0 | AE22: 0 | AF22: 0 | AG22: 0 | AH22: 0 | AI22: 0 | AK22: Production | AL22: GWh/y | AM22: =SUM(AJ47:AJ8806)/Support_thousand -> 396.4285714
C23: Row | E23: Mix name | F23: Technology | G23: Effect | H23: Lifetime | I23: Build time | J23: Heat eff. | K23: Elec. eff. | L23: CAPEX | M23: Fixed OPEX | N23: Variable OPEX | O23: Load hours | P23: Full load hours | Q23: Heat | R23: Elec. gen. | S23: Fuel (GWh) | T23: CAPEX | U23: FOPEX | V23: Distribution | X23: Source: | Y23: =B22& ", " &Technologies!B30& " & " &Fuels!BI8 -> Table C1, Table T2 & Table F.A1 | AK23: Load duration | AL23: h | AM23: =IFERROR(AM22*1000/AM17,3000) -> 3000.000005
C24: =MATCH($E$25,$E$45:$E$294,0) -> 51 | E24: GWh for the mix /Climate zone | G24: MW | H24: years | J24: % | K24: % | L24: MEUR/MW | M24: MEUR/MW/y | N24: EUR/MWh | O24: hours/year | Q24: GWh/year | T24: MEUR | U24: MEUR/year | V24: % | AK24: Source: | AL24: =B22& " & " &AL45 -> Table C1 & Table C5
B25: 1 | C25: =IFERROR(MATCH(F25,Technologies!$B$34:$B$65,0),"") -> 10 | E25: Coal CHP | F25: Large CHP - coal | G25: 60 | H25: =IFERROR(INDEX(Technologies!E$34:E$65,$C25),0) -> 25 | I25: =IFERROR(INDEX(Technologies!F$34:F$65,$C25),0) -> 4.5 | J25: =IFERROR(INDEX(Technologies!G$34:G$65,$C25),0) -> 0.44 | K25: =IFERROR(INDEX(Technologies!H$34:H$65,$C25),0) -> 0.46 | L25: =IFERROR(INDEX(Technologies!I$34:I$65,$C25),0) -> 2.67 | M25: =IFERROR(INDEX(Technologies!J$34:J$65,$C25),0) -> 0.044 | N25: =IFERROR(INDEX(Technologies!K$34:K$65,$C25),0) -> 4.08 | O25: =IF(ISNUMBER($C25),INDEX($Z$38:$AI$38,$B25),0) -> 8760 | P25: =IF(ISNUMBER($C25),INDEX($Z$39:$AI$39,$B25),0) -> 5830.511643 | Q25: =IF(ISNUMBER($C25),G25*P25/Support_thousand,0) -> 349.8306986 | R25: =IF(ISNUMBER($C25),S25*K25,0) -> 365.732094 | S25: =IF(ISNUMBER($C25),Q25/J25,0) -> 795.0697695 | T25: =IFERROR($G25*L25,0) -> 160.2 | U25: =IFERROR($G25*M25,0) -> 2.64 | V25: =Q25/SUM($Q$25:$Q$34) -> 0.8824558163 | X25: Table C7 | Y25: =E25&": Marginal Cost breakdown, EUR/MWh" -> Coal CHP : Marginal Cost breakdown, EUR/MWh | AX25: 2
B26: 2 | C26: =IFERROR(MATCH(F26,Technologies!$B$34:$B$65,0),"") -> 19 | E26: 333 | F26: Heat Pump -excess heat | G26: 0 | H26: =IFERROR(INDEX(Technologies!E$34:E$65,$C26),0) -> 25 | I26: =IFERROR(INDEX(Technologies!F$34:F$65,$C26),0) -> 0.5 | J26: =IFERROR(INDEX(Technologies!G$34:G$65,$C26),0) -> 4.2 | K26: =IFERROR(INDEX(Technologies!H$34:H$65,$C26),0) -> 0 | L26: =IFERROR(INDEX(Technologies!I$34:I$65,$C26),0) -> 0.59 | M26: =IFERROR(INDEX(Technologies!J$34:J$65,$C26),0) -> 0.016 | N26: =IFERROR(INDEX(Technologies!K$34:K$65,$C26),0) -> 1.8 | O26: 0 | P26: 0 | Q26: 0 | R26: =IF(ISNUMBER($C26),S26*K26,0) -> 0 | S26: =IF(ISNUMBER($C26),Q26/J26,0) -> 0 | T26: =IFERROR($G26*L26,0) -> 0 | U26: =IFERROR($G26*M26,0) -> 0 | V26: =Q26/SUM($Q$25:$Q$34) -> 0 | Z26: =Z13 -> Large CHP - coal | AA26: Heat Pump -excess heat | AB26: Gas boiler | AC26: 0 | AD26: 0 | AE26: 0 | AF26: 0 | AG26: 0 | AH26: 0 | AI26: 0 | AJ26: System average
B27: 3 | C27: =IFERROR(MATCH(F27,Technologies!$B$34:$B$65,0),"") -> 13 | E27: Climate zone 3 | F27: Gas boiler | G27: 80 | H27: =IFERROR(INDEX(Technologies!E$34:E$65,$C27),0) -> 25 | I27: =IFERROR(INDEX(Technologies!F$34:F$65,$C27),0) -> 0.5 | J27: =IFERROR(INDEX(Technologies!G$34:G$65,$C27),0) -> 0.95 | K27: =IFERROR(INDEX(Technologies!H$34:H$65,$C27),0) -> 0 | L27: =IFERROR(INDEX(Technologies!I$34:I$65,$C27),0) -> 0.059 | M27: =IFERROR(INDEX(Technologies!J$34:J$65,$C27),0) -> 0.0002 | N27: =IFERROR(INDEX(Technologies!K$34:K$65,$C27),0) -> 2 | O27: 2737 | P27: 582.4734104 | Q27: 46.59787283 | R27: =IF(ISNUMBER($C27),S27*K27,0) -> 0 | S27: 49.05039245 | T27: 4.72 | U27: 0.016 | V27: 0.1175441837 | X27: CAPEX | Z27: =IFERROR(-1000*PMT(Scenarios_interest_rate,Z14,Z15)/Z18,0) -> 24.28984567 | AA27: 0 | AB27: 5.372743011 | AC27: 0 | AD27: 0 | AE27: 0 | AF27: 0 | AG27: 0 | AH27: 0 | AI27: 0 | AJ27: =SUMPRODUCT($Z27:$AI27,$Z$22:$AI$22) -> 22.06625028
B28: 4 | C28: =IFERROR(MATCH(F28,Technologies!$B$34:$B$65,0),"") ->  | E28: 0.16 | H28: =IFERROR(INDEX(Technologies!E$34:E$65,$C28),0) -> 0 | I28: =IFERROR(INDEX(Technologies!F$34:F$65,$C28),0) -> 0 | J28: =IFERROR(INDEX(Technologies!G$34:G$65,$C28),0) -> 0 | K28: =IFERROR(INDEX(Technologies!H$34:H$65,$C28),0) -> 0 | L28: =IFERROR(INDEX(Technologies!I$34:I$65,$C28),0) -> 0 | M28: =IFERROR(INDEX(Technologies!J$34:J$65,$C28),0) -> 0 | N28: =IFERROR(INDEX(Technologies!K$34:K$65,$C28),0) -> 0 | O28: 0 | P28: 0 | Q28: 0 | R28: 0 | S28: 0 | T28: 0 | U28: 0 | V28: 0 | X28: Fixed OPEX | Z28: =IFERROR(1000*Z16/Z18,0) -> 7.546507527 | AA28: 0 | AB28: 0.3433633131 | AC28: 0 | AD28: 0 | AE28: 0 | AF28: 0 | AG28: 0 | AH28: 0 | AI28: 0 | AJ28: 6.69981982
B29: 5 | C29: =IFERROR(MATCH(F29,Technologies!$B$34:$B$65,0),"") ->  | E29: 0.2 | H29: =IFERROR(INDEX(Technologies!E$34:E$65,$C29),0) -> 0 | I29: =IFERROR(INDEX(Technologies!F$34:F$65,$C29),0) -> 0 | J29: =IFERROR(INDEX(Technologies!G$34:G$65,$C29),0) -> 0 | K29: =IFERROR(INDEX(Technologies!H$34:H$65,$C29),0) -> 0 | L29: =IFERROR(INDEX(Technologies!I$34:I$65,$C29),0) -> 0 | M29: =IFERROR(INDEX(Technologies!J$34:J$65,$C29),0) -> 0 | N29: =IFERROR(INDEX(Technologies!K$34:K$65,$C29),0) -> 0 | O29: 0 | P29: 0 | Q29: 0 | R29: 0 | S29: 0 | T29: 0 | U29: 0 | V29: 0 | X29: Variable OPEX | Z29: =INDEX($N$25:$N$34,COLUMN()-COLUMN($Z$40)+1) -> 4.08 | AA29: 1.8 | AB29: 2 | AC29: 0 | AD29: 0 | AE29: 0 | AF29: 0 | AG29: 0 | AH29: 0 | AI29: 0 | AJ29: 3.835508098
B30: 6 | C30: =IFERROR(MATCH(F30,Technologies!$B$34:$B$65,0),"") ->  | E30: x | H30: =IFERROR(INDEX(Technologies!E$34:E$65,$C30),0) -> 0 | I30: =IFERROR(INDEX(Technologies!F$34:F$65,$C30),0) -> 0 | J30: =IFERROR(INDEX(Technologies!G$34:G$65,$C30),0) -> 0 | K30: =IFERROR(INDEX(Technologies!H$34:H$65,$C30),0) -> 0 | L30: =IFERROR(INDEX(Technologies!I$34:I$65,$C30),0) -> 0 | M30: =IFERROR(INDEX(Technologies!J$34:J$65,$C30),0) -> 0 | N30: =IFERROR(INDEX(Technologies!K$34:K$65,$C30),0) -> 0 | O30: 0 | P30: 0 | Q30: 0 | R30: 0 | S30: 0 | T30: 0 | U30: 0 | V30: 0 | X30: Fuel | Z30: =IFERROR(Z20*Z17/Z18,0) -> 12.23019183 | AA30: 0 | AB30: 41.09392135 | AC30: 0 | AD30: 0 | AE30: 0 | AF30: 0 | AG30: 0 | AH30: 0 | AI30: 0 | AJ30: 15.62295535
B31: 7 | C31: =IFERROR(MATCH(F31,Technologies!$B$34:$B$65,0),"") ->  | H31: =IFERROR(INDEX(Technologies!E$34:E$65,$C31),0) -> 0 | I31: =IFERROR(INDEX(Technologies!F$34:F$65,$C31),0) -> 0 | J31: =IFERROR(INDEX(Technologies!G$34:G$65,$C31),0) -> 0 | K31: =IFERROR(INDEX(Technologies!H$34:H$65,$C31),0) -> 0 | L31: =IFERROR(INDEX(Technologies!I$34:I$65,$C31),0) -> 0 | M31: =IFERROR(INDEX(Technologies!J$34:J$65,$C31),0) -> 0 | N31: =IFERROR(INDEX(Technologies!K$34:K$65,$C31),0) -> 0 | O31: 0 | P31: 0 | Q31: 0 | R31: 0 | S31: 0 | T31: 0 | U31: 0 | V31: 0 | X31: Electricity sale | Z31: =IFERROR(-Z21*Z19/Z18,0) -> -48.2155469 | AA31: =IFERROR(-AA21*AA19/AA18,0) -> 0 | AB31: =IFERROR(-AB21*AB19/AB18,0) -> 0 | AC31: 0 | AD31: 0 | AE31: 0 | AF31: 0 | AG31: 0 | AH31: 0 | AI31: 0 | AJ31: -42.5480898
B32: 8 | C32: =IFERROR(MATCH(F32,Technologies!$B$34:$B$65,0),"") ->  | H32: =IFERROR(INDEX(Technologies!E$34:E$65,$C32),0) -> 0 | I32: =IFERROR(INDEX(Technologies!F$34:F$65,$C32),0) -> 0 | J32: =IFERROR(INDEX(Technologies!G$34:G$65,$C32),0) -> 0 | K32: =IFERROR(INDEX(Technologies!H$34:H$65,$C32),0) -> 0 | L32: =IFERROR(INDEX(Technologies!I$34:I$65,$C32),0) -> 0 | M32: =IFERROR(INDEX(Technologies!J$34:J$65,$C32),0) -> 0 | N32: =IFERROR(INDEX(Technologies!K$34:K$65,$C32),0) -> 0 | O32: 0 | P32: 0 | Q32: 0 | R32: 0 | S32: 0 | T32: 0 | U32: 0 | V32: 0 | X32: Short run MC | Z32: =SUM(Z29:Z31) -> -31.90535508 | AA32: 1.8 | AB32: 43.09392135 | AC32: 0 | AD32: 0 | AE32: 0 | AF32: 0 | AG32: =SUM(AG29:AG31) -> 0 | AH32: 0 | AI32: 0 | AJ32: -23.08962635
B33: 9 | C33: =IFERROR(MATCH(F33,Technologies!$B$34:$B$65,0),"") ->  | H33: =IFERROR(INDEX(Technologies!E$34:E$65,$C33),0) -> 0 | I33: =IFERROR(INDEX(Technologies!F$34:F$65,$C33),0) -> 0 | J33: =IFERROR(INDEX(Technologies!G$34:G$65,$C33),0) -> 0 | K33: =IFERROR(INDEX(Technologies!H$34:H$65,$C33),0) -> 0 | L33: =IFERROR(INDEX(Technologies!I$34:I$65,$C33),0) -> 0 | M33: =IFERROR(INDEX(Technologies!J$34:J$65,$C33),0) -> 0 | N33: =IFERROR(INDEX(Technologies!K$34:K$65,$C33),0) -> 0 | O33: 0 | P33: 0 | Q33: 0 | R33: 0 | S33: 0 | T33: 0 | U33: 0 | V33: 0 | X33: Long run MC | Z33: =SUM(Z27:Z31) -> -0.06900187843 | AA33: 1.8 | AB33: 48.81002767 | AC33: 0 | AD33: 0 | AE33: 0 | AF33: 0 | AG33: =SUM(AG27:AG31) -> 0 | AH33: 0 | AI33: 0 | AJ33: 5.676443751
B34: 10 | C34: =IFERROR(MATCH(F34,Technologies!$B$34:$B$65,0),"") ->  | H34: =IFERROR(INDEX(Technologies!E$34:E$65,$C34),0) -> 0 | I34: =IFERROR(INDEX(Technologies!F$34:F$65,$C34),0) -> 0 | J34: =IFERROR(INDEX(Technologies!G$34:G$65,$C34),0) -> 0 | K34: =IFERROR(INDEX(Technologies!H$34:H$65,$C34),0) -> 0 | L34: =IFERROR(INDEX(Technologies!I$34:I$65,$C34),0) -> 0 | M34: =IFERROR(INDEX(Technologies!J$34:J$65,$C34),0) -> 0 | N34: =IFERROR(INDEX(Technologies!K$34:K$65,$C34),0) -> 0 | O34: 0 | P34: 0 | Q34: 0 | R34: 0 | S34: 0 | T34: 0 | U34: 0 | V34: 0 | X34: Source: | Y34: =B22& " & " &X11 -> Table C1 & Table C.A4
B35: Source: | C35: =X36& " & " &Technologies!B30 -> Table C.A5 & Table T2 | F35: OBS: If solar is present, it must be the first technology
X36: Table C.A5 | Y36: Utilisation summary
F37: Table C.A1 | Z37: =Z13 -> Large CHP - coal | AA37: =AA13 -> Heat Pump -excess heat | AB37: Gas boiler | AC37: 0 | AD37: 0 | AE37: 0 | AF37: 0 | AG37: 0 | AH37: 0 | AI37: 0
E38: 0.12 | F38: Active mix | G38: Slot | X38: L hours | Z38: =COUNTIFS(AP$47:AP$8806,">0") -> 8760 | AA38: =COUNTIFS(AA$47:AA$8806,">0") -> 0 | AB38: =COUNTIFS(AB$47:AB$8806,">0") -> 2737 | AC38: 0 | AD38: =COUNTIFS(AD$47:AD$8806,">0") -> 0 | AE38: 0 | AF38: 0 | AG38: =COUNTIFS(AG$47:AG$8806,">0") -> 0 | AH38: 0 | AI38: =COUNTIFS(AI$47:AI$8806,">0") -> 0
E39: 0.07 | F39: =Scenarios!F12 -> Excess heat | G39: =IFERROR(INDEX(Centralised_Slots,MATCH($F$39,$BL$46:$BL$70,0)),BJ46) -> 01 | X39: FLE hours | Y39: hours | Z39: =IF(Z40>0,SUM(Z47:Z8806)/Z40,0) -> 5830.511643 | AA39: =IF(AA40>0,SUM(AA47:AA8806)/AA40,0) -> 0 | AB39: 582.4734104 | AC39: 0 | AD39: 0 | AE39: 0 | AF39: 0 | AG39: 0 | AH39: 0 | AI39: 0
F40: Source: | G40: =Scenarios!B10& " & " &BI41 -> Table S1 & Table C.A7 | X40: Chosen effect | Y40: MW | Z40: =INDEX($G$25:$G$34,COLUMN()-COLUMN($Z$40)+1) -> 60 | AA40: =INDEX($G$25:$G$34,COLUMN()-COLUMN($Z$40)+1) -> 0 | AB40: 80 | AC40: 0 | AD40: 0 | AE40: 0 | AF40: 0 | AG40: 0 | AH40: 0 | AI40: 0
E41: Saved ones | X41: Max effect | Z41: =MAX(Z47:Z8806) -> 60 | AA41: =MAX(AA47:AA8806) -> 0 | AB41: 72.14285694 | AC41: 0 | AD41: 0 | AE41: 0 | AF41: 0 | AG41: 0 | AH41: 0 | AI41: 0 | BI41: Table C.A7 | BJ41: Chosen mix
E42: Table C2 | F42: Mixes table | X42: Source: | Y42: =X45& " & " &AL45 -> Table C4 & Table C5 | BI42: =COUNT(Centralised_Slots) -> 0
D43: Slot | E43: Mix name | F43: Technology | G43: Effect | H43: Lifetime | I43: Build time | J43: Heat eff. | K43: Elec. eff | L43: CAPEX | M43: Fixed OPEX | N43: Variable OPEX | O43: L Hours | P43: FL hours | Q43: Heat | R43: Elec. gen. | S43: Fuel (GWh) | T43: CAPEX | U43: FOPEX
G44: MW | H44: years | J44: % | K44: % | L44: MEUR/MW | M44: MEUR/MW/y | N44: EUR/MWh | O44: hours/year | Q44: GWh/year | T44: MEUR | U44: MEUR/year
D45: 1 | E45: Excess heat | F45: Excess Heat - directly | G45: 60 | H45: 30 | I45: 1 | J45: 1 | K45: 0 | L45: 0.1 | M45: 0.001 | N45: 1 | O45: 8760 | P45: 5830.511643 | Q45: 349.8306986 | R45: 0 | S45: 349.8306986 | T45: 6 | U45: 0.06 | X45: Table C4 | Y45: =E25&": Effect use by hour, MW" -> Coal CHP : Effect use by hour, MW | AL45: Table C5 | AM45: =E25&": Demand by hour, MW" -> Coal CHP : Demand by hour, MW | AT45: Table C6 | AU45: =E25&": Effect use by ordered hour, MW" -> Coal CHP : Effect use by ordered hour, MW | BI45: No. | BJ45: Slot | BL45: Available mixes | BM45: Climate zone | BN45: Combined Name
E46: 333 | F46: Heat Pump -excess heat | G46: 0 | H46: 25 | I46: 0.5 | J46: 4.2 | K46: 0 | L46: 0.59 | M46: 0.016 | N46: 1.8 | O46: 0 | P46: 0 | Q46: 0 | R46: 0 | S46: 0 | T46: 0 | U46: 0 | X46: Hour | Z46: =Z37 -> Large CHP - coal | AA46: =AA37 -> Heat Pump -excess heat | AB46: Gas boiler | AC46: 0 | AD46: 0 | AE46: 0 | AF46: 0 | AG46: 0 | AH46: 0 | AI46: 0 | AJ46: =AO46 -> Gross Demand | AL46: ClimateZoneDemand | AM46: Solar | AN46: Heat Loss | AO46: Gross Demand | AP46: Net demand | AQ46: Space heating | AR46: HTW | AT46: Rank | AU46: Row | AV46: Demand | AW46: =Z46 -> Large CHP - coal | AX46: Heat Pump -excess heat | AY46: Gas boiler | AZ46: 0 | BA46: 0 | BB46: 0 | BC46: 0 | BD46: 0 | BE46: 0 | BF46: 0 | BG46: Warm water demand | BI46: 1 | BJ46: =TEXT(BI46,"00") -> 01 | BK46: =(BJ46-1)*Support_ten+1 -> 1 | BL46: =IF(INDEX($E$45:$E$294,$BK46)=0,"<Empty>",INDEX($E$45:$E$294,$BK46)) -> Excess heat | BM46: =INDEX($E$45:$E$294,$BK46+2) -> Climate zone 3 | BN46: =BJ46&" - "&BL46 -> 01 - Excess heat
E47: Climate zone 3 | F47: Gas boiler | G47: 80 | H47: 25 | I47: 0.5 | J47: 0.95 | K47: 0 | L47: 0.059 | M47: 0.0002 | N47: 2 | O47: 2737 | P47: 582.4734104 | Q47: 46.59787283 | R47: 0 | S47: 49.05039245 | T47: 4.72 | U47: 0.016 | X47: =IF(MOD(ROW(),1000)=ROW($Y$46),(ROW()-ROW($Y$46)),0) -> 0 | Y47: 0 | Z47: =MAX(MIN(Z$40*IF($Z$37="Solar",$AM47,1),$AO47-SUM($Y47:Y47)),0) -> 60 | AA47: =MAX(MIN(AA$40,$AO47-SUM($Y47:Z47)),0) -> 0 | AB47: =MAX(MIN(AB$40,$AO47-SUM($Y47:AA47)),0) -> 13.23631064 | AC47: =MAX(MIN(AC$40,$AO47-SUM($Y47:AB47)),0) -> 0 | AD47: =MAX(MIN(AD$40,$AO47-SUM($Y47:AC47)),0) -> 0 | AE47: =MAX(MIN(AE$40,$AO47-SUM($Y47:AD47)),0) -> 0 | AF47: =MAX(MIN(AF$40,$AO47-SUM($Y47:AE47)),0) -> 0 | AG47: =MAX(MIN(AG$40,$AO47-SUM($Y47:AF47)),0) -> 0 | AH47: =MAX(MIN(AH$40,$AO47-SUM($Y47:AG47)),0) -> 0 | AI47: =MAX(MIN(AI$40,$AO47-SUM($Y47:AH47)),0) -> 0 | AJ47: =SUM(Z47:AI47) -> 73.23631064 | AK47: =SUM(Z47:AI47)-AJ47 -> 0 | AL47: =INDEX(Demand!$C13:$H13,,$AM$13) -> 0.0002191924415 | AM47: =INDEX(Demand!$K13:$P13,,$AM$13) -> 0 | AN47: =IF(AP47>0,Centralised_GWh*Support_thousand/(1-Centralised_HeatLoss)*Centralised_HeatLoss/BaseLoadHours,0) -> 7.240704501 | AO47: =AN47+AP47 -> 73.23631064 | AP47: =Centralised_GWh*Support_thousand*((1-Centralised_WWDemand)*AL47+Centralised_WWDemand/8760) -> 65.99560614 | AQ47: =AP47-AR47 -> 58.39286641 | AR47: =Centralised_GWh*Support_thousand*Centralised_WWDemand/8760 -> 7.602739726 | AS47: 1 | AT47: =_xlfn.RANK.EQ(AV47,$AV$47:$AV$8806) -> 1 | AU47: 767 | AV47: 132.1428569 | AW47: 60 | AX47: 0 | AY47: 72.14285694 | AZ47: 0 | BA47: 0 | BB47: 0 | BC47: 0 | BD47: 0 | BE47: 0 | BF47: 0 | BG47: =Centralised_GWh*Support_thousand*(Centralised_WWDemand/8760) -> 7.602739726 | BH47: =SUM(AW47:BC47)-AV47 -> 0 | BI47: =BI46+1 -> 2 | BJ47: =TEXT(BI47,"00") -> 02 | BK47: 11 | BL47: =IF(INDEX($E$45:$E$294,$BK47)=0,"<Empty>",INDEX($E$45:$E$294,$BK47)) -> Heat pump air only | BM47: =INDEX($E$45:$E$294,$BK47+2) -> Climate zone 3 | BN47: =BJ47&" - "&BL47 -> 02 - Heat pump air only
E48: 0.16 | H48: 0 | I48: 0 | J48: 0 | K48: 0 | L48: 0 | M48: 0 | N48: 0 | O48: 0 | P48: 0 | Q48: 0 | R48: 0 | S48: 0 | T48: 0 | U48: 0 | X48: 0 | Y48: 0 | Z48: =MAX(MIN(Z$40*IF($Z$37="Solar",$AM48,1),$AO48-SUM($Y48:Y48)),0) -> 60 | AA48: =MAX(MIN(AA$40,$AO48-SUM($Y48:Z48)),0) -> 0 | AB48: =MAX(MIN(AB$40,$AO48-SUM($Y48:AA48)),0) -> 13.27401473 | AC48: =MAX(MIN(AC$40,$AO48-SUM($Y48:AB48)),0) -> 0 | AD48: =MAX(MIN(AD$40,$AO48-SUM($Y48:AC48)),0) -> 0 | AE48: =MAX(MIN(AE$40,$AO48-SUM($Y48:AD48)),0) -> 0 | AF48: =MAX(MIN(AF$40,$AO48-SUM($Y48:AE48)),0) -> 0 | AG48: =MAX(MIN(AG$40,$AO48-SUM($Y48:AF48)),0) -> 0 | AH48: =MAX(MIN(AH$40,$AO48-SUM($Y48:AG48)),0) -> 0 | AI48: =MAX(MIN(AI$40,$AO48-SUM($Y48:AH48)),0) -> 0 | AJ48: =SUM(Z48:AI48) -> 73.27401473 | AK48: =SUM(Z48:AI48)-AJ48 -> 0 | AL48: =INDEX(Demand!$C14:$H14,,$AM$13) -> 0.0002193339734 | AM48: =INDEX(Demand!$K14:$P14,,$AM$13) -> 0 | AN48: =IF(AP48>0,Centralised_GWh*Support_thousand/(1-Centralised_HeatLoss)*Centralised_HeatLoss/BaseLoadHours,0) -> 7.240704501 | AO48: =AN48+AP48 -> 73.27401473 | AP48: =Centralised_GWh*Support_thousand*((1-Centralised_WWDemand)*AL48+Centralised_WWDemand/8760) -> 66.03331023 | AQ48: =AP48-AR48 -> 58.43057051 | AR48: 7.602739726 | AS48: 2 | AT48: 2 | AU48: 766 | AV48: 127.0265742 | AW48: 60 | AX48: 0 | AY48: 67.02657417 | AZ48: 0 | BA48: 0 | BB48: 0 | BC48: 0 | BD48: 0 | BE48: 0 | BF48: 0 | BG48: 7.602739726 | BH48: =SUM(AW48:BC48)-AV48 -> 0 | BI48: =BI47+1 -> 3 | BJ48: =TEXT(BI48,"00") -> 03 | BK48: 21 | BL48: =IF(INDEX($E$45:$E$294,$BK48)=0,"<Empty>",INDEX($E$45:$E$294,$BK48)) -> Heat pump air + gas boiler | BM48: Climate zone 3 | BN48: 03 - Heat pump air + gas boiler
E49: 0.2 | H49: 0 | I49: 0 | J49: 0 | K49: 0 | L49: 0 | M49: 0 | N49: 0 | O49: 0 | P49: 0 | Q49: 0 | R49: 0 | S49: 0 | T49: 0 | U49: 0 | X49: 0 | Y49: 0 | Z49: =MAX(MIN(Z$40*IF($Z$37="Solar",$AM49,1),$AO49-SUM($Y49:Y49)),0) -> 60 | AA49: =MAX(MIN(AA$40,$AO49-SUM($Y49:Z49)),0) -> 0 | AB49: =MAX(MIN(AB$40,$AO49-SUM($Y49:AA49)),0) -> 13.3021769 | AC49: =MAX(MIN(AC$40,$AO49-SUM($Y49:AB49)),0) -> 0 | AD49: =MAX(MIN(AD$40,$AO49-SUM($Y49:AC49)),0) -> 0 | AE49: =MAX(MIN(AE$40,$AO49-SUM($Y49:AD49)),0) -> 0 | AF49: =MAX(MIN(AF$40,$AO49-SUM($Y49:AE49)),0) -> 0 | AG49: =MAX(MIN(AG$40,$AO49-SUM($Y49:AF49)),0) -> 0 | AH49: =MAX(MIN(AH$40,$AO49-SUM($Y49:AG49)),0) -> 0 | AI49: =MAX(MIN(AI$40,$AO49-SUM($Y49:AH49)),0) -> 0 | AJ49: =SUM(Z49:AI49) -> 73.3021769 | AK49: 0 | AL49: =INDEX(Demand!$C15:$H15,,$AM$13) -> 0.0002194396872 | AM49: =INDEX(Demand!$K15:$P15,,$AM$13) -> 0 | AN49: 7.240704501 | AO49: =AN49+AP49 -> 73.3021769 | AP49: 66.0614724 | AQ49: 58.45873267 | AR49: 7.602739726 | AS49: 3 | AT49: 3 | AU49: 768 | AV49: 123.446412 | AW49: 60 | AX49: 0 | AY49: 63.44641202 | AZ49: 0 | BA49: 0 | BB49: 0 | BC49: 0 | BD49: 0 | BE49: 0 | BF49: 0 | BG49: 7.602739726 | BH49: 0 | BI49: 4 | BJ49: 04 | BK49: 31 | BL49: Solar | BM49: Climate zone 3 | BN49: 04 - Solar
E50: x | H50: 0 | I50: 0 | J50: 0 | K50: 0 | L50: 0 | M50: 0 | N50: 0 | O50: 0 | P50: 0 | Q50: 0 | R50: 0 | S50: 0 | T50: 0 | U50: 0 | X50: 0 | Y50: 0 | Z50: =MAX(MIN(Z$40*IF($Z$37="Solar",$AM50,1),$AO50-SUM($Y50:Y50)),0) -> 60 | AA50: =MAX(MIN(AA$40,$AO50-SUM($Y50:Z50)),0) -> 0 | AB50: =MAX(MIN(AB$40,$AO50-SUM($Y50:AA50)),0) -> 13.30492371 | AC50: =MAX(MIN(AC$40,$AO50-SUM($Y50:AB50)),0) -> 0 | AD50: =MAX(MIN(AD$40,$AO50-SUM($Y50:AC50)),0) -> 0 | AE50: =MAX(MIN(AE$40,$AO50-SUM($Y50:AD50)),0) -> 0 | AF50: =MAX(MIN(AF$40,$AO50-SUM($Y50:AE50)),0) -> 0 | AG50: =MAX(MIN(AG$40,$AO50-SUM($Y50:AF50)),0) -> 0 | AH50: =MAX(MIN(AH$40,$AO50-SUM($Y50:AG50)),0) -> 0 | AI50: =MAX(MIN(AI$40,$AO50-SUM($Y50:AH50)),0) -> 0 | AJ50: 73.30492371 | AK50: 0 | AL50: =INDEX(Demand!$C16:$H16,,$AM$13) -> 0.000219449998 | AM50: =INDEX(Demand!$K16:$P16,,$AM$13) -> 0 | AN50: 7.240704501 | AO50: 73.30492371 | AP50: =Centralised_GWh*Support_thousand*((1-Centralised_WWDemand)*AL50+Centralised_WWDemand/8760) -> 66.0642192 | AQ50: 58.46147948 | AR50: 7.602739726 | AS50: 4 | AT50: 4 | AU50: 765 | AV50: 122.7264459 | AW50: 60 | AX50: 0 | AY50: 62.72644587 | AZ50: 0 | BA50: 0 | BB50: 0 | BC50: 0 | BD50: 0 | BE50: 0 | BF50: 0 | BG50: 7.602739726 | BH50: 0 | BI50: 5 | BJ50: 05 | BK50: 41 | BL50: CHP gas | BM50: Climate zone 3 | BN50: 05 - CHP gas
H51: 0 | I51: 0 | J51: 0 | K51: 0 | L51: 0 | M51: 0 | N51: 0 | O51: 0 | P51: 0 | Q51: 0 | R51: 0 | S51: 0 | T51: 0 | U51: 0 | X51: 0 | Y51: 0 | Z51: =MAX(MIN(Z$40*IF($Z$37="Solar",$AM51,1),$AO51-SUM($Y51:Y51)),0) -> 60 | AA51: =MAX(MIN(AA$40,$AO51-SUM($Y51:Z51)),0) -> 0 | AB51: =MAX(MIN(AB$40,$AO51-SUM($Y51:AA51)),0) -> 13.31404362 | AC51: =MAX(MIN(AC$40,$AO51-SUM($Y51:AB51)),0) -> 0 | AD51: =MAX(MIN(AD$40,$AO51-SUM($Y51:AC51)),0) -> 0 | AE51: =MAX(MIN(AE$40,$AO51-SUM($Y51:AD51)),0) -> 0 | AF51: =MAX(MIN(AF$40,$AO51-SUM($Y51:AE51)),0) -> 0 | AG51: =MAX(MIN(AG$40,$AO51-SUM($Y51:AF51)),0) -> 0 | AH51: =MAX(MIN(AH$40,$AO51-SUM($Y51:AG51)),0) -> 0 | AI51: =MAX(MIN(AI$40,$AO51-SUM($Y51:AH51)),0) -> 0 | AJ51: 73.31404362 | AK51: 0 | AL51: =INDEX(Demand!$C17:$H17,,$AM$13) -> 0.000219484232 | AM51: =INDEX(Demand!$K17:$P17,,$AM$13) -> 0 | AN51: 7.240704501 | AO51: 73.31404362 | AP51: 66.07333912 | AQ51: 58.4705994 | AR51: 7.602739726 | AS51: 5 | AT51: 5 | AU51: 769 | AV51: 122.1653633 | AW51: 60 | AX51: 0 | AY51: 62.1653633 | AZ51: 0 | BA51: 0 | BB51: 0 | BC51: 0 | BD51: 0 | BE51: 0 | BF51: 0 | BG51: 7.602739726 | BH51: 0 | BI51: 6 | BJ51: 06 | BK51: 51 | BL51: Coal CHP | BM51: Climate zone 3 | BN51: 06 - Coal CHP
H52: 0 | I52: 0 | J52: 0 | K52: 0 | L52: 0 | M52: 0 | N52: 0 | O52: 0 | P52: 0 | Q52: 0 | R52: 0 | S52: 0 | T52: 0 | U52: 0 | X52: 0 | Y52: 0 | Z52: =MAX(MIN(Z$40*IF($Z$37="Solar",$AM52,1),$AO52-SUM($Y52:Y52)),0) -> 60 | AA52: =MAX(MIN(AA$40,$AO52-SUM($Y52:Z52)),0) -> 0 | AB52: =MAX(MIN(AB$40,$AO52-SUM($Y52:AA52)),0) -> 13.34375639 | AC52: =MAX(MIN(AC$40,$AO52-SUM($Y52:AB52)),0) -> 0 | AD52: =MAX(MIN(AD$40,$AO52-SUM($Y52:AC52)),0) -> 0 | AE52: =MAX(MIN(AE$40,$AO52-SUM($Y52:AD52)),0) -> 0 | AF52: =MAX(MIN(AF$40,$AO52-SUM($Y52:AE52)),0) -> 0 | AG52: =MAX(MIN(AG$40,$AO52-SUM($Y52:AF52)),0) -> 0 | AH52: =MAX(MIN(AH$40,$AO52-SUM($Y52:AG52)),0) -> 0 | AI52: =MAX(MIN(AI$40,$AO52-SUM($Y52:AH52)),0) -> 0 | AJ52: 73.34375639 | AK52: 0 | AL52: =INDEX(Demand!$C18:$H18,,$AM$13) -> 0.0002195957664 | AM52: =INDEX(Demand!$K18:$P18,,$AM$13) -> 0 | AN52: 7.240704501 | AO52: 73.34375639 | AP52: 66.10305189 | AQ52: 58.50031216 | AR52: 7.602739726 | AS52: 6 | AT52: 6 | AU52: 764 | AV52: 121.6192148 | AW52: 60 | AX52: 0 | AY52: 61.61921482 | AZ52: 0 | BA52: 0 | BB52: 0 | BC52: 0 | BD52: 0 | BE52: 0 | BF52: 0 | BG52: 7.602739726 | BH52: 0 | BI52: 7 | BJ52: 07 | BK52: 61 | BL52: <Empty> | BM52: Climate zone 3 | BN52: 07 - <Empty>
H53: 0 | I53: 0 | J53: 0 | K53: 0 | L53: 0 | M53: 0 | N53: 0 | O53: 0 | P53: 0 | Q53: 0 | R53: 0 | S53: 0 | T53: 0 | U53: 0 | X53: 0 | Y53: 0 | Z53: =MAX(MIN(Z$40*IF($Z$37="Solar",$AM53,1),$AO53-SUM($Y53:Y53)),0) -> 60 | AA53: =MAX(MIN(AA$40,$AO53-SUM($Y53:Z53)),0) -> 0 | AB53: =MAX(MIN(AB$40,$AO53-SUM($Y53:AA53)),0) -> 13.3537886 | AC53: =MAX(MIN(AC$40,$AO53-SUM($Y53:AB53)),0) -> 0 | AD53: =MAX(MIN(AD$40,$AO53-SUM($Y53:AC53)),0) -> 0 | AE53: =MAX(MIN(AE$40,$AO53-SUM($Y53:AD53)),0) -> 0 | AF53: =MAX(MIN(AF$40,$AO53-SUM($Y53:AE53)),0) -> 0 | AG53: =MAX(MIN(AG$40,$AO53-SUM($Y53:AF53)),0) -> 0 | AH53: =MAX(MIN(AH$40,$AO53-SUM($Y53:AG53)),0) -> 0 | AI53: =MAX(MIN(AI$40,$AO53-SUM($Y53:AH53)),0) -> 0 | AJ53: 73.3537886 | AK53: 0 | AL53: =INDEX(Demand!$C19:$H19,,$AM$13) -> 0.0002196334248 | AM53: =INDEX(Demand!$K19:$P19,,$AM$13) -> 0 | AN53: 7.240704501 | AO53: 73.3537886 | AP53: 66.1130841 | AQ53: 58.51034437 | AR53: 7.602739726 | AS53: 7 | AT53: 7 | AU53: 770 | AV53: 120.765692 | AW53: 60 | AX53: 0 | AY53: 60.76569199 | AZ53: 0 | BA53: 0 | BB53: 0 | BC53: 0 | BD53: 0 | BE53: 0 | BF53: 0 | BG53: 7.602739726 | BH53: 0 | BI53: 8 | BJ53: 08 | BK53: 71 | BL53: <Empty> | BM53: 0 | BN53: 08 - <Empty>
H54: 0 | I54: 0 | J54: 0 | K54: 0 | L54: 0 | M54: 0 | N54: 0 | O54: 0 | P54: 0 | Q54: 0 | R54: 0 | S54: 0 | T54: 0 | U54: 0 | X54: 0 | Y54: 0 | Z54: =MAX(MIN(Z$40*IF($Z$37="Solar",$AM54,1),$AO54-SUM($Y54:Y54)),0) -> 60 | AA54: =MAX(MIN(AA$40,$AO54-SUM($Y54:Z54)),0) -> 0 | AB54: =MAX(MIN(AB$40,$AO54-SUM($Y54:AA54)),0) -> 13.38523466 | AC54: =MAX(MIN(AC$40,$AO54-SUM($Y54:AB54)),0) -> 0 | AD54: =MAX(MIN(AD$40,$AO54-SUM($Y54:AC54)),0) -> 0 | AE54: =MAX(MIN(AE$40,$AO54-SUM($Y54:AD54)),0) -> 0 | AF54: =MAX(MIN(AF$40,$AO54-SUM($Y54:AE54)),0) -> 0 | AG54: =MAX(MIN(AG$40,$AO54-SUM($Y54:AF54)),0) -> 0 | AH54: =MAX(MIN(AH$40,$AO54-SUM($Y54:AG54)),0) -> 0 | AI54: =MAX(MIN(AI$40,$AO54-SUM($Y54:AH54)),0) -> 0 | AJ54: 73.38523466 | AK54: 0 | AL54: =INDEX(Demand!$C20:$H20,,$AM$13) -> 0.0002197514656 | AM54: =INDEX(Demand!$K20:$P20,,$AM$13) -> 3.382530358e-05 | AN54: 7.240704501 | AO54: 73.38523466 | AP54: 66.14453015 | AQ54: 58.54179043 | AR54: 7.602739726 | AS54: 8 | AT54: 8 | AU54: 763 | AV54: 120.1417968 | AW54: 60 | AX54: 0 | AY54: 60.14179685 | AZ54: 0 | BA54: 0 | BB54: 0 | BC54: 0 | BD54: 0 | BE54: 0 | BF54: 0 | BG54: 7.602739726 | BH54: 0 | BI54: 9 | BJ54: 09 | BK54: 81 | BL54: <Empty> | BM54: 0 | BN54: 09 - <Empty>
D55: 2 | E55: Heat pump air only | F55: Heat Pump - air source | G55: 133 | H55: 25 | I55: 0.5 | J55: 2.7 | K55: 0 | L55: 0.74 | M55: 0.018 | N55: 2 | O55: 8760 | P55: 2980.665951 | Q55: 396.4285714 | R55: 0 | S55: 146.8253968 | T55: 98.42 | U55: 2.394 | X55: 0 | Y55: 0 | Z55: =MAX(MIN(Z$40*IF($Z$37="Solar",$AM55,1),$AO55-SUM($Y55:Y55)),0) -> 60 | AA55: =MAX(MIN(AA$40,$AO55-SUM($Y55:Z55)),0) -> 0 | AB55: =MAX(MIN(AB$40,$AO55-SUM($Y55:AA55)),0) -> 13.42123783 | AC55: =MAX(MIN(AC$40,$AO55-SUM($Y55:AB55)),0) -> 0 | AD55: =MAX(MIN(AD$40,$AO55-SUM($Y55:AC55)),0) -> 0 | AE55: =MAX(MIN(AE$40,$AO55-SUM($Y55:AD55)),0) -> 0 | AF55: =MAX(MIN(AF$40,$AO55-SUM($Y55:AE55)),0) -> 0 | AG55: =MAX(MIN(AG$40,$AO55-SUM($Y55:AF55)),0) -> 0 | AH55: =MAX(MIN(AH$40,$AO55-SUM($Y55:AG55)),0) -> 0 | AI55: =MAX(MIN(AI$40,$AO55-SUM($Y55:AH55)),0) -> 0 | AJ55: 73.42123783 | AK55: 0 | AL55: =INDEX(Demand!$C21:$H21,,$AM$13) -> 0.0002198866126 | AM55: =INDEX(Demand!$K21:$P21,,$AM$13) -> 0.1289195071 | AN55: 7.240704501 | AO55: 73.42123783 | AP55: 66.18053333 | AQ55: 58.5777936 | AR55: 7.602739726 | AS55: 9 | AT55: 9 | AU55: 771 | AV55: 119.2636481 | AW55: 60 | AX55: 0 | AY55: 59.26364805 | AZ55: 0 | BA55: 0 | BB55: 0 | BC55: 0 | BD55: 0 | BE55: 0 | BF55: 0 | BG55: 7.602739726 | BH55: 0 | BI55: 10 | BJ55: 10 | BK55: 91 | BL55: <Empty> | BM55: 0 | BN55: 10 - <Empty>
E56: 333 | F56: Heat Pump -excess heat | G56: 0 | H56: 25 | I56: 0.5 | J56: 4.2 | K56: 0 | L56: 0.59 | M56: 0.016 | N56: 1.8 | O56: 0 | P56: 0 | Q56: 0 | R56: 0 | S56: 0 | T56: 0 | U56: 0 | X56: 0 | Y56: 0 | Z56: =MAX(MIN(Z$40*IF($Z$37="Solar",$AM56,1),$AO56-SUM($Y56:Y56)),0) -> 60 | AA56: =MAX(MIN(AA$40,$AO56-SUM($Y56:Z56)),0) -> 0 | AB56: =MAX(MIN(AB$40,$AO56-SUM($Y56:AA56)),0) -> 13.42974092 | AC56: =MAX(MIN(AC$40,$AO56-SUM($Y56:AB56)),0) -> 0 | AD56: =MAX(MIN(AD$40,$AO56-SUM($Y56:AC56)),0) -> 0 | AE56: =MAX(MIN(AE$40,$AO56-SUM($Y56:AD56)),0) -> 0 | AF56: =MAX(MIN(AF$40,$AO56-SUM($Y56:AE56)),0) -> 0 | AG56: =MAX(MIN(AG$40,$AO56-SUM($Y56:AF56)),0) -> 0 | AH56: =MAX(MIN(AH$40,$AO56-SUM($Y56:AG56)),0) -> 0 | AI56: =MAX(MIN(AI$40,$AO56-SUM($Y56:AH56)),0) -> 0 | AJ56: 73.42974092 | AK56: 0 | AL56: =INDEX(Demand!$C22:$H22,,$AM$13) -> 0.0002199185311 | AM56: =INDEX(Demand!$K22:$P22,,$AM$13) -> 0.1461929621 | AN56: 7.240704501 | AO56: 73.42974092 | AP56: 66.18903642 | AQ56: 58.5862967 | AR56: 7.602739726 | AS56: 10 | AT56: 10 | AU56: 762 | AV56: 117.8185341 | AW56: 60 | AX56: 0 | AY56: 57.81853413 | AZ56: 0 | BA56: 0 | BB56: 0 | BC56: 0 | BD56: 0 | BE56: 0 | BF56: 0 | BG56: 7.602739726 | BH56: 0 | BI56: 11 | BJ56: 11 | BK56: 101 | BL56: <Empty> | BM56: 0 | BN56: 11 - <Empty>
E57: Climate zone 3 | F57: Gas boiler | G57: 0 | H57: 25 | I57: 0.5 | J57: 0.95 | K57: 0 | L57: 0.059 | M57: 0.0002 | N57: 2 | O57: 0 | P57: 0 | Q57: 0 | R57: 0 | S57: 0 | T57: 0 | U57: 0 | X57: 0 | Y57: 0 | Z57: =MAX(MIN(Z$40*IF($Z$37="Solar",$AM57,1),$AO57-SUM($Y57:Y57)),0) -> 60 | AA57: =MAX(MIN(AA$40,$AO57-SUM($Y57:Z57)),0) -> 0 | AB57: =MAX(MIN(AB$40,$AO57-SUM($Y57:AA57)),0) -> 13.43895433 | AC57: =MAX(MIN(AC$40,$AO57-SUM($Y57:AB57)),0) -> 0 | AD57: =MAX(MIN(AD$40,$AO57-SUM($Y57:AC57)),0) -> 0 | AE57: =MAX(MIN(AE$40,$AO57-SUM($Y57:AD57)),0) -> 0 | AF57: =MAX(MIN(AF$40,$AO57-SUM($Y57:AE57)),0) -> 0 | AG57: =MAX(MIN(AG$40,$AO57-SUM($Y57:AF57)),0) -> 0 | AH57: =MAX(MIN(AH$40,$AO57-SUM($Y57:AG57)),0) -> 0 | AI57: =MAX(MIN(AI$40,$AO57-SUM($Y57:AH57)),0) -> 0 | AJ57: 73.43895433 | AK57: 0 | AL57: =INDEX(Demand!$C23:$H23,,$AM$13) -> 0.000219953116 | AM57: =INDEX(Demand!$K23:$P23,,$AM$13) -> 0.1886549932 | AN57: 7.240704501 | AO57: 73.43895433 | AP57: 66.19824983 | AQ57: 58.59551011 | AR57: 7.602739726 | AS57: 11 | AT57: 11 | AU57: 772 | AV57: 117.2394852 | AW57: 60 | AX57: 0 | AY57: 57.23948518 | AZ57: 0 | BA57: 0 | BB57: 0 | BC57: 0 | BD57: 0 | BE57: 0 | BF57: 0 | BG57: 7.602739726 | BH57: 0 | BI57: 12 | BJ57: 12 | BK57: 111 | BL57: <Empty> | BM57: 0 | BN57: 12 - <Empty>
E58: 0.16 | H58: 0 | I58: 0 | J58: 0 | K58: 0 | L58: 0 | M58: 0 | N58: 0 | O58: 0 | P58: 0 | Q58: 0 | R58: 0 | S58: 0 | T58: 0 | U58: 0 | X58: 0 | Y58: 0 | Z58: =MAX(MIN(Z$40*IF($Z$37="Solar",$AM58,1),$AO58-SUM($Y58:Y58)),0) -> 60 | AA58: =MAX(MIN(AA$40,$AO58-SUM($Y58:Z58)),0) -> 0 | AB58: =MAX(MIN(AB$40,$AO58-SUM($Y58:AA58)),0) -> 13.46892784 | AC58: =MAX(MIN(AC$40,$AO58-SUM($Y58:AB58)),0) -> 0 | AD58: =MAX(MIN(AD$40,$AO58-SUM($Y58:AC58)),0) -> 0 | AE58: =MAX(MIN(AE$40,$AO58-SUM($Y58:AD58)),0) -> 0 | AF58: =MAX(MIN(AF$40,$AO58-SUM($Y58:AE58)),0) -> 0 | AG58: =MAX(MIN(AG$40,$AO58-SUM($Y58:AF58)),0) -> 0 | AH58: =MAX(MIN(AH$40,$AO58-SUM($Y58:AG58)),0) -> 0 | AI58: =MAX(MIN(AI$40,$AO58-SUM($Y58:AH58)),0) -> 0 | AJ58: 73.46892784 | AK58: 0 | AL58: =INDEX(Demand!$C24:$H24,,$AM$13) -> 0.0002200656292 | AM58: =INDEX(Demand!$K24:$P24,,$AM$13) -> 0.1425623795 | AN58: 7.240704501 | AO58: 73.46892784 | AP58: 66.22822334 | AQ58: 58.62548361 | AR58: 7.602739726 | AS58: 12 | AT58: 12 | AU58: 761 | AV58: 116.4338757 | AW58: 60 | AX58: 0 | AY58: 56.43387575 | AZ58: 0 | BA58: 0 | BB58: 0 | BC58: 0 | BD58: 0 | BE58: 0 | BF58: 0 | BG58: 7.602739726 | BH58: 0 | BI58: 13 | BJ58: 13 | BK58: 121 | BL58: <Empty> | BM58: 0 | BN58: 13 - <Empty>
E59: 0.2 | H59: 0 | I59: 0 | J59: 0 | K59: 0 | L59: 0 | M59: 0 | N59: 0 | O59: 0 | P59: 0 | Q59: 0 | R59: 0 | S59: 0 | T59: 0 | U59: 0 | X59: 0 | Y59: 0 | Z59: =MAX(MIN(Z$40*IF($Z$37="Solar",$AM59,1),$AO59-SUM($Y59:Y59)),0) -> 60 | AA59: =MAX(MIN(AA$40,$AO59-SUM($Y59:Z59)),0) -> 0 | AB59: =MAX(MIN(AB$40,$AO59-SUM($Y59:AA59)),0) -> 13.47232122 | AC59: =MAX(MIN(AC$40,$AO59-SUM($Y59:AB59)),0) -> 0 | AD59: =MAX(MIN(AD$40,$AO59-SUM($Y59:AC59)),0) -> 0 | AE59: =MAX(MIN(AE$40,$AO59-SUM($Y59:AD59)),0) -> 0 | AF59: =MAX(MIN(AF$40,$AO59-SUM($Y59:AE59)),0) -> 0 | AG59: =MAX(MIN(AG$40,$AO59-SUM($Y59:AF59)),0) -> 0 | AH59: =MAX(MIN(AH$40,$AO59-SUM($Y59:AG59)),0) -> 0 | AI59: =MAX(MIN(AI$40,$AO59-SUM($Y59:AH59)),0) -> 0 | AJ59: 73.47232122 | AK59: 0 | AL59: =INDEX(Demand!$C25:$H25,,$AM$13) -> 0.0002200783671 | AM59: =INDEX(Demand!$K25:$P25,,$AM$13) -> 0.1141942249 | AN59: 7.240704501 | AO59: =AN59+AP59 -> 73.47232122 | AP59: 66.23161672 | AQ59: 58.628877 | AR59: 7.602739726 | AS59: 13 | AT59: 13 | AU59: 773 | AV59: 115.4898485 | AW59: 60 | AX59: 0 | AY59: 55.48984849 | AZ59: 0 | BA59: 0 | BB59: 0 | BC59: 0 | BD59: 0 | BE59: 0 | BF59: 0 | BG59: 7.602739726 | BH59: 0 | BI59: 14 | BJ59: 14 | BK59: 131 | BL59: <Empty> | BM59: 0 | BN59: 14 - <Empty>
E60: x | H60: 0 | I60: 0 | J60: 0 | K60: 0 | L60: 0 | M60: 0 | N60: 0 | O60: 0 | P60: 0 | Q60: 0 | R60: 0 | S60: 0 | T60: 0 | U60: 0 | X60: 0 | Y60: 0 | Z60: =MAX(MIN(Z$40*IF($Z$37="Solar",$AM60,1),$AO60-SUM($Y60:Y60)),0) -> 60 | AA60: =MAX(MIN(AA$40,$AO60-SUM($Y60:Z60)),0) -> 0 | AB60: =MAX(MIN(AB$40,$AO60-SUM($Y60:AA60)),0) -> 13.47415706 | AC60: =MAX(MIN(AC$40,$AO60-SUM($Y60:AB60)),0) -> 0 | AD60: =MAX(MIN(AD$40,$AO60-SUM($Y60:AC60)),0) -> 0 | AE60: =MAX(MIN(AE$40,$AO60-SUM($Y60:AD60)),0) -> 0 | AF60: =MAX(MIN(AF$40,$AO60-SUM($Y60:AE60)),0) -> 0 | AG60: =MAX(MIN(AG$40,$AO60-SUM($Y60:AF60)),0) -> 0 | AH60: =MAX(MIN(AH$40,$AO60-SUM($Y60:AG60)),0) -> 0 | AI60: =MAX(MIN(AI$40,$AO60-SUM($Y60:AH60)),0) -> 0 | AJ60: 73.47415706 | AK60: 0 | AL60: =INDEX(Demand!$C26:$H26,,$AM$13) -> 0.0002200852584 | AM60: =INDEX(Demand!$K26:$P26,,$AM$13) -> 0 | AN60: 7.240704501 | AO60: 73.47415706 | AP60: 66.23345255 | AQ60: 58.63071283 | AR60: 7.602739726 | AS60: 14 | AT60: 14 | AU60: 760 | AV60: 114.9240708 | AW60: 60 | AX60: 0 | AY60: 54.92407081 | AZ60: 0 | BA60: 0 | BB60: 0 | BC60: 0 | BD60: 0 | BE60: 0 | BF60: 0 | BG60: 7.602739726 | BH60: 0 | BI60: 15 | BJ60: 15 | BK60: 141 | BL60: <Empty> | BM60: 0 | BN60: 15 - <Empty>
H61: 0 | I61: 0 | J61: 0 | K61: 0 | L61: 0 | M61: 0 | N61: 0 | O61: 0 | P61: 0 | Q61: 0 | R61: 0 | S61: 0 | T61: 0 | U61: 0 | X61: 0 | Y61: 0 | Z61: =MAX(MIN(Z$40*IF($Z$37="Solar",$AM61,1),$AO61-SUM($Y61:Y61)),0) -> 60 | AA61: =MAX(MIN(AA$40,$AO61-SUM($Y61:Z61)),0) -> 0 | AB61: =MAX(MIN(AB$40,$AO61-SUM($Y61:AA61)),0) -> 13.51299771 | AC61: =MAX(MIN(AC$40,$AO61-SUM($Y61:AB61)),0) -> 0 | AD61: =MAX(MIN(AD$40,$AO61-SUM($Y61:AC61)),0) -> 0 | AE61: =MAX(MIN(AE$40,$AO61-SUM($Y61:AD61)),0) -> 0 | AF61: =MAX(MIN(AF$40,$AO61-SUM($Y61:AE61)),0) -> 0 | AG61: =MAX(MIN(AG$40,$AO61-SUM($Y61:AF61)),0) -> 0 | AH61: =MAX(MIN(AH$40,$AO61-SUM($Y61:AG61)),0) -> 0 | AI61: =MAX(MIN(AI$40,$AO61-SUM($Y61:AH61)),0) -> 0 | AJ61: 73.51299771 | AK61: 0 | AL61: =INDEX(Demand!$C27:$H27,,$AM$13) -> 0.0002202310566 | AM61: =INDEX(Demand!$K27:$P27,,$AM$13) -> 0 | AN61: 7.240704501 | AO61: 73.51299771 | AP61: 66.27229321 | AQ61: 58.66955348 | AR61: 7.602739726 | AS61: 15 | AT61: 15 | AU61: 774 | AV61: 113.884844 | AW61: 60 | AX61: 0 | AY61: 53.884844 | AZ61: 0 | BA61: 0 | BB61: 0 | BC61: 0 | BD61: 0 | BE61: 0 | BF61: 0 | BG61: 7.602739726 | BH61: 0 | BI61: 16 | BJ61: 16 | BK61: 151 | BL61: <Empty> | BM61: 0 | BN61: 16 - <Empty>
H62: 0 | I62: 0 | J62: 0 | K62: 0 | L62: 0 | M62: 0 | N62: 0 | O62: 0 | P62: 0 | Q62: 0 | R62: 0 | S62: 0 | T62: 0 | U62: 0 | X62: 0 | Y62: 0 | Z62: =MAX(MIN(Z$40*IF($Z$37="Solar",$AM62,1),$AO62-SUM($Y62:Y62)),0) -> 60 | AA62: =MAX(MIN(AA$40,$AO62-SUM($Y62:Z62)),0) -> 0 | AB62: =MAX(MIN(AB$40,$AO62-SUM($Y62:AA62)),0) -> 13.54552679 | AC62: =MAX(MIN(AC$40,$AO62-SUM($Y62:AB62)),0) -> 0 | AD62: =MAX(MIN(AD$40,$AO62-SUM($Y62:AC62)),0) -> 0 | AE62: =MAX(MIN(AE$40,$AO62-SUM($Y62:AD62)),0) -> 0 | AF62: =MAX(MIN(AF$40,$AO62-SUM($Y62:AE62)),0) -> 0 | AG62: =MAX(MIN(AG$40,$AO62-SUM($Y62:AF62)),0) -> 0 | AH62: =MAX(MIN(AH$40,$AO62-SUM($Y62:AG62)),0) -> 0 | AI62: =MAX(MIN(AI$40,$AO62-SUM($Y62:AH62)),0) -> 0 | AJ62: 73.54552679 | AK62: 0 | AL62: =INDEX(Demand!$C28:$H28,,$AM$13) -> 0.0002203531628 | AM62: =INDEX(Demand!$K28:$P28,,$AM$13) -> 0 | AN62: 7.240704501 | AO62: 73.54552679 | AP62: 66.30482229 | AQ62: 58.70208257 | AR62: 7.602739726 | AS62: 16 | AT62: 16 | AU62: 759 | AV62: 113.2076508 | AW62: 60 | AX62: 0 | AY62: 53.20765079 | AZ62: 0 | BA62: 0 | BB62: 0 | BC62: 0 | BD62: 0 | BE62: 0 | BF62: 0 | BG62: 7.602739726 | BH62: 0 | BI62: 17 | BJ62: 17 | BK62: 161 | BL62: <Empty> | BM62: 0 | BN62: 17 - <Empty>
H63: 0 | I63: 0 | J63: 0 | K63: 0 | L63: 0 | M63: 0 | N63: 0 | O63: 0 | P63: 0 | Q63: 0 | R63: 0 | S63: 0 | T63: 0 | U63: 0 | X63: 0 | Y63: 0 | Z63: =MAX(MIN(Z$40*IF($Z$37="Solar",$AM63,1),$AO63-SUM($Y63:Y63)),0) -> 60 | AA63: =MAX(MIN(AA$40,$AO63-SUM($Y63:Z63)),0) -> 0 | AB63: =MAX(MIN(AB$40,$AO63-SUM($Y63:AA63)),0) -> 13.57957056 | AC63: =MAX(MIN(AC$40,$AO63-SUM($Y63:AB63)),0) -> 0 | AD63: =MAX(MIN(AD$40,$AO63-SUM($Y63:AC63)),0) -> 0 | AE63: =MAX(MIN(AE$40,$AO63-SUM($Y63:AD63)),0) -> 0 | AF63: =MAX(MIN(AF$40,$AO63-SUM($Y63:AE63)),0) -> 0 | AG63: =MAX(MIN(AG$40,$AO63-SUM($Y63:AF63)),0) -> 0 | AH63: =MAX(MIN(AH$40,$AO63-SUM($Y63:AG63)),0) -> 0 | AI63: =MAX(MIN(AI$40,$AO63-SUM($Y63:AH63)),0) -> 0 | AJ63: 73.57957056 | AK63: 0 | AL63: =INDEX(Demand!$C29:$H29,,$AM$13) -> 0.0002204809547 | AM63: =INDEX(Demand!$K29:$P29,,$AM$13) -> 0 | AN63: 7.240704501 | AO63: 73.57957056 | AP63: 66.33886606 | AQ63: 58.73612633 | AR63: 7.602739726 | AS63: 17 | AT63: 17 | AU63: 775 | AV63: 112.7732289 | AW63: 60 | AX63: 0 | AY63: 52.7732289 | AZ63: 0 | BA63: 0 | BB63: 0 | BC63: 0 | BD63: 0 | BE63: 0 | BF63: 0 | BG63: 7.602739726 | BH63: 0 | BI63: 18 | BJ63: 18 | BK63: 171 | BL63: <Empty> | BM63: 0 | BN63: 18 - <Empty>
H64: 0 | I64: 0 | J64: 0 | K64: 0 | L64: 0 | M64: 0 | N64: 0 | O64: 0 | P64: 0 | Q64: 0 | R64: 0 | S64: 0 | T64: 0 | U64: 0 | X64: 0 | Y64: 0 | Z64: =MAX(MIN(Z$40*IF($Z$37="Solar",$AM64,1),$AO64-SUM($Y64:Y64)),0) -> 60 | AA64: =MAX(MIN(AA$40,$AO64-SUM($Y64:Z64)),0) -> 0 | AB64: =MAX(MIN(AB$40,$AO64-SUM($Y64:AA64)),0) -> 13.58848753 | AC64: =MAX(MIN(AC$40,$AO64-SUM($Y64:AB64)),0) -> 0 | AD64: =MAX(MIN(AD$40,$AO64-SUM($Y64:AC64)),0) -> 0 | AE64: =MAX(MIN(AE$40,$AO64-SUM($Y64:AD64)),0) -> 0 | AF64: =MAX(MIN(AF$40,$AO64-SUM($Y64:AE64)),0) -> 0 | AG64: =MAX(MIN(AG$40,$AO64-SUM($Y64:AF64)),0) -> 0 | AH64: =MAX(MIN(AH$40,$AO64-SUM($Y64:AG64)),0) -> 0 | AI64: =MAX(MIN(AI$40,$AO64-SUM($Y64:AH64)),0) -> 0 | AJ64: 73.58848753 | AK64: 0 | AL64: =INDEX(Demand!$C30:$H30,,$AM$13) -> 0.0002205144268 | AM64: =INDEX(Demand!$K30:$P30,,$AM$13) -> 0 | AN64: 7.240704501 | AO64: 73.58848753 | AP64: 66.34778303 | AQ64: 58.7450433 | AR64: 7.602739726 | AS64: 18 | AT64: 18 | AU64: 758 | AV64: 112.2552269 | AW64: 60 | AX64: 0 | AY64: 52.25522687 | AZ64: 0 | BA64: 0 | BB64: 0 | BC64: 0 | BD64: 0 | BE64: 0 | BF64: 0 | BG64: 7.602739726 | BH64: 0 | BI64: 19 | BJ64: 19 | BK64: 181 | BL64: <Empty> | BM64: 0 | BN64: 19 - <Empty>
D65: 3 | E65: Heat pump air + gas boiler | F65: Heat Pump - air source | G65: 60 | H65: 25 | I65: 0.5 | J65: 2.7 | K65: 0 | L65: 0.74 | M65: 0.018 | N65: 2 | O65: 8760 | P65: 5830.511643 | Q65: 349.8306986 | R65: 0 | S65: 129.5669254 | T65: 44.4 | U65: 1.08 | X65: 0 | Y65: 0 | Z65: =MAX(MIN(Z$40*IF($Z$37="Solar",$AM65,1),$AO65-SUM($Y65:Y65)),0) -> 60 | AA65: =MAX(MIN(AA$40,$AO65-SUM($Y65:Z65)),0) -> 0 | AB65: =MAX(MIN(AB$40,$AO65-SUM($Y65:AA65)),0) -> 13.60003408 | AC65: =MAX(MIN(AC$40,$AO65-SUM($Y65:AB65)),0) -> 0 | AD65: =MAX(MIN(AD$40,$AO65-SUM($Y65:AC65)),0) -> 0 | AE65: =MAX(MIN(AE$40,$AO65-SUM($Y65:AD65)),0) -> 0 | AF65: =MAX(MIN(AF$40,$AO65-SUM($Y65:AE65)),0) -> 0 | AG65: =MAX(MIN(AG$40,$AO65-SUM($Y65:AF65)),0) -> 0 | AH65: =MAX(MIN(AH$40,$AO65-SUM($Y65:AG65)),0) -> 0 | AI65: =MAX(MIN(AI$40,$AO65-SUM($Y65:AH65)),0) -> 0 | AJ65: 73.60003408 | AK65: 0 | AL65: =INDEX(Demand!$C31:$H31,,$AM$13) -> 0.0002205577697 | AM65: =INDEX(Demand!$K31:$P31,,$AM$13) -> 0 | AN65: 7.240704501 | AO65: 73.60003408 | AP65: 66.35932958 | AQ65: 58.75658985 | AR65: 7.602739726 | AS65: 19 | AT65: 19 | AU65: 776 | AV65: 111.8000242 | AW65: 60 | AX65: 0 | AY65: 51.80002417 | AZ65: 0 | BA65: 0 | BB65: 0 | BC65: 0 | BD65: 0 | BE65: 0 | BF65: 0 | BG65: 7.602739726 | BH65: 0 | BI65: 20 | BJ65: 20 | BK65: 191 | BL65: <Empty> | BM65: 0 | BN65: 20 - <Empty>
E66: 333 | F66: Heat Pump -excess heat | G66: 0 | H66: 25 | I66: 0.5 | J66: 4.2 | K66: 0 | L66: 0.59 | M66: 0.016 | N66: 1.8 | O66: 0 | P66: 0 | Q66: 0 | R66: 0 | S66: 0 | T66: 0 | U66: 0 | X66: 0 | Y66: 0 | Z66: =MAX(MIN(Z$40*IF($Z$37="Solar",$AM66,1),$AO66-SUM($Y66:Y66)),0) -> 60 | AA66: =MAX(MIN(AA$40,$AO66-SUM($Y66:Z66)),0) -> 0 | AB66: =MAX(MIN(AB$40,$AO66-SUM($Y66:AA66)),0) -> 13.63628885 | AC66: =MAX(MIN(AC$40,$AO66-SUM($Y66:AB66)),0) -> 0 | AD66: =MAX(MIN(AD$40,$AO66-SUM($Y66:AC66)),0) -> 0 | AE66: =MAX(MIN(AE$40,$AO66-SUM($Y66:AD66)),0) -> 0 | AF66: =MAX(MIN(AF$40,$AO66-SUM($Y66:AE66)),0) -> 0 | AG66: =MAX(MIN(AG$40,$AO66-SUM($Y66:AF66)),0) -> 0 | AH66: =MAX(MIN(AH$40,$AO66-SUM($Y66:AG66)),0) -> 0 | AI66: =MAX(MIN(AI$40,$AO66-SUM($Y66:AH66)),0) -> 0 | AJ66: 73.63628885 | AK66: 0 | AL66: =INDEX(Demand!$C32:$H32,,$AM$13) -> 0.0002206938612 | AM66: =INDEX(Demand!$K32:$P32,,$AM$13) -> 0 | AN66: 7.240704501 | AO66: 73.63628885 | AP66: 66.39558435 | AQ66: 58.79284463 | AR66: 7.602739726 | AS66: 20 | AT66: 20 | AU66: 757 | AV66: 111.3738696 | AW66: 60 | AX66: 0 | AY66: 51.37386956 | AZ66: 0 | BA66: 0 | BB66: 0 | BC66: 0 | BD66: 0 | BE66: 0 | BF66: 0 | BG66: 7.602739726 | BH66: 0 | BI66: 21 | BJ66: 21 | BK66: 201 | BL66: <Empty> | BM66: 0 | BN66: 21 - <Empty>
E67: Climate zone 3 | F67: Gas boiler | G67: 73 | H67: 25 | I67: 0.5 | J67: 0.95 | K67: 0 | L67: 0.059 | M67: 0.0002 | N67: 2 | O67: 2737 | P67: 638.3270251 | Q67: 46.59787283 | R67: 0 | S67: 49.05039245 | T67: 4.307 | U67: 0.0146 | X67: 0 | Y67: 0 | Z67: =MAX(MIN(Z$40*IF($Z$37="Solar",$AM67,1),$AO67-SUM($Y67:Y67)),0) -> 60 | AA67: =MAX(MIN(AA$40,$AO67-SUM($Y67:Z67)),0) -> 0 | AB67: =MAX(MIN(AB$40,$AO67-SUM($Y67:AA67)),0) -> 13.64514732 | AC67: =MAX(MIN(AC$40,$AO67-SUM($Y67:AB67)),0) -> 0 | AD67: =MAX(MIN(AD$40,$AO67-SUM($Y67:AC67)),0) -> 0 | AE67: =MAX(MIN(AE$40,$AO67-SUM($Y67:AD67)),0) -> 0 | AF67: =MAX(MIN(AF$40,$AO67-SUM($Y67:AE67)),0) -> 0 | AG67: =MAX(MIN(AG$40,$AO67-SUM($Y67:AF67)),0) -> 0 | AH67: =MAX(MIN(AH$40,$AO67-SUM($Y67:AG67)),0) -> 0 | AI67: =MAX(MIN(AI$40,$AO67-SUM($Y67:AH67)),0) -> 0 | AJ67: 73.64514732 | AK67: 0 | AL67: =INDEX(Demand!$C33:$H33,,$AM$13) -> 0.0002207271137 | AM67: =INDEX(Demand!$K33:$P33,,$AM$13) -> 0 | AN67: 7.240704501 | AO67: 73.64514732 | AP67: 66.40444282 | AQ67: 58.80170309 | AR67: 7.602739726 | AS67: 21 | AT67: 21 | AU67: 777 | AV67: 110.8709127 | AW67: 60 | AX67: 0 | AY67: 50.87091274 | AZ67: 0 | BA67: 0 | BB67: 0 | BC67: 0 | BD67: 0 | BE67: 0 | BF67: 0 | BG67: 7.602739726 | BH67: 0 | BI67: 22 | BJ67: 22 | BK67: 211 | BL67: <Empty> | BM67: 0 | BN67: 22 - <Empty>
E68: 0.16 | H68: 0 | I68: 0 | J68: 0 | K68: 0 | L68: 0 | M68: 0 | N68: 0 | O68: 0 | P68: 0 | Q68: 0 | R68: 0 | S68: 0 | T68: 0 | U68: 0 | X68: 0 | Y68: 0 | Z68: =MAX(MIN(Z$40*IF($Z$37="Solar",$AM68,1),$AO68-SUM($Y68:Y68)),0) -> 60 | AA68: =MAX(MIN(AA$40,$AO68-SUM($Y68:Z68)),0) -> 0 | AB68: =MAX(MIN(AB$40,$AO68-SUM($Y68:AA68)),0) -> 13.64943581 | AC68: =MAX(MIN(AC$40,$AO68-SUM($Y68:AB68)),0) -> 0 | AD68: =MAX(MIN(AD$40,$AO68-SUM($Y68:AC68)),0) -> 0 | AE68: =MAX(MIN(AE$40,$AO68-SUM($Y68:AD68)),0) -> 0 | AF68: =MAX(MIN(AF$40,$AO68-SUM($Y68:AE68)),0) -> 0 | AG68: =MAX(MIN(AG$40,$AO68-SUM($Y68:AF68)),0) -> 0 | AH68: =MAX(MIN(AH$40,$AO68-SUM($Y68:AG68)),0) -> 0 | AI68: =MAX(MIN(AI$40,$AO68-SUM($Y68:AH68)),0) -> 0 | AJ68: 73.64943581 | AK68: 0 | AL68: =INDEX(Demand!$C34:$H34,,$AM$13) -> 0.0002207432117 | AM68: =INDEX(Demand!$K34:$P34,,$AM$13) -> 0 | AN68: 7.240704501 | AO68: 73.64943581 | AP68: 66.40873131 | AQ68: 58.80599159 | AR68: 7.602739726 | AS68: 22 | AT68: 22 | AU68: 756 | AV68: 110.440757 | AW68: 60 | AX68: 0 | AY68: 50.44075703 | AZ68: 0 | BA68: 0 | BB68: 0 | BC68: 0 | BD68: 0 | BE68: 0 | BF68: 0 | BG68: 7.602739726 | BH68: 0 | BI68: 23 | BJ68: 23 | BK68: 221 | BL68: <Empty> | BM68: 0 | BN68: 23 - <Empty>
E69: 0.2 | H69: 0 | I69: 0 | J69: 0 | K69: 0 | L69: 0 | M69: 0 | N69: 0 | O69: 0 | P69: 0 | Q69: 0 | R69: 0 | S69: 0 | T69: 0 | U69: 0 | X69: 0 | Y69: 0 | Z69: =MAX(MIN(Z$40*IF($Z$37="Solar",$AM69,1),$AO69-SUM($Y69:Y69)),0) -> 60 | AA69: =MAX(MIN(AA$40,$AO69-SUM($Y69:Z69)),0) -> 0 | AB69: =MAX(MIN(AB$40,$AO69-SUM($Y69:AA69)),0) -> 13.68708402 | AC69: =MAX(MIN(AC$40,$AO69-SUM($Y69:AB69)),0) -> 0 | AD69: =MAX(MIN(AD$40,$AO69-SUM($Y69:AC69)),0) -> 0 | AE69: =MAX(MIN(AE$40,$AO69-SUM($Y69:AD69)),0) -> 0 | AF69: =MAX(MIN(AF$40,$AO69-SUM($Y69:AE69)),0) -> 0 | AG69: =MAX(MIN(AG$40,$AO69-SUM($Y69:AF69)),0) -> 0 | AH69: =MAX(MIN(AH$40,$AO69-SUM($Y69:AG69)),0) -> 0 | AI69: =MAX(MIN(AI$40,$AO69-SUM($Y69:AH69)),0) -> 0 | AJ69: 73.68708402 | AK69: 0 | AL69: =INDEX(Demand!$C35:$H35,,$AM$13) -> 0.0002208845337 | AM69: =INDEX(Demand!$K35:$P35,,$AM$13) -> 0 | AN69: 7.240704501 | AO69: 73.68708402 | AP69: 66.44637952 | AQ69: 58.84363979 | AR69: 7.602739726 | AS69: 23 | AT69: 23 | AU69: 778 | AV69: 110.0158103 | AW69: 60 | AX69: 0 | AY69: 50.01581032 | AZ69: 0 | BA69: 0 | BB69: 0 | BC69: 0 | BD69: 0 | BE69: 0 | BF69: 0 | BG69: 7.602739726 | BH69: 0 | BI69: 24 | BJ69: 24 | BK69: 231 | BL69: <Empty> | BM69: 0 | BN69: 24 - <Empty>
E70: x | H70: 0 | I70: 0 | J70: 0 | K70: 0 | L70: 0 | M70: 0 | N70: 0 | O70: 0 | P70: 0 | Q70: 0 | R70: 0 | S70: 0 | T70: 0 | U70: 0 | X70: 0 | Y70: 0 | Z70: =MAX(MIN(Z$40*IF($Z$37="Solar",$AM70,1),$AO70-SUM($Y70:Y70)),0) -> 60 | AA70: =MAX(MIN(AA$40,$AO70-SUM($Y70:Z70)),0) -> 0 | AB70: =MAX(MIN(AB$40,$AO70-SUM($Y70:AA70)),0) -> 13.70503624 | AC70: =MAX(MIN(AC$40,$AO70-SUM($Y70:AB70)),0) -> 0 | AD70: =MAX(MIN(AD$40,$AO70-SUM($Y70:AC70)),0) -> 0 | AE70: =MAX(MIN(AE$40,$AO70-SUM($Y70:AD70)),0) -> 0 | AF70: =MAX(MIN(AF$40,$AO70-SUM($Y70:AE70)),0) -> 0 | AG70: =MAX(MIN(AG$40,$AO70-SUM($Y70:AF70)),0) -> 0 | AH70: =MAX(MIN(AH$40,$AO70-SUM($Y70:AG70)),0) -> 0 | AI70: =MAX(MIN(AI$40,$AO70-SUM($Y70:AH70)),0) -> 0 | AJ70: 73.70503624 | AK70: 0 | AL70: =INDEX(Demand!$C36:$H36,,$AM$13) -> 0.000220951922 | AM70: =INDEX(Demand!$K36:$P36,,$AM$13) -> 0 | AN70: 7.240704501 | AO70: 73.70503624 | AP70: 66.46433174 | AQ70: 58.86159201 | AR70: 7.602739726 | AS70: 24 | AT70: 24 | AU70: 755 | AV70: 109.4362744 | AW70: 60 | AX70: 0 | AY70: 49.43627444 | AZ70: 0 | BA70: 0 | BB70: 0 | BC70: 0 | BD70: 0 | BE70: 0 | BF70: 0 | BG70: 7.602739726 | BH70: 0 | BI70: 25 | BJ70: 25 | BK70: 241 | BL70: <Empty> | BM70: 0 | BN70: 25 - <Empty>
H71: 0 | I71: 0 | J71: 0 | K71: 0 | L71: 0 | M71: 0 | N71: 0 | O71: 0 | P71: 0 | Q71: 0 | R71: 0 | S71: 0 | T71: 0 | U71: 0 | X71: 0 | Y71: 0 | Z71: =MAX(MIN(Z$40*IF($Z$37="Solar",$AM71,1),$AO71-SUM($Y71:Y71)),0) -> 60 | AA71: =MAX(MIN(AA$40,$AO71-SUM($Y71:Z71)),0) -> 0 | AB71: =MAX(MIN(AB$40,$AO71-SUM($Y71:AA71)),0) -> 13.72361945 | AC71: =MAX(MIN(AC$40,$AO71-SUM($Y71:AB71)),0) -> 0 | AD71: =MAX(MIN(AD$40,$AO71-SUM($Y71:AC71)),0) -> 0 | AE71: =MAX(MIN(AE$40,$AO71-SUM($Y71:AD71)),0) -> 0 | AF71: =MAX(MIN(AF$40,$AO71-SUM($Y71:AE71)),0) -> 0 | AG71: =MAX(MIN(AG$40,$AO71-SUM($Y71:AF71)),0) -> 0 | AH71: =MAX(MIN(AH$40,$AO71-SUM($Y71:AG71)),0) -> 0 | AI71: =MAX(MIN(AI$40,$AO71-SUM($Y71:AH71)),0) -> 0 | AJ71: 73.72361945 | AK71: 0 | AL71: =INDEX(Demand!$C37:$H37,,$AM$13) -> 0.0002210216788 | AM71: =INDEX(Demand!$K37:$P37,,$AM$13) -> 0 | AN71: 7.240704501 | AO71: 73.72361945 | AP71: 66.48291495 | AQ71: 58.88017523 | AR71: 7.602739726 | AS71: 25 | AT71: 25 | AU71: 779 | AV71: 108.9675451 | AW71: 60 | AX71: 0 | AY71: 48.96754514 | AZ71: 0 | BA71: 0 | BB71: 0 | BC71: 0 | BD71: 0 | BE71: 0 | BF71: 0 | BG71: 7.602739726 | BH71: 0 | BI71: Source: | BL71: =E42 -> Table C2
H72: 0 | I72: 0 | J72: 0 | K72: 0 | L72: 0 | M72: 0 | N72: 0 | O72: 0 | P72: 0 | Q72: 0 | R72: 0 | S72: 0 | T72: 0 | U72: 0 | X72: 0 | Y72: 0 | Z72: =MAX(MIN(Z$40*IF($Z$37="Solar",$AM72,1),$AO72-SUM($Y72:Y72)),0) -> 60 | AA72: =MAX(MIN(AA$40,$AO72-SUM($Y72:Z72)),0) -> 0 | AB72: =MAX(MIN(AB$40,$AO72-SUM($Y72:AA72)),0) -> 13.72606413 | AC72: =MAX(MIN(AC$40,$AO72-SUM($Y72:AB72)),0) -> 0 | AD72: =MAX(MIN(AD$40,$AO72-SUM($Y72:AC72)),0) -> 0 | AE72: =MAX(MIN(AE$40,$AO72-SUM($Y72:AD72)),0) -> 0 | AF72: =MAX(MIN(AF$40,$AO72-SUM($Y72:AE72)),0) -> 0 | AG72: =MAX(MIN(AG$40,$AO72-SUM($Y72:AF72)),0) -> 0 | AH72: =MAX(MIN(AH$40,$AO72-SUM($Y72:AG72)),0) -> 0 | AI72: =MAX(MIN(AI$40,$AO72-SUM($Y72:AH72)),0) -> 0 | AJ72: 73.72606413 | AK72: 0 | AL72: =INDEX(Demand!$C38:$H38,,$AM$13) -> 0.0002210308555 | AM72: =INDEX(Demand!$K38:$P38,,$AM$13) -> 0 | AN72: 7.240704501 | AO72: 73.72606413 | AP72: 66.48535962 | AQ72: 58.8826199 | AR72: 7.602739726 | AS72: 26 | AT72: 26 | AU72: 754 | AV72: 108.3969171 | AW72: 60 | AX72: 0 | AY72: 48.39691713 | AZ72: 0 | BA72: 0 | BB72: 0 | BC72: 0 | BD72: 0 | BE72: 0 | BF72: 0 | BG72: 7.602739726 | BH72: 0
H73: 0 | I73: 0 | J73: 0 | K73: 0 | L73: 0 | M73: 0 | N73: 0 | O73: 0 | P73: 0 | Q73: 0 | R73: 0 | S73: 0 | T73: 0 | U73: 0 | X73: 0 | Y73: 0 | Z73: =MAX(MIN(Z$40*IF($Z$37="Solar",$AM73,1),$AO73-SUM($Y73:Y73)),0) -> 60 | AA73: =MAX(MIN(AA$40,$AO73-SUM($Y73:Z73)),0) -> 0 | AB73: =MAX(MIN(AB$40,$AO73-SUM($Y73:AA73)),0) -> 13.73768119 | AC73: =MAX(MIN(AC$40,$AO73-SUM($Y73:AB73)),0) -> 0 | AD73: =MAX(MIN(AD$40,$AO73-SUM($Y73:AC73)),0) -> 0 | AE73: =MAX(MIN(AE$40,$AO73-SUM($Y73:AD73)),0) -> 0 | AF73: =MAX(MIN(AF$40,$AO73-SUM($Y73:AE73)),0) -> 0 | AG73: =MAX(MIN(AG$40,$AO73-SUM($Y73:AF73)),0) -> 0 | AH73: =MAX(MIN(AH$40,$AO73-SUM($Y73:AG73)),0) -> 0 | AI73: =MAX(MIN(AI$40,$AO73-SUM($Y73:AH73)),0) -> 0 | AJ73: 73.73768119 | AK73: 0 | AL73: =INDEX(Demand!$C39:$H39,,$AM$13) -> 0.0002210744631 | AM73: =INDEX(Demand!$K39:$P39,,$AM$13) -> 0 | AN73: 7.240704501 | AO73: 73.73768119 | AP73: 66.49697669 | AQ73: 58.89423697 | AR73: 7.602739726 | AS73: 27 | AT73: 27 | AU73: 780 | AV73: 107.9290161 | AW73: 60 | AX73: 0 | AY73: 47.92901607 | AZ73: 0 | BA73: 0 | BB73: 0 | BC73: 0 | BD73: 0 | BE73: 0 | BF73: 0 | BG73: 7.602739726 | BH73: 0
H74: 0 | I74: 0 | J74: 0 | K74: 0 | L74: 0 | M74: 0 | N74: 0 | O74: 0 | P74: 0 | Q74: 0 | R74: 0 | S74: 0 | T74: 0 | U74: 0 | X74: 0 | Y74: 0 | Z74: =MAX(MIN(Z$40*IF($Z$37="Solar",$AM74,1),$AO74-SUM($Y74:Y74)),0) -> 60 | AA74: =MAX(MIN(AA$40,$AO74-SUM($Y74:Z74)),0) -> 0 | AB74: =MAX(MIN(AB$40,$AO74-SUM($Y74:AA74)),0) -> 13.76282402 | AC74: =MAX(MIN(AC$40,$AO74-SUM($Y74:AB74)),0) -> 0 | AD74: =MAX(MIN(AD$40,$AO74-SUM($Y74:AC74)),0) -> 0 | AE74: =MAX(MIN(AE$40,$AO74-SUM($Y74:AD74)),0) -> 0 | AF74: =MAX(MIN(AF$40,$AO74-SUM($Y74:AE74)),0) -> 0 | AG74: =MAX(MIN(AG$40,$AO74-SUM($Y74:AF74)),0) -> 0 | AH74: =MAX(MIN(AH$40,$AO74-SUM($Y74:AG74)),0) -> 0 | AI74: =MAX(MIN(AI$40,$AO74-SUM($Y74:AH74)),0) -> 0 | AJ74: 73.76282402 | AK74: 0 | AL74: =INDEX(Demand!$C40:$H40,,$AM$13) -> 0.0002211688431 | AM74: =INDEX(Demand!$K40:$P40,,$AM$13) -> 0 | AN74: 7.240704501 | AO74: 73.76282402 | AP74: 66.52211951 | AQ74: 58.91937979 | AR74: 7.602739726 | AS74: 28 | AT74: 28 | AU74: 753 | AV74: 107.3848308 | AW74: 60 | AX74: 0 | AY74: 47.38483082 | AZ74: 0 | BA74: 0 | BB74: 0 | BC74: 0 | BD74: 0 | BE74: 0 | BF74: 0 | BG74: 7.602739726 | BH74: 0
D75: 4 | E75: Solar | F75: Solar | G75: 60 | H75: 0 | I75: 0 | J75: 0 | K75: 0 | L75: 0 | M75: 0 | N75: 0 | O75: 0 | P75: 0 | Q75: 0 | R75: 0 | S75: 0 | T75: 0 | U75: 0 | X75: 0 | Y75: 0 | Z75: =MAX(MIN(Z$40*IF($Z$37="Solar",$AM75,1),$AO75-SUM($Y75:Y75)),0) -> 60 | AA75: =MAX(MIN(AA$40,$AO75-SUM($Y75:Z75)),0) -> 0 | AB75: =MAX(MIN(AB$40,$AO75-SUM($Y75:AA75)),0) -> 13.76862608 | AC75: =MAX(MIN(AC$40,$AO75-SUM($Y75:AB75)),0) -> 0 | AD75: =MAX(MIN(AD$40,$AO75-SUM($Y75:AC75)),0) -> 0 | AE75: =MAX(MIN(AE$40,$AO75-SUM($Y75:AD75)),0) -> 0 | AF75: =MAX(MIN(AF$40,$AO75-SUM($Y75:AE75)),0) -> 0 | AG75: =MAX(MIN(AG$40,$AO75-SUM($Y75:AF75)),0) -> 0 | AH75: =MAX(MIN(AH$40,$AO75-SUM($Y75:AG75)),0) -> 0 | AI75: =MAX(MIN(AI$40,$AO75-SUM($Y75:AH75)),0) -> 0 | AJ75: 73.76862608 | AK75: 0 | AL75: =INDEX(Demand!$C41:$H41,,$AM$13) -> 0.0002211906226 | AM75: =INDEX(Demand!$K41:$P41,,$AM$13) -> 0 | AN75: 7.240704501 | AO75: 73.76862608 | AP75: 66.52792158 | AQ75: 58.92518185 | AR75: 7.602739726 | AS75: 29 | AT75: 29 | AU75: 781 | AV75: 106.9548209 | AW75: 60 | AX75: 0 | AY75: 46.95482087 | AZ75: 0 | BA75: 0 | BB75: 0 | BC75: 0 | BD75: 0 | BE75: 0 | BF75: 0 | BG75: 7.602739726 | BH75: 0
E76: 333 | F76: Heat Pump - air source | G76: 60 | H76: 25 | I76: 0.5 | J76: 2.7 | K76: 0 | L76: 0.74 | M76: 0.018 | N76: 2 | O76: 7584 | P76: 4943.349418 | Q76: 296.6009651 | R76: 0 | S76: 109.8522093 | T76: 44.4 | U76: 1.08 | X76: 0 | Y76: 0 | Z76: =MAX(MIN(Z$40*IF($Z$37="Solar",$AM76,1),$AO76-SUM($Y76:Y76)),0) -> 60 | AA76: =MAX(MIN(AA$40,$AO76-SUM($Y76:Z76)),0) -> 0 | AB76: =MAX(MIN(AB$40,$AO76-SUM($Y76:AA76)),0) -> 13.81328034 | AC76: =MAX(MIN(AC$40,$AO76-SUM($Y76:AB76)),0) -> 0 | AD76: =MAX(MIN(AD$40,$AO76-SUM($Y76:AC76)),0) -> 0 | AE76: =MAX(MIN(AE$40,$AO76-SUM($Y76:AD76)),0) -> 0 | AF76: =MAX(MIN(AF$40,$AO76-SUM($Y76:AE76)),0) -> 0 | AG76: =MAX(MIN(AG$40,$AO76-SUM($Y76:AF76)),0) -> 0 | AH76: =MAX(MIN(AH$40,$AO76-SUM($Y76:AG76)),0) -> 0 | AI76: =MAX(MIN(AI$40,$AO76-SUM($Y76:AH76)),0) -> 0 | AJ76: 73.81328034 | AK76: 0 | AL76: =INDEX(Demand!$C42:$H42,,$AM$13) -> 0.0002213582437 | AM76: =INDEX(Demand!$K42:$P42,,$AM$13) -> 0 | AN76: 7.240704501 | AO76: 73.81328034 | AP76: 66.57257583 | AQ76: 58.96983611 | AR76: 7.602739726 | AS76: 30 | AT76: 30 | AU76: 752 | AV76: 106.4704185 | AW76: 60 | AX76: 0 | AY76: 46.47041847 | AZ76: 0 | BA76: 0 | BB76: 0 | BC76: 0 | BD76: 0 | BE76: 0 | BF76: 0 | BG76: 7.602739726 | BH76: 0
E77: Climate zone 3 | F77: Gas boiler | G77: 80 | H77: 25 | I77: 0.5 | J77: 0.95 | K77: 0 | L77: 0.059 | M77: 0.0002 | N77: 2 | O77: 2351 | P77: 484.2481239 | Q77: 38.73984991 | R77: 0 | S77: 40.77878938 | T77: 4.72 | U77: 0.016 | X77: 0 | Y77: 0 | Z77: =MAX(MIN(Z$40*IF($Z$37="Solar",$AM77,1),$AO77-SUM($Y77:Y77)),0) -> 60 | AA77: =MAX(MIN(AA$40,$AO77-SUM($Y77:Z77)),0) -> 0 | AB77: =MAX(MIN(AB$40,$AO77-SUM($Y77:AA77)),0) -> 13.8449895 | AC77: =MAX(MIN(AC$40,$AO77-SUM($Y77:AB77)),0) -> 0 | AD77: =MAX(MIN(AD$40,$AO77-SUM($Y77:AC77)),0) -> 0 | AE77: =MAX(MIN(AE$40,$AO77-SUM($Y77:AD77)),0) -> 0 | AF77: =MAX(MIN(AF$40,$AO77-SUM($Y77:AE77)),0) -> 0 | AG77: =MAX(MIN(AG$40,$AO77-SUM($Y77:AF77)),0) -> 0 | AH77: =MAX(MIN(AH$40,$AO77-SUM($Y77:AG77)),0) -> 0 | AI77: =MAX(MIN(AI$40,$AO77-SUM($Y77:AH77)),0) -> 0 | AJ77: 73.8449895 | AK77: 0 | AL77: =INDEX(Demand!$C43:$H43,,$AM$13) -> 0.0002214772721 | AM77: =INDEX(Demand!$K43:$P43,,$AM$13) -> 0 | AN77: 7.240704501 | AO77: 73.8449895 | AP77: 66.604285 | AQ77: 59.00154527 | AR77: 7.602739726 | AS77: 31 | AT77: 31 | AU77: 782 | AV77: 105.9992649 | AW77: 60 | AX77: 0 | AY77: 45.99926493 | AZ77: 0 | BA77: 0 | BB77: 0 | BC77: 0 | BD77: 0 | BE77: 0 | BF77: 0 | BG77: 7.602739726 | BH77: 0
E78: 0.16 | H78: 0 | I78: 0 | J78: 0 | K78: 0 | L78: 0 | M78: 0 | N78: 0 | O78: 0 | P78: 0 | Q78: 0 | R78: 0 | S78: 0 | T78: 0 | U78: 0 | X78: 0 | Y78: 0 | Z78: =MAX(MIN(Z$40*IF($Z$37="Solar",$AM78,1),$AO78-SUM($Y78:Y78)),0) -> 60 | AA78: =MAX(MIN(AA$40,$AO78-SUM($Y78:Z78)),0) -> 0 | AB78: =MAX(MIN(AB$40,$AO78-SUM($Y78:AA78)),0) -> 13.86049446 | AC78: =MAX(MIN(AC$40,$AO78-SUM($Y78:AB78)),0) -> 0 | AD78: =MAX(MIN(AD$40,$AO78-SUM($Y78:AC78)),0) -> 0 | AE78: =MAX(MIN(AE$40,$AO78-SUM($Y78:AD78)),0) -> 0 | AF78: =MAX(MIN(AF$40,$AO78-SUM($Y78:AE78)),0) -> 0 | AG78: =MAX(MIN(AG$40,$AO78-SUM($Y78:AF78)),0) -> 0 | AH78: =MAX(MIN(AH$40,$AO78-SUM($Y78:AG78)),0) -> 0 | AI78: =MAX(MIN(AI$40,$AO78-SUM($Y78:AH78)),0) -> 0 | AJ78: 73.86049446 | AK78: 0 | AL78: =INDEX(Demand!$C44:$H44,,$AM$13) -> 0.0002215354739 | AM78: =INDEX(Demand!$K44:$P44,,$AM$13) -> 0.28245256 | AN78: 7.240704501 | AO78: 73.86049446 | AP78: 66.61978996 | AQ78: 59.01705024 | AR78: 7.602739726 | AS78: 32 | AT78: 32 | AU78: 751 | AV78: 105.5455674 | AW78: 60 | AX78: 0 | AY78: 45.54556737 | AZ78: 0 | BA78: 0 | BB78: 0 | BC78: 0 | BD78: 0 | BE78: 0 | BF78: 0 | BG78: 7.602739726 | BH78: 0
E79: 0.2 | H79: 0 | I79: 0 | J79: 0 | K79: 0 | L79: 0 | M79: 0 | N79: 0 | O79: 0 | P79: 0 | Q79: 0 | R79: 0 | S79: 0 | T79: 0 | U79: 0 | X79: 0 | Y79: 0 | Z79: =MAX(MIN(Z$40*IF($Z$37="Solar",$AM79,1),$AO79-SUM($Y79:Y79)),0) -> 60 | AA79: =MAX(MIN(AA$40,$AO79-SUM($Y79:Z79)),0) -> 0 | AB79: =MAX(MIN(AB$40,$AO79-SUM($Y79:AA79)),0) -> 13.88373016 | AC79: =MAX(MIN(AC$40,$AO79-SUM($Y79:AB79)),0) -> 0 | AD79: =MAX(MIN(AD$40,$AO79-SUM($Y79:AC79)),0) -> 0 | AE79: =MAX(MIN(AE$40,$AO79-SUM($Y79:AD79)),0) -> 0 | AF79: =MAX(MIN(AF$40,$AO79-SUM($Y79:AE79)),0) -> 0 | AG79: =MAX(MIN(AG$40,$AO79-SUM($Y79:AF79)),0) -> 0 | AH79: =MAX(MIN(AH$40,$AO79-SUM($Y79:AG79)),0) -> 0 | AI79: =MAX(MIN(AI$40,$AO79-SUM($Y79:AH79)),0) -> 0 | AJ79: 73.88373016 | AK79: 0 | AL79: =INDEX(Demand!$C45:$H45,,$AM$13) -> 0.000221622695 | AM79: =INDEX(Demand!$K45:$P45,,$AM$13) -> 0.2714480612 | AN79: 7.240704501 | AO79: 73.88373016 | AP79: 66.64302566 | AQ79: 59.04028594 | AR79: 7.602739726 | AS79: 33 | AT79: 33 | AU79: 783 | AV79: 105.1321626 | AW79: 60 | AX79: 0 | AY79: 45.13216256 | AZ79: 0 | BA79: 0 | BB79: 0 | BC79: 0 | BD79: 0 | BE79: 0 | BF79: 0 | BG79: 7.602739726 | BH79: 0
E80: x | H80: 0 | I80: 0 | J80: 0 | K80: 0 | L80: 0 | M80: 0 | N80: 0 | O80: 0 | P80: 0 | Q80: 0 | R80: 0 | S80: 0 | T80: 0 | U80: 0 | X80: 0 | Y80: 0 | Z80: =MAX(MIN(Z$40*IF($Z$37="Solar",$AM80,1),$AO80-SUM($Y80:Y80)),0) -> 60 | AA80: =MAX(MIN(AA$40,$AO80-SUM($Y80:Z80)),0) -> 0 | AB80: =MAX(MIN(AB$40,$AO80-SUM($Y80:AA80)),0) -> 13.89723647 | AC80: =MAX(MIN(AC$40,$AO80-SUM($Y80:AB80)),0) -> 0 | AD80: =MAX(MIN(AD$40,$AO80-SUM($Y80:AC80)),0) -> 0 | AE80: =MAX(MIN(AE$40,$AO80-SUM($Y80:AD80)),0) -> 0 | AF80: =MAX(MIN(AF$40,$AO80-SUM($Y80:AE80)),0) -> 0 | AG80: =MAX(MIN(AG$40,$AO80-SUM($Y80:AF80)),0) -> 0 | AH80: =MAX(MIN(AH$40,$AO80-SUM($Y80:AG80)),0) -> 0 | AI80: =MAX(MIN(AI$40,$AO80-SUM($Y80:AH80)),0) -> 0 | AJ80: 73.89723647 | AK80: 0 | AL80: =INDEX(Demand!$C46:$H46,,$AM$13) -> 0.0002216733943 | AM80: =INDEX(Demand!$K46:$P46,,$AM$13) -> 0.1804579946 | AN80: 7.240704501 | AO80: 73.89723647 | AP80: 66.65653197 | AQ80: 59.05379224 | AR80: 7.602739726 | AS80: 34 | AT80: 34 | AU80: 750 | AV80: 104.6873139 | AW80: 60 | AX80: 0 | AY80: 44.68731392 | AZ80: 0 | BA80: 0 | BB80: 0 | BC80: 0 | BD80: 0 | BE80: 0 | BF80: 0 | BG80: 7.602739726 | BH80: 0
H81: 0 | I81: 0 | J81: 0 | K81: 0 | L81: 0 | M81: 0 | N81: 0 | O81: 0 | P81: 0 | Q81: 0 | R81: 0 | S81: 0 | T81: 0 | U81: 0 | X81: 0 | Y81: 0 | Z81: =MAX(MIN(Z$40*IF($Z$37="Solar",$AM81,1),$AO81-SUM($Y81:Y81)),0) -> 60 | AA81: =MAX(MIN(AA$40,$AO81-SUM($Y81:Z81)),0) -> 0 | AB81: =MAX(MIN(AB$40,$AO81-SUM($Y81:AA81)),0) -> 13.92659365 | AC81: =MAX(MIN(AC$40,$AO81-SUM($Y81:AB81)),0) -> 0 | AD81: =MAX(MIN(AD$40,$AO81-SUM($Y81:AC81)),0) -> 0 | AE81: =MAX(MIN(AE$40,$AO81-SUM($Y81:AD81)),0) -> 0 | AF81: =MAX(MIN(AF$40,$AO81-SUM($Y81:AE81)),0) -> 0 | AG81: =MAX(MIN(AG$40,$AO81-SUM($Y81:AF81)),0) -> 0 | AH81: =MAX(MIN(AH$40,$AO81-SUM($Y81:AG81)),0) -> 0 | AI81: =MAX(MIN(AI$40,$AO81-SUM($Y81:AH81)),0) -> 0 | AJ81: 73.92659365 | AK81: 0 | AL81: =INDEX(Demand!$C47:$H47,,$AM$13) -> 0.0002217835939 | AM81: =INDEX(Demand!$K47:$P47,,$AM$13) -> 0.1954651543 | AN81: 7.240704501 | AO81: 73.92659365 | AP81: 66.68588915 | AQ81: 59.08314942 | AR81: 7.602739726 | AS81: 35 | AT81: 35 | AU81: 784 | AV81: 104.1768421 | AW81: 60 | AX81: 0 | AY81: 44.17684211 | AZ81: 0 | BA81: 0 | BB81: 0 | BC81: 0 | BD81: 0 | BE81: 0 | BF81: 0 | BG81: 7.602739726 | BH81: 0
H82: 0 | I82: 0 | J82: 0 | K82: 0 | L82: 0 | M82: 0 | N82: 0 | O82: 0 | P82: 0 | Q82: 0 | R82: 0 | S82: 0 | T82: 0 | U82: 0 | X82: 0 | Y82: 0 | Z82: =MAX(MIN(Z$40*IF($Z$37="Solar",$AM82,1),$AO82-SUM($Y82:Y82)),0) -> 60 | AA82: =MAX(MIN(AA$40,$AO82-SUM($Y82:Z82)),0) -> 0 | AB82: =MAX(MIN(AB$40,$AO82-SUM($Y82:AA82)),0) -> 13.94901039 | AC82: =MAX(MIN(AC$40,$AO82-SUM($Y82:AB82)),0) -> 0 | AD82: =MAX(MIN(AD$40,$AO82-SUM($Y82:AC82)),0) -> 0 | AE82: =MAX(MIN(AE$40,$AO82-SUM($Y82:AD82)),0) -> 0 | AF82: =MAX(MIN(AF$40,$AO82-SUM($Y82:AE82)),0) -> 0 | AG82: =MAX(MIN(AG$40,$AO82-SUM($Y82:AF82)),0) -> 0 | AH82: =MAX(MIN(AH$40,$AO82-SUM($Y82:AG82)),0) -> 0 | AI82: =MAX(MIN(AI$40,$AO82-SUM($Y82:AH82)),0) -> 0 | AJ82: 73.94901039 | AK82: 0 | AL82: =INDEX(Demand!$C48:$H48,,$AM$13) -> 0.0002218677409 | AM82: =INDEX(Demand!$K48:$P48,,$AM$13) -> 0.2060637494 | AN82: 7.240704501 | AO82: 73.94901039 | AP82: 66.70830589 | AQ82: 59.10556616 | AR82: 7.602739726 | AS82: 36 | AT82: 36 | AU82: 749 | AV82: 103.7297121 | AW82: 60 | AX82: 0 | AY82: 43.72971211 | AZ82: 0 | BA82: 0 | BB82: 0 | BC82: 0 | BD82: 0 | BE82: 0 | BF82: 0 | BG82: 7.602739726 | BH82: 0
H83: 0 | I83: 0 | J83: 0 | K83: 0 | L83: 0 | M83: 0 | N83: 0 | O83: 0 | P83: 0 | Q83: 0 | R83: 0 | S83: 0 | T83: 0 | U83: 0 | X83: 0 | Y83: 0 | Z83: =MAX(MIN(Z$40*IF($Z$37="Solar",$AM83,1),$AO83-SUM($Y83:Y83)),0) -> 60 | AA83: =MAX(MIN(AA$40,$AO83-SUM($Y83:Z83)),0) -> 0 | AB83: =MAX(MIN(AB$40,$AO83-SUM($Y83:AA83)),0) -> 13.97318716 | AC83: =MAX(MIN(AC$40,$AO83-SUM($Y83:AB83)),0) -> 0 | AD83: =MAX(MIN(AD$40,$AO83-SUM($Y83:AC83)),0) -> 0 | AE83: =MAX(MIN(AE$40,$AO83-SUM($Y83:AD83)),0) -> 0 | AF83: =MAX(MIN(AF$40,$AO83-SUM($Y83:AE83)),0) -> 0 | AG83: =MAX(MIN(AG$40,$AO83-SUM($Y83:AF83)),0) -> 0 | AH83: =MAX(MIN(AH$40,$AO83-SUM($Y83:AG83)),0) -> 0 | AI83: =MAX(MIN(AI$40,$AO83-SUM($Y83:AH83)),0) -> 0 | AJ83: 73.97318716 | AK83: 0 | AL83: =INDEX(Demand!$C49:$H49,,$AM$13) -> 0.0002219584945 | AM83: =INDEX(Demand!$K49:$P49,,$AM$13) -> 0.1173512532 | AN83: 7.240704501 | AO83: 73.97318716 | AP83: 66.73248266 | AQ83: 59.12974293 | AR83: 7.602739726 | AS83: 37 | AT83: 37 | AU83: 785 | AV83: 103.2953326 | AW83: 60 | AX83: 0 | AY83: 43.29533261 | AZ83: 0 | BA83: 0 | BB83: 0 | BC83: 0 | BD83: 0 | BE83: 0 | BF83: 0 | BG83: 7.602739726 | BH83: 0
H84: 0 | I84: 0 | J84: 0 | K84: 0 | L84: 0 | M84: 0 | N84: 0 | O84: 0 | P84: 0 | Q84: 0 | R84: 0 | S84: 0 | T84: 0 | U84: 0 | X84: 0 | Y84: 0 | Z84: =MAX(MIN(Z$40*IF($Z$37="Solar",$AM84,1),$AO84-SUM($Y84:Y84)),0) -> 60 | AA84: =MAX(MIN(AA$40,$AO84-SUM($Y84:Z84)),0) -> 0 | AB84: =MAX(MIN(AB$40,$AO84-SUM($Y84:AA84)),0) -> 13.98897239 | AC84: =MAX(MIN(AC$40,$AO84-SUM($Y84:AB84)),0) -> 0 | AD84: =MAX(MIN(AD$40,$AO84-SUM($Y84:AC84)),0) -> 0 | AE84: =MAX(MIN(AE$40,$AO84-SUM($Y84:AD84)),0) -> 0 | AF84: =MAX(MIN(AF$40,$AO84-SUM($Y84:AE84)),0) -> 0 | AG84: =MAX(MIN(AG$40,$AO84-SUM($Y84:AF84)),0) -> 0 | AH84: =MAX(MIN(AH$40,$AO84-SUM($Y84:AG84)),0) -> 0 | AI84: =MAX(MIN(AI$40,$AO84-SUM($Y84:AH84)),0) -> 0 | AJ84: 73.98897239 | AK84: 0 | AL84: =INDEX(Demand!$C50:$H50,,$AM$13) -> 0.0002220177484 | AM84: =INDEX(Demand!$K50:$P50,,$AM$13) -> 0.147748926 | AN84: 7.240704501 | AO84: 73.98897239 | AP84: 66.74826789 | AQ84: 59.14552816 | AR84: 7.602739726 | AS84: 38 | AT84: 38 | AU84: 748 | AV84: 102.8768838 | AW84: 60 | AX84: 0 | AY84: 42.87688384 | AZ84: 0 | BA84: 0 | BB84: 0 | BC84: 0 | BD84: 0 | BE84: 0 | BF84: 0 | BG84: 7.602739726 | BH84: 0
D85: 5 | E85: CHP gas | F85: Large CHP - natural gas | G85: 60 | H85: 15 | I85: 2 | J85: 0.4 | K85: 0.5 | L85: 0.755 | M85: 0.011 | N85: 4.7 | O85: 8760 | P85: 5830.511643 | Q85: 349.8306986 | R85: 437.2883732 | S85: 874.5767465 | T85: 45.3 | U85: 0.66 | X85: 0 | Y85: 0 | Z85: =MAX(MIN(Z$40*IF($Z$37="Solar",$AM85,1),$AO85-SUM($Y85:Y85)),0) -> 60 | AA85: =MAX(MIN(AA$40,$AO85-SUM($Y85:Z85)),0) -> 0 | AB85: =MAX(MIN(AB$40,$AO85-SUM($Y85:AA85)),0) -> 13.99707853 | AC85: =MAX(MIN(AC$40,$AO85-SUM($Y85:AB85)),0) -> 0 | AD85: =MAX(MIN(AD$40,$AO85-SUM($Y85:AC85)),0) -> 0 | AE85: =MAX(MIN(AE$40,$AO85-SUM($Y85:AD85)),0) -> 0 | AF85: =MAX(MIN(AF$40,$AO85-SUM($Y85:AE85)),0) -> 0 | AG85: =MAX(MIN(AG$40,$AO85-SUM($Y85:AF85)),0) -> 0 | AH85: =MAX(MIN(AH$40,$AO85-SUM($Y85:AG85)),0) -> 0 | AI85: =MAX(MIN(AI$40,$AO85-SUM($Y85:AH85)),0) -> 0 | AJ85: 73.99707853 | AK85: 0 | AL85: =INDEX(Demand!$C51:$H51,,$AM$13) -> 0.0002220481768 | AM85: =INDEX(Demand!$K51:$P51,,$AM$13) -> 0 | AN85: 7.240704501 | AO85: 73.99707853 | AP85: 66.75637402 | AQ85: 59.1536343 | AR85: 7.602739726 | AS85: 39 | AT85: 39 | AU85: 786 | AV85: 102.4644002 | AW85: 60 | AX85: 0 | AY85: 42.46440019 | AZ85: 0 | BA85: 0 | BB85: 0 | BC85: 0 | BD85: 0 | BE85: 0 | BF85: 0 | BG85: 7.602739726 | BH85: 0
E86: 333 | F86: Heat Pump -excess heat | G86: 0 | H86: 25 | I86: 0.5 | J86: 4.2 | K86: 0 | L86: 0.59 | M86: 0.016 | N86: 1.8 | O86: 0 | P86: 0 | Q86: 0 | R86: 0 | S86: 0 | T86: 0 | U86: 0 | X86: 0 | Y86: 0 | Z86: =MAX(MIN(Z$40*IF($Z$37="Solar",$AM86,1),$AO86-SUM($Y86:Y86)),0) -> 60 | AA86: =MAX(MIN(AA$40,$AO86-SUM($Y86:Z86)),0) -> 0 | AB86: =MAX(MIN(AB$40,$AO86-SUM($Y86:AA86)),0) -> 14.02000538 | AC86: =MAX(MIN(AC$40,$AO86-SUM($Y86:AB86)),0) -> 0 | AD86: =MAX(MIN(AD$40,$AO86-SUM($Y86:AC86)),0) -> 0 | AE86: =MAX(MIN(AE$40,$AO86-SUM($Y86:AD86)),0) -> 0 | AF86: =MAX(MIN(AF$40,$AO86-SUM($Y86:AE86)),0) -> 0 | AG86: =MAX(MIN(AG$40,$AO86-SUM($Y86:AF86)),0) -> 0 | AH86: =MAX(MIN(AH$40,$AO86-SUM($Y86:AG86)),0) -> 0 | AI86: =MAX(MIN(AI$40,$AO86-SUM($Y86:AH86)),0) -> 0 | AJ86: 74.02000538 | AK86: 0 | AL86: =INDEX(Demand!$C52:$H52,,$AM$13) -> 0.0002221342386 | AM86: =INDEX(Demand!$K52:$P52,,$AM$13) -> 0 | AN86: 7.240704501 | AO86: 74.02000538 | AP86: 66.77930088 | AQ86: 59.17656116 | AR86: 7.602739726 | AS86: 40 | AT86: 40 | AU86: 747 | AV86: 101.9759743 | AW86: 60 | AX86: 0 | AY86: 41.97597427 | AZ86: 0 | BA86: 0 | BB86: 0 | BC86: 0 | BD86: 0 | BE86: 0 | BF86: 0 | BG86: 7.602739726 | BH86: 0
E87: Climate zone 3 | F87: Gas boiler | G87: 80 | H87: 25 | I87: 0.5 | J87: 0.95 | K87: 0 | L87: 0.059 | M87: 0.0002 | N87: 2 | O87: 2737 | P87: 582.4734104 | Q87: 46.59787283 | R87: 0 | S87: 49.05039245 | T87: 4.72 | U87: 0.016 | X87: 0 | Y87: 0 | Z87: =MAX(MIN(Z$40*IF($Z$37="Solar",$AM87,1),$AO87-SUM($Y87:Y87)),0) -> 60 | AA87: =MAX(MIN(AA$40,$AO87-SUM($Y87:Z87)),0) -> 0 | AB87: =MAX(MIN(AB$40,$AO87-SUM($Y87:AA87)),0) -> 14.03356085 | AC87: =MAX(MIN(AC$40,$AO87-SUM($Y87:AB87)),0) -> 0 | AD87: =MAX(MIN(AD$40,$AO87-SUM($Y87:AC87)),0) -> 0 | AE87: =MAX(MIN(AE$40,$AO87-SUM($Y87:AD87)),0) -> 0 | AF87: =MAX(MIN(AF$40,$AO87-SUM($Y87:AE87)),0) -> 0 | AG87: =MAX(MIN(AG$40,$AO87-SUM($Y87:AF87)),0) -> 0 | AH87: =MAX(MIN(AH$40,$AO87-SUM($Y87:AG87)),0) -> 0 | AI87: =MAX(MIN(AI$40,$AO87-SUM($Y87:AH87)),0) -> 0 | AJ87: 74.03356085 | AK87: 0 | AL87: =INDEX(Demand!$C53:$H53,,$AM$13) -> 0.0002221851225 | AM87: =INDEX(Demand!$K53:$P53,,$AM$13) -> 0 | AN87: 7.240704501 | AO87: 74.03356085 | AP87: 66.79285635 | AQ87: 59.19011663 | AR87: 7.602739726 | AS87: 41 | AT87: 41 | AU87: 787 | AV87: 101.3670153 | AW87: 60 | AX87: 0 | AY87: 41.36701527 | AZ87: 0 | BA87: 0 | BB87: 0 | BC87: 0 | BD87: 0 | BE87: 0 | BF87: 0 | BG87: 7.602739726 | BH87: 0
E88: 0.16 | H88: 0 | I88: 0 | J88: 0 | K88: 0 | L88: 0 | M88: 0 | N88: 0 | O88: 0 | P88: 0 | Q88: 0 | R88: 0 | S88: 0 | T88: 0 | U88: 0 | X88: 0 | Y88: 0 | Z88: =MAX(MIN(Z$40*IF($Z$37="Solar",$AM88,1),$AO88-SUM($Y88:Y88)),0) -> 60 | AA88: =MAX(MIN(AA$40,$AO88-SUM($Y88:Z88)),0) -> 0 | AB88: =MAX(MIN(AB$40,$AO88-SUM($Y88:AA88)),0) -> 14.04958426 | AC88: =MAX(MIN(AC$40,$AO88-SUM($Y88:AB88)),0) -> 0 | AD88: =MAX(MIN(AD$40,$AO88-SUM($Y88:AC88)),0) -> 0 | AE88: =MAX(MIN(AE$40,$AO88-SUM($Y88:AD88)),0) -> 0 | AF88: =MAX(MIN(AF$40,$AO88-SUM($Y88:AE88)),0) -> 0 | AG88: =MAX(MIN(AG$40,$AO88-SUM($Y88:AF88)),0) -> 0 | AH88: =MAX(MIN(AH$40,$AO88-SUM($Y88:AG88)),0) -> 0 | AI88: =MAX(MIN(AI$40,$AO88-SUM($Y88:AH88)),0) -> 0 | AJ88: 74.04958426 | AK88: 0 | AL88: =INDEX(Demand!$C54:$H54,,$AM$13) -> 0.0002222452704 | AM88: =INDEX(Demand!$K54:$P54,,$AM$13) -> 0 | AN88: 7.240704501 | AO88: 74.04958426 | AP88: 66.80887976 | AQ88: 59.20614003 | AR88: 7.602739726 | AS88: 42 | AT88: 42 | AU88: 746 | AV88: 101.2851694 | AW88: 60 | AX88: 0 | AY88: 41.28516941 | AZ88: 0 | BA88: 0 | BB88: 0 | BC88: 0 | BD88: 0 | BE88: 0 | BF88: 0 | BG88: 7.602739726 | BH88: 0
E89: 0.2 | H89: 0 | I89: 0 | J89: 0 | K89: 0 | L89: 0 | M89: 0 | N89: 0 | O89: 0 | P89: 0 | Q89: 0 | R89: 0 | S89: 0 | T89: 0 | U89: 0 | X89: 0 | Y89: 0 | Z89: =MAX(MIN(Z$40*IF($Z$37="Solar",$AM89,1),$AO89-SUM($Y89:Y89)),0) -> 60 | AA89: =MAX(MIN(AA$40,$AO89-SUM($Y89:Z89)),0) -> 0 | AB89: =MAX(MIN(AB$40,$AO89-SUM($Y89:AA89)),0) -> 14.0650948 | AC89: =MAX(MIN(AC$40,$AO89-SUM($Y89:AB89)),0) -> 0 | AD89: =MAX(MIN(AD$40,$AO89-SUM($Y89:AC89)),0) -> 0 | AE89: =MAX(MIN(AE$40,$AO89-SUM($Y89:AD89)),0) -> 0 | AF89: =MAX(MIN(AF$40,$AO89-SUM($Y89:AE89)),0) -> 0 | AG89: =MAX(MIN(AG$40,$AO89-SUM($Y89:AF89)),0) -> 0 | AH89: =MAX(MIN(AH$40,$AO89-SUM($Y89:AG89)),0) -> 0 | AI89: =MAX(MIN(AI$40,$AO89-SUM($Y89:AH89)),0) -> 0 | AJ89: 74.0650948 | AK89: 0 | AL89: =INDEX(Demand!$C55:$H55,,$AM$13) -> 0.0002223034931 | AM89: =INDEX(Demand!$K55:$P55,,$AM$13) -> 0 | AN89: 7.240704501 | AO89: 74.0650948 | AP89: 66.8243903 | AQ89: 59.22165057 | AR89: 7.602739726 | AS89: 43 | AT89: 43 | AU89: 788 | AV89: 101.184052 | AW89: 60 | AX89: 0 | AY89: 41.18405202 | AZ89: 0 | BA89: 0 | BB89: 0 | BC89: 0 | BD89: 0 | BE89: 0 | BF89: 0 | BG89: 7.602739726 | BH89: 0
E90: x | H90: 0 | I90: 0 | J90: 0 | K90: 0 | L90: 0 | M90: 0 | N90: 0 | O90: 0 | P90: 0 | Q90: 0 | R90: 0 | S90: 0 | T90: 0 | U90: 0 | X90: 0 | Y90: 0 | Z90: =MAX(MIN(Z$40*IF($Z$37="Solar",$AM90,1),$AO90-SUM($Y90:Y90)),0) -> 60 | AA90: =MAX(MIN(AA$40,$AO90-SUM($Y90:Z90)),0) -> 0 | AB90: =MAX(MIN(AB$40,$AO90-SUM($Y90:AA90)),0) -> 14.09566267 | AC90: =MAX(MIN(AC$40,$AO90-SUM($Y90:AB90)),0) -> 0 | AD90: =MAX(MIN(AD$40,$AO90-SUM($Y90:AC90)),0) -> 0 | AE90: =MAX(MIN(AE$40,$AO90-SUM($Y90:AD90)),0) -> 0 | AF90: =MAX(MIN(AF$40,$AO90-SUM($Y90:AE90)),0) -> 0 | AG90: =MAX(MIN(AG$40,$AO90-SUM($Y90:AF90)),0) -> 0 | AH90: =MAX(MIN(AH$40,$AO90-SUM($Y90:AG90)),0) -> 0 | AI90: =MAX(MIN(AI$40,$AO90-SUM($Y90:AH90)),0) -> 0 | AJ90: 74.09566267 | AK90: 0 | AL90: =INDEX(Demand!$C56:$H56,,$AM$13) -> 0.0002224182374 | AM90: =INDEX(Demand!$K56:$P56,,$AM$13) -> 0 | AN90: 7.240704501 | AO90: 74.09566267 | AP90: 66.85495816 | AQ90: 59.25221844 | AR90: 7.602739726 | AS90: 44 | AT90: 44 | AU90: 745 | AV90: 101.1524681 | AW90: 60 | AX90: 0 | AY90: 41.15246808 | AZ90: 0 | BA90: 0 | BB90: 0 | BC90: 0 | BD90: 0 | BE90: 0 | BF90: 0 | BG90: 7.602739726 | BH90: 0
H91: 0 | I91: 0 | J91: 0 | K91: 0 | L91: 0 | M91: 0 | N91: 0 | O91: 0 | P91: 0 | Q91: 0 | R91: 0 | S91: 0 | T91: 0 | U91: 0 | X91: 0 | Y91: 0 | Z91: =MAX(MIN(Z$40*IF($Z$37="Solar",$AM91,1),$AO91-SUM($Y91:Y91)),0) -> 60 | AA91: =MAX(MIN(AA$40,$AO91-SUM($Y91:Z91)),0) -> 0 | AB91: =MAX(MIN(AB$40,$AO91-SUM($Y91:AA91)),0) -> 14.15627274 | AC91: =MAX(MIN(AC$40,$AO91-SUM($Y91:AB91)),0) -> 0 | AD91: =MAX(MIN(AD$40,$AO91-SUM($Y91:AC91)),0) -> 0 | AE91: =MAX(MIN(AE$40,$AO91-SUM($Y91:AD91)),0) -> 0 | AF91: =MAX(MIN(AF$40,$AO91-SUM($Y91:AE91)),0) -> 0 | AG91: =MAX(MIN(AG$40,$AO91-SUM($Y91:AF91)),0) -> 0 | AH91: =MAX(MIN(AH$40,$AO91-SUM($Y91:AG91)),0) -> 0 | AI91: =MAX(MIN(AI$40,$AO91-SUM($Y91:AH91)),0) -> 0 | AJ91: 74.15627274 | AK91: 0 | AL91: =INDEX(Demand!$C57:$H57,,$AM$13) -> 0.0002226457527 | AM91: =INDEX(Demand!$K57:$P57,,$AM$13) -> 0 | AN91: 7.240704501 | AO91: 74.15627274 | AP91: 66.91556824 | AQ91: 59.31282851 | AR91: 7.602739726 | AS91: 45 | AT91: 45 | AU91: 789 | AV91: 101.0587206 | AW91: 60 | AX91: 0 | AY91: 41.05872063 | AZ91: 0 | BA91: 0 | BB91: 0 | BC91: 0 | BD91: 0 | BE91: 0 | BF91: 0 | BG91: 7.602739726 | BH91: 0
H92: 0 | I92: 0 | J92: 0 | K92: 0 | L92: 0 | M92: 0 | N92: 0 | O92: 0 | P92: 0 | Q92: 0 | R92: 0 | S92: 0 | T92: 0 | U92: 0 | X92: 0 | Y92: 0 | Z92: =MAX(MIN(Z$40*IF($Z$37="Solar",$AM92,1),$AO92-SUM($Y92:Y92)),0) -> 60 | AA92: =MAX(MIN(AA$40,$AO92-SUM($Y92:Z92)),0) -> 0 | AB92: =MAX(MIN(AB$40,$AO92-SUM($Y92:AA92)),0) -> 14.16207813 | AC92: =MAX(MIN(AC$40,$AO92-SUM($Y92:AB92)),0) -> 0 | AD92: =MAX(MIN(AD$40,$AO92-SUM($Y92:AC92)),0) -> 0 | AE92: =MAX(MIN(AE$40,$AO92-SUM($Y92:AD92)),0) -> 0 | AF92: =MAX(MIN(AF$40,$AO92-SUM($Y92:AE92)),0) -> 0 | AG92: =MAX(MIN(AG$40,$AO92-SUM($Y92:AF92)),0) -> 0 | AH92: =MAX(MIN(AH$40,$AO92-SUM($Y92:AG92)),0) -> 0 | AI92: =MAX(MIN(AI$40,$AO92-SUM($Y92:AH92)),0) -> 0 | AJ92: 74.16207813 | AK92: 0 | AL92: =INDEX(Demand!$C58:$H58,,$AM$13) -> 0.0002226675447 | AM92: =INDEX(Demand!$K58:$P58,,$AM$13) -> 0 | AN92: 7.240704501 | AO92: 74.16207813 | AP92: 66.92137363 | AQ92: 59.31863391 | AR92: 7.602739726 | AS92: 46 | AT92: 46 | AU92: 744 | AV92: 100.9969698 | AW92: 60 | AX92: 0 | AY92: 40.99696976 | AZ92: 0 | BA92: 0 | BB92: 0 | BC92: 0 | BD92: 0 | BE92: 0 | BF92: 0 | BG92: 7.602739726 | BH92: 0
H93: 0 | I93: 0 | J93: 0 | K93: 0 | L93: 0 | M93: 0 | N93: 0 | O93: 0 | P93: 0 | Q93: 0 | R93: 0 | S93: 0 | T93: 0 | U93: 0 | X93: 0 | Y93: 0 | Z93: =MAX(MIN(Z$40*IF($Z$37="Solar",$AM93,1),$AO93-SUM($Y93:Y93)),0) -> 60 | AA93: =MAX(MIN(AA$40,$AO93-SUM($Y93:Z93)),0) -> 0 | AB93: =MAX(MIN(AB$40,$AO93-SUM($Y93:AA93)),0) -> 14.17764814 | AC93: =MAX(MIN(AC$40,$AO93-SUM($Y93:AB93)),0) -> 0 | AD93: =MAX(MIN(AD$40,$AO93-SUM($Y93:AC93)),0) -> 0 | AE93: =MAX(MIN(AE$40,$AO93-SUM($Y93:AD93)),0) -> 0 | AF93: =MAX(MIN(AF$40,$AO93-SUM($Y93:AE93)),0) -> 0 | AG93: =MAX(MIN(AG$40,$AO93-SUM($Y93:AF93)),0) -> 0 | AH93: =MAX(MIN(AH$40,$AO93-SUM($Y93:AG93)),0) -> 0 | AI93: =MAX(MIN(AI$40,$AO93-SUM($Y93:AH93)),0) -> 0 | AJ93: 74.17764814 | AK93: 0 | AL93: =INDEX(Demand!$C59:$H59,,$AM$13) -> 0.0002227259907 | AM93: =INDEX(Demand!$K59:$P59,,$AM$13) -> 0 | AN93: 7.240704501 | AO93: 74.17764814 | AP93: 66.93694364 | AQ93: 59.33420392 | AR93: 7.602739726 | AS93: 47 | AT93: 47 | AU93: 790 | AV93: 100.8516201 | AW93: 60 | AX93: 0 | AY93: 40.85162008 | AZ93: 0 | BA93: 0 | BB93: 0 | BC93: 0 | BD93: 0 | BE93: 0 | BF93: 0 | BG93: 7.602739726 | BH93: 0
H94: 0 | I94: 0 | J94: 0 | K94: 0 | L94: 0 | M94: 0 | N94: 0 | O94: 0 | P94: 0 | Q94: 0 | R94: 0 | S94: 0 | T94: 0 | U94: 0 | X94: 0 | Y94: 0 | Z94: =MAX(MIN(Z$40*IF($Z$37="Solar",$AM94,1),$AO94-SUM($Y94:Y94)),0) -> 60 | AA94: =MAX(MIN(AA$40,$AO94-SUM($Y94:Z94)),0) -> 0 | AB94: =MAX(MIN(AB$40,$AO94-SUM($Y94:AA94)),0) -> 14.21409042 | AC94: =MAX(MIN(AC$40,$AO94-SUM($Y94:AB94)),0) -> 0 | AD94: =MAX(MIN(AD$40,$AO94-SUM($Y94:AC94)),0) -> 0 | AE94: =MAX(MIN(AE$40,$AO94-SUM($Y94:AD94)),0) -> 0 | AF94: =MAX(MIN(AF$40,$AO94-SUM($Y94:AE94)),0) -> 0 | AG94: =MAX(MIN(AG$40,$AO94-SUM($Y94:AF94)),0) -> 0 | AH94: =MAX(MIN(AH$40,$AO94-SUM($Y94:AG94)),0) -> 0 | AI94: =MAX(MIN(AI$40,$AO94-SUM($Y94:AH94)),0) -> 0 | AJ94: 74.21409042 | AK94: 0 | AL94: =INDEX(Demand!$C60:$H60,,$AM$13) -> 0.000222862786 | AM94: =INDEX(Demand!$K60:$P60,,$AM$13) -> 0 | AN94: 7.240704501 | AO94: 74.21409042 | AP94: 66.97338592 | AQ94: 59.37064619 | AR94: 7.602739726 | AS94: 48 | AT94: 48 | AU94: 743 | AV94: 100.8467802 | AW94: 60 | AX94: 0 | AY94: 40.84678017 | AZ94: 0 | BA94: 0 | BB94: 0 | BC94: 0 | BD94: 0 | BE94: 0 | BF94: 0 | BG94: 7.602739726 | BH94: 0
D95: 6 | E95: Coal CHP | F95: Large CHP - coal | G95: 60 | H95: 25 | I95: 4 | J95: 0.44 | K95: 0.46 | L95: 2.18 | M95: 0.0356 | N95: 3.3 | O95: 8760 | P95: 5830.511643 | Q95: 349.8306986 | R95: 365.732094 | S95: 795.0697695 | T95: 130.8 | U95: 2.136 | X95: 0 | Y95: 0 | Z95: =MAX(MIN(Z$40*IF($Z$37="Solar",$AM95,1),$AO95-SUM($Y95:Y95)),0) -> 60 | AA95: =MAX(MIN(AA$40,$AO95-SUM($Y95:Z95)),0) -> 0 | AB95: =MAX(MIN(AB$40,$AO95-SUM($Y95:AA95)),0) -> 14.25138531 | AC95: =MAX(MIN(AC$40,$AO95-SUM($Y95:AB95)),0) -> 0 | AD95: =MAX(MIN(AD$40,$AO95-SUM($Y95:AC95)),0) -> 0 | AE95: =MAX(MIN(AE$40,$AO95-SUM($Y95:AD95)),0) -> 0 | AF95: =MAX(MIN(AF$40,$AO95-SUM($Y95:AE95)),0) -> 0 | AG95: =MAX(MIN(AG$40,$AO95-SUM($Y95:AF95)),0) -> 0 | AH95: =MAX(MIN(AH$40,$AO95-SUM($Y95:AG95)),0) -> 0 | AI95: =MAX(MIN(AI$40,$AO95-SUM($Y95:AH95)),0) -> 0 | AJ95: 74.25138531 | AK95: 0 | AL95: =INDEX(Demand!$C61:$H61,,$AM$13) -> 0.0002230027818 | AM95: =INDEX(Demand!$K61:$P61,,$AM$13) -> 0 | AN95: 7.240704501 | AO95: 74.25138531 | AP95: 67.01068081 | AQ95: 59.40794108 | AR95: 7.602739726 | AS95: 49 | AT95: 49 | AU95: 791 | AV95: 100.7898453 | AW95: 60 | AX95: 0 | AY95: 40.78984532 | AZ95: 0 | BA95: 0 | BB95: 0 | BC95: 0 | BD95: 0 | BE95: 0 | BF95: 0 | BG95: 7.602739726 | BH95: 0
E96: 333 | F96: Heat Pump -excess heat | G96: 0 | H96: 25 | I96: 1 | J96: 5.1 | K96: 0 | L96: 0.71 | M96: 0.00213 | N96: 1.827 | O96: 0 | P96: 0 | Q96: 0 | R96: 0 | S96: 0 | T96: 0 | U96: 0 | X96: 0 | Y96: 0 | Z96: =MAX(MIN(Z$40*IF($Z$37="Solar",$AM96,1),$AO96-SUM($Y96:Y96)),0) -> 60 | AA96: =MAX(MIN(AA$40,$AO96-SUM($Y96:Z96)),0) -> 0 | AB96: =MAX(MIN(AB$40,$AO96-SUM($Y96:AA96)),0) -> 14.27083909 | AC96: =MAX(MIN(AC$40,$AO96-SUM($Y96:AB96)),0) -> 0 | AD96: =MAX(MIN(AD$40,$AO96-SUM($Y96:AC96)),0) -> 0 | AE96: =MAX(MIN(AE$40,$AO96-SUM($Y96:AD96)),0) -> 0 | AF96: =MAX(MIN(AF$40,$AO96-SUM($Y96:AE96)),0) -> 0 | AG96: =MAX(MIN(AG$40,$AO96-SUM($Y96:AF96)),0) -> 0 | AH96: =MAX(MIN(AH$40,$AO96-SUM($Y96:AG96)),0) -> 0 | AI96: =MAX(MIN(AI$40,$AO96-SUM($Y96:AH96)),0) -> 0 | AJ96: 74.27083909 | AK96: 0 | AL96: =INDEX(Demand!$C62:$H62,,$AM$13) -> 0.0002230758065 | AM96: =INDEX(Demand!$K62:$P62,,$AM$13) -> 0 | AN96: 7.240704501 | AO96: 74.27083909 | AP96: 67.03013459 | AQ96: 59.42739486 | AR96: 7.602739726 | AS96: 50 | AT96: 50 | AU96: 742 | AV96: 100.6996499 | AW96: 60 | AX96: 0 | AY96: 40.69964985 | AZ96: 0 | BA96: 0 | BB96: 0 | BC96: 0 | BD96: 0 | BE96: 0 | BF96: 0 | BG96: 7.602739726 | BH96: 0
E97: Climate zone 3 | F97: Gas boiler | G97: 80 | H97: 25 | I97: 1 | J97: 1.03 | K97: 0 | L97: 0.06 | M97: 0.002127 | N97: 1.17 | O97: 2737 | P97: 582.4734104 | Q97: 46.59787283 | R97: 0 | S97: 45.24065323 | T97: 4.8 | U97: 0.17016 | X97: 0 | Y97: 0 | Z97: =MAX(MIN(Z$40*IF($Z$37="Solar",$AM97,1),$AO97-SUM($Y97:Y97)),0) -> 60 | AA97: =MAX(MIN(AA$40,$AO97-SUM($Y97:Z97)),0) -> 0 | AB97: =MAX(MIN(AB$40,$AO97-SUM($Y97:AA97)),0) -> 14.28248276 | AC97: =MAX(MIN(AC$40,$AO97-SUM($Y97:AB97)),0) -> 0 | AD97: =MAX(MIN(AD$40,$AO97-SUM($Y97:AC97)),0) -> 0 | AE97: =MAX(MIN(AE$40,$AO97-SUM($Y97:AD97)),0) -> 0 | AF97: =MAX(MIN(AF$40,$AO97-SUM($Y97:AE97)),0) -> 0 | AG97: =MAX(MIN(AG$40,$AO97-SUM($Y97:AF97)),0) -> 0 | AH97: =MAX(MIN(AH$40,$AO97-SUM($Y97:AG97)),0) -> 0 | AI97: =MAX(MIN(AI$40,$AO97-SUM($Y97:AH97)),0) -> 0 | AJ97: 74.28248276 | AK97: 0 | AL97: =INDEX(Demand!$C63:$H63,,$AM$13) -> 0.000223119514 | AM97: =INDEX(Demand!$K63:$P63,,$AM$13) -> 0 | AN97: 7.240704501 | AO97: 74.28248276 | AP97: 67.04177826 | AQ97: 59.43903853 | AR97: 7.602739726 | AS97: 51 | AT97: 51 | AU97: 792 | AV97: 100.6869353 | AW97: 60 | AX97: 0 | AY97: 40.68693525 | AZ97: 0 | BA97: 0 | BB97: 0 | BC97: 0 | BD97: 0 | BE97: 0 | BF97: 0 | BG97: 7.602739726 | BH97: 0
E98: 0.16 | H98: 0 | I98: 0 | J98: 0 | K98: 0 | L98: 0 | M98: 0 | N98: 0 | O98: 0 | P98: 0 | Q98: 0 | R98: 0 | S98: 0 | T98: 0 | U98: 0 | X98: 0 | Y98: 0 | Z98: =MAX(MIN(Z$40*IF($Z$37="Solar",$AM98,1),$AO98-SUM($Y98:Y98)),0) -> 60 | AA98: =MAX(MIN(AA$40,$AO98-SUM($Y98:Z98)),0) -> 0 | AB98: =MAX(MIN(AB$40,$AO98-SUM($Y98:AA98)),0) -> 14.30253844 | AC98: =MAX(MIN(AC$40,$AO98-SUM($Y98:AB98)),0) -> 0 | AD98: =MAX(MIN(AD$40,$AO98-SUM($Y98:AC98)),0) -> 0 | AE98: =MAX(MIN(AE$40,$AO98-SUM($Y98:AD98)),0) -> 0 | AF98: =MAX(MIN(AF$40,$AO98-SUM($Y98:AE98)),0) -> 0 | AG98: =MAX(MIN(AG$40,$AO98-SUM($Y98:AF98)),0) -> 0 | AH98: =MAX(MIN(AH$40,$AO98-SUM($Y98:AG98)),0) -> 0 | AI98: =MAX(MIN(AI$40,$AO98-SUM($Y98:AH98)),0) -> 0 | AJ98: 74.30253844 | AK98: 0 | AL98: =INDEX(Demand!$C64:$H64,,$AM$13) -> 0.0002231947981 | AM98: =INDEX(Demand!$K64:$P64,,$AM$13) -> 0 | AN98: 7.240704501 | AO98: 74.30253844 | AP98: 67.06183394 | AQ98: 59.45909422 | AR98: 7.602739726 | AS98: 52 | AT98: 52 | AU98: 741 | AV98: 100.6356557 | AW98: 60 | AX98: 0 | AY98: 40.63565566 | AZ98: 0 | BA98: 0 | BB98: 0 | BC98: 0 | BD98: 0 | BE98: 0 | BF98: 0 | BG98: 7.602739726 | BH98: 0
E99: 0.2 | H99: 0 | I99: 0 | J99: 0 | K99: 0 | L99: 0 | M99: 0 | N99: 0 | O99: 0 | P99: 0 | Q99: 0 | R99: 0 | S99: 0 | T99: 0 | U99: 0 | X99: 0 | Y99: 0 | Z99: =MAX(MIN(Z$40*IF($Z$37="Solar",$AM99,1),$AO99-SUM($Y99:Y99)),0) -> 60 | AA99: =MAX(MIN(AA$40,$AO99-SUM($Y99:Z99)),0) -> 0 | AB99: =MAX(MIN(AB$40,$AO99-SUM($Y99:AA99)),0) -> 14.34151025 | AC99: =MAX(MIN(AC$40,$AO99-SUM($Y99:AB99)),0) -> 0 | AD99: =MAX(MIN(AD$40,$AO99-SUM($Y99:AC99)),0) -> 0 | AE99: =MAX(MIN(AE$40,$AO99-SUM($Y99:AD99)),0) -> 0 | AF99: =MAX(MIN(AF$40,$AO99-SUM($Y99:AE99)),0) -> 0 | AG99: =MAX(MIN(AG$40,$AO99-SUM($Y99:AF99)),0) -> 0 | AH99: =MAX(MIN(AH$40,$AO99-SUM($Y99:AG99)),0) -> 0 | AI99: =MAX(MIN(AI$40,$AO99-SUM($Y99:AH99)),0) -> 0 | AJ99: 74.34151025 | AK99: 0 | AL99: =INDEX(Demand!$C65:$H65,,$AM$13) -> 0.0002233410887 | AM99: =INDEX(Demand!$K65:$P65,,$AM$13) -> 0 | AN99: 7.240704501 | AO99: 74.34151025 | AP99: 67.10080574 | AQ99: 59.49806602 | AR99: 7.602739726 | AS99: 53 | AT99: 53 | AU99: 793 | AV99: 100.5075632 | AW99: 60 | AX99: 0 | AY99: 40.50756324 | AZ99: 0 | BA99: 0 | BB99: 0 | BC99: 0 | BD99: 0 | BE99: 0 | BF99: 0 | BG99: 7.602739726 | BH99: 0
E100: x | H100: 0 | I100: 0 | J100: 0 | K100: 0 | L100: 0 | M100: 0 | N100: 0 | O100: 0 | P100: 0 | Q100: 0 | R100: 0 | S100: 0 | T100: 0 | U100: 0 | X100: 0 | Y100: 0 | Z100: =MAX(MIN(Z$40*IF($Z$37="Solar",$AM100,1),$AO100-SUM($Y100:Y100)),0) -> 60 | AA100: =MAX(MIN(AA$40,$AO100-SUM($Y100:Z100)),0) -> 0 | AB100: =MAX(MIN(AB$40,$AO100-SUM($Y100:AA100)),0) -> 14.34231374 | AC100: =MAX(MIN(AC$40,$AO100-SUM($Y100:AB100)),0) -> 0 | AD100: =MAX(MIN(AD$40,$AO100-SUM($Y100:AC100)),0) -> 0 | AE100: =MAX(MIN(AE$40,$AO100-SUM($Y100:AD100)),0) -> 0 | AF100: =MAX(MIN(AF$40,$AO100-SUM($Y100:AE100)),0) -> 0 | AG100: =MAX(MIN(AG$40,$AO100-SUM($Y100:AF100)),0) -> 0 | AH100: =MAX(MIN(AH$40,$AO100-SUM($Y100:AG100)),0) -> 0 | AI100: =MAX(MIN(AI$40,$AO100-SUM($Y100:AH100)),0) -> 0 | AJ100: 74.34231374 | AK100: 0 | AL100: =INDEX(Demand!$C66:$H66,,$AM$13) -> 0.0002233441048 | AM100: =INDEX(Demand!$K66:$P66,,$AM$13) -> 0 | AN100: 7.240704501 | AO100: 74.34231374 | AP100: 67.10160923 | AQ100: 59.49886951 | AR100: 7.602739726 | AS100: 54 | AT100: 54 | AU100: 740 | AV100: 100.4821079 | AW100: 60 | AX100: 0 | AY100: 40.48210788 | AZ100: 0 | BA100: 0 | BB100: 0 | BC100: 0 | BD100: 0 | BE100: 0 | BF100: 0 | BG100: 7.602739726 | BH100: 0
H101: 0 | I101: 0 | J101: 0 | K101: 0 | L101: 0 | M101: 0 | N101: 0 | O101: 0 | P101: 0 | Q101: 0 | R101: 0 | S101: 0 | T101: 0 | U101: 0 | X101: 0 | Y101: 0 | Z101: =MAX(MIN(Z$40*IF($Z$37="Solar",$AM101,1),$AO101-SUM($Y101:Y101)),0) -> 60 | AA101: =MAX(MIN(AA$40,$AO101-SUM($Y101:Z101)),0) -> 0 | AB101: =MAX(MIN(AB$40,$AO101-SUM($Y101:AA101)),0) -> 14.34782244 | AC101: =MAX(MIN(AC$40,$AO101-SUM($Y101:AB101)),0) -> 0 | AD101: =MAX(MIN(AD$40,$AO101-SUM($Y101:AC101)),0) -> 0 | AE101: =MAX(MIN(AE$40,$AO101-SUM($Y101:AD101)),0) -> 0 | AF101: =MAX(MIN(AF$40,$AO101-SUM($Y101:AE101)),0) -> 0 | AG101: =MAX(MIN(AG$40,$AO101-SUM($Y101:AF101)),0) -> 0 | AH101: =MAX(MIN(AH$40,$AO101-SUM($Y101:AG101)),0) -> 0 | AI101: =MAX(MIN(AI$40,$AO101-SUM($Y101:AH101)),0) -> 0 | AJ101: 74.34782244 | AK101: 0 | AL101: =INDEX(Demand!$C67:$H67,,$AM$13) -> 0.0002233647831 | AM101: =INDEX(Demand!$K67:$P67,,$AM$13) -> 0 | AN101: 7.240704501 | AO101: 74.34782244 | AP101: 67.10711794 | AQ101: 59.50437821 | AR101: 7.602739726 | AS101: 55 | AT101: 55 | AU101: 794 | AV101: 100.4511557 | AW101: 60 | AX101: 0 | AY101: 40.45115573 | AZ101: 0 | BA101: 0 | BB101: 0 | BC101: 0 | BD101: 0 | BE101: 0 | BF101: 0 | BG101: 7.602739726 | BH101: 0
H102: 0 | I102: 0 | J102: 0 | K102: 0 | L102: 0 | M102: 0 | N102: 0 | O102: 0 | P102: 0 | Q102: 0 | R102: 0 | S102: 0 | T102: 0 | U102: 0 | X102: 0 | Y102: 0 | Z102: =MAX(MIN(Z$40*IF($Z$37="Solar",$AM102,1),$AO102-SUM($Y102:Y102)),0) -> 60 | AA102: =MAX(MIN(AA$40,$AO102-SUM($Y102:Z102)),0) -> 0 | AB102: =MAX(MIN(AB$40,$AO102-SUM($Y102:AA102)),0) -> 14.35341698 | AC102: =MAX(MIN(AC$40,$AO102-SUM($Y102:AB102)),0) -> 0 | AD102: =MAX(MIN(AD$40,$AO102-SUM($Y102:AC102)),0) -> 0 | AE102: =MAX(MIN(AE$40,$AO102-SUM($Y102:AD102)),0) -> 0 | AF102: =MAX(MIN(AF$40,$AO102-SUM($Y102:AE102)),0) -> 0 | AG102: =MAX(MIN(AG$40,$AO102-SUM($Y102:AF102)),0) -> 0 | AH102: =MAX(MIN(AH$40,$AO102-SUM($Y102:AG102)),0) -> 0 | AI102: =MAX(MIN(AI$40,$AO102-SUM($Y102:AH102)),0) -> 0 | AJ102: 74.35341698 | AK102: 0 | AL102: =INDEX(Demand!$C68:$H68,,$AM$13) -> 0.0002233857836 | AM102: =INDEX(Demand!$K68:$P68,,$AM$13) -> 0.2724177199 | AN102: 7.240704501 | AO102: 74.35341698 | AP102: 67.11271248 | AQ102: 59.50997275 | AR102: 7.602739726 | AS102: 56 | AT102: 56 | AU102: 739 | AV102: 100.4059049 | AW102: 60 | AX102: 0 | AY102: 40.40590493 | AZ102: 0 | BA102: 0 | BB102: 0 | BC102: 0 | BD102: 0 | BE102: 0 | BF102: 0 | BG102: 7.602739726 | BH102: 0
H103: 0 | I103: 0 | J103: 0 | K103: 0 | L103: 0 | M103: 0 | N103: 0 | O103: 0 | P103: 0 | Q103: 0 | R103: 0 | S103: 0 | T103: 0 | U103: 0 | X103: 0 | Y103: 0 | Z103: =MAX(MIN(Z$40*IF($Z$37="Solar",$AM103,1),$AO103-SUM($Y103:Y103)),0) -> 60 | AA103: =MAX(MIN(AA$40,$AO103-SUM($Y103:Z103)),0) -> 0 | AB103: =MAX(MIN(AB$40,$AO103-SUM($Y103:AA103)),0) -> 14.3615096 | AC103: =MAX(MIN(AC$40,$AO103-SUM($Y103:AB103)),0) -> 0 | AD103: =MAX(MIN(AD$40,$AO103-SUM($Y103:AC103)),0) -> 0 | AE103: =MAX(MIN(AE$40,$AO103-SUM($Y103:AD103)),0) -> 0 | AF103: =MAX(MIN(AF$40,$AO103-SUM($Y103:AE103)),0) -> 0 | AG103: =MAX(MIN(AG$40,$AO103-SUM($Y103:AF103)),0) -> 0 | AH103: =MAX(MIN(AH$40,$AO103-SUM($Y103:AG103)),0) -> 0 | AI103: =MAX(MIN(AI$40,$AO103-SUM($Y103:AH103)),0) -> 0 | AJ103: 74.3615096 | AK103: 0 | AL103: =INDEX(Demand!$C69:$H69,,$AM$13) -> 0.0002234161613 | AM103: =INDEX(Demand!$K69:$P69,,$AM$13) -> 0.4940185588 | AN103: 7.240704501 | AO103: 74.3615096 | AP103: 67.1208051 | AQ103: 59.51806537 | AR103: 7.602739726 | AS103: 57 | AT103: 57 | AU103: 795 | AV103: 100.152758 | AW103: 60 | AX103: 0 | AY103: 40.15275799 | AZ103: 0 | BA103: 0 | BB103: 0 | BC103: 0 | BD103: 0 | BE103: 0 | BF103: 0 | BG103: 7.602739726 | BH103: 0
H104: 0 | I104: 0 | J104: 0 | K104: 0 | L104: 0 | M104: 0 | N104: 0 | O104: 0 | P104: 0 | Q104: 0 | R104: 0 | S104: 0 | T104: 0 | U104: 0 | X104: 0 | Y104: 0 | Z104: =MAX(MIN(Z$40*IF($Z$37="Solar",$AM104,1),$AO104-SUM($Y104:Y104)),0) -> 60 | AA104: =MAX(MIN(AA$40,$AO104-SUM($Y104:Z104)),0) -> 0 | AB104: =MAX(MIN(AB$40,$AO104-SUM($Y104:AA104)),0) -> 14.37832867 | AC104: =MAX(MIN(AC$40,$AO104-SUM($Y104:AB104)),0) -> 0 | AD104: =MAX(MIN(AD$40,$AO104-SUM($Y104:AC104)),0) -> 0 | AE104: =MAX(MIN(AE$40,$AO104-SUM($Y104:AD104)),0) -> 0 | AF104: =MAX(MIN(AF$40,$AO104-SUM($Y104:AE104)),0) -> 0 | AG104: =MAX(MIN(AG$40,$AO104-SUM($Y104:AF104)),0) -> 0 | AH104: =MAX(MIN(AH$40,$AO104-SUM($Y104:AG104)),0) -> 0 | AI104: =MAX(MIN(AI$40,$AO104-SUM($Y104:AH104)),0) -> 0 | AJ104: 74.37832867 | AK104: 0 | AL104: =INDEX(Demand!$C70:$H70,,$AM$13) -> 0.0002234792959 | AM104: =INDEX(Demand!$K70:$P70,,$AM$13) -> 0.4627865285 | AN104: 7.240704501 | AO104: 74.37832867 | AP104: 67.13762417 | AQ104: 59.53488444 | AR104: 7.602739726 | AS104: 58 | AT104: 58 | AU104: 738 | AV104: 100.1489024 | AW104: 60 | AX104: 0 | AY104: 40.14890241 | AZ104: 0 | BA104: 0 | BB104: 0 | BC104: 0 | BD104: 0 | BE104: 0 | BF104: 0 | BG104: 7.602739726 | BH104: 0
D105: 7 | G105: 0 | H105: 0 | I105: 0 | J105: 0 | K105: 0 | L105: 0 | M105: 0 | N105: 0 | O105: 0 | P105: 0 | Q105: 0 | R105: 0 | S105: 0 | T105: 0 | U105: 0 | X105: 0 | Y105: 0 | Z105: =MAX(MIN(Z$40*IF($Z$37="Solar",$AM105,1),$AO105-SUM($Y105:Y105)),0) -> 60 | AA105: =MAX(MIN(AA$40,$AO105-SUM($Y105:Z105)),0) -> 0 | AB105: =MAX(MIN(AB$40,$AO105-SUM($Y105:AA105)),0) -> 14.39026484 | AC105: =MAX(MIN(AC$40,$AO105-SUM($Y105:AB105)),0) -> 0 | AD105: =MAX(MIN(AD$40,$AO105-SUM($Y105:AC105)),0) -> 0 | AE105: =MAX(MIN(AE$40,$AO105-SUM($Y105:AD105)),0) -> 0 | AF105: =MAX(MIN(AF$40,$AO105-SUM($Y105:AE105)),0) -> 0 | AG105: =MAX(MIN(AG$40,$AO105-SUM($Y105:AF105)),0) -> 0 | AH105: =MAX(MIN(AH$40,$AO105-SUM($Y105:AG105)),0) -> 0 | AI105: =MAX(MIN(AI$40,$AO105-SUM($Y105:AH105)),0) -> 0 | AJ105: 74.39026484 | AK105: 0 | AL105: =INDEX(Demand!$C71:$H71,,$AM$13) -> 0.0002235241014 | AM105: =INDEX(Demand!$K71:$P71,,$AM$13) -> 0.5762140465 | AN105: 7.240704501 | AO105: 74.39026484 | AP105: 67.14956034 | AQ105: 59.54682061 | AR105: 7.602739726 | AS105: 59 | AT105: 59 | AU105: 796 | AV105: 100.0419677 | AW105: 60 | AX105: 0 | AY105: 40.04196766 | AZ105: 0 | BA105: 0 | BB105: 0 | BC105: 0 | BD105: 0 | BE105: 0 | BF105: 0 | BG105: 7.602739726 | BH105: 0
G106: 0 | H106: 0 | I106: 0 | J106: 0 | K106: 0 | L106: 0 | M106: 0 | N106: 0 | O106: 0 | P106: 0 | Q106: 0 | R106: 0 | S106: 0 | T106: 0 | U106: 0 | X106: 0 | Y106: 0 | Z106: =MAX(MIN(Z$40*IF($Z$37="Solar",$AM106,1),$AO106-SUM($Y106:Y106)),0) -> 60 | AA106: =MAX(MIN(AA$40,$AO106-SUM($Y106:Z106)),0) -> 0 | AB106: =MAX(MIN(AB$40,$AO106-SUM($Y106:AA106)),0) -> 14.41454755 | AC106: =MAX(MIN(AC$40,$AO106-SUM($Y106:AB106)),0) -> 0 | AD106: =MAX(MIN(AD$40,$AO106-SUM($Y106:AC106)),0) -> 0 | AE106: =MAX(MIN(AE$40,$AO106-SUM($Y106:AD106)),0) -> 0 | AF106: =MAX(MIN(AF$40,$AO106-SUM($Y106:AE106)),0) -> 0 | AG106: =MAX(MIN(AG$40,$AO106-SUM($Y106:AF106)),0) -> 0 | AH106: =MAX(MIN(AH$40,$AO106-SUM($Y106:AG106)),0) -> 0 | AI106: =MAX(MIN(AI$40,$AO106-SUM($Y106:AH106)),0) -> 0 | AJ106: 74.41454755 | AK106: 0 | AL106: =INDEX(Demand!$C72:$H72,,$AM$13) -> 0.0002236152527 | AM106: =INDEX(Demand!$K72:$P72,,$AM$13) -> 0.5109312106 | AN106: 7.240704501 | AO106: 74.41454755 | AP106: 67.17384305 | AQ106: 59.57110332 | AR106: 7.602739726 | AS106: 60 | AT106: 60 | AU106: 737 | AV106: 99.92285571 | AW106: 60 | AX106: 0 | AY106: 39.92285571 | AZ106: 0 | BA106: 0 | BB106: 0 | BC106: 0 | BD106: 0 | BE106: 0 | BF106: 0 | BG106: 7.602739726 | BH106: 0
E107: Climate zone 3 | H107: 0 | I107: 0 | J107: 0 | K107: 0 | L107: 0 | M107: 0 | N107: 0 | O107: 0 | P107: 0 | Q107: 0 | R107: 0 | S107: 0 | T107: 0 | U107: 0 | X107: 0 | Y107: 0 | Z107: =MAX(MIN(Z$40*IF($Z$37="Solar",$AM107,1),$AO107-SUM($Y107:Y107)),0) -> 60 | AA107: =MAX(MIN(AA$40,$AO107-SUM($Y107:Z107)),0) -> 0 | AB107: =MAX(MIN(AB$40,$AO107-SUM($Y107:AA107)),0) -> 14.43360776 | AC107: =MAX(MIN(AC$40,$AO107-SUM($Y107:AB107)),0) -> 0 | AD107: =MAX(MIN(AD$40,$AO107-SUM($Y107:AC107)),0) -> 0 | AE107: =MAX(MIN(AE$40,$AO107-SUM($Y107:AD107)),0) -> 0 | AF107: =MAX(MIN(AF$40,$AO107-SUM($Y107:AE107)),0) -> 0 | AG107: =MAX(MIN(AG$40,$AO107-SUM($Y107:AF107)),0) -> 0 | AH107: =MAX(MIN(AH$40,$AO107-SUM($Y107:AG107)),0) -> 0 | AI107: =MAX(MIN(AI$40,$AO107-SUM($Y107:AH107)),0) -> 0 | AJ107: 74.43360776 | AK107: 0 | AL107: =INDEX(Demand!$C73:$H73,,$AM$13) -> 0.0002236868 | AM107: =INDEX(Demand!$K73:$P73,,$AM$13) -> 0.3578378866 | AN107: 7.240704501 | AO107: 74.43360776 | AP107: 67.19290325 | AQ107: 59.59016353 | AR107: 7.602739726 | AS107: 61 | AT107: 61 | AU107: 797 | AV107: 99.89147926 | AW107: 60 | AX107: 0 | AY107: 39.89147926 | AZ107: 0 | BA107: 0 | BB107: 0 | BC107: 0 | BD107: 0 | BE107: 0 | BF107: 0 | BG107: 7.602739726 | BH107: 0
E108: 0 | H108: 0 | I108: 0 | J108: 0 | K108: 0 | L108: 0 | M108: 0 | N108: 0 | O108: 0 | P108: 0 | Q108: 0 | R108: 0 | S108: 0 | T108: 0 | U108: 0 | X108: 0 | Y108: 0 | Z108: =MAX(MIN(Z$40*IF($Z$37="Solar",$AM108,1),$AO108-SUM($Y108:Y108)),0) -> 60 | AA108: =MAX(MIN(AA$40,$AO108-SUM($Y108:Z108)),0) -> 0 | AB108: =MAX(MIN(AB$40,$AO108-SUM($Y108:AA108)),0) -> 14.44702849 | AC108: =MAX(MIN(AC$40,$AO108-SUM($Y108:AB108)),0) -> 0 | AD108: =MAX(MIN(AD$40,$AO108-SUM($Y108:AC108)),0) -> 0 | AE108: =MAX(MIN(AE$40,$AO108-SUM($Y108:AD108)),0) -> 0 | AF108: =MAX(MIN(AF$40,$AO108-SUM($Y108:AE108)),0) -> 0 | AG108: =MAX(MIN(AG$40,$AO108-SUM($Y108:AF108)),0) -> 0 | AH108: =MAX(MIN(AH$40,$AO108-SUM($Y108:AG108)),0) -> 0 | AI108: =MAX(MIN(AI$40,$AO108-SUM($Y108:AH108)),0) -> 0 | AJ108: 74.44702849 | AK108: 0 | AL108: =INDEX(Demand!$C74:$H74,,$AM$13) -> 0.0002237371782 | AM108: =INDEX(Demand!$K74:$P74,,$AM$13) -> 0.1543899606 | AN108: 7.240704501 | AO108: 74.44702849 | AP108: 67.20632399 | AQ108: 59.60358426 | AR108: 7.602739726 | AS108: 62 | AT108: 62 | AU108: 736 | AV108: 99.83874738 | AW108: 60 | AX108: 0 | AY108: 39.83874738 | AZ108: 0 | BA108: 0 | BB108: 0 | BC108: 0 | BD108: 0 | BE108: 0 | BF108: 0 | BG108: 7.602739726 | BH108: 0
E109: 0 | H109: 0 | I109: 0 | J109: 0 | K109: 0 | L109: 0 | M109: 0 | N109: 0 | O109: 0 | P109: 0 | Q109: 0 | R109: 0 | S109: 0 | T109: 0 | U109: 0 | X109: 0 | Y109: 0 | Z109: =MAX(MIN(Z$40*IF($Z$37="Solar",$AM109,1),$AO109-SUM($Y109:Y109)),0) -> 60 | AA109: =MAX(MIN(AA$40,$AO109-SUM($Y109:Z109)),0) -> 0 | AB109: =MAX(MIN(AB$40,$AO109-SUM($Y109:AA109)),0) -> 14.47070016 | AC109: =MAX(MIN(AC$40,$AO109-SUM($Y109:AB109)),0) -> 0 | AD109: =MAX(MIN(AD$40,$AO109-SUM($Y109:AC109)),0) -> 0 | AE109: =MAX(MIN(AE$40,$AO109-SUM($Y109:AD109)),0) -> 0 | AF109: =MAX(MIN(AF$40,$AO109-SUM($Y109:AE109)),0) -> 0 | AG109: =MAX(MIN(AG$40,$AO109-SUM($Y109:AF109)),0) -> 0 | AH109: =MAX(MIN(AH$40,$AO109-SUM($Y109:AG109)),0) -> 0 | AI109: =MAX(MIN(AI$40,$AO109-SUM($Y109:AH109)),0) -> 0 | AJ109: 74.47070016 | AK109: 0 | AL109: =INDEX(Demand!$C75:$H75,,$AM$13) -> 0.0002238260358 | AM109: =INDEX(Demand!$K75:$P75,,$AM$13) -> 0 | AN109: 7.240704501 | AO109: 74.47070016 | AP109: 67.22999566 | AQ109: 59.62725593 | AR109: 7.602739726 | AS109: 63 | AT109: 63 | AU109: 798 | AV109: 99.75209395 | AW109: 60 | AX109: 0 | AY109: 39.75209395 | AZ109: 0 | BA109: 0 | BB109: 0 | BC109: 0 | BD109: 0 | BE109: 0 | BF109: 0 | BG109: 7.602739726 | BH109: 0
E110: x | H110: 0 | I110: 0 | J110: 0 | K110: 0 | L110: 0 | M110: 0 | N110: 0 | O110: 0 | P110: 0 | Q110: 0 | R110: 0 | S110: 0 | T110: 0 | U110: 0 | X110: 0 | Y110: 0 | Z110: =MAX(MIN(Z$40*IF($Z$37="Solar",$AM110,1),$AO110-SUM($Y110:Y110)),0) -> 60 | AA110: =MAX(MIN(AA$40,$AO110-SUM($Y110:Z110)),0) -> 0 | AB110: =MAX(MIN(AB$40,$AO110-SUM($Y110:AA110)),0) -> 14.48721837 | AC110: =MAX(MIN(AC$40,$AO110-SUM($Y110:AB110)),0) -> 0 | AD110: =MAX(MIN(AD$40,$AO110-SUM($Y110:AC110)),0) -> 0 | AE110: =MAX(MIN(AE$40,$AO110-SUM($Y110:AD110)),0) -> 0 | AF110: =MAX(MIN(AF$40,$AO110-SUM($Y110:AE110)),0) -> 0 | AG110: =MAX(MIN(AG$40,$AO110-SUM($Y110:AF110)),0) -> 0 | AH110: =MAX(MIN(AH$40,$AO110-SUM($Y110:AG110)),0) -> 0 | AI110: =MAX(MIN(AI$40,$AO110-SUM($Y110:AH110)),0) -> 0 | AJ110: 74.48721837 | AK110: 0 | AL110: =INDEX(Demand!$C76:$H76,,$AM$13) -> 0.0002238880411 | AM110: =INDEX(Demand!$K76:$P76,,$AM$13) -> 0 | AN110: 7.240704501 | AO110: 74.48721837 | AP110: 67.24651387 | AQ110: 59.64377415 | AR110: 7.602739726 | AS110: 64 | AT110: 64 | AU110: 735 | AV110: 99.72738106 | AW110: 60 | AX110: 0 | AY110: 39.72738106 | AZ110: 0 | BA110: 0 | BB110: 0 | BC110: 0 | BD110: 0 | BE110: 0 | BF110: 0 | BG110: 7.602739726 | BH110: 0
H111: 0 | I111: 0 | J111: 0 | K111: 0 | L111: 0 | M111: 0 | N111: 0 | O111: 0 | P111: 0 | Q111: 0 | R111: 0 | S111: 0 | T111: 0 | U111: 0 | X111: =IF(MOD(ROW(),1000)=ROW($Y$46),(ROW()-ROW($Y$46)),0) -> 0 | Y111: 0 | Z111: =MAX(MIN(Z$40*IF($Z$37="Solar",$AM111,1),$AO111-SUM($Y111:Y111)),0) -> 60 | AA111: =MAX(MIN(AA$40,$AO111-SUM($Y111:Z111)),0) -> 0 | AB111: =MAX(MIN(AB$40,$AO111-SUM($Y111:AA111)),0) -> 14.49003638 | AC111: =MAX(MIN(AC$40,$AO111-SUM($Y111:AB111)),0) -> 0 | AD111: =MAX(MIN(AD$40,$AO111-SUM($Y111:AC111)),0) -> 0 | AE111: =MAX(MIN(AE$40,$AO111-SUM($Y111:AD111)),0) -> 0 | AF111: =MAX(MIN(AF$40,$AO111-SUM($Y111:AE111)),0) -> 0 | AG111: =MAX(MIN(AG$40,$AO111-SUM($Y111:AF111)),0) -> 0 | AH111: =MAX(MIN(AH$40,$AO111-SUM($Y111:AG111)),0) -> 0 | AI111: =MAX(MIN(AI$40,$AO111-SUM($Y111:AH111)),0) -> 0 | AJ111: 74.49003638 | AK111: 0 | AL111: =INDEX(Demand!$C77:$H77,,$AM$13) -> 0.0002238986192 | AM111: =INDEX(Demand!$K77:$P77,,$AM$13) -> 0 | AN111: =IF(AP111>0,Centralised_GWh*Support_thousand/(1-Centralised_HeatLoss)*Centralised_HeatLoss/BaseLoadHours,0) -> 7.240704501 | AO111: 74.49003638 | AP111: =Centralised_GWh*Support_thousand*((1-Centralised_WWDemand)*AL111+Centralised_WWDemand/8760) -> 67.24933188 | AQ111: 59.64659216 | AR111: =Centralised_GWh*Support_thousand*Centralised_WWDemand/8760 -> 7.602739726 | AS111: 65 | AT111: =_xlfn.RANK.EQ(AV111,$AV$47:$AV$8806) -> 65 | AU111: 799 | AV111: 99.53231246 | AW111: 60 | AX111: 0 | AY111: 39.53231246 | AZ111: 0 | BA111: 0 | BB111: 0 | BC111: 0 | BD111: 0 | BE111: 0 | BF111: 0 | BG111: =Centralised_GWh*Support_thousand*(Centralised_WWDemand/8760) -> 7.602739726 | BH111: 0
H112: 0 | I112: 0 | J112: 0 | K112: 0 | L112: 0 | M112: 0 | N112: 0 | O112: 0 | P112: 0 | Q112: 0 | R112: 0 | S112: 0 | T112: 0 | U112: 0 | X112: 0 | Y112: 0 | Z112: =MAX(MIN(Z$40*IF($Z$37="Solar",$AM112,1),$AO112-SUM($Y112:Y112)),0) -> 60 | AA112: =MAX(MIN(AA$40,$AO112-SUM($Y112:Z112)),0) -> 0 | AB112: =MAX(MIN(AB$40,$AO112-SUM($Y112:AA112)),0) -> 14.51727391 | AC112: =MAX(MIN(AC$40,$AO112-SUM($Y112:AB112)),0) -> 0 | AD112: =MAX(MIN(AD$40,$AO112-SUM($Y112:AC112)),0) -> 0 | AE112: =MAX(MIN(AE$40,$AO112-SUM($Y112:AD112)),0) -> 0 | AF112: =MAX(MIN(AF$40,$AO112-SUM($Y112:AE112)),0) -> 0 | AG112: =MAX(MIN(AG$40,$AO112-SUM($Y112:AF112)),0) -> 0 | AH112: =MAX(MIN(AH$40,$AO112-SUM($Y112:AG112)),0) -> 0 | AI112: =MAX(MIN(AI$40,$AO112-SUM($Y112:AH112)),0) -> 0 | AJ112: =SUM(Z112:AI112) -> 74.51727391 | AK112: =SUM(Z112:AI112)-AJ112 -> 0 | AL112: =INDEX(Demand!$C78:$H78,,$AM$13) -> 0.0002240008622 | AM112: =INDEX(Demand!$K78:$P78,,$AM$13) -> 0 | AN112: 7.240704501 | AO112: 74.51727391 | AP112: 67.27656941 | AQ112: =AP112-AR112 -> 59.67382969 | AR112: 7.602739726 | AS112: 66 | AT112: 66 | AU112: 734 | AV112: 99.3725203 | AW112: 60 | AX112: 0 | AY112: 39.3725203 | AZ112: 0 | BA112: 0 | BB112: 0 | BC112: 0 | BD112: 0 | BE112: 0 | BF112: 0 | BG112: 7.602739726 | BH112: =SUM(AW112:BC112)-AV112 -> 0
H113: 0 | I113: 0 | J113: 0 | K113: 0 | L113: 0 | M113: 0 | N113: 0 | O113: 0 | P113: 0 | Q113: 0 | R113: 0 | S113: 0 | T113: 0 | U113: 0 | X113: 0 | Y113: 0 | Z113: =MAX(MIN(Z$40*IF($Z$37="Solar",$AM113,1),$AO113-SUM($Y113:Y113)),0) -> 60 | AA113: =MAX(MIN(AA$40,$AO113-SUM($Y113:Z113)),0) -> 0 | AB113: =MAX(MIN(AB$40,$AO113-SUM($Y113:AA113)),0) -> 14.54196987 | AC113: =MAX(MIN(AC$40,$AO113-SUM($Y113:AB113)),0) -> 0 | AD113: =MAX(MIN(AD$40,$AO113-SUM($Y113:AC113)),0) -> 0 | AE113: =MAX(MIN(AE$40,$AO113-SUM($Y113:AD113)),0) -> 0 | AF113: =MAX(MIN(AF$40,$AO113-SUM($Y113:AE113)),0) -> 0 | AG113: =MAX(MIN(AG$40,$AO113-SUM($Y113:AF113)),0) -> 0 | AH113: =MAX(MIN(AH$40,$AO113-SUM($Y113:AG113)),0) -> 0 | AI113: =MAX(MIN(AI$40,$AO113-SUM($Y113:AH113)),0) -> 0 | AJ113: 74.54196987 | AK113: 0 | AL113: =INDEX(Demand!$C79:$H79,,$AM$13) -> 0.0002240935647 | AM113: =INDEX(Demand!$K79:$P79,,$AM$13) -> 0 | AN113: 7.240704501 | AO113: =AN113+AP113 -> 74.54196987 | AP113: 67.30126537 | AQ113: 59.69852564 | AR113: 7.602739726 | AS113: 67 | AT113: 67 | AU113: 800 | AV113: 99.34482767 | AW113: 60 | AX113: 0 | AY113: 39.34482767 | AZ113: 0 | BA113: 0 | BB113: 0 | BC113: 0 | BD113: 0 | BE113: 0 | BF113: 0 | BG113: 7.602739726 | BH113: 0
H114: 0 | I114: 0 | J114: 0 | K114: 0 | L114: 0 | M114: 0 | N114: 0 | O114: 0 | P114: 0 | Q114: 0 | R114: 0 | S114: 0 | T114: 0 | U114: 0 | X114: 0 | Y114: 0 | Z114: =MAX(MIN(Z$40*IF($Z$37="Solar",$AM114,1),$AO114-SUM($Y114:Y114)),0) -> 60 | AA114: =MAX(MIN(AA$40,$AO114-SUM($Y114:Z114)),0) -> 0 | AB114: =MAX(MIN(AB$40,$AO114-SUM($Y114:AA114)),0) -> 14.54458268 | AC114: =MAX(MIN(AC$40,$AO114-SUM($Y114:AB114)),0) -> 0 | AD114: =MAX(MIN(AD$40,$AO114-SUM($Y114:AC114)),0) -> 0 | AE114: =MAX(MIN(AE$40,$AO114-SUM($Y114:AD114)),0) -> 0 | AF114: =MAX(MIN(AF$40,$AO114-SUM($Y114:AE114)),0) -> 0 | AG114: =MAX(MIN(AG$40,$AO114-SUM($Y114:AF114)),0) -> 0 | AH114: =MAX(MIN(AH$40,$AO114-SUM($Y114:AG114)),0) -> 0 | AI114: =MAX(MIN(AI$40,$AO114-SUM($Y114:AH114)),0) -> 0 | AJ114: 74.54458268 | AK114: 0 | AL114: =INDEX(Demand!$C80:$H80,,$AM$13) -> 0.0002241033726 | AM114: =INDEX(Demand!$K80:$P80,,$AM$13) -> 0 | AN114: 7.240704501 | AO114: 74.54458268 | AP114: 67.30387818 | AQ114: 59.70113846 | AR114: 7.602739726 | AS114: 68 | AT114: 68 | AU114: 733 | AV114: 99.15809542 | AW114: 60 | AX114: 0 | AY114: 39.15809542 | AZ114: 0 | BA114: 0 | BB114: 0 | BC114: 0 | BD114: 0 | BE114: 0 | BF114: 0 | BG114: 7.602739726 | BH114: 0
D115: 8 | H115: 0 | I115: 0 | J115: 0 | K115: 0 | L115: 0 | M115: 0 | N115: 0 | O115: 0 | P115: 0 | Q115: 0 | R115: 0 | S115: 0 | T115: 0 | U115: 0 | X115: 0 | Y115: 0 | Z115: =MAX(MIN(Z$40*IF($Z$37="Solar",$AM115,1),$AO115-SUM($Y115:Y115)),0) -> 60 | AA115: =MAX(MIN(AA$40,$AO115-SUM($Y115:Z115)),0) -> 0 | AB115: =MAX(MIN(AB$40,$AO115-SUM($Y115:AA115)),0) -> 14.55333755 | AC115: =MAX(MIN(AC$40,$AO115-SUM($Y115:AB115)),0) -> 0 | AD115: =MAX(MIN(AD$40,$AO115-SUM($Y115:AC115)),0) -> 0 | AE115: =MAX(MIN(AE$40,$AO115-SUM($Y115:AD115)),0) -> 0 | AF115: =MAX(MIN(AF$40,$AO115-SUM($Y115:AE115)),0) -> 0 | AG115: =MAX(MIN(AG$40,$AO115-SUM($Y115:AF115)),0) -> 0 | AH115: =MAX(MIN(AH$40,$AO115-SUM($Y115:AG115)),0) -> 0 | AI115: =MAX(MIN(AI$40,$AO115-SUM($Y115:AH115)),0) -> 0 | AJ115: 74.55333755 | AK115: 0 | AL115: =INDEX(Demand!$C81:$H81,,$AM$13) -> 0.0002241362362 | AM115: =INDEX(Demand!$K81:$P81,,$AM$13) -> 0 | AN115: 7.240704501 | AO115: 74.55333755 | AP115: 67.31263305 | AQ115: 59.70989332 | AR115: 7.602739726 | AS115: 69 | AT115: 69 | AU115: 801 | AV115: 99.13436789 | AW115: 60 | AX115: 0 | AY115: 39.13436789 | AZ115: 0 | BA115: 0 | BB115: 0 | BC115: 0 | BD115: 0 | BE115: 0 | BF115: 0 | BG115: 7.602739726 | BH115: 0
H116: 0 | I116: 0 | J116: 0 | K116: 0 | L116: 0 | M116: 0 | N116: 0 | O116: 0 | P116: 0 | Q116: 0 | R116: 0 | S116: 0 | T116: 0 | U116: 0 | X116: 0 | Y116: 0 | Z116: =MAX(MIN(Z$40*IF($Z$37="Solar",$AM116,1),$AO116-SUM($Y116:Y116)),0) -> 60 | AA116: =MAX(MIN(AA$40,$AO116-SUM($Y116:Z116)),0) -> 0 | AB116: =MAX(MIN(AB$40,$AO116-SUM($Y116:AA116)),0) -> 14.57940316 | AC116: =MAX(MIN(AC$40,$AO116-SUM($Y116:AB116)),0) -> 0 | AD116: =MAX(MIN(AD$40,$AO116-SUM($Y116:AC116)),0) -> 0 | AE116: =MAX(MIN(AE$40,$AO116-SUM($Y116:AD116)),0) -> 0 | AF116: =MAX(MIN(AF$40,$AO116-SUM($Y116:AE116)),0) -> 0 | AG116: =MAX(MIN(AG$40,$AO116-SUM($Y116:AF116)),0) -> 0 | AH116: =MAX(MIN(AH$40,$AO116-SUM($Y116:AG116)),0) -> 0 | AI116: =MAX(MIN(AI$40,$AO116-SUM($Y116:AH116)),0) -> 0 | AJ116: 74.57940316 | AK116: 0 | AL116: =INDEX(Demand!$C82:$H82,,$AM$13) -> 0.0002242340801 | AM116: =INDEX(Demand!$K82:$P82,,$AM$13) -> 0 | AN116: 7.240704501 | AO116: 74.57940316 | AP116: 67.33869866 | AQ116: 59.73595893 | AR116: 7.602739726 | AS116: 70 | AT116: 70 | AU116: 732 | AV116: 99.12272556 | AW116: 60 | AX116: 0 | AY116: 39.12272556 | AZ116: 0 | BA116: 0 | BB116: 0 | BC116: 0 | BD116: 0 | BE116: 0 | BF116: 0 | BG116: 7.602739726 | BH116: 0
H117: 0 | I117: 0 | J117: 0 | K117: 0 | L117: 0 | M117: 0 | N117: 0 | O117: 0 | P117: 0 | Q117: 0 | R117: 0 | S117: 0 | T117: 0 | U117: 0 | X117: 0 | Y117: 0 | Z117: =MAX(MIN(Z$40*IF($Z$37="Solar",$AM117,1),$AO117-SUM($Y117:Y117)),0) -> 60 | AA117: =MAX(MIN(AA$40,$AO117-SUM($Y117:Z117)),0) -> 0 | AB117: =MAX(MIN(AB$40,$AO117-SUM($Y117:AA117)),0) -> 14.5949674 | AC117: =MAX(MIN(AC$40,$AO117-SUM($Y117:AB117)),0) -> 0 | AD117: =MAX(MIN(AD$40,$AO117-SUM($Y117:AC117)),0) -> 0 | AE117: =MAX(MIN(AE$40,$AO117-SUM($Y117:AD117)),0) -> 0 | AF117: =MAX(MIN(AF$40,$AO117-SUM($Y117:AE117)),0) -> 0 | AG117: =MAX(MIN(AG$40,$AO117-SUM($Y117:AF117)),0) -> 0 | AH117: =MAX(MIN(AH$40,$AO117-SUM($Y117:AG117)),0) -> 0 | AI117: =MAX(MIN(AI$40,$AO117-SUM($Y117:AH117)),0) -> 0 | AJ117: 74.5949674 | AK117: 0 | AL117: =INDEX(Demand!$C83:$H83,,$AM$13) -> 0.0002242925044 | AM117: =INDEX(Demand!$K83:$P83,,$AM$13) -> 0 | AN117: 7.240704501 | AO117: 74.5949674 | AP117: 67.3542629 | AQ117: 59.75152318 | AR117: 7.602739726 | AS117: 71 | AT117: 71 | AU117: 802 | AV117: 99.09930429 | AW117: 60 | AX117: 0 | AY117: 39.09930429 | AZ117: 0 | BA117: 0 | BB117: 0 | BC117: 0 | BD117: 0 | BE117: 0 | BF117: 0 | BG117: 7.602739726 | BH117: 0
E118: 0 | H118: 0 | I118: 0 | J118: 0 | K118: 0 | L118: 0 | M118: 0 | N118: 0 | O118: 0 | P118: 0 | Q118: 0 | R118: 0 | S118: 0 | T118: 0 | U118: 0 | X118: 0 | Y118: 0 | Z118: =MAX(MIN(Z$40*IF($Z$37="Solar",$AM118,1),$AO118-SUM($Y118:Y118)),0) -> 60 | AA118: =MAX(MIN(AA$40,$AO118-SUM($Y118:Z118)),0) -> 0 | AB118: =MAX(MIN(AB$40,$AO118-SUM($Y118:AA118)),0) -> 14.62587197 | AC118: =MAX(MIN(AC$40,$AO118-SUM($Y118:AB118)),0) -> 0 | AD118: =MAX(MIN(AD$40,$AO118-SUM($Y118:AC118)),0) -> 0 | AE118: =MAX(MIN(AE$40,$AO118-SUM($Y118:AD118)),0) -> 0 | AF118: =MAX(MIN(AF$40,$AO118-SUM($Y118:AE118)),0) -> 0 | AG118: =MAX(MIN(AG$40,$AO118-SUM($Y118:AF118)),0) -> 0 | AH118: =MAX(MIN(AH$40,$AO118-SUM($Y118:AG118)),0) -> 0 | AI118: =MAX(MIN(AI$40,$AO118-SUM($Y118:AH118)),0) -> 0 | AJ118: 74.62587197 | AK118: 0 | AL118: =INDEX(Demand!$C84:$H84,,$AM$13) -> 0.0002244085125 | AM118: =INDEX(Demand!$K84:$P84,,$AM$13) -> 0 | AN118: 7.240704501 | AO118: 74.62587197 | AP118: 67.38516746 | AQ118: 59.78242774 | AR118: 7.602739726 | AS118: 72 | AT118: 72 | AU118: 731 | AV118: 99.09405246 | AW118: 60 | AX118: 0 | AY118: 39.09405246 | AZ118: 0 | BA118: 0 | BB118: 0 | BC118: 0 | BD118: 0 | BE118: 0 | BF118: 0 | BG118: 7.602739726 | BH118: 0
E119: 0 | H119: 0 | I119: 0 | J119: 0 | K119: 0 | L119: 0 | M119: 0 | N119: 0 | O119: 0 | P119: 0 | Q119: 0 | R119: 0 | S119: 0 | T119: 0 | U119: 0 | X119: 0 | Y119: 0 | Z119: =MAX(MIN(Z$40*IF($Z$37="Solar",$AM119,1),$AO119-SUM($Y119:Y119)),0) -> 60 | AA119: =MAX(MIN(AA$40,$AO119-SUM($Y119:Z119)),0) -> 0 | AB119: =MAX(MIN(AB$40,$AO119-SUM($Y119:AA119)),0) -> 14.65013985 | AC119: =MAX(MIN(AC$40,$AO119-SUM($Y119:AB119)),0) -> 0 | AD119: =MAX(MIN(AD$40,$AO119-SUM($Y119:AC119)),0) -> 0 | AE119: =MAX(MIN(AE$40,$AO119-SUM($Y119:AD119)),0) -> 0 | AF119: =MAX(MIN(AF$40,$AO119-SUM($Y119:AE119)),0) -> 0 | AG119: =MAX(MIN(AG$40,$AO119-SUM($Y119:AF119)),0) -> 0 | AH119: =MAX(MIN(AH$40,$AO119-SUM($Y119:AG119)),0) -> 0 | AI119: =MAX(MIN(AI$40,$AO119-SUM($Y119:AH119)),0) -> 0 | AJ119: 74.65013985 | AK119: 0 | AL119: =INDEX(Demand!$C85:$H85,,$AM$13) -> 0.0002244996082 | AM119: =INDEX(Demand!$K85:$P85,,$AM$13) -> 0 | AN119: 7.240704501 | AO119: 74.65013985 | AP119: 67.40943535 | AQ119: 59.80669563 | AR119: 7.602739726 | AS119: 73 | AT119: 73 | AU119: 803 | AV119: 99.04180451 | AW119: 60 | AX119: 0 | AY119: 39.04180451 | AZ119: 0 | BA119: 0 | BB119: 0 | BC119: 0 | BD119: 0 | BE119: 0 | BF119: 0 | BG119: 7.602739726 | BH119: 0
E120: x | H120: 0 | I120: 0 | J120: 0 | K120: 0 | L120: 0 | M120: 0 | N120: 0 | O120: 0 | P120: 0 | Q120: 0 | R120: 0 | S120: 0 | T120: 0 | U120: 0 | X120: 0 | Y120: 0 | Z120: =MAX(MIN(Z$40*IF($Z$37="Solar",$AM120,1),$AO120-SUM($Y120:Y120)),0) -> 60 | AA120: =MAX(MIN(AA$40,$AO120-SUM($Y120:Z120)),0) -> 0 | AB120: =MAX(MIN(AB$40,$AO120-SUM($Y120:AA120)),0) -> 14.66667079 | AC120: =MAX(MIN(AC$40,$AO120-SUM($Y120:AB120)),0) -> 0 | AD120: =MAX(MIN(AD$40,$AO120-SUM($Y120:AC120)),0) -> 0 | AE120: =MAX(MIN(AE$40,$AO120-SUM($Y120:AD120)),0) -> 0 | AF120: =MAX(MIN(AF$40,$AO120-SUM($Y120:AE120)),0) -> 0 | AG120: =MAX(MIN(AG$40,$AO120-SUM($Y120:AF120)),0) -> 0 | AH120: =MAX(MIN(AH$40,$AO120-SUM($Y120:AG120)),0) -> 0 | AI120: =MAX(MIN(AI$40,$AO120-SUM($Y120:AH120)),0) -> 0 | AJ120: 74.66667079 | AK120: 0 | AL120: =INDEX(Demand!$C86:$H86,,$AM$13) -> 0.0002245616613 | AM120: =INDEX(Demand!$K86:$P86,,$AM$13) -> 0 | AN120: 7.240704501 | AO120: 74.66667079 | AP120: 67.42596629 | AQ120: 59.82322656 | AR120: 7.602739726 | AS120: 74 | AT120: 74 | AU120: 730 | AV120: 99.0303434 | AW120: 60 | AX120: 0 | AY120: 39.0303434 | AZ120: 0 | BA120: 0 | BB120: 0 | BC120: 0 | BD120: 0 | BE120: 0 | BF120: 0 | BG120: 7.602739726 | BH120: 0
H121: 0 | I121: 0 | J121: 0 | K121: 0 | L121: 0 | M121: 0 | N121: 0 | O121: 0 | P121: 0 | Q121: 0 | R121: 0 | S121: 0 | T121: 0 | U121: 0 | X121: 0 | Y121: 0 | Z121: =MAX(MIN(Z$40*IF($Z$37="Solar",$AM121,1),$AO121-SUM($Y121:Y121)),0) -> 60 | AA121: =MAX(MIN(AA$40,$AO121-SUM($Y121:Z121)),0) -> 0 | AB121: =MAX(MIN(AB$40,$AO121-SUM($Y121:AA121)),0) -> 14.69505449 | AC121: =MAX(MIN(AC$40,$AO121-SUM($Y121:AB121)),0) -> 0 | AD121: =MAX(MIN(AD$40,$AO121-SUM($Y121:AC121)),0) -> 0 | AE121: =MAX(MIN(AE$40,$AO121-SUM($Y121:AD121)),0) -> 0 | AF121: =MAX(MIN(AF$40,$AO121-SUM($Y121:AE121)),0) -> 0 | AG121: =MAX(MIN(AG$40,$AO121-SUM($Y121:AF121)),0) -> 0 | AH121: =MAX(MIN(AH$40,$AO121-SUM($Y121:AG121)),0) -> 0 | AI121: =MAX(MIN(AI$40,$AO121-SUM($Y121:AH121)),0) -> 0 | AJ121: 74.69505449 | AK121: 0 | AL121: =INDEX(Demand!$C87:$H87,,$AM$13) -> 0.0002246682067 | AM121: =INDEX(Demand!$K87:$P87,,$AM$13) -> 0 | AN121: 7.240704501 | AO121: 74.69505449 | AP121: 67.45434999 | AQ121: 59.85161026 | AR121: 7.602739726 | AS121: 75 | AT121: 75 | AU121: 804 | AV121: 98.97657769 | AW121: 60 | AX121: 0 | AY121: 38.97657769 | AZ121: 0 | BA121: 0 | BB121: 0 | BC121: 0 | BD121: 0 | BE121: 0 | BF121: 0 | BG121: 7.602739726 | BH121: 0
H122: 0 | I122: 0 | J122: 0 | K122: 0 | L122: 0 | M122: 0 | N122: 0 | O122: 0 | P122: 0 | Q122: 0 | R122: 0 | S122: 0 | T122: 0 | U122: 0 | X122: 0 | Y122: 0 | Z122: =MAX(MIN(Z$40*IF($Z$37="Solar",$AM122,1),$AO122-SUM($Y122:Y122)),0) -> 60 | AA122: =MAX(MIN(AA$40,$AO122-SUM($Y122:Z122)),0) -> 0 | AB122: =MAX(MIN(AB$40,$AO122-SUM($Y122:AA122)),0) -> 14.70399072 | AC122: =MAX(MIN(AC$40,$AO122-SUM($Y122:AB122)),0) -> 0 | AD122: =MAX(MIN(AD$40,$AO122-SUM($Y122:AC122)),0) -> 0 | AE122: =MAX(MIN(AE$40,$AO122-SUM($Y122:AD122)),0) -> 0 | AF122: =MAX(MIN(AF$40,$AO122-SUM($Y122:AE122)),0) -> 0 | AG122: =MAX(MIN(AG$40,$AO122-SUM($Y122:AF122)),0) -> 0 | AH122: =MAX(MIN(AH$40,$AO122-SUM($Y122:AG122)),0) -> 0 | AI122: =MAX(MIN(AI$40,$AO122-SUM($Y122:AH122)),0) -> 0 | AJ122: 74.70399072 | AK122: 0 | AL122: =INDEX(Demand!$C88:$H88,,$AM$13) -> 0.0002247017511 | AM122: =INDEX(Demand!$K88:$P88,,$AM$13) -> 0 | AN122: 7.240704501 | AO122: 74.70399072 | AP122: 67.46328622 | AQ122: 59.86054649 | AR122: 7.602739726 | AS122: 76 | AT122: 76 | AU122: 729 | AV122: 98.94762702 | AW122: 60 | AX122: 0 | AY122: 38.94762702 | AZ122: 0 | BA122: 0 | BB122: 0 | BC122: 0 | BD122: 0 | BE122: 0 | BF122: 0 | BG122: 7.602739726 | BH122: 0
H123: 0 | I123: 0 | J123: 0 | K123: 0 | L123: 0 | M123: 0 | N123: 0 | O123: 0 | P123: 0 | Q123: 0 | R123: 0 | S123: 0 | T123: 0 | U123: 0 | X123: 0 | Y123: 0 | Z123: =MAX(MIN(Z$40*IF($Z$37="Solar",$AM123,1),$AO123-SUM($Y123:Y123)),0) -> 60 | AA123: =MAX(MIN(AA$40,$AO123-SUM($Y123:Z123)),0) -> 0 | AB123: =MAX(MIN(AB$40,$AO123-SUM($Y123:AA123)),0) -> 14.72638069 | AC123: =MAX(MIN(AC$40,$AO123-SUM($Y123:AB123)),0) -> 0 | AD123: =MAX(MIN(AD$40,$AO123-SUM($Y123:AC123)),0) -> 0 | AE123: =MAX(MIN(AE$40,$AO123-SUM($Y123:AD123)),0) -> 0 | AF123: =MAX(MIN(AF$40,$AO123-SUM($Y123:AE123)),0) -> 0 | AG123: =MAX(MIN(AG$40,$AO123-SUM($Y123:AF123)),0) -> 0 | AH123: =MAX(MIN(AH$40,$AO123-SUM($Y123:AG123)),0) -> 0 | AI123: =MAX(MIN(AI$40,$AO123-SUM($Y123:AH123)),0) -> 0 | AJ123: 74.72638069 | AK123: 0 | AL123: =INDEX(Demand!$C89:$H89,,$AM$13) -> 0.0002247857976 | AM123: =INDEX(Demand!$K89:$P89,,$AM$13) -> 0 | AN123: 7.240704501 | AO123: 74.72638069 | AP123: 67.48567619 | AQ123: 59.88293647 | AR123: 7.602739726 | AS123: 77 | AT123: 77 | AU123: 805 | AV123: 98.90081916 | AW123: 60 | AX123: 0 | AY123: 38.90081916 | AZ123: 0 | BA123: 0 | BB123: 0 | BC123: 0 | BD123: 0 | BE123: 0 | BF123: 0 | BG123: 7.602739726 | BH123: 0
H124: 0 | I124: 0 | J124: 0 | K124: 0 | L124: 0 | M124: 0 | N124: 0 | O124: 0 | P124: 0 | Q124: 0 | R124: 0 | S124: 0 | T124: 0 | U124: 0 | X124: 0 | Y124: 0 | Z124: =MAX(MIN(Z$40*IF($Z$37="Solar",$AM124,1),$AO124-SUM($Y124:Y124)),0) -> 60 | AA124: =MAX(MIN(AA$40,$AO124-SUM($Y124:Z124)),0) -> 0 | AB124: =MAX(MIN(AB$40,$AO124-SUM($Y124:AA124)),0) -> 14.77148251 | AC124: =MAX(MIN(AC$40,$AO124-SUM($Y124:AB124)),0) -> 0 | AD124: =MAX(MIN(AD$40,$AO124-SUM($Y124:AC124)),0) -> 0 | AE124: =MAX(MIN(AE$40,$AO124-SUM($Y124:AD124)),0) -> 0 | AF124: =MAX(MIN(AF$40,$AO124-SUM($Y124:AE124)),0) -> 0 | AG124: =MAX(MIN(AG$40,$AO124-SUM($Y124:AF124)),0) -> 0 | AH124: =MAX(MIN(AH$40,$AO124-SUM($Y124:AG124)),0) -> 0 | AI124: =MAX(MIN(AI$40,$AO124-SUM($Y124:AH124)),0) -> 0 | AJ124: 74.77148251 | AK124: 0 | AL124: =INDEX(Demand!$C90:$H90,,$AM$13) -> 0.0002249550986 | AM124: =INDEX(Demand!$K90:$P90,,$AM$13) -> 0 | AN124: 7.240704501 | AO124: 74.77148251 | AP124: 67.530778 | AQ124: 59.92803828 | AR124: 7.602739726 | AS124: 78 | AT124: 78 | AU124: 728 | AV124: 98.87801451 | AW124: 60 | AX124: 0 | AY124: 38.87801451 | AZ124: 0 | BA124: 0 | BB124: 0 | BC124: 0 | BD124: 0 | BE124: 0 | BF124: 0 | BG124: 7.602739726 | BH124: 0
D125: 9 | H125: 0 | I125: 0 | J125: 0 | K125: 0 | L125: 0 | M125: 0 | N125: 0 | O125: 0 | P125: 0 | Q125: 0 | R125: 0 | S125: 0 | T125: 0 | U125: 0 | X125: 0 | Y125: 0 | Z125: =MAX(MIN(Z$40*IF($Z$37="Solar",$AM125,1),$AO125-SUM($Y125:Y125)),0) -> 60 | AA125: =MAX(MIN(AA$40,$AO125-SUM($Y125:Z125)),0) -> 0 | AB125: =MAX(MIN(AB$40,$AO125-SUM($Y125:AA125)),0) -> 14.77470883 | AC125: =MAX(MIN(AC$40,$AO125-SUM($Y125:AB125)),0) -> 0 | AD125: =MAX(MIN(AD$40,$AO125-SUM($Y125:AC125)),0) -> 0 | AE125: =MAX(MIN(AE$40,$AO125-SUM($Y125:AD125)),0) -> 0 | AF125: =MAX(MIN(AF$40,$AO125-SUM($Y125:AE125)),0) -> 0 | AG125: =MAX(MIN(AG$40,$AO125-SUM($Y125:AF125)),0) -> 0 | AH125: =MAX(MIN(AH$40,$AO125-SUM($Y125:AG125)),0) -> 0 | AI125: =MAX(MIN(AI$40,$AO125-SUM($Y125:AH125)),0) -> 0 | AJ125: 74.77470883 | AK125: 0 | AL125: =INDEX(Demand!$C91:$H91,,$AM$13) -> 0.0002249672095 | AM125: =INDEX(Demand!$K91:$P91,,$AM$13) -> 0 | AN125: 7.240704501 | AO125: 74.77470883 | AP125: 67.53400433 | AQ125: 59.93126461 | AR125: 7.602739726 | AS125: 79 | AT125: 79 | AU125: 806 | AV125: 98.87123802 | AW125: 60 | AX125: 0 | AY125: 38.87123802 | AZ125: 0 | BA125: 0 | BB125: 0 | BC125: 0 | BD125: 0 | BE125: 0 | BF125: 0 | BG125: 7.602739726 | BH125: 0
H126: 0 | I126: 0 | J126: 0 | K126: 0 | L126: 0 | M126: 0 | N126: 0 | O126: 0 | P126: 0 | Q126: 0 | R126: 0 | S126: 0 | T126: 0 | U126: 0 | X126: 0 | Y126: 0 | Z126: =MAX(MIN(Z$40*IF($Z$37="Solar",$AM126,1),$AO126-SUM($Y126:Y126)),0) -> 60 | AA126: =MAX(MIN(AA$40,$AO126-SUM($Y126:Z126)),0) -> 0 | AB126: =MAX(MIN(AB$40,$AO126-SUM($Y126:AA126)),0) -> 14.79552849 | AC126: =MAX(MIN(AC$40,$AO126-SUM($Y126:AB126)),0) -> 0 | AD126: =MAX(MIN(AD$40,$AO126-SUM($Y126:AC126)),0) -> 0 | AE126: =MAX(MIN(AE$40,$AO126-SUM($Y126:AD126)),0) -> 0 | AF126: =MAX(MIN(AF$40,$AO126-SUM($Y126:AE126)),0) -> 0 | AG126: =MAX(MIN(AG$40,$AO126-SUM($Y126:AF126)),0) -> 0 | AH126: =MAX(MIN(AH$40,$AO126-SUM($Y126:AG126)),0) -> 0 | AI126: =MAX(MIN(AI$40,$AO126-SUM($Y126:AH126)),0) -> 0 | AJ126: 74.79552849 | AK126: 0 | AL126: =INDEX(Demand!$C92:$H92,,$AM$13) -> 0.0002250453613 | AM126: =INDEX(Demand!$K92:$P92,,$AM$13) -> 0.2938404122 | AN126: 7.240704501 | AO126: 74.79552849 | AP126: 67.55482399 | AQ126: 59.95208426 | AR126: 7.602739726 | AS126: 80 | AT126: 80 | AU126: 727 | AV126: 98.8686211 | AW126: 60 | AX126: 0 | AY126: 38.8686211 | AZ126: 0 | BA126: 0 | BB126: 0 | BC126: 0 | BD126: 0 | BE126: 0 | BF126: 0 | BG126: 7.602739726 | BH126: 0
H127: 0 | I127: 0 | J127: 0 | K127: 0 | L127: 0 | M127: 0 | N127: 0 | O127: 0 | P127: 0 | Q127: 0 | R127: 0 | S127: 0 | T127: 0 | U127: 0 | X127: 0 | Y127: 0 | Z127: =MAX(MIN(Z$40*IF($Z$37="Solar",$AM127,1),$AO127-SUM($Y127:Y127)),0) -> 60 | AA127: =MAX(MIN(AA$40,$AO127-SUM($Y127:Z127)),0) -> 0 | AB127: =MAX(MIN(AB$40,$AO127-SUM($Y127:AA127)),0) -> 14.82193105 | AC127: =MAX(MIN(AC$40,$AO127-SUM($Y127:AB127)),0) -> 0 | AD127: =MAX(MIN(AD$40,$AO127-SUM($Y127:AC127)),0) -> 0 | AE127: =MAX(MIN(AE$40,$AO127-SUM($Y127:AD127)),0) -> 0 | AF127: =MAX(MIN(AF$40,$AO127-SUM($Y127:AE127)),0) -> 0 | AG127: =MAX(MIN(AG$40,$AO127-SUM($Y127:AF127)),0) -> 0 | AH127: =MAX(MIN(AH$40,$AO127-SUM($Y127:AG127)),0) -> 0 | AI127: =MAX(MIN(AI$40,$AO127-SUM($Y127:AH127)),0) -> 0 | AJ127: 74.82193105 | AK127: 0 | AL127: =INDEX(Demand!$C93:$H93,,$AM$13) -> 0.0002251444701 | AM127: =INDEX(Demand!$K93:$P93,,$AM$13) -> 0.5255888422 | AN127: 7.240704501 | AO127: 74.82193105 | AP127: 67.58122655 | AQ127: 59.97848683 | AR127: 7.602739726 | AS127: 81 | AT127: 81 | AU127: 807 | AV127: 98.83580457 | AW127: 60 | AX127: 0 | AY127: 38.83580457 | AZ127: 0 | BA127: 0 | BB127: 0 | BC127: 0 | BD127: 0 | BE127: 0 | BF127: 0 | BG127: 7.602739726 | BH127: 0
E128: 0 | H128: 0 | I128: 0 | J128: 0 | K128: 0 | L128: 0 | M128: 0 | N128: 0 | O128: 0 | P128: 0 | Q128: 0 | R128: 0 | S128: 0 | T128: 0 | U128: 0 | X128: 0 | Y128: 0 | Z128: =MAX(MIN(Z$40*IF($Z$37="Solar",$AM128,1),$AO128-SUM($Y128:Y128)),0) -> 60 | AA128: =MAX(MIN(AA$40,$AO128-SUM($Y128:Z128)),0) -> 0 | AB128: =MAX(MIN(AB$40,$AO128-SUM($Y128:AA128)),0) -> 14.82728764 | AC128: =MAX(MIN(AC$40,$AO128-SUM($Y128:AB128)),0) -> 0 | AD128: =MAX(MIN(AD$40,$AO128-SUM($Y128:AC128)),0) -> 0 | AE128: =MAX(MIN(AE$40,$AO128-SUM($Y128:AD128)),0) -> 0 | AF128: =MAX(MIN(AF$40,$AO128-SUM($Y128:AE128)),0) -> 0 | AG128: =MAX(MIN(AG$40,$AO128-SUM($Y128:AF128)),0) -> 0 | AH128: =MAX(MIN(AH$40,$AO128-SUM($Y128:AG128)),0) -> 0 | AI128: =MAX(MIN(AI$40,$AO128-SUM($Y128:AH128)),0) -> 0 | AJ128: 74.82728764 | AK128: 0 | AL128: =INDEX(Demand!$C94:$H94,,$AM$13) -> 0.0002251645774 | AM128: =INDEX(Demand!$K94:$P94,,$AM$13) -> 0.595099841 | AN128: 7.240704501 | AO128: 74.82728764 | AP128: 67.58658314 | AQ128: 59.98384341 | AR128: 7.602739726 | AS128: 82 | AT128: 82 | AU128: 726 | AV128: 98.82349341 | AW128: 60 | AX128: 0 | AY128: 38.82349341 | AZ128: 0 | BA128: 0 | BB128: 0 | BC128: 0 | BD128: 0 | BE128: 0 | BF128: 0 | BG128: 7.602739726 | BH128: 0
E129: 0 | H129: 0 | I129: 0 | J129: 0 | K129: 0 | L129: 0 | M129: 0 | N129: 0 | O129: 0 | P129: 0 | Q129: 0 | R129: 0 | S129: 0 | T129: 0 | U129: 0 | X129: 0 | Y129: 0 | Z129: =MAX(MIN(Z$40*IF($Z$37="Solar",$AM129,1),$AO129-SUM($Y129:Y129)),0) -> 60 | AA129: =MAX(MIN(AA$40,$AO129-SUM($Y129:Z129)),0) -> 0 | AB129: =MAX(MIN(AB$40,$AO129-SUM($Y129:AA129)),0) -> 14.86380003 | AC129: =MAX(MIN(AC$40,$AO129-SUM($Y129:AB129)),0) -> 0 | AD129: =MAX(MIN(AD$40,$AO129-SUM($Y129:AC129)),0) -> 0 | AE129: =MAX(MIN(AE$40,$AO129-SUM($Y129:AD129)),0) -> 0 | AF129: =MAX(MIN(AF$40,$AO129-SUM($Y129:AE129)),0) -> 0 | AG129: =MAX(MIN(AG$40,$AO129-SUM($Y129:AF129)),0) -> 0 | AH129: =MAX(MIN(AH$40,$AO129-SUM($Y129:AG129)),0) -> 0 | AI129: =MAX(MIN(AI$40,$AO129-SUM($Y129:AH129)),0) -> 0 | AJ129: 74.86380003 | AK129: 0 | AL129: =INDEX(Demand!$C95:$H95,,$AM$13) -> 0.0002253016359 | AM129: =INDEX(Demand!$K95:$P95,,$AM$13) -> 0.5383297065 | AN129: 7.240704501 | AO129: 74.86380003 | AP129: 67.62309553 | AQ129: 60.02035581 | AR129: 7.602739726 | AS129: 83 | AT129: 83 | AU129: 808 | AV129: 98.80343953 | AW129: 60 | AX129: 0 | AY129: 38.80343953 | AZ129: 0 | BA129: 0 | BB129: 0 | BC129: 0 | BD129: 0 | BE129: 0 | BF129: 0 | BG129: 7.602739726 | BH129: 0
E130: x | H130: 0 | I130: 0 | J130: 0 | K130: 0 | L130: 0 | M130: 0 | N130: 0 | O130: 0 | P130: 0 | Q130: 0 | R130: 0 | S130: 0 | T130: 0 | U130: 0 | X130: 0 | Y130: 0 | Z130: =MAX(MIN(Z$40*IF($Z$37="Solar",$AM130,1),$AO130-SUM($Y130:Y130)),0) -> 60 | AA130: =MAX(MIN(AA$40,$AO130-SUM($Y130:Z130)),0) -> 0 | AB130: =MAX(MIN(AB$40,$AO130-SUM($Y130:AA130)),0) -> 14.96016466 | AC130: =MAX(MIN(AC$40,$AO130-SUM($Y130:AB130)),0) -> 0 | AD130: =MAX(MIN(AD$40,$AO130-SUM($Y130:AC130)),0) -> 0 | AE130: =MAX(MIN(AE$40,$AO130-SUM($Y130:AD130)),0) -> 0 | AF130: =MAX(MIN(AF$40,$AO130-SUM($Y130:AE130)),0) -> 0 | AG130: =MAX(MIN(AG$40,$AO130-SUM($Y130:AF130)),0) -> 0 | AH130: =MAX(MIN(AH$40,$AO130-SUM($Y130:AG130)),0) -> 0 | AI130: =MAX(MIN(AI$40,$AO130-SUM($Y130:AH130)),0) -> 0 | AJ130: 74.96016466 | AK130: 0 | AL130: =INDEX(Demand!$C96:$H96,,$AM$13) -> 0.000225663365 | AM130: =INDEX(Demand!$K96:$P96,,$AM$13) -> 0.5763718979 | AN130: 7.240704501 | AO130: 74.96016466 | AP130: 67.71946016 | AQ130: 60.11672043 | AR130: 7.602739726 | AS130: 84 | AT130: 84 | AU130: 725 | AV130: 98.79721579 | AW130: 60 | AX130: 0 | AY130: 38.79721579 | AZ130: 0 | BA130: 0 | BB130: 0 | BC130: 0 | BD130: 0 | BE130: 0 | BF130: 0 | BG130: 7.602739726 | BH130: 0
H131: 0 | I131: 0 | J131: 0 | K131: 0 | L131: 0 | M131: 0 | N131: 0 | O131: 0 | P131: 0 | Q131: 0 | R131: 0 | S131: 0 | T131: 0 | U131: 0 | X131: 0 | Y131: 0 | Z131: =MAX(MIN(Z$40*IF($Z$37="Solar",$AM131,1),$AO131-SUM($Y131:Y131)),0) -> 60 | AA131: =MAX(MIN(AA$40,$AO131-SUM($Y131:Z131)),0) -> 0 | AB131: =MAX(MIN(AB$40,$AO131-SUM($Y131:AA131)),0) -> 14.98534316 | AC131: =MAX(MIN(AC$40,$AO131-SUM($Y131:AB131)),0) -> 0 | AD131: =MAX(MIN(AD$40,$AO131-SUM($Y131:AC131)),0) -> 0 | AE131: =MAX(MIN(AE$40,$AO131-SUM($Y131:AD131)),0) -> 0 | AF131: =MAX(MIN(AF$40,$AO131-SUM($Y131:AE131)),0) -> 0 | AG131: =MAX(MIN(AG$40,$AO131-SUM($Y131:AF131)),0) -> 0 | AH131: =MAX(MIN(AH$40,$AO131-SUM($Y131:AG131)),0) -> 0 | AI131: =MAX(MIN(AI$40,$AO131-SUM($Y131:AH131)),0) -> 0 | AJ131: 74.98534316 | AK131: 0 | AL131: =INDEX(Demand!$C97:$H97,,$AM$13) -> 0.0002257578789 | AM131: =INDEX(Demand!$K97:$P97,,$AM$13) -> 0.4121049486 | AN131: 7.240704501 | AO131: 74.98534316 | AP131: 67.74463866 | AQ131: 60.14189893 | AR131: 7.602739726 | AS131: 85 | AT131: 85 | AU131: 809 | AV131: 98.78305738 | AW131: 60 | AX131: 0 | AY131: 38.78305738 | AZ131: 0 | BA131: 0 | BB131: 0 | BC131: 0 | BD131: 0 | BE131: 0 | BF131: 0 | BG131: 7.602739726 | BH131: 0
H132: 0 | I132: 0 | J132: 0 | K132: 0 | L132: 0 | M132: 0 | N132: 0 | O132: 0 | P132: 0 | Q132: 0 | R132: 0 | S132: 0 | T132: 0 | U132: 0 | X132: 0 | Y132: 0 | Z132: =MAX(MIN(Z$40*IF($Z$37="Solar",$AM132,1),$AO132-SUM($Y132:Y132)),0) -> 60 | AA132: =MAX(MIN(AA$40,$AO132-SUM($Y132:Z132)),0) -> 0 | AB132: =MAX(MIN(AB$40,$AO132-SUM($Y132:AA132)),0) -> 14.99137481 | AC132: =MAX(MIN(AC$40,$AO132-SUM($Y132:AB132)),0) -> 0 | AD132: =MAX(MIN(AD$40,$AO132-SUM($Y132:AC132)),0) -> 0 | AE132: =MAX(MIN(AE$40,$AO132-SUM($Y132:AD132)),0) -> 0 | AF132: =MAX(MIN(AF$40,$AO132-SUM($Y132:AE132)),0) -> 0 | AG132: =MAX(MIN(AG$40,$AO132-SUM($Y132:AF132)),0) -> 0 | AH132: =MAX(MIN(AH$40,$AO132-SUM($Y132:AG132)),0) -> 0 | AI132: =MAX(MIN(AI$40,$AO132-SUM($Y132:AH132)),0) -> 0 | AJ132: 74.99137481 | AK132: 0 | AL132: =INDEX(Demand!$C98:$H98,,$AM$13) -> 0.0002257805202 | AM132: =INDEX(Demand!$K98:$P98,,$AM$13) -> 0.1853739387 | AN132: 7.240704501 | AO132: 74.99137481 | AP132: 67.75067031 | AQ132: 60.14793058 | AR132: 7.602739726 | AS132: 86 | AT132: 86 | AU132: 724 | AV132: 98.78011758 | AW132: 60 | AX132: 0 | AY132: 38.78011758 | AZ132: 0 | BA132: 0 | BB132: 0 | BC132: 0 | BD132: 0 | BE132: 0 | BF132: 0 | BG132: 7.602739726 | BH132: 0
H133: 0 | I133: 0 | J133: 0 | K133: 0 | L133: 0 | M133: 0 | N133: 0 | O133: 0 | P133: 0 | Q133: 0 | R133: 0 | S133: 0 | T133: 0 | U133: 0 | X133: 0 | Y133: 0 | Z133: =MAX(MIN(Z$40*IF($Z$37="Solar",$AM133,1),$AO133-SUM($Y133:Y133)),0) -> 60 | AA133: =MAX(MIN(AA$40,$AO133-SUM($Y133:Z133)),0) -> 0 | AB133: =MAX(MIN(AB$40,$AO133-SUM($Y133:AA133)),0) -> 15.01633202 | AC133: =MAX(MIN(AC$40,$AO133-SUM($Y133:AB133)),0) -> 0 | AD133: =MAX(MIN(AD$40,$AO133-SUM($Y133:AC133)),0) -> 0 | AE133: =MAX(MIN(AE$40,$AO133-SUM($Y133:AD133)),0) -> 0 | AF133: =MAX(MIN(AF$40,$AO133-SUM($Y133:AE133)),0) -> 0 | AG133: =MAX(MIN(AG$40,$AO133-SUM($Y133:AF133)),0) -> 0 | AH133: =MAX(MIN(AH$40,$AO133-SUM($Y133:AG133)),0) -> 0 | AI133: =MAX(MIN(AI$40,$AO133-SUM($Y133:AH133)),0) -> 0 | AJ133: 75.01633202 | AK133: 0 | AL133: =INDEX(Demand!$C99:$H99,,$AM$13) -> 0.0002258742034 | AM133: =INDEX(Demand!$K99:$P99,,$AM$13) -> 0 | AN133: 7.240704501 | AO133: 75.01633202 | AP133: 67.77562752 | AQ133: 60.17288779 | AR133: 7.602739726 | AS133: 87 | AT133: 87 | AU133: 810 | AV133: 98.56574033 | AW133: 60 | AX133: 0 | AY133: 38.56574033 | AZ133: 0 | BA133: 0 | BB133: 0 | BC133: 0 | BD133: 0 | BE133: 0 | BF133: 0 | BG133: 7.602739726 | BH133: 0
H134: 0 | I134: 0 | J134: 0 | K134: 0 | L134: 0 | M134: 0 | N134: 0 | O134: 0 | P134: 0 | Q134: 0 | R134: 0 | S134: 0 | T134: 0 | U134: 0 | X134: 0 | Y134: 0 | Z134: =MAX(MIN(Z$40*IF($Z$37="Solar",$AM134,1),$AO134-SUM($Y134:Y134)),0) -> 60 | AA134: =MAX(MIN(AA$40,$AO134-SUM($Y134:Z134)),0) -> 0 | AB134: =MAX(MIN(AB$40,$AO134-SUM($Y134:AA134)),0) -> 15.06703621 | AC134: =MAX(MIN(AC$40,$AO134-SUM($Y134:AB134)),0) -> 0 | AD134: =MAX(MIN(AD$40,$AO134-SUM($Y134:AC134)),0) -> 0 | AE134: =MAX(MIN(AE$40,$AO134-SUM($Y134:AD134)),0) -> 0 | AF134: =MAX(MIN(AF$40,$AO134-SUM($Y134:AE134)),0) -> 0 | AG134: =MAX(MIN(AG$40,$AO134-SUM($Y134:AF134)),0) -> 0 | AH134: =MAX(MIN(AH$40,$AO134-SUM($Y134:AG134)),0) -> 0 | AI134: =MAX(MIN(AI$40,$AO134-SUM($Y134:AH134)),0) -> 0 | AJ134: 75.06703621 | AK134: 0 | AL134: =INDEX(Demand!$C100:$H100,,$AM$13) -> 0.0002260645345 | AM134: =INDEX(Demand!$K100:$P100,,$AM$13) -> 0 | AN134: 7.240704501 | AO134: 75.06703621 | AP134: 67.82633171 | AQ134: 60.22359199 | AR134: 7.602739726 | AS134: 88 | AT134: 88 | AU134: 723 | AV134: 98.48496624 | AW134: 60 | AX134: 0 | AY134: 38.48496624 | AZ134: 0 | BA134: 0 | BB134: 0 | BC134: 0 | BD134: 0 | BE134: 0 | BF134: 0 | BG134: 7.602739726 | BH134: 0
D135: 10 | H135: 0 | I135: 0 | J135: 0 | K135: 0 | L135: 0 | M135: 0 | N135: 0 | O135: 0 | P135: 0 | Q135: 0 | R135: 0 | S135: 0 | T135: 0 | U135: 0 | X135: 0 | Y135: 0 | Z135: =MAX(MIN(Z$40*IF($Z$37="Solar",$AM135,1),$AO135-SUM($Y135:Y135)),0) -> 60 | AA135: =MAX(MIN(AA$40,$AO135-SUM($Y135:Z135)),0) -> 0 | AB135: =MAX(MIN(AB$40,$AO135-SUM($Y135:AA135)),0) -> 15.07871893 | AC135: =MAX(MIN(AC$40,$AO135-SUM($Y135:AB135)),0) -> 0 | AD135: =MAX(MIN(AD$40,$AO135-SUM($Y135:AC135)),0) -> 0 | AE135: =MAX(MIN(AE$40,$AO135-SUM($Y135:AD135)),0) -> 0 | AF135: =MAX(MIN(AF$40,$AO135-SUM($Y135:AE135)),0) -> 0 | AG135: =MAX(MIN(AG$40,$AO135-SUM($Y135:AF135)),0) -> 0 | AH135: =MAX(MIN(AH$40,$AO135-SUM($Y135:AG135)),0) -> 0 | AI135: =MAX(MIN(AI$40,$AO135-SUM($Y135:AH135)),0) -> 0 | AJ135: 75.07871893 | AK135: 0 | AL135: =INDEX(Demand!$C101:$H101,,$AM$13) -> 0.0002261083885 | AM135: =INDEX(Demand!$K101:$P101,,$AM$13) -> 0 | AN135: 7.240704501 | AO135: 75.07871893 | AP135: 67.83801443 | AQ135: 60.2352747 | AR135: 7.602739726 | AS135: 89 | AT135: 89 | AU135: 811 | AV135: 98.43747811 | AW135: 60 | AX135: 0 | AY135: 38.43747811 | AZ135: 0 | BA135: 0 | BB135: 0 | BC135: 0 | BD135: 0 | BE135: 0 | BF135: 0 | BG135: 7.602739726 | BH135: 0
H136: 0 | I136: 0 | J136: 0 | K136: 0 | L136: 0 | M136: 0 | N136: 0 | O136: 0 | P136: 0 | Q136: 0 | R136: 0 | S136: 0 | T136: 0 | U136: 0 | X136: 0 | Y136: 0 | Z136: =MAX(MIN(Z$40*IF($Z$37="Solar",$AM136,1),$AO136-SUM($Y136:Y136)),0) -> 60 | AA136: =MAX(MIN(AA$40,$AO136-SUM($Y136:Z136)),0) -> 0 | AB136: =MAX(MIN(AB$40,$AO136-SUM($Y136:AA136)),0) -> 15.09630378 | AC136: =MAX(MIN(AC$40,$AO136-SUM($Y136:AB136)),0) -> 0 | AD136: =MAX(MIN(AD$40,$AO136-SUM($Y136:AC136)),0) -> 0 | AE136: =MAX(MIN(AE$40,$AO136-SUM($Y136:AD136)),0) -> 0 | AF136: =MAX(MIN(AF$40,$AO136-SUM($Y136:AE136)),0) -> 0 | AG136: =MAX(MIN(AG$40,$AO136-SUM($Y136:AF136)),0) -> 0 | AH136: =MAX(MIN(AH$40,$AO136-SUM($Y136:AG136)),0) -> 0 | AI136: =MAX(MIN(AI$40,$AO136-SUM($Y136:AH136)),0) -> 0 | AJ136: 75.09630378 | AK136: 0 | AL136: =INDEX(Demand!$C102:$H102,,$AM$13) -> 0.0002261743977 | AM136: =INDEX(Demand!$K102:$P102,,$AM$13) -> 0 | AN136: 7.240704501 | AO136: 75.09630378 | AP136: 67.85559928 | AQ136: 60.25285956 | AR136: 7.602739726 | AS136: 90 | AT136: 90 | AU136: 722 | AV136: 98.43404079 | AW136: 60 | AX136: 0 | AY136: 38.43404079 | AZ136: 0 | BA136: 0 | BB136: 0 | BC136: 0 | BD136: 0 | BE136: 0 | BF136: 0 | BG136: 7.602739726 | BH136: 0
H137: 0 | I137: 0 | J137: 0 | K137: 0 | L137: 0 | M137: 0 | N137: 0 | O137: 0 | P137: 0 | Q137: 0 | R137: 0 | S137: 0 | T137: 0 | U137: 0 | X137: 0 | Y137: 0 | Z137: =MAX(MIN(Z$40*IF($Z$37="Solar",$AM137,1),$AO137-SUM($Y137:Y137)),0) -> 60 | AA137: =MAX(MIN(AA$40,$AO137-SUM($Y137:Z137)),0) -> 0 | AB137: =MAX(MIN(AB$40,$AO137-SUM($Y137:AA137)),0) -> 15.12783218 | AC137: =MAX(MIN(AC$40,$AO137-SUM($Y137:AB137)),0) -> 0 | AD137: =MAX(MIN(AD$40,$AO137-SUM($Y137:AC137)),0) -> 0 | AE137: =MAX(MIN(AE$40,$AO137-SUM($Y137:AD137)),0) -> 0 | AF137: =MAX(MIN(AF$40,$AO137-SUM($Y137:AE137)),0) -> 0 | AG137: =MAX(MIN(AG$40,$AO137-SUM($Y137:AF137)),0) -> 0 | AH137: =MAX(MIN(AH$40,$AO137-SUM($Y137:AG137)),0) -> 0 | AI137: =MAX(MIN(AI$40,$AO137-SUM($Y137:AH137)),0) -> 0 | AJ137: 75.12783218 | AK137: 0 | AL137: =INDEX(Demand!$C103:$H103,,$AM$13) -> 0.0002262927476 | AM137: =INDEX(Demand!$K103:$P103,,$AM$13) -> 0 | AN137: 7.240704501 | AO137: 75.12783218 | AP137: 67.88712768 | AQ137: 60.28438796 | AR137: 7.602739726 | AS137: 91 | AT137: 91 | AU137: 812 | AV137: 98.41781606 | AW137: 60 | AX137: 0 | AY137: 38.41781606 | AZ137: 0 | BA137: 0 | BB137: 0 | BC137: 0 | BD137: 0 | BE137: 0 | BF137: 0 | BG137: 7.602739726 | BH137: 0
E138: 0 | H138: 0 | I138: 0 | J138: 0 | K138: 0 | L138: 0 | M138: 0 | N138: 0 | O138: 0 | P138: 0 | Q138: 0 | R138: 0 | S138: 0 | T138: 0 | U138: 0 | X138: 0 | Y138: 0 | Z138: =MAX(MIN(Z$40*IF($Z$37="Solar",$AM138,1),$AO138-SUM($Y138:Y138)),0) -> 60 | AA138: =MAX(MIN(AA$40,$AO138-SUM($Y138:Z138)),0) -> 0 | AB138: =MAX(MIN(AB$40,$AO138-SUM($Y138:AA138)),0) -> 15.13234219 | AC138: =MAX(MIN(AC$40,$AO138-SUM($Y138:AB138)),0) -> 0 | AD138: =MAX(MIN(AD$40,$AO138-SUM($Y138:AC138)),0) -> 0 | AE138: =MAX(MIN(AE$40,$AO138-SUM($Y138:AD138)),0) -> 0 | AF138: =MAX(MIN(AF$40,$AO138-SUM($Y138:AE138)),0) -> 0 | AG138: =MAX(MIN(AG$40,$AO138-SUM($Y138:AF138)),0) -> 0 | AH138: =MAX(MIN(AH$40,$AO138-SUM($Y138:AG138)),0) -> 0 | AI138: =MAX(MIN(AI$40,$AO138-SUM($Y138:AH138)),0) -> 0 | AJ138: 75.13234219 | AK138: 0 | AL138: =INDEX(Demand!$C104:$H104,,$AM$13) -> 0.0002263096771 | AM138: =INDEX(Demand!$K104:$P104,,$AM$13) -> 0 | AN138: 7.240704501 | AO138: 75.13234219 | AP138: 67.89163769 | AQ138: 60.28889797 | AR138: 7.602739726 | AS138: 92 | AT138: 92 | AU138: 721 | AV138: 98.37948549 | AW138: 60 | AX138: 0 | AY138: 38.37948549 | AZ138: 0 | BA138: 0 | BB138: 0 | BC138: 0 | BD138: 0 | BE138: 0 | BF138: 0 | BG138: 7.602739726 | BH138: 0
E139: 0 | H139: 0 | I139: 0 | J139: 0 | K139: 0 | L139: 0 | M139: 0 | N139: 0 | O139: 0 | P139: 0 | Q139: 0 | R139: 0 | S139: 0 | T139: 0 | U139: 0 | X139: 0 | Y139: 0 | Z139: =MAX(MIN(Z$40*IF($Z$37="Solar",$AM139,1),$AO139-SUM($Y139:Y139)),0) -> 60 | AA139: =MAX(MIN(AA$40,$AO139-SUM($Y139:Z139)),0) -> 0 | AB139: =MAX(MIN(AB$40,$AO139-SUM($Y139:AA139)),0) -> 15.14142935 | AC139: =MAX(MIN(AC$40,$AO139-SUM($Y139:AB139)),0) -> 0 | AD139: =MAX(MIN(AD$40,$AO139-SUM($Y139:AC139)),0) -> 0 | AE139: =MAX(MIN(AE$40,$AO139-SUM($Y139:AD139)),0) -> 0 | AF139: =MAX(MIN(AF$40,$AO139-SUM($Y139:AE139)),0) -> 0 | AG139: =MAX(MIN(AG$40,$AO139-SUM($Y139:AF139)),0) -> 0 | AH139: =MAX(MIN(AH$40,$AO139-SUM($Y139:AG139)),0) -> 0 | AI139: =MAX(MIN(AI$40,$AO139-SUM($Y139:AH139)),0) -> 0 | AJ139: 75.14142935 | AK139: 0 | AL139: =INDEX(Demand!$C105:$H105,,$AM$13) -> 0.000226343788 | AM139: =INDEX(Demand!$K105:$P105,,$AM$13) -> 0 | AN139: 7.240704501 | AO139: 75.14142935 | AP139: 67.90072485 | AQ139: 60.29798512 | AR139: 7.602739726 | AS139: 93 | AT139: 93 | AU139: 813 | AV139: 98.35755143 | AW139: 60 | AX139: 0 | AY139: 38.35755143 | AZ139: 0 | BA139: 0 | BB139: 0 | BC139: 0 | BD139: 0 | BE139: 0 | BF139: 0 | BG139: 7.602739726 | BH139: 0
E140: x | H140: 0 | I140: 0 | J140: 0 | K140: 0 | L140: 0 | M140: 0 | N140: 0 | O140: 0 | P140: 0 | Q140: 0 | R140: 0 | S140: 0 | T140: 0 | U140: 0 | X140: 0 | Y140: 0 | Z140: =MAX(MIN(Z$40*IF($Z$37="Solar",$AM140,1),$AO140-SUM($Y140:Y140)),0) -> 60 | AA140: =MAX(MIN(AA$40,$AO140-SUM($Y140:Z140)),0) -> 0 | AB140: =MAX(MIN(AB$40,$AO140-SUM($Y140:AA140)),0) -> 15.17300599 | AC140: =MAX(MIN(AC$40,$AO140-SUM($Y140:AB140)),0) -> 0 | AD140: =MAX(MIN(AD$40,$AO140-SUM($Y140:AC140)),0) -> 0 | AE140: =MAX(MIN(AE$40,$AO140-SUM($Y140:AD140)),0) -> 0 | AF140: =MAX(MIN(AF$40,$AO140-SUM($Y140:AE140)),0) -> 0 | AG140: =MAX(MIN(AG$40,$AO140-SUM($Y140:AF140)),0) -> 0 | AH140: =MAX(MIN(AH$40,$AO140-SUM($Y140:AG140)),0) -> 0 | AI140: =MAX(MIN(AI$40,$AO140-SUM($Y140:AH140)),0) -> 0 | AJ140: 75.17300599 | AK140: 0 | AL140: =INDEX(Demand!$C106:$H106,,$AM$13) -> 0.0002264623189 | AM140: =INDEX(Demand!$K106:$P106,,$AM$13) -> 0 | AN140: 7.240704501 | AO140: 75.17300599 | AP140: 67.93230148 | AQ140: 60.32956176 | AR140: 7.602739726 | AS140: 94 | AT140: 94 | AU140: 720 | AV140: 98.28525113 | AW140: 60 | AX140: 0 | AY140: 38.28525113 | AZ140: 0 | BA140: 0 | BB140: 0 | BC140: 0 | BD140: 0 | BE140: 0 | BF140: 0 | BG140: 7.602739726 | BH140: 0
H141: 0 | I141: 0 | J141: 0 | K141: 0 | L141: 0 | M141: 0 | N141: 0 | O141: 0 | P141: 0 | Q141: 0 | R141: 0 | S141: 0 | T141: 0 | U141: 0 | X141: 0 | Y141: 0 | Z141: =MAX(MIN(Z$40*IF($Z$37="Solar",$AM141,1),$AO141-SUM($Y141:Y141)),0) -> 60 | AA141: =MAX(MIN(AA$40,$AO141-SUM($Y141:Z141)),0) -> 0 | AB141: =MAX(MIN(AB$40,$AO141-SUM($Y141:AA141)),0) -> 15.20092135 | AC141: =MAX(MIN(AC$40,$AO141-SUM($Y141:AB141)),0) -> 0 | AD141: =MAX(MIN(AD$40,$AO141-SUM($Y141:AC141)),0) -> 0 | AE141: =MAX(MIN(AE$40,$AO141-SUM($Y141:AD141)),0) -> 0 | AF141: =MAX(MIN(AF$40,$AO141-SUM($Y141:AE141)),0) -> 0 | AG141: =MAX(MIN(AG$40,$AO141-SUM($Y141:AF141)),0) -> 0 | AH141: =MAX(MIN(AH$40,$AO141-SUM($Y141:AG141)),0) -> 0 | AI141: =MAX(MIN(AI$40,$AO141-SUM($Y141:AH141)),0) -> 0 | AJ141: 75.20092135 | AK141: 0 | AL141: =INDEX(Demand!$C107:$H107,,$AM$13) -> 0.0002265671063 | AM141: =INDEX(Demand!$K107:$P107,,$AM$13) -> 0 | AN141: 7.240704501 | AO141: 75.20092135 | AP141: 67.96021685 | AQ141: 60.35747712 | AR141: 7.602739726 | AS141: 95 | AT141: 95 | AU141: 814 | AV141: 98.19258768 | AW141: 60 | AX141: 0 | AY141: 38.19258768 | AZ141: 0 | BA141: 0 | BB141: 0 | BC141: 0 | BD141: 0 | BE141: 0 | BF141: 0 | BG141: 7.602739726 | BH141: 0
H142: 0 | I142: 0 | J142: 0 | K142: 0 | L142: 0 | M142: 0 | N142: 0 | O142: 0 | P142: 0 | Q142: 0 | R142: 0 | S142: 0 | T142: 0 | U142: 0 | X142: 0 | Y142: 0 | Z142: =MAX(MIN(Z$40*IF($Z$37="Solar",$AM142,1),$AO142-SUM($Y142:Y142)),0) -> 60 | AA142: =MAX(MIN(AA$40,$AO142-SUM($Y142:Z142)),0) -> 0 | AB142: =MAX(MIN(AB$40,$AO142-SUM($Y142:AA142)),0) -> 15.20863744 | AC142: =MAX(MIN(AC$40,$AO142-SUM($Y142:AB142)),0) -> 0 | AD142: =MAX(MIN(AD$40,$AO142-SUM($Y142:AC142)),0) -> 0 | AE142: =MAX(MIN(AE$40,$AO142-SUM($Y142:AD142)),0) -> 0 | AF142: =MAX(MIN(AF$40,$AO142-SUM($Y142:AE142)),0) -> 0 | AG142: =MAX(MIN(AG$40,$AO142-SUM($Y142:AF142)),0) -> 0 | AH142: =MAX(MIN(AH$40,$AO142-SUM($Y142:AG142)),0) -> 0 | AI142: =MAX(MIN(AI$40,$AO142-SUM($Y142:AH142)),0) -> 0 | AJ142: 75.20863744 | AK142: 0 | AL142: =INDEX(Demand!$C108:$H108,,$AM$13) -> 0.0002265960706 | AM142: =INDEX(Demand!$K108:$P108,,$AM$13) -> 0 | AN142: 7.240704501 | AO142: 75.20863744 | AP142: 67.96793294 | AQ142: 60.36519321 | AR142: 7.602739726 | AS142: 96 | AT142: 96 | AU142: 719 | AV142: 98.18067477 | AW142: 60 | AX142: 0 | AY142: 38.18067477 | AZ142: 0 | BA142: 0 | BB142: 0 | BC142: 0 | BD142: 0 | BE142: 0 | BF142: 0 | BG142: 7.602739726 | BH142: 0
H143: 0 | I143: 0 | J143: 0 | K143: 0 | L143: 0 | M143: 0 | N143: 0 | O143: 0 | P143: 0 | Q143: 0 | R143: 0 | S143: 0 | T143: 0 | U143: 0 | X143: 0 | Y143: 0 | Z143: =MAX(MIN(Z$40*IF($Z$37="Solar",$AM143,1),$AO143-SUM($Y143:Y143)),0) -> 60 | AA143: =MAX(MIN(AA$40,$AO143-SUM($Y143:Z143)),0) -> 0 | AB143: =MAX(MIN(AB$40,$AO143-SUM($Y143:AA143)),0) -> 15.25150178 | AC143: =MAX(MIN(AC$40,$AO143-SUM($Y143:AB143)),0) -> 0 | AD143: =MAX(MIN(AD$40,$AO143-SUM($Y143:AC143)),0) -> 0 | AE143: =MAX(MIN(AE$40,$AO143-SUM($Y143:AD143)),0) -> 0 | AF143: =MAX(MIN(AF$40,$AO143-SUM($Y143:AE143)),0) -> 0 | AG143: =MAX(MIN(AG$40,$AO143-SUM($Y143:AF143)),0) -> 0 | AH143: =MAX(MIN(AH$40,$AO143-SUM($Y143:AG143)),0) -> 0 | AI143: =MAX(MIN(AI$40,$AO143-SUM($Y143:AH143)),0) -> 0 | AJ143: 75.25150178 | AK143: 0 | AL143: =INDEX(Demand!$C109:$H109,,$AM$13) -> 0.0002267569728 | AM143: =INDEX(Demand!$K109:$P109,,$AM$13) -> 0 | AN143: 7.240704501 | AO143: 75.25150178 | AP143: 68.01079728 | AQ143: 60.40805755 | AR143: 7.602739726 | AS143: 97 | AT143: 97 | AU143: 815 | AV143: 98.09793972 | AW143: 60 | AX143: 0 | AY143: 38.09793972 | AZ143: 0 | BA143: 0 | BB143: 0 | BC143: 0 | BD143: 0 | BE143: 0 | BF143: 0 | BG143: 7.602739726 | BH143: 0
H144: 0 | I144: 0 | J144: 0 | K144: 0 | L144: 0 | M144: 0 | N144: 0 | O144: 0 | P144: 0 | Q144: 0 | R144: 0 | S144: 0 | T144: 0 | U144: 0 | X144: 0 | Y144: 0 | Z144: =MAX(MIN(Z$40*IF($Z$37="Solar",$AM144,1),$AO144-SUM($Y144:Y144)),0) -> 60 | AA144: =MAX(MIN(AA$40,$AO144-SUM($Y144:Z144)),0) -> 0 | AB144: =MAX(MIN(AB$40,$AO144-SUM($Y144:AA144)),0) -> 15.26843376 | AC144: =MAX(MIN(AC$40,$AO144-SUM($Y144:AB144)),0) -> 0 | AD144: =MAX(MIN(AD$40,$AO144-SUM($Y144:AC144)),0) -> 0 | AE144: =MAX(MIN(AE$40,$AO144-SUM($Y144:AD144)),0) -> 0 | AF144: =MAX(MIN(AF$40,$AO144-SUM($Y144:AE144)),0) -> 0 | AG144: =MAX(MIN(AG$40,$AO144-SUM($Y144:AF144)),0) -> 0 | AH144: =MAX(MIN(AH$40,$AO144-SUM($Y144:AG144)),0) -> 0 | AI144: =MAX(MIN(AI$40,$AO144-SUM($Y144:AH144)),0) -> 0 | AJ144: 75.26843376 | AK144: 0 | AL144: =INDEX(Demand!$C110:$H110,,$AM$13) -> 0.0002268205313 | AM144: =INDEX(Demand!$K110:$P110,,$AM$13) -> 0 | AN144: 7.240704501 | AO144: 75.26843376 | AP144: 68.02772926 | AQ144: 60.42498953 | AR144: 7.602739726 | AS144: 98 | AT144: 98 | AU144: 718 | AV144: 98.09449912 | AW144: 60 | AX144: 0 | AY144: 38.09449912 | AZ144: 0 | BA144: 0 | BB144: 0 | BC144: 0 | BD144: 0 | BE144: 0 | BF144: 0 | BG144: 7.602739726 | BH144: 0
D145: 11 | H145: 0 | I145: 0 | J145: 0 | K145: 0 | L145: 0 | M145: 0 | N145: 0 | O145: 0 | P145: 0 | Q145: 0 | R145: 0 | S145: 0 | T145: 0 | U145: 0 | X145: 0 | Y145: 0 | Z145: =MAX(MIN(Z$40*IF($Z$37="Solar",$AM145,1),$AO145-SUM($Y145:Y145)),0) -> 60 | AA145: =MAX(MIN(AA$40,$AO145-SUM($Y145:Z145)),0) -> 0 | AB145: =MAX(MIN(AB$40,$AO145-SUM($Y145:AA145)),0) -> 15.28225037 | AC145: =MAX(MIN(AC$40,$AO145-SUM($Y145:AB145)),0) -> 0 | AD145: =MAX(MIN(AD$40,$AO145-SUM($Y145:AC145)),0) -> 0 | AE145: =MAX(MIN(AE$40,$AO145-SUM($Y145:AD145)),0) -> 0 | AF145: =MAX(MIN(AF$40,$AO145-SUM($Y145:AE145)),0) -> 0 | AG145: =MAX(MIN(AG$40,$AO145-SUM($Y145:AF145)),0) -> 0 | AH145: =MAX(MIN(AH$40,$AO145-SUM($Y145:AG145)),0) -> 0 | AI145: =MAX(MIN(AI$40,$AO145-SUM($Y145:AH145)),0) -> 0 | AJ145: 75.28225037 | AK145: 0 | AL145: =INDEX(Demand!$C111:$H111,,$AM$13) -> 0.0002268723954 | AM145: =INDEX(Demand!$K111:$P111,,$AM$13) -> 0 | AN145: 7.240704501 | AO145: 75.28225037 | AP145: 68.04154587 | AQ145: 60.43880614 | AR145: 7.602739726 | AS145: 99 | AT145: 99 | AU145: 816 | AV145: 98.05752728 | AW145: 60 | AX145: 0 | AY145: 38.05752728 | AZ145: 0 | BA145: 0 | BB145: 0 | BC145: 0 | BD145: 0 | BE145: 0 | BF145: 0 | BG145: 7.602739726 | BH145: 0
H146: 0 | I146: 0 | J146: 0 | K146: 0 | L146: 0 | M146: 0 | N146: 0 | O146: 0 | P146: 0 | Q146: 0 | R146: 0 | S146: 0 | T146: 0 | U146: 0 | X146: 0 | Y146: 0 | Z146: =MAX(MIN(Z$40*IF($Z$37="Solar",$AM146,1),$AO146-SUM($Y146:Y146)),0) -> 60 | AA146: =MAX(MIN(AA$40,$AO146-SUM($Y146:Z146)),0) -> 0 | AB146: =MAX(MIN(AB$40,$AO146-SUM($Y146:AA146)),0) -> 15.31588633 | AC146: =MAX(MIN(AC$40,$AO146-SUM($Y146:AB146)),0) -> 0 | AD146: =MAX(MIN(AD$40,$AO146-SUM($Y146:AC146)),0) -> 0 | AE146: =MAX(MIN(AE$40,$AO146-SUM($Y146:AD146)),0) -> 0 | AF146: =MAX(MIN(AF$40,$AO146-SUM($Y146:AE146)),0) -> 0 | AG146: =MAX(MIN(AG$40,$AO146-SUM($Y146:AF146)),0) -> 0 | AH146: =MAX(MIN(AH$40,$AO146-SUM($Y146:AG146)),0) -> 0 | AI146: =MAX(MIN(AI$40,$AO146-SUM($Y146:AH146)),0) -> 0 | AJ146: 75.31588633 | AK146: 0 | AL146: =INDEX(Demand!$C112:$H112,,$AM$13) -> 0.0002269986565 | AM146: =INDEX(Demand!$K112:$P112,,$AM$13) -> 0 | AN146: 7.240704501 | AO146: 75.31588633 | AP146: 68.07518183 | AQ146: 60.4724421 | AR146: 7.602739726 | AS146: 100 | AT146: 100 | AU146: 717 | AV146: 97.96147883 | AW146: 60 | AX146: 0 | AY146: 37.96147883 | AZ146: 0 | BA146: 0 | BB146: 0 | BC146: 0 | BD146: 0 | BE146: 0 | BF146: 0 | BG146: 7.602739726 | BH146: 0
H147: 0 | I147: 0 | J147: 0 | K147: 0 | L147: 0 | M147: 0 | N147: 0 | O147: 0 | P147: 0 | Q147: 0 | R147: 0 | S147: 0 | T147: 0 | U147: 0 | X147: 0 | Y147: 0 | Z147: =MAX(MIN(Z$40*IF($Z$37="Solar",$AM147,1),$AO147-SUM($Y147:Y147)),0) -> 60 | AA147: =MAX(MIN(AA$40,$AO147-SUM($Y147:Z147)),0) -> 0 | AB147: =MAX(MIN(AB$40,$AO147-SUM($Y147:AA147)),0) -> 15.33080513 | AC147: =MAX(MIN(AC$40,$AO147-SUM($Y147:AB147)),0) -> 0 | AD147: =MAX(MIN(AD$40,$AO147-SUM($Y147:AC147)),0) -> 0 | AE147: =MAX(MIN(AE$40,$AO147-SUM($Y147:AD147)),0) -> 0 | AF147: =MAX(MIN(AF$40,$AO147-SUM($Y147:AE147)),0) -> 0 | AG147: =MAX(MIN(AG$40,$AO147-SUM($Y147:AF147)),0) -> 0 | AH147: =MAX(MIN(AH$40,$AO147-SUM($Y147:AG147)),0) -> 0 | AI147: =MAX(MIN(AI$40,$AO147-SUM($Y147:AH147)),0) -> 0 | AJ147: 75.33080513 | AK147: 0 | AL147: =INDEX(Demand!$C113:$H113,,$AM$13) -> 0.0002270546581 | AM147: =INDEX(Demand!$K113:$P113,,$AM$13) -> 0 | AN147: 7.240704501 | AO147: 75.33080513 | AP147: 68.09010063 | AQ147: 60.48736091 | AR147: 7.602739726 | AS147: 101 | AT147: 101 | AU147: 817 | AV147: 97.9126144 | AW147: 60 | AX147: 0 | AY147: 37.9126144 | AZ147: 0 | BA147: 0 | BB147: 0 | BC147: 0 | BD147: 0 | BE147: 0 | BF147: 0 | BG147: 7.602739726 | BH147: 0
E148: 0 | H148: 0 | I148: 0 | J148: 0 | K148: 0 | L148: 0 | M148: 0 | N148: 0 | O148: 0 | P148: 0 | Q148: 0 | R148: 0 | S148: 0 | T148: 0 | U148: 0 | X148: 0 | Y148: 0 | Z148: =MAX(MIN(Z$40*IF($Z$37="Solar",$AM148,1),$AO148-SUM($Y148:Y148)),0) -> 60 | AA148: =MAX(MIN(AA$40,$AO148-SUM($Y148:Z148)),0) -> 0 | AB148: =MAX(MIN(AB$40,$AO148-SUM($Y148:AA148)),0) -> 15.33876116 | AC148: =MAX(MIN(AC$40,$AO148-SUM($Y148:AB148)),0) -> 0 | AD148: =MAX(MIN(AD$40,$AO148-SUM($Y148:AC148)),0) -> 0 | AE148: =MAX(MIN(AE$40,$AO148-SUM($Y148:AD148)),0) -> 0 | AF148: =MAX(MIN(AF$40,$AO148-SUM($Y148:AE148)),0) -> 0 | AG148: =MAX(MIN(AG$40,$AO148-SUM($Y148:AF148)),0) -> 0 | AH148: =MAX(MIN(AH$40,$AO148-SUM($Y148:AG148)),0) -> 0 | AI148: =MAX(MIN(AI$40,$AO148-SUM($Y148:AH148)),0) -> 0 | AJ148: 75.33876116 | AK148: 0 | AL148: =INDEX(Demand!$C114:$H114,,$AM$13) -> 0.000227084523 | AM148: =INDEX(Demand!$K114:$P114,,$AM$13) -> 0 | AN148: 7.240704501 | AO148: 75.33876116 | AP148: 68.09805666 | AQ148: 60.49531693 | AR148: 7.602739726 | AS148: 102 | AT148: 102 | AU148: 716 | AV148: 97.86062406 | AW148: 60 | AX148: 0 | AY148: 37.86062406 | AZ148: 0 | BA148: 0 | BB148: 0 | BC148: 0 | BD148: 0 | BE148: 0 | BF148: 0 | BG148: 7.602739726 | BH148: 0
E149: 0 | H149: 0 | I149: 0 | J149: 0 | K149: 0 | L149: 0 | M149: 0 | N149: 0 | O149: 0 | P149: 0 | Q149: 0 | R149: 0 | S149: 0 | T149: 0 | U149: 0 | X149: 0 | Y149: 0 | Z149: =MAX(MIN(Z$40*IF($Z$37="Solar",$AM149,1),$AO149-SUM($Y149:Y149)),0) -> 60 | AA149: =MAX(MIN(AA$40,$AO149-SUM($Y149:Z149)),0) -> 0 | AB149: =MAX(MIN(AB$40,$AO149-SUM($Y149:AA149)),0) -> 15.35403403 | AC149: =MAX(MIN(AC$40,$AO149-SUM($Y149:AB149)),0) -> 0 | AD149: =MAX(MIN(AD$40,$AO149-SUM($Y149:AC149)),0) -> 0 | AE149: =MAX(MIN(AE$40,$AO149-SUM($Y149:AD149)),0) -> 0 | AF149: =MAX(MIN(AF$40,$AO149-SUM($Y149:AE149)),0) -> 0 | AG149: =MAX(MIN(AG$40,$AO149-SUM($Y149:AF149)),0) -> 0 | AH149: =MAX(MIN(AH$40,$AO149-SUM($Y149:AG149)),0) -> 0 | AI149: =MAX(MIN(AI$40,$AO149-SUM($Y149:AH149)),0) -> 0 | AJ149: 75.35403403 | AK149: 0 | AL149: =INDEX(Demand!$C115:$H115,,$AM$13) -> 0.0002271418536 | AM149: =INDEX(Demand!$K115:$P115,,$AM$13) -> 0 | AN149: 7.240704501 | AO149: 75.35403403 | AP149: 68.11332953 | AQ149: 60.5105898 | AR149: 7.602739726 | AS149: 103 | AT149: 103 | AU149: 818 | AV149: 97.73745187 | AW149: 60 | AX149: 0 | AY149: 37.73745187 | AZ149: 0 | BA149: 0 | BB149: 0 | BC149: 0 | BD149: 0 | BE149: 0 | BF149: 0 | BG149: 7.602739726 | BH149: 0
E150: x | H150: 0 | I150: 0 | J150: 0 | K150: 0 | L150: 0 | M150: 0 | N150: 0 | O150: 0 | P150: 0 | Q150: 0 | R150: 0 | S150: 0 | T150: 0 | U150: 0 | X150: 0 | Y150: 0 | Z150: =MAX(MIN(Z$40*IF($Z$37="Solar",$AM150,1),$AO150-SUM($Y150:Y150)),0) -> 60 | AA150: =MAX(MIN(AA$40,$AO150-SUM($Y150:Z150)),0) -> 0 | AB150: =MAX(MIN(AB$40,$AO150-SUM($Y150:AA150)),0) -> 15.4138572 | AC150: =MAX(MIN(AC$40,$AO150-SUM($Y150:AB150)),0) -> 0 | AD150: =MAX(MIN(AD$40,$AO150-SUM($Y150:AC150)),0) -> 0 | AE150: =MAX(MIN(AE$40,$AO150-SUM($Y150:AD150)),0) -> 0 | AF150: =MAX(MIN(AF$40,$AO150-SUM($Y150:AE150)),0) -> 0 | AG150: =MAX(MIN(AG$40,$AO150-SUM($Y150:AF150)),0) -> 0 | AH150: =MAX(MIN(AH$40,$AO150-SUM($Y150:AG150)),0) -> 0 | AI150: =MAX(MIN(AI$40,$AO150-SUM($Y150:AH150)),0) -> 0 | AJ150: 75.4138572 | AK150: 0 | AL150: =INDEX(Demand!$C116:$H116,,$AM$13) -> 0.0002273664151 | AM150: =INDEX(Demand!$K116:$P116,,$AM$13) -> 0.2185791117 | AN150: 7.240704501 | AO150: 75.4138572 | AP150: 68.1731527 | AQ150: 60.57041297 | AR150: 7.602739726 | AS150: 104 | AT150: 104 | AU150: 715 | AV150: 97.72978849 | AW150: 60 | AX150: 0 | AY150: 37.72978849 | AZ150: 0 | BA150: 0 | BB150: 0 | BC150: 0 | BD150: 0 | BE150: 0 | BF150: 0 | BG150: 7.602739726 | BH150: 0
H151: 0 | I151: 0 | J151: 0 | K151: 0 | L151: 0 | M151: 0 | N151: 0 | O151: 0 | P151: 0 | Q151: 0 | R151: 0 | S151: 0 | T151: 0 | U151: 0 | X151: 0 | Y151: 0 | Z151: =MAX(MIN(Z$40*IF($Z$37="Solar",$AM151,1),$AO151-SUM($Y151:Y151)),0) -> 60 | AA151: =MAX(MIN(AA$40,$AO151-SUM($Y151:Z151)),0) -> 0 | AB151: =MAX(MIN(AB$40,$AO151-SUM($Y151:AA151)),0) -> 15.42710194 | AC151: =MAX(MIN(AC$40,$AO151-SUM($Y151:AB151)),0) -> 0 | AD151: =MAX(MIN(AD$40,$AO151-SUM($Y151:AC151)),0) -> 0 | AE151: =MAX(MIN(AE$40,$AO151-SUM($Y151:AD151)),0) -> 0 | AF151: =MAX(MIN(AF$40,$AO151-SUM($Y151:AE151)),0) -> 0 | AG151: =MAX(MIN(AG$40,$AO151-SUM($Y151:AF151)),0) -> 0 | AH151: =MAX(MIN(AH$40,$AO151-SUM($Y151:AG151)),0) -> 0 | AI151: =MAX(MIN(AI$40,$AO151-SUM($Y151:AH151)),0) -> 0 | AJ151: 75.42710194 | AK151: 0 | AL151: =INDEX(Demand!$C117:$H117,,$AM$13) -> 0.0002274161326 | AM151: =INDEX(Demand!$K117:$P117,,$AM$13) -> 0.4371469484 | AN151: 7.240704501 | AO151: 75.42710194 | AP151: 68.18639744 | AQ151: 60.58365772 | AR151: 7.602739726 | AS151: 105 | AT151: 105 | AU151: 819 | AV151: 97.69398674 | AW151: 60 | AX151: 0 | AY151: 37.69398674 | AZ151: 0 | BA151: 0 | BB151: 0 | BC151: 0 | BD151: 0 | BE151: 0 | BF151: 0 | BG151: 7.602739726 | BH151: 0
H152: 0 | I152: 0 | J152: 0 | K152: 0 | L152: 0 | M152: 0 | N152: 0 | O152: 0 | P152: 0 | Q152: 0 | R152: 0 | S152: 0 | T152: 0 | U152: 0 | X152: 0 | Y152: 0 | Z152: =MAX(MIN(Z$40*IF($Z$37="Solar",$AM152,1),$AO152-SUM($Y152:Y152)),0) -> 60 | AA152: =MAX(MIN(AA$40,$AO152-SUM($Y152:Z152)),0) -> 0 | AB152: =MAX(MIN(AB$40,$AO152-SUM($Y152:AA152)),0) -> 15.49487822 | AC152: =MAX(MIN(AC$40,$AO152-SUM($Y152:AB152)),0) -> 0 | AD152: =MAX(MIN(AD$40,$AO152-SUM($Y152:AC152)),0) -> 0 | AE152: =MAX(MIN(AE$40,$AO152-SUM($Y152:AD152)),0) -> 0 | AF152: =MAX(MIN(AF$40,$AO152-SUM($Y152:AE152)),0) -> 0 | AG152: =MAX(MIN(AG$40,$AO152-SUM($Y152:AF152)),0) -> 0 | AH152: =MAX(MIN(AH$40,$AO152-SUM($Y152:AG152)),0) -> 0 | AI152: =MAX(MIN(AI$40,$AO152-SUM($Y152:AH152)),0) -> 0 | AJ152: 75.49487822 | AK152: 0 | AL152: =INDEX(Demand!$C118:$H118,,$AM$13) -> 0.000227670548 | AM152: =INDEX(Demand!$K118:$P118,,$AM$13) -> 0.4262777508 | AN152: 7.240704501 | AO152: 75.49487822 | AP152: 68.25417372 | AQ152: 60.651434 | AR152: 7.602739726 | AS152: 106 | AT152: 106 | AU152: 714 | AV152: 97.61966642 | AW152: 60 | AX152: 0 | AY152: 37.61966642 | AZ152: 0 | BA152: 0 | BB152: 0 | BC152: 0 | BD152: 0 | BE152: 0 | BF152: 0 | BG152: 7.602739726 | BH152: 0
H153: 0 | I153: 0 | J153: 0 | K153: 0 | L153: 0 | M153: 0 | N153: 0 | O153: 0 | P153: 0 | Q153: 0 | R153: 0 | S153: 0 | T153: 0 | U153: 0 | X153: 0 | Y153: 0 | Z153: =MAX(MIN(Z$40*IF($Z$37="Solar",$AM153,1),$AO153-SUM($Y153:Y153)),0) -> 60 | AA153: =MAX(MIN(AA$40,$AO153-SUM($Y153:Z153)),0) -> 0 | AB153: =MAX(MIN(AB$40,$AO153-SUM($Y153:AA153)),0) -> 15.50803585 | AC153: =MAX(MIN(AC$40,$AO153-SUM($Y153:AB153)),0) -> 0 | AD153: =MAX(MIN(AD$40,$AO153-SUM($Y153:AC153)),0) -> 0 | AE153: =MAX(MIN(AE$40,$AO153-SUM($Y153:AD153)),0) -> 0 | AF153: =MAX(MIN(AF$40,$AO153-SUM($Y153:AE153)),0) -> 0 | AG153: =MAX(MIN(AG$40,$AO153-SUM($Y153:AF153)),0) -> 0 | AH153: =MAX(MIN(AH$40,$AO153-SUM($Y153:AG153)),0) -> 0 | AI153: =MAX(MIN(AI$40,$AO153-SUM($Y153:AH153)),0) -> 0 | AJ153: 75.50803585 | AK153: 0 | AL153: =INDEX(Demand!$C119:$H119,,$AM$13) -> 0.0002277199385 | AM153: =INDEX(Demand!$K119:$P119,,$AM$13) -> 0.5365595156 | AN153: 7.240704501 | AO153: 75.50803585 | AP153: 68.26733135 | AQ153: 60.66459162 | AR153: 7.602739726 | AS153: 107 | AT153: 107 | AU153: 820 | AV153: 97.61639775 | AW153: 60 | AX153: 0 | AY153: 37.61639775 | AZ153: 0 | BA153: 0 | BB153: 0 | BC153: 0 | BD153: 0 | BE153: 0 | BF153: 0 | BG153: 7.602739726 | BH153: 0
H154: 0 | I154: 0 | J154: 0 | K154: 0 | L154: 0 | M154: 0 | N154: 0 | O154: 0 | P154: 0 | Q154: 0 | R154: 0 | S154: 0 | T154: 0 | U154: 0 | X154: 0 | Y154: 0 | Z154: =MAX(MIN(Z$40*IF($Z$37="Solar",$AM154,1),$AO154-SUM($Y154:Y154)),0) -> 60 | AA154: =MAX(MIN(AA$40,$AO154-SUM($Y154:Z154)),0) -> 0 | AB154: =MAX(MIN(AB$40,$AO154-SUM($Y154:AA154)),0) -> 15.51555042 | AC154: =MAX(MIN(AC$40,$AO154-SUM($Y154:AB154)),0) -> 0 | AD154: =MAX(MIN(AD$40,$AO154-SUM($Y154:AC154)),0) -> 0 | AE154: =MAX(MIN(AE$40,$AO154-SUM($Y154:AD154)),0) -> 0 | AF154: =MAX(MIN(AF$40,$AO154-SUM($Y154:AE154)),0) -> 0 | AG154: =MAX(MIN(AG$40,$AO154-SUM($Y154:AF154)),0) -> 0 | AH154: =MAX(MIN(AH$40,$AO154-SUM($Y154:AG154)),0) -> 0 | AI154: =MAX(MIN(AI$40,$AO154-SUM($Y154:AH154)),0) -> 0 | AJ154: 75.51555042 | AK154: 0 | AL154: =INDEX(Demand!$C120:$H120,,$AM$13) -> 0.0002277481464 | AM154: =INDEX(Demand!$K120:$P120,,$AM$13) -> 0.4566754237 | AN154: 7.240704501 | AO154: 75.51555042 | AP154: 68.27484592 | AQ154: 60.67210619 | AR154: 7.602739726 | AS154: 108 | AT154: 108 | AU154: 713 | AV154: 97.59437086 | AW154: 60 | AX154: 0 | AY154: 37.59437086 | AZ154: 0 | BA154: 0 | BB154: 0 | BC154: 0 | BD154: 0 | BE154: 0 | BF154: 0 | BG154: 7.602739726 | BH154: 0
D155: 12 | H155: 0 | I155: 0 | J155: 0 | K155: 0 | L155: 0 | M155: 0 | N155: 0 | O155: 0 | P155: 0 | Q155: 0 | R155: 0 | S155: 0 | T155: 0 | U155: 0 | X155: 0 | Y155: 0 | Z155: =MAX(MIN(Z$40*IF($Z$37="Solar",$AM155,1),$AO155-SUM($Y155:Y155)),0) -> 60 | AA155: =MAX(MIN(AA$40,$AO155-SUM($Y155:Z155)),0) -> 0 | AB155: =MAX(MIN(AB$40,$AO155-SUM($Y155:AA155)),0) -> 15.52301785 | AC155: =MAX(MIN(AC$40,$AO155-SUM($Y155:AB155)),0) -> 0 | AD155: =MAX(MIN(AD$40,$AO155-SUM($Y155:AC155)),0) -> 0 | AE155: =MAX(MIN(AE$40,$AO155-SUM($Y155:AD155)),0) -> 0 | AF155: =MAX(MIN(AF$40,$AO155-SUM($Y155:AE155)),0) -> 0 | AG155: =MAX(MIN(AG$40,$AO155-SUM($Y155:AF155)),0) -> 0 | AH155: =MAX(MIN(AH$40,$AO155-SUM($Y155:AG155)),0) -> 0 | AI155: =MAX(MIN(AI$40,$AO155-SUM($Y155:AH155)),0) -> 0 | AJ155: 75.52301785 | AK155: 0 | AL155: =INDEX(Demand!$C121:$H121,,$AM$13) -> 0.0002277761773 | AM155: =INDEX(Demand!$K121:$P121,,$AM$13) -> 0.3040443788 | AN155: 7.240704501 | AO155: 75.52301785 | AP155: 68.28231335 | AQ155: 60.67957362 | AR155: 7.602739726 | AS155: 109 | AT155: 109 | AU155: 821 | AV155: 97.58808479 | AW155: 60 | AX155: 0 | AY155: 37.58808479 | AZ155: 0 | BA155: 0 | BB155: 0 | BC155: 0 | BD155: 0 | BE155: 0 | BF155: 0 | BG155: 7.602739726 | BH155: 0
H156: 0 | I156: 0 | J156: 0 | K156: 0 | L156: 0 | M156: 0 | N156: 0 | O156: 0 | P156: 0 | Q156: 0 | R156: 0 | S156: 0 | T156: 0 | U156: 0 | X156: 0 | Y156: 0 | Z156: =MAX(MIN(Z$40*IF($Z$37="Solar",$AM156,1),$AO156-SUM($Y156:Y156)),0) -> 60 | AA156: =MAX(MIN(AA$40,$AO156-SUM($Y156:Z156)),0) -> 0 | AB156: =MAX(MIN(AB$40,$AO156-SUM($Y156:AA156)),0) -> 15.59460128 | AC156: =MAX(MIN(AC$40,$AO156-SUM($Y156:AB156)),0) -> 0 | AD156: =MAX(MIN(AD$40,$AO156-SUM($Y156:AC156)),0) -> 0 | AE156: =MAX(MIN(AE$40,$AO156-SUM($Y156:AD156)),0) -> 0 | AF156: =MAX(MIN(AF$40,$AO156-SUM($Y156:AE156)),0) -> 0 | AG156: =MAX(MIN(AG$40,$AO156-SUM($Y156:AF156)),0) -> 0 | AH156: =MAX(MIN(AH$40,$AO156-SUM($Y156:AG156)),0) -> 0 | AI156: =MAX(MIN(AI$40,$AO156-SUM($Y156:AH156)),0) -> 0 | AJ156: 75.59460128 | AK156: 0 | AL156: =INDEX(Demand!$C122:$H122,,$AM$13) -> 0.0002280448838 | AM156: =INDEX(Demand!$K122:$P122,,$AM$13) -> 0.131027951 | AN156: 7.240704501 | AO156: 75.59460128 | AP156: 68.35389678 | AQ156: 60.75115705 | AR156: 7.602739726 | AS156: 110 | AT156: 110 | AU156: 712 | AV156: 97.53380494 | AW156: 60 | AX156: 0 | AY156: 37.53380494 | AZ156: 0 | BA156: 0 | BB156: 0 | BC156: 0 | BD156: 0 | BE156: 0 | BF156: 0 | BG156: 7.602739726 | BH156: 0
H157: 0 | I157: 0 | J157: 0 | K157: 0 | L157: 0 | M157: 0 | N157: 0 | O157: 0 | P157: 0 | Q157: 0 | R157: 0 | S157: 0 | T157: 0 | U157: 0 | X157: 0 | Y157: 0 | Z157: =MAX(MIN(Z$40*IF($Z$37="Solar",$AM157,1),$AO157-SUM($Y157:Y157)),0) -> 60 | AA157: =MAX(MIN(AA$40,$AO157-SUM($Y157:Z157)),0) -> 0 | AB157: =MAX(MIN(AB$40,$AO157-SUM($Y157:AA157)),0) -> 15.61979708 | AC157: =MAX(MIN(AC$40,$AO157-SUM($Y157:AB157)),0) -> 0 | AD157: =MAX(MIN(AD$40,$AO157-SUM($Y157:AC157)),0) -> 0 | AE157: =MAX(MIN(AE$40,$AO157-SUM($Y157:AD157)),0) -> 0 | AF157: =MAX(MIN(AF$40,$AO157-SUM($Y157:AE157)),0) -> 0 | AG157: =MAX(MIN(AG$40,$AO157-SUM($Y157:AF157)),0) -> 0 | AH157: =MAX(MIN(AH$40,$AO157-SUM($Y157:AG157)),0) -> 0 | AI157: =MAX(MIN(AI$40,$AO157-SUM($Y157:AH157)),0) -> 0 | AJ157: 75.61979708 | AK157: 0 | AL157: =INDEX(Demand!$C123:$H123,,$AM$13) -> 0.0002281394627 | AM157: =INDEX(Demand!$K123:$P123,,$AM$13) -> 0 | AN157: 7.240704501 | AO157: 75.61979708 | AP157: 68.37909258 | AQ157: 60.77635286 | AR157: 7.602739726 | AS157: 111 | AT157: 111 | AU157: 822 | AV157: 97.49596308 | AW157: 60 | AX157: 0 | AY157: 37.49596308 | AZ157: 0 | BA157: 0 | BB157: 0 | BC157: 0 | BD157: 0 | BE157: 0 | BF157: 0 | BG157: 7.602739726 | BH157: 0
E158: 0 | H158: 0 | I158: 0 | J158: 0 | K158: 0 | L158: 0 | M158: 0 | N158: 0 | O158: 0 | P158: 0 | Q158: 0 | R158: 0 | S158: 0 | T158: 0 | U158: 0 | X158: 0 | Y158: 0 | Z158: =MAX(MIN(Z$40*IF($Z$37="Solar",$AM158,1),$AO158-SUM($Y158:Y158)),0) -> 60 | AA158: =MAX(MIN(AA$40,$AO158-SUM($Y158:Z158)),0) -> 0 | AB158: =MAX(MIN(AB$40,$AO158-SUM($Y158:AA158)),0) -> 15.64356061 | AC158: =MAX(MIN(AC$40,$AO158-SUM($Y158:AB158)),0) -> 0 | AD158: =MAX(MIN(AD$40,$AO158-SUM($Y158:AC158)),0) -> 0 | AE158: =MAX(MIN(AE$40,$AO158-SUM($Y158:AD158)),0) -> 0 | AF158: =MAX(MIN(AF$40,$AO158-SUM($Y158:AE158)),0) -> 0 | AG158: =MAX(MIN(AG$40,$AO158-SUM($Y158:AF158)),0) -> 0 | AH158: =MAX(MIN(AH$40,$AO158-SUM($Y158:AG158)),0) -> 0 | AI158: =MAX(MIN(AI$40,$AO158-SUM($Y158:AH158)),0) -> 0 | AJ158: 75.64356061 | AK158: 0 | AL158: =INDEX(Demand!$C124:$H124,,$AM$13) -> 0.0002282286651 | AM158: =INDEX(Demand!$K124:$P124,,$AM$13) -> 0 | AN158: 7.240704501 | AO158: 75.64356061 | AP158: 68.40285611 | AQ158: 60.80011638 | AR158: 7.602739726 | AS158: 112 | AT158: 112 | AU158: 711 | AV158: 97.42574041 | AW158: 60 | AX158: 0 | AY158: 37.42574041 | AZ158: 0 | BA158: 0 | BB158: 0 | BC158: 0 | BD158: 0 | BE158: 0 | BF158: 0 | BG158: 7.602739726 | BH158: 0
E159: 0 | H159: 0 | I159: 0 | J159: 0 | K159: 0 | L159: 0 | M159: 0 | N159: 0 | O159: 0 | P159: 0 | Q159: 0 | R159: 0 | S159: 0 | T159: 0 | U159: 0 | X159: 0 | Y159: 0 | Z159: =MAX(MIN(Z$40*IF($Z$37="Solar",$AM159,1),$AO159-SUM($Y159:Y159)),0) -> 60 | AA159: =MAX(MIN(AA$40,$AO159-SUM($Y159:Z159)),0) -> 0 | AB159: =MAX(MIN(AB$40,$AO159-SUM($Y159:AA159)),0) -> 15.66288274 | AC159: =MAX(MIN(AC$40,$AO159-SUM($Y159:AB159)),0) -> 0 | AD159: =MAX(MIN(AD$40,$AO159-SUM($Y159:AC159)),0) -> 0 | AE159: =MAX(MIN(AE$40,$AO159-SUM($Y159:AD159)),0) -> 0 | AF159: =MAX(MIN(AF$40,$AO159-SUM($Y159:AE159)),0) -> 0 | AG159: =MAX(MIN(AG$40,$AO159-SUM($Y159:AF159)),0) -> 0 | AH159: =MAX(MIN(AH$40,$AO159-SUM($Y159:AG159)),0) -> 0 | AI159: =MAX(MIN(AI$40,$AO159-SUM($Y159:AH159)),0) -> 0 | AJ159: 75.66288274 | AK159: 0 | AL159: =INDEX(Demand!$C125:$H125,,$AM$13) -> 0.0002283011956 | AM159: =INDEX(Demand!$K125:$P125,,$AM$13) -> 0 | AN159: 7.240704501 | AO159: 75.66288274 | AP159: 68.42217824 | AQ159: 60.81943852 | AR159: 7.602739726 | AS159: 113 | AT159: 113 | AU159: 823 | AV159: 97.35136525 | AW159: 60 | AX159: 0 | AY159: 37.35136525 | AZ159: 0 | BA159: 0 | BB159: 0 | BC159: 0 | BD159: 0 | BE159: 0 | BF159: 0 | BG159: 7.602739726 | BH159: 0
E160: x | H160: 0 | I160: 0 | J160: 0 | K160: 0 | L160: 0 | M160: 0 | N160: 0 | O160: 0 | P160: 0 | Q160: 0 | R160: 0 | S160: 0 | T160: 0 | U160: 0 | X160: 0 | Y160: 0 | Z160: =MAX(MIN(Z$40*IF($Z$37="Solar",$AM160,1),$AO160-SUM($Y160:Y160)),0) -> 60 | AA160: =MAX(MIN(AA$40,$AO160-SUM($Y160:Z160)),0) -> 0 | AB160: =MAX(MIN(AB$40,$AO160-SUM($Y160:AA160)),0) -> 15.68740393 | AC160: =MAX(MIN(AC$40,$AO160-SUM($Y160:AB160)),0) -> 0 | AD160: =MAX(MIN(AD$40,$AO160-SUM($Y160:AC160)),0) -> 0 | AE160: =MAX(MIN(AE$40,$AO160-SUM($Y160:AD160)),0) -> 0 | AF160: =MAX(MIN(AF$40,$AO160-SUM($Y160:AE160)),0) -> 0 | AG160: =MAX(MIN(AG$40,$AO160-SUM($Y160:AF160)),0) -> 0 | AH160: =MAX(MIN(AH$40,$AO160-SUM($Y160:AG160)),0) -> 0 | AI160: =MAX(MIN(AI$40,$AO160-SUM($Y160:AH160)),0) -> 0 | AJ160: 75.68740393 | AK160: 0 | AL160: =INDEX(Demand!$C126:$H126,,$AM$13) -> 0.0002283932421 | AM160: =INDEX(Demand!$K126:$P126,,$AM$13) -> 0 | AN160: 7.240704501 | AO160: 75.68740393 | AP160: 68.44669943 | AQ160: 60.8439597 | AR160: 7.602739726 | AS160: 114 | AT160: 114 | AU160: 710 | AV160: 97.30196084 | AW160: 60 | AX160: 0 | AY160: 37.30196084 | AZ160: 0 | BA160: 0 | BB160: 0 | BC160: 0 | BD160: 0 | BE160: 0 | BF160: 0 | BG160: 7.602739726 | BH160: 0
H161: 0 | I161: 0 | J161: 0 | K161: 0 | L161: 0 | M161: 0 | N161: 0 | O161: 0 | P161: 0 | Q161: 0 | R161: 0 | S161: 0 | T161: 0 | U161: 0 | X161: 0 | Y161: 0 | Z161: =MAX(MIN(Z$40*IF($Z$37="Solar",$AM161,1),$AO161-SUM($Y161:Y161)),0) -> 60 | AA161: =MAX(MIN(AA$40,$AO161-SUM($Y161:Z161)),0) -> 0 | AB161: =MAX(MIN(AB$40,$AO161-SUM($Y161:AA161)),0) -> 15.70576954 | AC161: =MAX(MIN(AC$40,$AO161-SUM($Y161:AB161)),0) -> 0 | AD161: =MAX(MIN(AD$40,$AO161-SUM($Y161:AC161)),0) -> 0 | AE161: =MAX(MIN(AE$40,$AO161-SUM($Y161:AD161)),0) -> 0 | AF161: =MAX(MIN(AF$40,$AO161-SUM($Y161:AE161)),0) -> 0 | AG161: =MAX(MIN(AG$40,$AO161-SUM($Y161:AF161)),0) -> 0 | AH161: =MAX(MIN(AH$40,$AO161-SUM($Y161:AG161)),0) -> 0 | AI161: =MAX(MIN(AI$40,$AO161-SUM($Y161:AH161)),0) -> 0 | AJ161: 75.70576954 | AK161: 0 | AL161: =INDEX(Demand!$C127:$H127,,$AM$13) -> 0.0002284621821 | AM161: =INDEX(Demand!$K127:$P127,,$AM$13) -> 0 | AN161: 7.240704501 | AO161: 75.70576954 | AP161: 68.46506504 | AQ161: 60.86232532 | AR161: 7.602739726 | AS161: 115 | AT161: 115 | AU161: 824 | AV161: 97.2923471 | AW161: 60 | AX161: 0 | AY161: 37.2923471 | AZ161: 0 | BA161: 0 | BB161: 0 | BC161: 0 | BD161: 0 | BE161: 0 | BF161: 0 | BG161: 7.602739726 | BH161: 0
H162: 0 | I162: 0 | J162: 0 | K162: 0 | L162: 0 | M162: 0 | N162: 0 | O162: 0 | P162: 0 | Q162: 0 | R162: 0 | S162: 0 | T162: 0 | U162: 0 | X162: 0 | Y162: 0 | Z162: =MAX(MIN(Z$40*IF($Z$37="Solar",$AM162,1),$AO162-SUM($Y162:Y162)),0) -> 60 | AA162: =MAX(MIN(AA$40,$AO162-SUM($Y162:Z162)),0) -> 0 | AB162: =MAX(MIN(AB$40,$AO162-SUM($Y162:AA162)),0) -> 15.71552825 | AC162: =MAX(MIN(AC$40,$AO162-SUM($Y162:AB162)),0) -> 0 | AD162: =MAX(MIN(AD$40,$AO162-SUM($Y162:AC162)),0) -> 0 | AE162: =MAX(MIN(AE$40,$AO162-SUM($Y162:AD162)),0) -> 0 | AF162: =MAX(MIN(AF$40,$AO162-SUM($Y162:AE162)),0) -> 0 | AG162: =MAX(MIN(AG$40,$AO162-SUM($Y162:AF162)),0) -> 0 | AH162: =MAX(MIN(AH$40,$AO162-SUM($Y162:AG162)),0) -> 0 | AI162: =MAX(MIN(AI$40,$AO162-SUM($Y162:AH162)),0) -> 0 | AJ162: 75.71552825 | AK162: 0 | AL162: =INDEX(Demand!$C128:$H128,,$AM$13) -> 0.0002284988139 | AM162: =INDEX(Demand!$K128:$P128,,$AM$13) -> 0 | AN162: 7.240704501 | AO162: 75.71552825 | AP162: 68.47482375 | AQ162: 60.87208402 | AR162: 7.602739726 | AS162: 116 | AT162: 116 | AU162: 709 | AV162: 97.25174693 | AW162: 60 | AX162: 0 | AY162: 37.25174693 | AZ162: 0 | BA162: 0 | BB162: 0 | BC162: 0 | BD162: 0 | BE162: 0 | BF162: 0 | BG162: 7.602739726 | BH162: 0
H163: 0 | I163: 0 | J163: 0 | K163: 0 | L163: 0 | M163: 0 | N163: 0 | O163: 0 | P163: 0 | Q163: 0 | R163: 0 | S163: 0 | T163: 0 | U163: 0 | X163: 0 | Y163: 0 | Z163: =MAX(MIN(Z$40*IF($Z$37="Solar",$AM163,1),$AO163-SUM($Y163:Y163)),0) -> 60 | AA163: =MAX(MIN(AA$40,$AO163-SUM($Y163:Z163)),0) -> 0 | AB163: =MAX(MIN(AB$40,$AO163-SUM($Y163:AA163)),0) -> 15.76002802 | AC163: =MAX(MIN(AC$40,$AO163-SUM($Y163:AB163)),0) -> 0 | AD163: =MAX(MIN(AD$40,$AO163-SUM($Y163:AC163)),0) -> 0 | AE163: =MAX(MIN(AE$40,$AO163-SUM($Y163:AD163)),0) -> 0 | AF163: =MAX(MIN(AF$40,$AO163-SUM($Y163:AE163)),0) -> 0 | AG163: =MAX(MIN(AG$40,$AO163-SUM($Y163:AF163)),0) -> 0 | AH163: =MAX(MIN(AH$40,$AO163-SUM($Y163:AG163)),0) -> 0 | AI163: =MAX(MIN(AI$40,$AO163-SUM($Y163:AH163)),0) -> 0 | AJ163: 75.76002802 | AK163: 0 | AL163: =INDEX(Demand!$C129:$H129,,$AM$13) -> 0.0002286658551 | AM163: =INDEX(Demand!$K129:$P129,,$AM$13) -> 0 | AN163: 7.240704501 | AO163: 75.76002802 | AP163: 68.51932352 | AQ163: 60.91658379 | AR163: 7.602739726 | AS163: 117 | AT163: 117 | AU163: 825 | AV163: 97.20982424 | AW163: 60 | AX163: 0 | AY163: 37.20982424 | AZ163: 0 | BA163: 0 | BB163: 0 | BC163: 0 | BD163: 0 | BE163: 0 | BF163: 0 | BG163: 7.602739726 | BH163: 0
H164: 0 | I164: 0 | J164: 0 | K164: 0 | L164: 0 | M164: 0 | N164: 0 | O164: 0 | P164: 0 | Q164: 0 | R164: 0 | S164: 0 | T164: 0 | U164: 0 | X164: 0 | Y164: 0 | Z164: =MAX(MIN(Z$40*IF($Z$37="Solar",$AM164,1),$AO164-SUM($Y164:Y164)),0) -> 60 | AA164: =MAX(MIN(AA$40,$AO164-SUM($Y164:Z164)),0) -> 0 | AB164: =MAX(MIN(AB$40,$AO164-SUM($Y164:AA164)),0) -> 15.76901585 | AC164: =MAX(MIN(AC$40,$AO164-SUM($Y164:AB164)),0) -> 0 | AD164: =MAX(MIN(AD$40,$AO164-SUM($Y164:AC164)),0) -> 0 | AE164: =MAX(MIN(AE$40,$AO164-SUM($Y164:AD164)),0) -> 0 | AF164: =MAX(MIN(AF$40,$AO164-SUM($Y164:AE164)),0) -> 0 | AG164: =MAX(MIN(AG$40,$AO164-SUM($Y164:AF164)),0) -> 0 | AH164: =MAX(MIN(AH$40,$AO164-SUM($Y164:AG164)),0) -> 0 | AI164: =MAX(MIN(AI$40,$AO164-SUM($Y164:AH164)),0) -> 0 | AJ164: 75.76901585 | AK164: 0 | AL164: =INDEX(Demand!$C130:$H130,,$AM$13) -> 0.0002286995932 | AM164: =INDEX(Demand!$K130:$P130,,$AM$13) -> 0 | AN164: 7.240704501 | AO164: 75.76901585 | AP164: 68.52831135 | AQ164: 60.92557162 | AR164: 7.602739726 | AS164: 118 | AT164: 118 | AU164: 708 | AV164: 97.18383029 | AW164: 60 | AX164: 0 | AY164: 37.18383029 | AZ164: 0 | BA164: 0 | BB164: 0 | BC164: 0 | BD164: 0 | BE164: 0 | BF164: 0 | BG164: 7.602739726 | BH164: 0
D165: 13 | H165: 0 | I165: 0 | J165: 0 | K165: 0 | L165: 0 | M165: 0 | N165: 0 | O165: 0 | P165: 0 | Q165: 0 | R165: 0 | S165: 0 | T165: 0 | U165: 0 | X165: 0 | Y165: 0 | Z165: =MAX(MIN(Z$40*IF($Z$37="Solar",$AM165,1),$AO165-SUM($Y165:Y165)),0) -> 60 | AA165: =MAX(MIN(AA$40,$AO165-SUM($Y165:Z165)),0) -> 0 | AB165: =MAX(MIN(AB$40,$AO165-SUM($Y165:AA165)),0) -> 15.80307045 | AC165: =MAX(MIN(AC$40,$AO165-SUM($Y165:AB165)),0) -> 0 | AD165: =MAX(MIN(AD$40,$AO165-SUM($Y165:AC165)),0) -> 0 | AE165: =MAX(MIN(AE$40,$AO165-SUM($Y165:AD165)),0) -> 0 | AF165: =MAX(MIN(AF$40,$AO165-SUM($Y165:AE165)),0) -> 0 | AG165: =MAX(MIN(AG$40,$AO165-SUM($Y165:AF165)),0) -> 0 | AH165: =MAX(MIN(AH$40,$AO165-SUM($Y165:AG165)),0) -> 0 | AI165: =MAX(MIN(AI$40,$AO165-SUM($Y165:AH165)),0) -> 0 | AJ165: 75.80307045 | AK165: 0 | AL165: =INDEX(Demand!$C131:$H131,,$AM$13) -> 0.0002288274258 | AM165: =INDEX(Demand!$K131:$P131,,$AM$13) -> 0 | AN165: 7.240704501 | AO165: 75.80307045 | AP165: 68.56236595 | AQ165: 60.95962623 | AR165: 7.602739726 | AS165: 119 | AT165: 119 | AU165: 826 | AV165: 97.15342166 | AW165: 60 | AX165: 0 | AY165: 37.15342166 | AZ165: 0 | BA165: 0 | BB165: 0 | BC165: 0 | BD165: 0 | BE165: 0 | BF165: 0 | BG165: 7.602739726 | BH165: 0
H166: 0 | I166: 0 | J166: 0 | K166: 0 | L166: 0 | M166: 0 | N166: 0 | O166: 0 | P166: 0 | Q166: 0 | R166: 0 | S166: 0 | T166: 0 | U166: 0 | X166: 0 | Y166: 0 | Z166: =MAX(MIN(Z$40*IF($Z$37="Solar",$AM166,1),$AO166-SUM($Y166:Y166)),0) -> 60 | AA166: =MAX(MIN(AA$40,$AO166-SUM($Y166:Z166)),0) -> 0 | AB166: =MAX(MIN(AB$40,$AO166-SUM($Y166:AA166)),0) -> 15.82111497 | AC166: =MAX(MIN(AC$40,$AO166-SUM($Y166:AB166)),0) -> 0 | AD166: =MAX(MIN(AD$40,$AO166-SUM($Y166:AC166)),0) -> 0 | AE166: =MAX(MIN(AE$40,$AO166-SUM($Y166:AD166)),0) -> 0 | AF166: =MAX(MIN(AF$40,$AO166-SUM($Y166:AE166)),0) -> 0 | AG166: =MAX(MIN(AG$40,$AO166-SUM($Y166:AF166)),0) -> 0 | AH166: =MAX(MIN(AH$40,$AO166-SUM($Y166:AG166)),0) -> 0 | AI166: =MAX(MIN(AI$40,$AO166-SUM($Y166:AH166)),0) -> 0 | AJ166: 75.82111497 | AK166: 0 | AL166: =INDEX(Demand!$C132:$H132,,$AM$13) -> 0.0002288951604 | AM166: =INDEX(Demand!$K132:$P132,,$AM$13) -> 0 | AN166: 7.240704501 | AO166: 75.82111497 | AP166: 68.58041046 | AQ166: 60.97767074 | AR166: 7.602739726 | AS166: 120 | AT166: 120 | AU166: 707 | AV166: 97.13074101 | AW166: 60 | AX166: 0 | AY166: 37.13074101 | AZ166: 0 | BA166: 0 | BB166: 0 | BC166: 0 | BD166: 0 | BE166: 0 | BF166: 0 | BG166: 7.602739726 | BH166: 0
H167: 0 | I167: 0 | J167: 0 | K167: 0 | L167: 0 | M167: 0 | N167: 0 | O167: 0 | P167: 0 | Q167: 0 | R167: 0 | S167: 0 | T167: 0 | U167: 0 | X167: 0 | Y167: 0 | Z167: =MAX(MIN(Z$40*IF($Z$37="Solar",$AM167,1),$AO167-SUM($Y167:Y167)),0) -> 60 | AA167: =MAX(MIN(AA$40,$AO167-SUM($Y167:Z167)),0) -> 0 | AB167: =MAX(MIN(AB$40,$AO167-SUM($Y167:AA167)),0) -> 15.85429121 | AC167: =MAX(MIN(AC$40,$AO167-SUM($Y167:AB167)),0) -> 0 | AD167: =MAX(MIN(AD$40,$AO167-SUM($Y167:AC167)),0) -> 0 | AE167: =MAX(MIN(AE$40,$AO167-SUM($Y167:AD167)),0) -> 0 | AF167: =MAX(MIN(AF$40,$AO167-SUM($Y167:AE167)),0) -> 0 | AG167: =MAX(MIN(AG$40,$AO167-SUM($Y167:AF167)),0) -> 0 | AH167: =MAX(MIN(AH$40,$AO167-SUM($Y167:AG167)),0) -> 0 | AI167: =MAX(MIN(AI$40,$AO167-SUM($Y167:AH167)),0) -> 0 | AJ167: 75.85429121 | AK167: 0 | AL167: =INDEX(Demand!$C133:$H133,,$AM$13) -> 0.0002290196959 | AM167: =INDEX(Demand!$K133:$P133,,$AM$13) -> 0 | AN167: 7.240704501 | AO167: 75.85429121 | AP167: 68.61358671 | AQ167: 61.01084699 | AR167: 7.602739726 | AS167: 121 | AT167: 121 | AU167: 827 | AV167: 97.09460935 | AW167: 60 | AX167: 0 | AY167: 37.09460935 | AZ167: 0 | BA167: 0 | BB167: 0 | BC167: 0 | BD167: 0 | BE167: 0 | BF167: 0 | BG167: 7.602739726 | BH167: 0
E168: 0 | H168: 0 | I168: 0 | J168: 0 | K168: 0 | L168: 0 | M168: 0 | N168: 0 | O168: 0 | P168: 0 | Q168: 0 | R168: 0 | S168: 0 | T168: 0 | U168: 0 | X168: 0 | Y168: 0 | Z168: =MAX(MIN(Z$40*IF($Z$37="Solar",$AM168,1),$AO168-SUM($Y168:Y168)),0) -> 60 | AA168: =MAX(MIN(AA$40,$AO168-SUM($Y168:Z168)),0) -> 0 | AB168: =MAX(MIN(AB$40,$AO168-SUM($Y168:AA168)),0) -> 15.88663936 | AC168: =MAX(MIN(AC$40,$AO168-SUM($Y168:AB168)),0) -> 0 | AD168: =MAX(MIN(AD$40,$AO168-SUM($Y168:AC168)),0) -> 0 | AE168: =MAX(MIN(AE$40,$AO168-SUM($Y168:AD168)),0) -> 0 | AF168: =MAX(MIN(AF$40,$AO168-SUM($Y168:AE168)),0) -> 0 | AG168: =MAX(MIN(AG$40,$AO168-SUM($Y168:AF168)),0) -> 0 | AH168: =MAX(MIN(AH$40,$AO168-SUM($Y168:AG168)),0) -> 0 | AI168: =MAX(MIN(AI$40,$AO168-SUM($Y168:AH168)),0) -> 0 | AJ168: 75.88663936 | AK168: 0 | AL168: =INDEX(Demand!$C134:$H134,,$AM$13) -> 0.0002291411229 | AM168: =INDEX(Demand!$K134:$P134,,$AM$13) -> 0 | AN168: 7.240704501 | AO168: 75.88663936 | AP168: 68.64593486 | AQ168: 61.04319514 | AR168: 7.602739726 | AS168: 122 | AT168: 122 | AU168: 706 | AV168: 97.06751471 | AW168: 60 | AX168: 0 | AY168: 37.06751471 | AZ168: 0 | BA168: 0 | BB168: 0 | BC168: 0 | BD168: 0 | BE168: 0 | BF168: 0 | BG168: 7.602739726 | BH168: 0
E169: 0 | H169: 0 | I169: 0 | J169: 0 | K169: 0 | L169: 0 | M169: 0 | N169: 0 | O169: 0 | P169: 0 | Q169: 0 | R169: 0 | S169: 0 | T169: 0 | U169: 0 | X169: 0 | Y169: 0 | Z169: =MAX(MIN(Z$40*IF($Z$37="Solar",$AM169,1),$AO169-SUM($Y169:Y169)),0) -> 60 | AA169: =MAX(MIN(AA$40,$AO169-SUM($Y169:Z169)),0) -> 0 | AB169: =MAX(MIN(AB$40,$AO169-SUM($Y169:AA169)),0) -> 15.90772443 | AC169: =MAX(MIN(AC$40,$AO169-SUM($Y169:AB169)),0) -> 0 | AD169: =MAX(MIN(AD$40,$AO169-SUM($Y169:AC169)),0) -> 0 | AE169: =MAX(MIN(AE$40,$AO169-SUM($Y169:AD169)),0) -> 0 | AF169: =MAX(MIN(AF$40,$AO169-SUM($Y169:AE169)),0) -> 0 | AG169: =MAX(MIN(AG$40,$AO169-SUM($Y169:AF169)),0) -> 0 | AH169: =MAX(MIN(AH$40,$AO169-SUM($Y169:AG169)),0) -> 0 | AI169: =MAX(MIN(AI$40,$AO169-SUM($Y169:AH169)),0) -> 0 | AJ169: 75.90772443 | AK169: 0 | AL169: =INDEX(Demand!$C135:$H135,,$AM$13) -> 0.000229220271 | AM169: =INDEX(Demand!$K135:$P135,,$AM$13) -> 0 | AN169: 7.240704501 | AO169: 75.90772443 | AP169: 68.66701993 | AQ169: 61.06428021 | AR169: 7.602739726 | AS169: 123 | AT169: 123 | AU169: 828 | AV169: 97.05889237 | AW169: 60 | AX169: 0 | AY169: 37.05889237 | AZ169: 0 | BA169: 0 | BB169: 0 | BC169: 0 | BD169: 0 | BE169: 0 | BF169: 0 | BG169: 7.602739726 | BH169: 0
E170: x | H170: 0 | I170: 0 | J170: 0 | K170: 0 | L170: 0 | M170: 0 | N170: 0 | O170: 0 | P170: 0 | Q170: 0 | R170: 0 | S170: 0 | T170: 0 | U170: 0 | X170: 0 | Y170: 0 | Z170: =MAX(MIN(Z$40*IF($Z$37="Solar",$AM170,1),$AO170-SUM($Y170:Y170)),0) -> 60 | AA170: =MAX(MIN(AA$40,$AO170-SUM($Y170:Z170)),0) -> 0 | AB170: =MAX(MIN(AB$40,$AO170-SUM($Y170:AA170)),0) -> 15.93034314 | AC170: =MAX(MIN(AC$40,$AO170-SUM($Y170:AB170)),0) -> 0 | AD170: =MAX(MIN(AD$40,$AO170-SUM($Y170:AC170)),0) -> 0 | AE170: =MAX(MIN(AE$40,$AO170-SUM($Y170:AD170)),0) -> 0 | AF170: =MAX(MIN(AF$40,$AO170-SUM($Y170:AE170)),0) -> 0 | AG170: =MAX(MIN(AG$40,$AO170-SUM($Y170:AF170)),0) -> 0 | AH170: =MAX(MIN(AH$40,$AO170-SUM($Y170:AG170)),0) -> 0 | AI170: =MAX(MIN(AI$40,$AO170-SUM($Y170:AH170)),0) -> 0 | AJ170: 75.93034314 | AK170: 0 | AL170: =INDEX(Demand!$C136:$H136,,$AM$13) -> 0.0002293051761 | AM170: =INDEX(Demand!$K136:$P136,,$AM$13) -> 0 | AN170: 7.240704501 | AO170: 75.93034314 | AP170: 68.68963864 | AQ170: 61.08689891 | AR170: 7.602739726 | AS170: 124 | AT170: 124 | AU170: 705 | AV170: 97.04299921 | AW170: 60 | AX170: 0 | AY170: 37.04299921 | AZ170: 0 | BA170: 0 | BB170: 0 | BC170: 0 | BD170: 0 | BE170: 0 | BF170: 0 | BG170: 7.602739726 | BH170: 0
H171: 0 | I171: 0 | J171: 0 | K171: 0 | L171: 0 | M171: 0 | N171: 0 | O171: 0 | P171: 0 | Q171: 0 | R171: 0 | S171: 0 | T171: 0 | U171: 0 | X171: 0 | Y171: 0 | Z171: =MAX(MIN(Z$40*IF($Z$37="Solar",$AM171,1),$AO171-SUM($Y171:Y171)),0) -> 60 | AA171: =MAX(MIN(AA$40,$AO171-SUM($Y171:Z171)),0) -> 0 | AB171: =MAX(MIN(AB$40,$AO171-SUM($Y171:AA171)),0) -> 15.93399289 | AC171: =MAX(MIN(AC$40,$AO171-SUM($Y171:AB171)),0) -> 0 | AD171: =MAX(MIN(AD$40,$AO171-SUM($Y171:AC171)),0) -> 0 | AE171: =MAX(MIN(AE$40,$AO171-SUM($Y171:AD171)),0) -> 0 | AF171: =MAX(MIN(AF$40,$AO171-SUM($Y171:AE171)),0) -> 0 | AG171: =MAX(MIN(AG$40,$AO171-SUM($Y171:AF171)),0) -> 0 | AH171: =MAX(MIN(AH$40,$AO171-SUM($Y171:AG171)),0) -> 0 | AI171: =MAX(MIN(AI$40,$AO171-SUM($Y171:AH171)),0) -> 0 | AJ171: 75.93399289 | AK171: 0 | AL171: =INDEX(Demand!$C137:$H137,,$AM$13) -> 0.0002293188764 | AM171: =INDEX(Demand!$K137:$P137,,$AM$13) -> 0 | AN171: 7.240704501 | AO171: 75.93399289 | AP171: 68.69328839 | AQ171: 61.09054866 | AR171: 7.602739726 | AS171: 125 | AT171: 125 | AU171: 829 | AV171: 97.0259227 | AW171: 60 | AX171: 0 | AY171: 37.0259227 | AZ171: 0 | BA171: 0 | BB171: 0 | BC171: 0 | BD171: 0 | BE171: 0 | BF171: 0 | BG171: 7.602739726 | BH171: 0
H172: 0 | I172: 0 | J172: 0 | K172: 0 | L172: 0 | M172: 0 | N172: 0 | O172: 0 | P172: 0 | Q172: 0 | R172: 0 | S172: 0 | T172: 0 | U172: 0 | X172: 0 | Y172: 0 | Z172: =MAX(MIN(Z$40*IF($Z$37="Solar",$AM172,1),$AO172-SUM($Y172:Y172)),0) -> 60 | AA172: =MAX(MIN(AA$40,$AO172-SUM($Y172:Z172)),0) -> 0 | AB172: =MAX(MIN(AB$40,$AO172-SUM($Y172:AA172)),0) -> 15.94801036 | AC172: =MAX(MIN(AC$40,$AO172-SUM($Y172:AB172)),0) -> 0 | AD172: =MAX(MIN(AD$40,$AO172-SUM($Y172:AC172)),0) -> 0 | AE172: =MAX(MIN(AE$40,$AO172-SUM($Y172:AD172)),0) -> 0 | AF172: =MAX(MIN(AF$40,$AO172-SUM($Y172:AE172)),0) -> 0 | AG172: =MAX(MIN(AG$40,$AO172-SUM($Y172:AF172)),0) -> 0 | AH172: =MAX(MIN(AH$40,$AO172-SUM($Y172:AG172)),0) -> 0 | AI172: =MAX(MIN(AI$40,$AO172-SUM($Y172:AH172)),0) -> 0 | AJ172: 75.94801036 | AK172: 0 | AL172: =INDEX(Demand!$C138:$H138,,$AM$13) -> 0.0002293714945 | AM172: =INDEX(Demand!$K138:$P138,,$AM$13) -> 0 | AN172: 7.240704501 | AO172: 75.94801036 | AP172: 68.70730586 | AQ172: 61.10456613 | AR172: 7.602739726 | AS172: 126 | AT172: 126 | AU172: 704 | AV172: 96.93390475 | AW172: 60 | AX172: 0 | AY172: 36.93390475 | AZ172: 0 | BA172: 0 | BB172: 0 | BC172: 0 | BD172: 0 | BE172: 0 | BF172: 0 | BG172: 7.602739726 | BH172: 0
H173: 0 | I173: 0 | J173: 0 | K173: 0 | L173: 0 | M173: 0 | N173: 0 | O173: 0 | P173: 0 | Q173: 0 | R173: 0 | S173: 0 | T173: 0 | U173: 0 | X173: 0 | Y173: 0 | Z173: =MAX(MIN(Z$40*IF($Z$37="Solar",$AM173,1),$AO173-SUM($Y173:Y173)),0) -> 60 | AA173: =MAX(MIN(AA$40,$AO173-SUM($Y173:Z173)),0) -> 0 | AB173: =MAX(MIN(AB$40,$AO173-SUM($Y173:AA173)),0) -> 15.95479554 | AC173: =MAX(MIN(AC$40,$AO173-SUM($Y173:AB173)),0) -> 0 | AD173: =MAX(MIN(AD$40,$AO173-SUM($Y173:AC173)),0) -> 0 | AE173: =MAX(MIN(AE$40,$AO173-SUM($Y173:AD173)),0) -> 0 | AF173: =MAX(MIN(AF$40,$AO173-SUM($Y173:AE173)),0) -> 0 | AG173: =MAX(MIN(AG$40,$AO173-SUM($Y173:AF173)),0) -> 0 | AH173: =MAX(MIN(AH$40,$AO173-SUM($Y173:AG173)),0) -> 0 | AI173: =MAX(MIN(AI$40,$AO173-SUM($Y173:AH173)),0) -> 0 | AJ173: 75.95479554 | AK173: 0 | AL173: =INDEX(Demand!$C139:$H139,,$AM$13) -> 0.0002293969644 | AM173: =INDEX(Demand!$K139:$P139,,$AM$13) -> 0 | AN173: 7.240704501 | AO173: 75.95479554 | AP173: 68.71409104 | AQ173: 61.11135131 | AR173: 7.602739726 | AS173: 127 | AT173: 127 | AU173: 830 | AV173: 96.92628587 | AW173: 60 | AX173: 0 | AY173: 36.92628587 | AZ173: 0 | BA173: 0 | BB173: 0 | BC173: 0 | BD173: 0 | BE173: 0 | BF173: 0 | BG173: 7.602739726 | BH173: 0
H174: 0 | I174: 0 | J174: 0 | K174: 0 | L174: 0 | M174: 0 | N174: 0 | O174: 0 | P174: 0 | Q174: 0 | R174: 0 | S174: 0 | T174: 0 | U174: 0 | X174: 0 | Y174: 0 | Z174: =MAX(MIN(Z$40*IF($Z$37="Solar",$AM174,1),$AO174-SUM($Y174:Y174)),0) -> 60 | AA174: =MAX(MIN(AA$40,$AO174-SUM($Y174:Z174)),0) -> 0 | AB174: =MAX(MIN(AB$40,$AO174-SUM($Y174:AA174)),0) -> 15.99304463 | AC174: =MAX(MIN(AC$40,$AO174-SUM($Y174:AB174)),0) -> 0 | AD174: =MAX(MIN(AD$40,$AO174-SUM($Y174:AC174)),0) -> 0 | AE174: =MAX(MIN(AE$40,$AO174-SUM($Y174:AD174)),0) -> 0 | AF174: =MAX(MIN(AF$40,$AO174-SUM($Y174:AE174)),0) -> 0 | AG174: =MAX(MIN(AG$40,$AO174-SUM($Y174:AF174)),0) -> 0 | AH174: =MAX(MIN(AH$40,$AO174-SUM($Y174:AG174)),0) -> 0 | AI174: =MAX(MIN(AI$40,$AO174-SUM($Y174:AH174)),0) -> 0 | AJ174: 75.99304463 | AK174: 0 | AL174: =INDEX(Demand!$C140:$H140,,$AM$13) -> 0.000229540542 | AM174: =INDEX(Demand!$K140:$P140,,$AM$13) -> 0.2508371763 | AN174: 7.240704501 | AO174: 75.99304463 | AP174: 68.75234012 | AQ174: 61.1496004 | AR174: 7.602739726 | AS174: 128 | AT174: 128 | AU174: 703 | AV174: 96.91902782 | AW174: 60 | AX174: 0 | AY174: 36.91902782 | AZ174: 0 | BA174: 0 | BB174: 0 | BC174: 0 | BD174: 0 | BE174: 0 | BF174: 0 | BG174: 7.602739726 | BH174: 0
D175: 14 | H175: 0 | I175: 0 | J175: 0 | K175: 0 | L175: 0 | M175: 0 | N175: 0 | O175: 0 | P175: 0 | Q175: 0 | R175: 0 | S175: 0 | T175: 0 | U175: 0 | X175: =IF(MOD(ROW(),1000)=ROW($Y$46),(ROW()-ROW($Y$46)),0) -> 0 | Y175: 0 | Z175: =MAX(MIN(Z$40*IF($Z$37="Solar",$AM175,1),$AO175-SUM($Y175:Y175)),0) -> 60 | AA175: =MAX(MIN(AA$40,$AO175-SUM($Y175:Z175)),0) -> 0 | AB175: =MAX(MIN(AB$40,$AO175-SUM($Y175:AA175)),0) -> 16.01714465 | AC175: =MAX(MIN(AC$40,$AO175-SUM($Y175:AB175)),0) -> 0 | AD175: =MAX(MIN(AD$40,$AO175-SUM($Y175:AC175)),0) -> 0 | AE175: =MAX(MIN(AE$40,$AO175-SUM($Y175:AD175)),0) -> 0 | AF175: =MAX(MIN(AF$40,$AO175-SUM($Y175:AE175)),0) -> 0 | AG175: =MAX(MIN(AG$40,$AO175-SUM($Y175:AF175)),0) -> 0 | AH175: =MAX(MIN(AH$40,$AO175-SUM($Y175:AG175)),0) -> 0 | AI175: =MAX(MIN(AI$40,$AO175-SUM($Y175:AH175)),0) -> 0 | AJ175: 76.01714465 | AK175: 0 | AL175: =INDEX(Demand!$C141:$H141,,$AM$13) -> 0.0002296310076 | AM175: =INDEX(Demand!$K141:$P141,,$AM$13) -> 0.4628880044 | AN175: =IF(AP175>0,Centralised_GWh*Support_thousand/(1-Centralised_HeatLoss)*Centralised_HeatLoss/BaseLoadHours,0) -> 7.240704501 | AO175: 76.01714465 | AP175: =Centralised_GWh*Support_thousand*((1-Centralised_WWDemand)*AL175+Centralised_WWDemand/8760) -> 68.77644015 | AQ175: 61.17370042 | AR175: =Centralised_GWh*Support_thousand*Centralised_WWDemand/8760 -> 7.602739726 | AS175: 129 | AT175: =_xlfn.RANK.EQ(AV175,$AV$47:$AV$8806) -> 129 | AU175: 831 | AV175: 96.90773391 | AW175: 60 | AX175: 0 | AY175: 36.90773391 | AZ175: 0 | BA175: 0 | BB175: 0 | BC175: 0 | BD175: 0 | BE175: 0 | BF175: 0 | BG175: =Centralised_GWh*Support_thousand*(Centralised_WWDemand/8760) -> 7.602739726 | BH175: 0
H176: 0 | I176: 0 | J176: 0 | K176: 0 | L176: 0 | M176: 0 | N176: 0 | O176: 0 | P176: 0 | Q176: 0 | R176: 0 | S176: 0 | T176: 0 | U176: 0 | X176: 0 | Y176: 0 | Z176: =MAX(MIN(Z$40*IF($Z$37="Solar",$AM176,1),$AO176-SUM($Y176:Y176)),0) -> 60 | AA176: =MAX(MIN(AA$40,$AO176-SUM($Y176:Z176)),0) -> 0 | AB176: =MAX(MIN(AB$40,$AO176-SUM($Y176:AA176)),0) -> 16.02780264 | AC176: =MAX(MIN(AC$40,$AO176-SUM($Y176:AB176)),0) -> 0 | AD176: =MAX(MIN(AD$40,$AO176-SUM($Y176:AC176)),0) -> 0 | AE176: =MAX(MIN(AE$40,$AO176-SUM($Y176:AD176)),0) -> 0 | AF176: =MAX(MIN(AF$40,$AO176-SUM($Y176:AE176)),0) -> 0 | AG176: =MAX(MIN(AG$40,$AO176-SUM($Y176:AF176)),0) -> 0 | AH176: =MAX(MIN(AH$40,$AO176-SUM($Y176:AG176)),0) -> 0 | AI176: =MAX(MIN(AI$40,$AO176-SUM($Y176:AH176)),0) -> 0 | AJ176: =SUM(Z176:AI176) -> 76.02780264 | AK176: =SUM(Z176:AI176)-AJ176 -> 0 | AL176: =INDEX(Demand!$C142:$H142,,$AM$13) -> 0.0002296710151 | AM176: =INDEX(Demand!$K142:$P142,,$AM$13) -> 0.4286567972 | AN176: 7.240704501 | AO176: 76.02780264 | AP176: 68.78709814 | AQ176: =AP176-AR176 -> 61.18435841 | AR176: 7.602739726 | AS176: 130 | AT176: 130 | AU176: 702 | AV176: 96.88923109 | AW176: 60 | AX176: 0 | AY176: 36.88923109 | AZ176: 0 | BA176: 0 | BB176: 0 | BC176: 0 | BD176: 0 | BE176: 0 | BF176: 0 | BG176: 7.602739726 | BH176: =SUM(AW176:BC176)-AV176 -> 0
H177: 0 | I177: 0 | J177: 0 | K177: 0 | L177: 0 | M177: 0 | N177: 0 | O177: 0 | P177: 0 | Q177: 0 | R177: 0 | S177: 0 | T177: 0 | U177: 0 | X177: 0 | Y177: 0 | Z177: =MAX(MIN(Z$40*IF($Z$37="Solar",$AM177,1),$AO177-SUM($Y177:Y177)),0) -> 60 | AA177: =MAX(MIN(AA$40,$AO177-SUM($Y177:Z177)),0) -> 0 | AB177: =MAX(MIN(AB$40,$AO177-SUM($Y177:AA177)),0) -> 16.04639542 | AC177: =MAX(MIN(AC$40,$AO177-SUM($Y177:AB177)),0) -> 0 | AD177: =MAX(MIN(AD$40,$AO177-SUM($Y177:AC177)),0) -> 0 | AE177: =MAX(MIN(AE$40,$AO177-SUM($Y177:AD177)),0) -> 0 | AF177: =MAX(MIN(AF$40,$AO177-SUM($Y177:AE177)),0) -> 0 | AG177: =MAX(MIN(AG$40,$AO177-SUM($Y177:AF177)),0) -> 0 | AH177: =MAX(MIN(AH$40,$AO177-SUM($Y177:AG177)),0) -> 0 | AI177: =MAX(MIN(AI$40,$AO177-SUM($Y177:AH177)),0) -> 0 | AJ177: 76.04639542 | AK177: 0 | AL177: =INDEX(Demand!$C143:$H143,,$AM$13) -> 0.0002297408078 | AM177: =INDEX(Demand!$K143:$P143,,$AM$13) -> 0.5574748283 | AN177: 7.240704501 | AO177: =AN177+AP177 -> 76.04639542 | AP177: 68.80569092 | AQ177: 61.20295119 | AR177: 7.602739726 | AS177: 131 | AT177: 131 | AU177: 832 | AV177: 96.87939981 | AW177: 60 | AX177: 0 | AY177: 36.87939981 | AZ177: 0 | BA177: 0 | BB177: 0 | BC177: 0 | BD177: 0 | BE177: 0 | BF177: 0 | BG177: 7.602739726 | BH177: 0
E178: 0 | H178: 0 | I178: 0 | J178: 0 | K178: 0 | L178: 0 | M178: 0 | N178: 0 | O178: 0 | P178: 0 | Q178: 0 | R178: 0 | S178: 0 | T178: 0 | U178: 0 | X178: 0 | Y178: 0 | Z178: =MAX(MIN(Z$40*IF($Z$37="Solar",$AM178,1),$AO178-SUM($Y178:Y178)),0) -> 60 | AA178: =MAX(MIN(AA$40,$AO178-SUM($Y178:Z178)),0) -> 0 | AB178: =MAX(MIN(AB$40,$AO178-SUM($Y178:AA178)),0) -> 16.05197743 | AC178: =MAX(MIN(AC$40,$AO178-SUM($Y178:AB178)),0) -> 0 | AD178: =MAX(MIN(AD$40,$AO178-SUM($Y178:AC178)),0) -> 0 | AE178: =MAX(MIN(AE$40,$AO178-SUM($Y178:AD178)),0) -> 0 | AF178: =MAX(MIN(AF$40,$AO178-SUM($Y178:AE178)),0) -> 0 | AG178: =MAX(MIN(AG$40,$AO178-SUM($Y178:AF178)),0) -> 0 | AH178: =MAX(MIN(AH$40,$AO178-SUM($Y178:AG178)),0) -> 0 | AI178: =MAX(MIN(AI$40,$AO178-SUM($Y178:AH178)),0) -> 0 | AJ178: 76.05197743 | AK178: 0 | AL178: =INDEX(Demand!$C144:$H144,,$AM$13) -> 0.0002297617613 | AM178: =INDEX(Demand!$K144:$P144,,$AM$13) -> 0.4718855352 | AN178: 7.240704501 | AO178: 76.05197743 | AP178: 68.81127293 | AQ178: 61.2085332 | AR178: 7.602739726 | AS178: 132 | AT178: 132 | AU178: 701 | AV178: 96.80492829 | AW178: 60 | AX178: 0 | AY178: 36.80492829 | AZ178: 0 | BA178: 0 | BB178: 0 | BC178: 0 | BD178: 0 | BE178: 0 | BF178: 0 | BG178: 7.602739726 | BH178: 0
E179: 0 | H179: 0 | I179: 0 | J179: 0 | K179: 0 | L179: 0 | M179: 0 | N179: 0 | O179: 0 | P179: 0 | Q179: 0 | R179: 0 | S179: 0 | T179: 0 | U179: 0 | X179: 0 | Y179: 0 | Z179: =MAX(MIN(Z$40*IF($Z$37="Solar",$AM179,1),$AO179-SUM($Y179:Y179)),0) -> 60 | AA179: =MAX(MIN(AA$40,$AO179-SUM($Y179:Z179)),0) -> 0 | AB179: =MAX(MIN(AB$40,$AO179-SUM($Y179:AA179)),0) -> 16.08666929 | AC179: =MAX(MIN(AC$40,$AO179-SUM($Y179:AB179)),0) -> 0 | AD179: =MAX(MIN(AD$40,$AO179-SUM($Y179:AC179)),0) -> 0 | AE179: =MAX(MIN(AE$40,$AO179-SUM($Y179:AD179)),0) -> 0 | AF179: =MAX(MIN(AF$40,$AO179-SUM($Y179:AE179)),0) -> 0 | AG179: =MAX(MIN(AG$40,$AO179-SUM($Y179:AF179)),0) -> 0 | AH179: =MAX(MIN(AH$40,$AO179-SUM($Y179:AG179)),0) -> 0 | AI179: =MAX(MIN(AI$40,$AO179-SUM($Y179:AH179)),0) -> 0 | AJ179: 76.08666929 | AK179: 0 | AL179: =INDEX(Demand!$C145:$H145,,$AM$13) -> 0.000229891986 | AM179: =INDEX(Demand!$K145:$P145,,$AM$13) -> 0.3351862083 | AN179: 7.240704501 | AO179: 76.08666929 | AP179: 68.84596479 | AQ179: 61.24322506 | AR179: 7.602739726 | AS179: 133 | AT179: 133 | AU179: 833 | AV179: 96.77313334 | AW179: 60 | AX179: 0 | AY179: 36.77313334 | AZ179: 0 | BA179: 0 | BB179: 0 | BC179: 0 | BD179: 0 | BE179: 0 | BF179: 0 | BG179: 7.602739726 | BH179: 0
E180: x | H180: 0 | I180: 0 | J180: 0 | K180: 0 | L180: 0 | M180: 0 | N180: 0 | O180: 0 | P180: 0 | Q180: 0 | R180: 0 | S180: 0 | T180: 0 | U180: 0 | X180: 0 | Y180: 0 | Z180: =MAX(MIN(Z$40*IF($Z$37="Solar",$AM180,1),$AO180-SUM($Y180:Y180)),0) -> 60 | AA180: =MAX(MIN(AA$40,$AO180-SUM($Y180:Z180)),0) -> 0 | AB180: =MAX(MIN(AB$40,$AO180-SUM($Y180:AA180)),0) -> 16.0917036 | AC180: =MAX(MIN(AC$40,$AO180-SUM($Y180:AB180)),0) -> 0 | AD180: =MAX(MIN(AD$40,$AO180-SUM($Y180:AC180)),0) -> 0 | AE180: =MAX(MIN(AE$40,$AO180-SUM($Y180:AD180)),0) -> 0 | AF180: =MAX(MIN(AF$40,$AO180-SUM($Y180:AE180)),0) -> 0 | AG180: =MAX(MIN(AG$40,$AO180-SUM($Y180:AF180)),0) -> 0 | AH180: =MAX(MIN(AH$40,$AO180-SUM($Y180:AG180)),0) -> 0 | AI180: =MAX(MIN(AI$40,$AO180-SUM($Y180:AH180)),0) -> 0 | AJ180: 76.0917036 | AK180: 0 | AL180: =INDEX(Demand!$C146:$H146,,$AM$13) -> 0.0002299108835 | AM180: =INDEX(Demand!$K146:$P146,,$AM$13) -> 0.1454262552 | AN180: 7.240704501 | AO180: 76.0917036 | AP180: 68.8509991 | AQ180: 61.24825938 | AR180: 7.602739726 | AS180: 134 | AT180: 134 | AU180: 700 | AV180: 96.77101914 | AW180: 60 | AX180: 0 | AY180: 36.77101914 | AZ180: 0 | BA180: 0 | BB180: 0 | BC180: 0 | BD180: 0 | BE180: 0 | BF180: 0 | BG180: 7.602739726 | BH180: 0
H181: 0 | I181: 0 | J181: 0 | K181: 0 | L181: 0 | M181: 0 | N181: 0 | O181: 0 | P181: 0 | Q181: 0 | R181: 0 | S181: 0 | T181: 0 | U181: 0 | X181: 0 | Y181: 0 | Z181: =MAX(MIN(Z$40*IF($Z$37="Solar",$AM181,1),$AO181-SUM($Y181:Y181)),0) -> 60 | AA181: =MAX(MIN(AA$40,$AO181-SUM($Y181:Z181)),0) -> 0 | AB181: =MAX(MIN(AB$40,$AO181-SUM($Y181:AA181)),0) -> 16.13721901 | AC181: =MAX(MIN(AC$40,$AO181-SUM($Y181:AB181)),0) -> 0 | AD181: =MAX(MIN(AD$40,$AO181-SUM($Y181:AC181)),0) -> 0 | AE181: =MAX(MIN(AE$40,$AO181-SUM($Y181:AD181)),0) -> 0 | AF181: =MAX(MIN(AF$40,$AO181-SUM($Y181:AE181)),0) -> 0 | AG181: =MAX(MIN(AG$40,$AO181-SUM($Y181:AF181)),0) -> 0 | AH181: =MAX(MIN(AH$40,$AO181-SUM($Y181:AG181)),0) -> 0 | AI181: =MAX(MIN(AI$40,$AO181-SUM($Y181:AH181)),0) -> 0 | AJ181: 76.13721901 | AK181: 0 | AL181: =INDEX(Demand!$C147:$H147,,$AM$13) -> 0.0002300817372 | AM181: =INDEX(Demand!$K147:$P147,,$AM$13) -> 0 | AN181: 7.240704501 | AO181: 76.13721901 | AP181: 68.89651451 | AQ181: 61.29377479 | AR181: 7.602739726 | AS181: 135 | AT181: 135 | AU181: 834 | AV181: 96.7339849 | AW181: 60 | AX181: 0 | AY181: 36.7339849 | AZ181: 0 | BA181: 0 | BB181: 0 | BC181: 0 | BD181: 0 | BE181: 0 | BF181: 0 | BG181: 7.602739726 | BH181: 0
H182: 0 | I182: 0 | J182: 0 | K182: 0 | L182: 0 | M182: 0 | N182: 0 | O182: 0 | P182: 0 | Q182: 0 | R182: 0 | S182: 0 | T182: 0 | U182: 0 | X182: 0 | Y182: 0 | Z182: =MAX(MIN(Z$40*IF($Z$37="Solar",$AM182,1),$AO182-SUM($Y182:Y182)),0) -> 60 | AA182: =MAX(MIN(AA$40,$AO182-SUM($Y182:Z182)),0) -> 0 | AB182: =MAX(MIN(AB$40,$AO182-SUM($Y182:AA182)),0) -> 16.15069785 | AC182: =MAX(MIN(AC$40,$AO182-SUM($Y182:AB182)),0) -> 0 | AD182: =MAX(MIN(AD$40,$AO182-SUM($Y182:AC182)),0) -> 0 | AE182: =MAX(MIN(AE$40,$AO182-SUM($Y182:AD182)),0) -> 0 | AF182: =MAX(MIN(AF$40,$AO182-SUM($Y182:AE182)),0) -> 0 | AG182: =MAX(MIN(AG$40,$AO182-SUM($Y182:AF182)),0) -> 0 | AH182: =MAX(MIN(AH$40,$AO182-SUM($Y182:AG182)),0) -> 0 | AI182: =MAX(MIN(AI$40,$AO182-SUM($Y182:AH182)),0) -> 0 | AJ182: 76.15069785 | AK182: 0 | AL182: =INDEX(Demand!$C148:$H148,,$AM$13) -> 0.0002301323334 | AM182: =INDEX(Demand!$K148:$P148,,$AM$13) -> 0 | AN182: 7.240704501 | AO182: 76.15069785 | AP182: 68.90999335 | AQ182: 61.30725362 | AR182: 7.602739726 | AS182: 136 | AT182: 136 | AU182: 699 | AV182: 96.72724968 | AW182: 60 | AX182: 0 | AY182: 36.72724968 | AZ182: 0 | BA182: 0 | BB182: 0 | BC182: 0 | BD182: 0 | BE182: 0 | BF182: 0 | BG182: 7.602739726 | BH182: 0
H183: 0 | I183: 0 | J183: 0 | K183: 0 | L183: 0 | M183: 0 | N183: 0 | O183: 0 | P183: 0 | Q183: 0 | R183: 0 | S183: 0 | T183: 0 | U183: 0 | X183: 0 | Y183: 0 | Z183: =MAX(MIN(Z$40*IF($Z$37="Solar",$AM183,1),$AO183-SUM($Y183:Y183)),0) -> 60 | AA183: =MAX(MIN(AA$40,$AO183-SUM($Y183:Z183)),0) -> 0 | AB183: =MAX(MIN(AB$40,$AO183-SUM($Y183:AA183)),0) -> 16.20595861 | AC183: =MAX(MIN(AC$40,$AO183-SUM($Y183:AB183)),0) -> 0 | AD183: =MAX(MIN(AD$40,$AO183-SUM($Y183:AC183)),0) -> 0 | AE183: =MAX(MIN(AE$40,$AO183-SUM($Y183:AD183)),0) -> 0 | AF183: =MAX(MIN(AF$40,$AO183-SUM($Y183:AE183)),0) -> 0 | AG183: =MAX(MIN(AG$40,$AO183-SUM($Y183:AF183)),0) -> 0 | AH183: =MAX(MIN(AH$40,$AO183-SUM($Y183:AG183)),0) -> 0 | AI183: =MAX(MIN(AI$40,$AO183-SUM($Y183:AH183)),0) -> 0 | AJ183: 76.20595861 | AK183: 0 | AL183: =INDEX(Demand!$C149:$H149,,$AM$13) -> 0.0002303397687 | AM183: =INDEX(Demand!$K149:$P149,,$AM$13) -> 0 | AN183: 7.240704501 | AO183: 76.20595861 | AP183: 68.9652541 | AQ183: 61.36251438 | AR183: 7.602739726 | AS183: 137 | AT183: 137 | AU183: 835 | AV183: 96.68444788 | AW183: 60 | AX183: 0 | AY183: 36.68444788 | AZ183: 0 | BA183: 0 | BB183: 0 | BC183: 0 | BD183: 0 | BE183: 0 | BF183: 0 | BG183: 7.602739726 | BH183: 0
H184: 0 | I184: 0 | J184: 0 | K184: 0 | L184: 0 | M184: 0 | N184: 0 | O184: 0 | P184: 0 | Q184: 0 | R184: 0 | S184: 0 | T184: 0 | U184: 0 | X184: 0 | Y184: 0 | Z184: =MAX(MIN(Z$40*IF($Z$37="Solar",$AM184,1),$AO184-SUM($Y184:Y184)),0) -> 60 | AA184: =MAX(MIN(AA$40,$AO184-SUM($Y184:Z184)),0) -> 0 | AB184: =MAX(MIN(AB$40,$AO184-SUM($Y184:AA184)),0) -> 16.22419413 | AC184: =MAX(MIN(AC$40,$AO184-SUM($Y184:AB184)),0) -> 0 | AD184: =MAX(MIN(AD$40,$AO184-SUM($Y184:AC184)),0) -> 0 | AE184: =MAX(MIN(AE$40,$AO184-SUM($Y184:AD184)),0) -> 0 | AF184: =MAX(MIN(AF$40,$AO184-SUM($Y184:AE184)),0) -> 0 | AG184: =MAX(MIN(AG$40,$AO184-SUM($Y184:AF184)),0) -> 0 | AH184: =MAX(MIN(AH$40,$AO184-SUM($Y184:AG184)),0) -> 0 | AI184: =MAX(MIN(AI$40,$AO184-SUM($Y184:AH184)),0) -> 0 | AJ184: 76.22419413 | AK184: 0 | AL184: =INDEX(Demand!$C150:$H150,,$AM$13) -> 0.0002304082203 | AM184: =INDEX(Demand!$K150:$P150,,$AM$13) -> 0 | AN184: 7.240704501 | AO184: 76.22419413 | AP184: 68.98348962 | AQ184: 61.3807499 | AR184: 7.602739726 | AS184: 138 | AT184: 138 | AU184: 698 | AV184: 96.67439798 | AW184: 60 | AX184: 0 | AY184: 36.67439798 | AZ184: 0 | BA184: 0 | BB184: 0 | BC184: 0 | BD184: 0 | BE184: 0 | BF184: 0 | BG184: 7.602739726 | BH184: 0
D185: 15 | X185: 0 | Y185: 0 | Z185: =MAX(MIN(Z$40*IF($Z$37="Solar",$AM185,1),$AO185-SUM($Y185:Y185)),0) -> 60 | AA185: =MAX(MIN(AA$40,$AO185-SUM($Y185:Z185)),0) -> 0 | AB185: =MAX(MIN(AB$40,$AO185-SUM($Y185:AA185)),0) -> 16.28159295 | AC185: =MAX(MIN(AC$40,$AO185-SUM($Y185:AB185)),0) -> 0 | AD185: =MAX(MIN(AD$40,$AO185-SUM($Y185:AC185)),0) -> 0 | AE185: =MAX(MIN(AE$40,$AO185-SUM($Y185:AD185)),0) -> 0 | AF185: =MAX(MIN(AF$40,$AO185-SUM($Y185:AE185)),0) -> 0 | AG185: =MAX(MIN(AG$40,$AO185-SUM($Y185:AF185)),0) -> 0 | AH185: =MAX(MIN(AH$40,$AO185-SUM($Y185:AG185)),0) -> 0 | AI185: =MAX(MIN(AI$40,$AO185-SUM($Y185:AH185)),0) -> 0 | AJ185: 76.28159295 | AK185: 0 | AL185: =INDEX(Demand!$C151:$H151,,$AM$13) -> 0.0002306236814 | AM185: =INDEX(Demand!$K151:$P151,,$AM$13) -> 0 | AN185: 7.240704501 | AO185: 76.28159295 | AP185: 69.04088845 | AQ185: 61.43814873 | AR185: 7.602739726 | AS185: 139 | AT185: 139 | AU185: 836 | AV185: 96.57348257 | AW185: 60 | AX185: 0 | AY185: 36.57348257 | AZ185: 0 | BA185: 0 | BB185: 0 | BC185: 0 | BD185: 0 | BE185: 0 | BF185: 0 | BG185: 7.602739726 | BH185: 0
X186: 0 | Y186: 0 | Z186: =MAX(MIN(Z$40*IF($Z$37="Solar",$AM186,1),$AO186-SUM($Y186:Y186)),0) -> 60 | AA186: =MAX(MIN(AA$40,$AO186-SUM($Y186:Z186)),0) -> 0 | AB186: =MAX(MIN(AB$40,$AO186-SUM($Y186:AA186)),0) -> 16.30328389 | AC186: =MAX(MIN(AC$40,$AO186-SUM($Y186:AB186)),0) -> 0 | AD186: =MAX(MIN(AD$40,$AO186-SUM($Y186:AC186)),0) -> 0 | AE186: =MAX(MIN(AE$40,$AO186-SUM($Y186:AD186)),0) -> 0 | AF186: =MAX(MIN(AF$40,$AO186-SUM($Y186:AE186)),0) -> 0 | AG186: =MAX(MIN(AG$40,$AO186-SUM($Y186:AF186)),0) -> 0 | AH186: =MAX(MIN(AH$40,$AO186-SUM($Y186:AG186)),0) -> 0 | AI186: =MAX(MIN(AI$40,$AO186-SUM($Y186:AH186)),0) -> 0 | AJ186: 76.30328389 | AK186: 0 | AL186: =INDEX(Demand!$C152:$H152,,$AM$13) -> 0.0002307051038 | AM186: =INDEX(Demand!$K152:$P152,,$AM$13) -> 0 | AN186: 7.240704501 | AO186: 76.30328389 | AP186: 69.06257939 | AQ186: 61.45983967 | AR186: 7.602739726 | AS186: 140 | AT186: 140 | AU186: 697 | AV186: 96.55054278 | AW186: 60 | AX186: 0 | AY186: 36.55054278 | AZ186: 0 | BA186: 0 | BB186: 0 | BC186: 0 | BD186: 0 | BE186: 0 | BF186: 0 | BG186: 7.602739726 | BH186: 0
X187: 0 | Y187: 0 | Z187: =MAX(MIN(Z$40*IF($Z$37="Solar",$AM187,1),$AO187-SUM($Y187:Y187)),0) -> 60 | AA187: =MAX(MIN(AA$40,$AO187-SUM($Y187:Z187)),0) -> 0 | AB187: =MAX(MIN(AB$40,$AO187-SUM($Y187:AA187)),0) -> 16.33728253 | AC187: =MAX(MIN(AC$40,$AO187-SUM($Y187:AB187)),0) -> 0 | AD187: =MAX(MIN(AD$40,$AO187-SUM($Y187:AC187)),0) -> 0 | AE187: =MAX(MIN(AE$40,$AO187-SUM($Y187:AD187)),0) -> 0 | AF187: =MAX(MIN(AF$40,$AO187-SUM($Y187:AE187)),0) -> 0 | AG187: =MAX(MIN(AG$40,$AO187-SUM($Y187:AF187)),0) -> 0 | AH187: =MAX(MIN(AH$40,$AO187-SUM($Y187:AG187)),0) -> 0 | AI187: =MAX(MIN(AI$40,$AO187-SUM($Y187:AH187)),0) -> 0 | AJ187: 76.33728253 | AK187: 0 | AL187: =INDEX(Demand!$C153:$H153,,$AM$13) -> 0.0002308327264 | AM187: =INDEX(Demand!$K153:$P153,,$AM$13) -> 0 | AN187: 7.240704501 | AO187: 76.33728253 | AP187: 69.09657803 | AQ187: 61.4938383 | AR187: 7.602739726 | AS187: 141 | AT187: 141 | AU187: 837 | AV187: 96.53102733 | AW187: 60 | AX187: 0 | AY187: 36.53102733 | AZ187: 0 | BA187: 0 | BB187: 0 | BC187: 0 | BD187: 0 | BE187: 0 | BF187: 0 | BG187: 7.602739726 | BH187: 0
X188: 0 | Y188: 0 | Z188: =MAX(MIN(Z$40*IF($Z$37="Solar",$AM188,1),$AO188-SUM($Y188:Y188)),0) -> 60 | AA188: =MAX(MIN(AA$40,$AO188-SUM($Y188:Z188)),0) -> 0 | AB188: =MAX(MIN(AB$40,$AO188-SUM($Y188:AA188)),0) -> 16.34886383 | AC188: =MAX(MIN(AC$40,$AO188-SUM($Y188:AB188)),0) -> 0 | AD188: =MAX(MIN(AD$40,$AO188-SUM($Y188:AC188)),0) -> 0 | AE188: =MAX(MIN(AE$40,$AO188-SUM($Y188:AD188)),0) -> 0 | AF188: =MAX(MIN(AF$40,$AO188-SUM($Y188:AE188)),0) -> 0 | AG188: =MAX(MIN(AG$40,$AO188-SUM($Y188:AF188)),0) -> 0 | AH188: =MAX(MIN(AH$40,$AO188-SUM($Y188:AG188)),0) -> 0 | AI188: =MAX(MIN(AI$40,$AO188-SUM($Y188:AH188)),0) -> 0 | AJ188: 76.34886383 | AK188: 0 | AL188: =INDEX(Demand!$C154:$H154,,$AM$13) -> 0.0002308761997 | AM188: =INDEX(Demand!$K154:$P154,,$AM$13) -> 0 | AN188: 7.240704501 | AO188: 76.34886383 | AP188: 69.10815933 | AQ188: 61.50541961 | AR188: 7.602739726 | AS188: 142 | AT188: 142 | AU188: 696 | AV188: 96.48790752 | AW188: 60 | AX188: 0 | AY188: 36.48790752 | AZ188: 0 | BA188: 0 | BB188: 0 | BC188: 0 | BD188: 0 | BE188: 0 | BF188: 0 | BG188: 7.602739726 | BH188: 0
X189: 0 | Y189: 0 | Z189: =MAX(MIN(Z$40*IF($Z$37="Solar",$AM189,1),$AO189-SUM($Y189:Y189)),0) -> 60 | AA189: =MAX(MIN(AA$40,$AO189-SUM($Y189:Z189)),0) -> 0 | AB189: =MAX(MIN(AB$40,$AO189-SUM($Y189:AA189)),0) -> 16.37577669 | AC189: =MAX(MIN(AC$40,$AO189-SUM($Y189:AB189)),0) -> 0 | AD189: =MAX(MIN(AD$40,$AO189-SUM($Y189:AC189)),0) -> 0 | AE189: =MAX(MIN(AE$40,$AO189-SUM($Y189:AD189)),0) -> 0 | AF189: =MAX(MIN(AF$40,$AO189-SUM($Y189:AE189)),0) -> 0 | AG189: =MAX(MIN(AG$40,$AO189-SUM($Y189:AF189)),0) -> 0 | AH189: =MAX(MIN(AH$40,$AO189-SUM($Y189:AG189)),0) -> 0 | AI189: =MAX(MIN(AI$40,$AO189-SUM($Y189:AH189)),0) -> 0 | AJ189: 76.37577669 | AK189: 0 | AL189: =INDEX(Demand!$C155:$H155,,$AM$13) -> 0.0002309772239 | AM189: =INDEX(Demand!$K155:$P155,,$AM$13) -> 0 | AN189: 7.240704501 | AO189: 76.37577669 | AP189: 69.13507219 | AQ189: 61.53233246 | AR189: 7.602739726 | AS189: 143 | AT189: 143 | AU189: 838 | AV189: 96.34826582 | AW189: 60 | AX189: 0 | AY189: 36.34826582 | AZ189: 0 | BA189: 0 | BB189: 0 | BC189: 0 | BD189: 0 | BE189: 0 | BF189: 0 | BG189: 7.602739726 | BH189: 0
X190: 0 | Y190: 0 | Z190: =MAX(MIN(Z$40*IF($Z$37="Solar",$AM190,1),$AO190-SUM($Y190:Y190)),0) -> 60 | AA190: =MAX(MIN(AA$40,$AO190-SUM($Y190:Z190)),0) -> 0 | AB190: =MAX(MIN(AB$40,$AO190-SUM($Y190:AA190)),0) -> 16.38098449 | AC190: =MAX(MIN(AC$40,$AO190-SUM($Y190:AB190)),0) -> 0 | AD190: =MAX(MIN(AD$40,$AO190-SUM($Y190:AC190)),0) -> 0 | AE190: =MAX(MIN(AE$40,$AO190-SUM($Y190:AD190)),0) -> 0 | AF190: =MAX(MIN(AF$40,$AO190-SUM($Y190:AE190)),0) -> 0 | AG190: =MAX(MIN(AG$40,$AO190-SUM($Y190:AF190)),0) -> 0 | AH190: =MAX(MIN(AH$40,$AO190-SUM($Y190:AG190)),0) -> 0 | AI190: =MAX(MIN(AI$40,$AO190-SUM($Y190:AH190)),0) -> 0 | AJ190: 76.38098449 | AK190: 0 | AL190: =INDEX(Demand!$C156:$H156,,$AM$13) -> 0.0002309967728 | AM190: =INDEX(Demand!$K156:$P156,,$AM$13) -> 0 | AN190: 7.240704501 | AO190: 76.38098449 | AP190: 69.14027999 | AQ190: 61.53754026 | AR190: 7.602739726 | AS190: 144 | AT190: 144 | AU190: 695 | AV190: 96.34407881 | AW190: 60 | AX190: 0 | AY190: 36.34407881 | AZ190: 0 | BA190: 0 | BB190: 0 | BC190: 0 | BD190: 0 | BE190: 0 | BF190: 0 | BG190: 7.602739726 | BH190: 0
X191: 0 | Y191: 0 | Z191: =MAX(MIN(Z$40*IF($Z$37="Solar",$AM191,1),$AO191-SUM($Y191:Y191)),0) -> 60 | AA191: =MAX(MIN(AA$40,$AO191-SUM($Y191:Z191)),0) -> 0 | AB191: =MAX(MIN(AB$40,$AO191-SUM($Y191:AA191)),0) -> 16.40399973 | AC191: =MAX(MIN(AC$40,$AO191-SUM($Y191:AB191)),0) -> 0 | AD191: =MAX(MIN(AD$40,$AO191-SUM($Y191:AC191)),0) -> 0 | AE191: =MAX(MIN(AE$40,$AO191-SUM($Y191:AD191)),0) -> 0 | AF191: =MAX(MIN(AF$40,$AO191-SUM($Y191:AE191)),0) -> 0 | AG191: =MAX(MIN(AG$40,$AO191-SUM($Y191:AF191)),0) -> 0 | AH191: =MAX(MIN(AH$40,$AO191-SUM($Y191:AG191)),0) -> 0 | AI191: =MAX(MIN(AI$40,$AO191-SUM($Y191:AH191)),0) -> 0 | AJ191: 76.40399973 | AK191: 0 | AL191: =INDEX(Demand!$C157:$H157,,$AM$13) -> 0.0002310831663 | AM191: =INDEX(Demand!$K157:$P157,,$AM$13) -> 0 | AN191: 7.240704501 | AO191: 76.40399973 | AP191: 69.16329523 | AQ191: 61.5605555 | AR191: 7.602739726 | AS191: 145 | AT191: 145 | AU191: 839 | AV191: 96.34373296 | AW191: 60 | AX191: 0 | AY191: 36.34373296 | AZ191: 0 | BA191: 0 | BB191: 0 | BC191: 0 | BD191: 0 | BE191: 0 | BF191: 0 | BG191: 7.602739726 | BH191: 0
X192: 0 | Y192: 0 | Z192: =MAX(MIN(Z$40*IF($Z$37="Solar",$AM192,1),$AO192-SUM($Y192:Y192)),0) -> 60 | AA192: =MAX(MIN(AA$40,$AO192-SUM($Y192:Z192)),0) -> 0 | AB192: =MAX(MIN(AB$40,$AO192-SUM($Y192:AA192)),0) -> 16.42351613 | AC192: =MAX(MIN(AC$40,$AO192-SUM($Y192:AB192)),0) -> 0 | AD192: =MAX(MIN(AD$40,$AO192-SUM($Y192:AC192)),0) -> 0 | AE192: =MAX(MIN(AE$40,$AO192-SUM($Y192:AD192)),0) -> 0 | AF192: =MAX(MIN(AF$40,$AO192-SUM($Y192:AE192)),0) -> 0 | AG192: =MAX(MIN(AG$40,$AO192-SUM($Y192:AF192)),0) -> 0 | AH192: =MAX(MIN(AH$40,$AO192-SUM($Y192:AG192)),0) -> 0 | AI192: =MAX(MIN(AI$40,$AO192-SUM($Y192:AH192)),0) -> 0 | AJ192: 76.42351613 | AK192: 0 | AL192: =INDEX(Demand!$C158:$H158,,$AM$13) -> 0.0002311564261 | AM192: =INDEX(Demand!$K158:$P158,,$AM$13) -> 0 | AN192: 7.240704501 | AO192: 76.42351613 | AP192: 69.18281163 | AQ192: 61.58007191 | AR192: 7.602739726 | AS192: 146 | AT192: 146 | AU192: 694 | AV192: 96.27541754 | AW192: 60 | AX192: 0 | AY192: 36.27541754 | AZ192: 0 | BA192: 0 | BB192: 0 | BC192: 0 | BD192: 0 | BE192: 0 | BF192: 0 | BG192: 7.602739726 | BH192: 0
X193: 0 | Y193: 0 | Z193: =MAX(MIN(Z$40*IF($Z$37="Solar",$AM193,1),$AO193-SUM($Y193:Y193)),0) -> 60 | AA193: =MAX(MIN(AA$40,$AO193-SUM($Y193:Z193)),0) -> 0 | AB193: =MAX(MIN(AB$40,$AO193-SUM($Y193:AA193)),0) -> 16.42453736 | AC193: =MAX(MIN(AC$40,$AO193-SUM($Y193:AB193)),0) -> 0 | AD193: =MAX(MIN(AD$40,$AO193-SUM($Y193:AC193)),0) -> 0 | AE193: =MAX(MIN(AE$40,$AO193-SUM($Y193:AD193)),0) -> 0 | AF193: =MAX(MIN(AF$40,$AO193-SUM($Y193:AE193)),0) -> 0 | AG193: =MAX(MIN(AG$40,$AO193-SUM($Y193:AF193)),0) -> 0 | AH193: =MAX(MIN(AH$40,$AO193-SUM($Y193:AG193)),0) -> 0 | AI193: =MAX(MIN(AI$40,$AO193-SUM($Y193:AH193)),0) -> 0 | AJ193: 76.42453736 | AK193: 0 | AL193: =INDEX(Demand!$C159:$H159,,$AM$13) -> 0.0002311602595 | AM193: =INDEX(Demand!$K159:$P159,,$AM$13) -> 0 | AN193: 7.240704501 | AO193: 76.42453736 | AP193: 69.18383286 | AQ193: 61.58109313 | AR193: 7.602739726 | AS193: 147 | AT193: 147 | AU193: 840 | AV193: 96.2745741 | AW193: 60 | AX193: 0 | AY193: 36.2745741 | AZ193: 0 | BA193: 0 | BB193: 0 | BC193: 0 | BD193: 0 | BE193: 0 | BF193: 0 | BG193: 7.602739726 | BH193: 0
X194: 0 | Y194: 0 | Z194: =MAX(MIN(Z$40*IF($Z$37="Solar",$AM194,1),$AO194-SUM($Y194:Y194)),0) -> 60 | AA194: =MAX(MIN(AA$40,$AO194-SUM($Y194:Z194)),0) -> 0 | AB194: =MAX(MIN(AB$40,$AO194-SUM($Y194:AA194)),0) -> 16.43136709 | AC194: =MAX(MIN(AC$40,$AO194-SUM($Y194:AB194)),0) -> 0 | AD194: =MAX(MIN(AD$40,$AO194-SUM($Y194:AC194)),0) -> 0 | AE194: =MAX(MIN(AE$40,$AO194-SUM($Y194:AD194)),0) -> 0 | AF194: =MAX(MIN(AF$40,$AO194-SUM($Y194:AE194)),0) -> 0 | AG194: =MAX(MIN(AG$40,$AO194-SUM($Y194:AF194)),0) -> 0 | AH194: =MAX(MIN(AH$40,$AO194-SUM($Y194:AG194)),0) -> 0 | AI194: =MAX(MIN(AI$40,$AO194-SUM($Y194:AH194)),0) -> 0 | AJ194: 76.43136709 | AK194: 0 | AL194: =INDEX(Demand!$C160:$H160,,$AM$13) -> 0.0002311858966 | AM194: =INDEX(Demand!$K160:$P160,,$AM$13) -> 0 | AN194: 7.240704501 | AO194: 76.43136709 | AP194: 69.19066259 | AQ194: 61.58792286 | AR194: 7.602739726 | AS194: 148 | AT194: 148 | AU194: 693 | AV194: 96.22216307 | AW194: 60 | AX194: 0 | AY194: 36.22216307 | AZ194: 0 | BA194: 0 | BB194: 0 | BC194: 0 | BD194: 0 | BE194: 0 | BF194: 0 | BG194: 7.602739726 | BH194: 0
D195: 16 | X195: 0 | Y195: 0 | Z195: =MAX(MIN(Z$40*IF($Z$37="Solar",$AM195,1),$AO195-SUM($Y195:Y195)),0) -> 60 | AA195: =MAX(MIN(AA$40,$AO195-SUM($Y195:Z195)),0) -> 0 | AB195: =MAX(MIN(AB$40,$AO195-SUM($Y195:AA195)),0) -> 16.446124 | AC195: =MAX(MIN(AC$40,$AO195-SUM($Y195:AB195)),0) -> 0 | AD195: =MAX(MIN(AD$40,$AO195-SUM($Y195:AC195)),0) -> 0 | AE195: =MAX(MIN(AE$40,$AO195-SUM($Y195:AD195)),0) -> 0 | AF195: =MAX(MIN(AF$40,$AO195-SUM($Y195:AE195)),0) -> 0 | AG195: =MAX(MIN(AG$40,$AO195-SUM($Y195:AF195)),0) -> 0 | AH195: =MAX(MIN(AH$40,$AO195-SUM($Y195:AG195)),0) -> 0 | AI195: =MAX(MIN(AI$40,$AO195-SUM($Y195:AH195)),0) -> 0 | AJ195: 76.446124 | AK195: 0 | AL195: =INDEX(Demand!$C161:$H161,,$AM$13) -> 0.0002312412904 | AM195: =INDEX(Demand!$K161:$P161,,$AM$13) -> 0 | AN195: 7.240704501 | AO195: 76.446124 | AP195: 69.2054195 | AQ195: 61.60267977 | AR195: 7.602739726 | AS195: 149 | AT195: 149 | AU195: 841 | AV195: 96.21687201 | AW195: 60 | AX195: 0 | AY195: 36.21687201 | AZ195: 0 | BA195: 0 | BB195: 0 | BC195: 0 | BD195: 0 | BE195: 0 | BF195: 0 | BG195: 7.602739726 | BH195: 0
X196: 0 | Y196: 0 | Z196: =MAX(MIN(Z$40*IF($Z$37="Solar",$AM196,1),$AO196-SUM($Y196:Y196)),0) -> 60 | AA196: =MAX(MIN(AA$40,$AO196-SUM($Y196:Z196)),0) -> 0 | AB196: =MAX(MIN(AB$40,$AO196-SUM($Y196:AA196)),0) -> 16.45222378 | AC196: =MAX(MIN(AC$40,$AO196-SUM($Y196:AB196)),0) -> 0 | AD196: =MAX(MIN(AD$40,$AO196-SUM($Y196:AC196)),0) -> 0 | AE196: =MAX(MIN(AE$40,$AO196-SUM($Y196:AD196)),0) -> 0 | AF196: =MAX(MIN(AF$40,$AO196-SUM($Y196:AE196)),0) -> 0 | AG196: =MAX(MIN(AG$40,$AO196-SUM($Y196:AF196)),0) -> 0 | AH196: =MAX(MIN(AH$40,$AO196-SUM($Y196:AG196)),0) -> 0 | AI196: =MAX(MIN(AI$40,$AO196-SUM($Y196:AH196)),0) -> 0 | AJ196: 76.45222378 | AK196: 0 | AL196: =INDEX(Demand!$C162:$H162,,$AM$13) -> 0.0002312641875 | AM196: =INDEX(Demand!$K162:$P162,,$AM$13) -> 0 | AN196: 7.240704501 | AO196: 76.45222378 | AP196: 69.21151928 | AQ196: 61.60877956 | AR196: 7.602739726 | AS196: 150 | AT196: 150 | AU196: 692 | AV196: 96.15605343 | AW196: 60 | AX196: 0 | AY196: 36.15605343 | AZ196: 0 | BA196: 0 | BB196: 0 | BC196: 0 | BD196: 0 | BE196: 0 | BF196: 0 | BG196: 7.602739726 | BH196: 0
X197: 0 | Y197: 0 | Z197: =MAX(MIN(Z$40*IF($Z$37="Solar",$AM197,1),$AO197-SUM($Y197:Y197)),0) -> 60 | AA197: =MAX(MIN(AA$40,$AO197-SUM($Y197:Z197)),0) -> 0 | AB197: =MAX(MIN(AB$40,$AO197-SUM($Y197:AA197)),0) -> 16.47448596 | AC197: =MAX(MIN(AC$40,$AO197-SUM($Y197:AB197)),0) -> 0 | AD197: =MAX(MIN(AD$40,$AO197-SUM($Y197:AC197)),0) -> 0 | AE197: =MAX(MIN(AE$40,$AO197-SUM($Y197:AD197)),0) -> 0 | AF197: =MAX(MIN(AF$40,$AO197-SUM($Y197:AE197)),0) -> 0 | AG197: =MAX(MIN(AG$40,$AO197-SUM($Y197:AF197)),0) -> 0 | AH197: =MAX(MIN(AH$40,$AO197-SUM($Y197:AG197)),0) -> 0 | AI197: =MAX(MIN(AI$40,$AO197-SUM($Y197:AH197)),0) -> 0 | AJ197: 76.47448596 | AK197: 0 | AL197: =INDEX(Demand!$C163:$H163,,$AM$13) -> 0.0002313477542 | AM197: =INDEX(Demand!$K163:$P163,,$AM$13) -> 0 | AN197: 7.240704501 | AO197: 76.47448596 | AP197: 69.23378146 | AQ197: 61.63104173 | AR197: 7.602739726 | AS197: 151 | AT197: 151 | AU197: 842 | AV197: 96.1493136 | AW197: 60 | AX197: 0 | AY197: 36.1493136 | AZ197: 0 | BA197: 0 | BB197: 0 | BC197: 0 | BD197: 0 | BE197: 0 | BF197: 0 | BG197: 7.602739726 | BH197: 0
X198: 0 | Y198: 0 | Z198: =MAX(MIN(Z$40*IF($Z$37="Solar",$AM198,1),$AO198-SUM($Y198:Y198)),0) -> 60 | AA198: =MAX(MIN(AA$40,$AO198-SUM($Y198:Z198)),0) -> 0 | AB198: =MAX(MIN(AB$40,$AO198-SUM($Y198:AA198)),0) -> 16.49070477 | AC198: =MAX(MIN(AC$40,$AO198-SUM($Y198:AB198)),0) -> 0 | AD198: =MAX(MIN(AD$40,$AO198-SUM($Y198:AC198)),0) -> 0 | AE198: =MAX(MIN(AE$40,$AO198-SUM($Y198:AD198)),0) -> 0 | AF198: =MAX(MIN(AF$40,$AO198-SUM($Y198:AE198)),0) -> 0 | AG198: =MAX(MIN(AG$40,$AO198-SUM($Y198:AF198)),0) -> 0 | AH198: =MAX(MIN(AH$40,$AO198-SUM($Y198:AG198)),0) -> 0 | AI198: =MAX(MIN(AI$40,$AO198-SUM($Y198:AH198)),0) -> 0 | AJ198: 76.49070477 | AK198: 0 | AL198: =INDEX(Demand!$C164:$H164,,$AM$13) -> 0.0002314086357 | AM198: =INDEX(Demand!$K164:$P164,,$AM$13) -> 0.1410740661 | AN198: 7.240704501 | AO198: 76.49070477 | AP198: 69.25000027 | AQ198: 61.64726054 | AR198: 7.602739726 | AS198: 152 | AT198: 152 | AU198: 691 | AV198: 96.09370811 | AW198: 60 | AX198: 0 | AY198: 36.09370811 | AZ198: 0 | BA198: 0 | BB198: 0 | BC198: 0 | BD198: 0 | BE198: 0 | BF198: 0 | BG198: 7.602739726 | BH198: 0
X199: 0 | Y199: 0 | Z199: =MAX(MIN(Z$40*IF($Z$37="Solar",$AM199,1),$AO199-SUM($Y199:Y199)),0) -> 60 | AA199: =MAX(MIN(AA$40,$AO199-SUM($Y199:Z199)),0) -> 0 | AB199: =MAX(MIN(AB$40,$AO199-SUM($Y199:AA199)),0) -> 16.50335343 | AC199: =MAX(MIN(AC$40,$AO199-SUM($Y199:AB199)),0) -> 0 | AD199: =MAX(MIN(AD$40,$AO199-SUM($Y199:AC199)),0) -> 0 | AE199: =MAX(MIN(AE$40,$AO199-SUM($Y199:AD199)),0) -> 0 | AF199: =MAX(MIN(AF$40,$AO199-SUM($Y199:AE199)),0) -> 0 | AG199: =MAX(MIN(AG$40,$AO199-SUM($Y199:AF199)),0) -> 0 | AH199: =MAX(MIN(AH$40,$AO199-SUM($Y199:AG199)),0) -> 0 | AI199: =MAX(MIN(AI$40,$AO199-SUM($Y199:AH199)),0) -> 0 | AJ199: 76.50335343 | AK199: 0 | AL199: =INDEX(Demand!$C165:$H165,,$AM$13) -> 0.0002314561156 | AM199: =INDEX(Demand!$K165:$P165,,$AM$13) -> 0.4374852014 | AN199: 7.240704501 | AO199: 76.50335343 | AP199: 69.26264893 | AQ199: 61.6599092 | AR199: 7.602739726 | AS199: 153 | AT199: 153 | AU199: 843 | AV199: 96.06048658 | AW199: 60 | AX199: 0 | AY199: 36.06048658 | AZ199: 0 | BA199: 0 | BB199: 0 | BC199: 0 | BD199: 0 | BE199: 0 | BF199: 0 | BG199: 7.602739726 | BH199: 0
X200: 0 | Y200: 0 | Z200: =MAX(MIN(Z$40*IF($Z$37="Solar",$AM200,1),$AO200-SUM($Y200:Y200)),0) -> 60 | AA200: =MAX(MIN(AA$40,$AO200-SUM($Y200:Z200)),0) -> 0 | AB200: =MAX(MIN(AB$40,$AO200-SUM($Y200:AA200)),0) -> 16.52009985 | AC200: =MAX(MIN(AC$40,$AO200-SUM($Y200:AB200)),0) -> 0 | AD200: =MAX(MIN(AD$40,$AO200-SUM($Y200:AC200)),0) -> 0 | AE200: =MAX(MIN(AE$40,$AO200-SUM($Y200:AD200)),0) -> 0 | AF200: =MAX(MIN(AF$40,$AO200-SUM($Y200:AE200)),0) -> 0 | AG200: =MAX(MIN(AG$40,$AO200-SUM($Y200:AF200)),0) -> 0 | AH200: =MAX(MIN(AH$40,$AO200-SUM($Y200:AG200)),0) -> 0 | AI200: =MAX(MIN(AI$40,$AO200-SUM($Y200:AH200)),0) -> 0 | AJ200: 76.52009985 | AK200: 0 | AL200: =INDEX(Demand!$C166:$H166,,$AM$13) -> 0.0002315189776 | AM200: =INDEX(Demand!$K166:$P166,,$AM$13) -> 0.3451082973 | AN200: 7.240704501 | AO200: 76.52009985 | AP200: 69.27939535 | AQ200: 61.67665562 | AR200: 7.602739726 | AS200: 154 | AT200: 154 | AU200: 690 | AV200: 95.99464069 | AW200: 60 | AX200: 0 | AY200: 35.99464069 | AZ200: 0 | BA200: 0 | BB200: 0 | BC200: 0 | BD200: 0 | BE200: 0 | BF200: 0 | BG200: 7.602739726 | BH200: 0
X201: 0 | Y201: 0 | Z201: =MAX(MIN(Z$40*IF($Z$37="Solar",$AM201,1),$AO201-SUM($Y201:Y201)),0) -> 60 | AA201: =MAX(MIN(AA$40,$AO201-SUM($Y201:Z201)),0) -> 0 | AB201: =MAX(MIN(AB$40,$AO201-SUM($Y201:AA201)),0) -> 16.52602118 | AC201: =MAX(MIN(AC$40,$AO201-SUM($Y201:AB201)),0) -> 0 | AD201: =MAX(MIN(AD$40,$AO201-SUM($Y201:AC201)),0) -> 0 | AE201: =MAX(MIN(AE$40,$AO201-SUM($Y201:AD201)),0) -> 0 | AF201: =MAX(MIN(AF$40,$AO201-SUM($Y201:AE201)),0) -> 0 | AG201: =MAX(MIN(AG$40,$AO201-SUM($Y201:AF201)),0) -> 0 | AH201: =MAX(MIN(AH$40,$AO201-SUM($Y201:AG201)),0) -> 0 | AI201: =MAX(MIN(AI$40,$AO201-SUM($Y201:AH201)),0) -> 0 | AJ201: 76.52602118 | AK201: 0 | AL201: =INDEX(Demand!$C167:$H167,,$AM$13) -> 0.0002315412048 | AM201: =INDEX(Demand!$K167:$P167,,$AM$13) -> 0.3128953332 | AN201: 7.240704501 | AO201: 76.52602118 | AP201: 69.28531668 | AQ201: 61.68257695 | AR201: 7.602739726 | AS201: 155 | AT201: 155 | AU201: 844 | AV201: 95.97044193 | AW201: 60 | AX201: 0 | AY201: 35.97044193 | AZ201: 0 | BA201: 0 | BB201: 0 | BC201: 0 | BD201: 0 | BE201: 0 | BF201: 0 | BG201: 7.602739726 | BH201: 0
X202: 0 | Y202: 0 | Z202: =MAX(MIN(Z$40*IF($Z$37="Solar",$AM202,1),$AO202-SUM($Y202:Y202)),0) -> 60 | AA202: =MAX(MIN(AA$40,$AO202-SUM($Y202:Z202)),0) -> 0 | AB202: =MAX(MIN(AB$40,$AO202-SUM($Y202:AA202)),0) -> 16.55544437 | AC202: =MAX(MIN(AC$40,$AO202-SUM($Y202:AB202)),0) -> 0 | AD202: =MAX(MIN(AD$40,$AO202-SUM($Y202:AC202)),0) -> 0 | AE202: =MAX(MIN(AE$40,$AO202-SUM($Y202:AD202)),0) -> 0 | AF202: =MAX(MIN(AF$40,$AO202-SUM($Y202:AE202)),0) -> 0 | AG202: =MAX(MIN(AG$40,$AO202-SUM($Y202:AF202)),0) -> 0 | AH202: =MAX(MIN(AH$40,$AO202-SUM($Y202:AG202)),0) -> 0 | AI202: =MAX(MIN(AI$40,$AO202-SUM($Y202:AH202)),0) -> 0 | AJ202: 76.55544437 | AK202: 0 | AL202: =INDEX(Demand!$C168:$H168,,$AM$13) -> 0.0002316516522 | AM202: =INDEX(Demand!$K168:$P168,,$AM$13) -> 0.3497649141 | AN202: 7.240704501 | AO202: 76.55544437 | AP202: 69.31473987 | AQ202: 61.71200015 | AR202: 7.602739726 | AS202: 156 | AT202: 156 | AU202: 689 | AV202: 95.93671722 | AW202: 60 | AX202: 0 | AY202: 35.93671722 | AZ202: 0 | BA202: 0 | BB202: 0 | BC202: 0 | BD202: 0 | BE202: 0 | BF202: 0 | BG202: 7.602739726 | BH202: 0
... 923 more rows

Sheet Individual
A1: Individual plant mixes
A2: Calculating key indicators for all mixes of individual heating.
C4: Figure I1 | D4: =$E$9 -> Marginal cost indicators for All individual
C5: Source: | D5: =D8 -> Table I.A1
D8: Table I.A1 | E8: =E9 -> Marginal cost indicators for All individual
E9: ="Marginal cost indicators for "&Individual_Mix_Name -> Marginal cost indicators for All individual
E10: EUR/MWh | J10: LCOE
E11: CAPEX | F11: Fixed OPEX | G11: Variable OPEX | H11: Fuel | I11: Distribution
D12: =IF(E30<>"",E30,"") -> Gas boiler | E12: =IF(X30*J30<>0,1000*AA30/(X30*J30),0) -> 26.03489773 | F12: =IF(X30*J30<>0,1000*AB30/(X30*J30),0) -> 6.218181818 | G12: =IF(X30*J30<>0,N30,0) -> 0 | H12: =IF(X30*J30<>0,IFERROR(VLOOKUP(G30,Fuels!$BQ$11:$BR$24,2,0)*3.6/J30,0),0) -> 0 | I12: =IF(X30*J30<>0,O30/J30,0) -> 40 | J12: =SUM(E12:I12) -> 72.25307955
D13: Oil boiler | E13: 33.47343994 | F13: 4.545454545 | G13: 0 | H13: =IF(X31*J31<>0,IFERROR(VLOOKUP(G31,Fuels!$BQ$11:$BR$24,2,0)*3.6/J31,0),0) -> 0 | I13: 11.61290323 | J13: 49.63179771
D14: Wood pellet boiler | E14: 69.80785765 | F14: 4.545454545 | G14: 0 | H14: =IF(X32*J32<>0,IFERROR(VLOOKUP(G32,Fuels!$BQ$11:$BR$24,2,0)*3.6/J32,0),0) -> 0 | I14: 24 | J14: 98.35331219
D15: Wood chips boiler | E15: 73.81322653 | F15: 9.090909091 | G15: 0 | H15: =IF(X33*J33<>0,IFERROR(VLOOKUP(G33,Fuels!$BQ$11:$BR$24,2,0)*3.6/J33,0),0) -> 0 | I15: 24.26966292 | J15: 107.1737985
D16: Heat pump - water to water, groundwater well | E16: 59.50833767 | F16: 13.63636364 | G16: 0 | H16: =IF(X34*J34<>0,IFERROR(VLOOKUP(G34,Fuels!$BQ$11:$BR$24,2,0)*3.6/J34,0),0) -> 0 | I16: 13.45794393 | J16: 86.60264523
D17: Heat pump - air to water | E17: 66.08858654 | F17: 13.63636364 | G17: 0 | H17: =IF(X35*J35<>0,IFERROR(VLOOKUP(G35,Fuels!$BQ$11:$BR$24,2,0)*3.6/J35,0),0) -> 0 | I17: 19.2 | J17: 98.92495018
D18: Hydrogen boiler | E18: 26.89319106 | F18: 4.545454545 | G18: 0 | H18: =IF(X36*J36<>0,IFERROR(VLOOKUP(G36,Fuels!$BQ$11:$BR$24,2,0)*3.6/J36,0),0) -> 0 | I18: 61.81818182 | J18: 93.25682742
D19: Solar flat plate colletors | E19: 41.4841777 | F19: 4.545454545 | G19: 0 | H19: =IF(X37*J37<>0,IFERROR(VLOOKUP(G37,Fuels!$BQ$11:$BR$24,2,0)*3.6/J37,0),0) -> 0 | I19: 0 | J19: 46.02963224
D20: Electric heating | E20: 16.39481019 | F20: 4.545454545 | G20: 0 | H20: =IF(X38*J38<>0,IFERROR(VLOOKUP(G38,Fuels!$BQ$11:$BR$24,2,0)*3.6/J38,0),0) -> 0 | I20: 72 | J20: 92.94026473
D21: Micro CHP - biogas | E21: 94.77602746 | F21: 9.090909091 | G21: 0 | H21: =IF(X39*J39<>0,IFERROR(VLOOKUP(G39,Fuels!$BQ$11:$BR$24,2,0)*3.6/J39,0),0) -> 0 | I21: 57.39130435 | J21: 161.2582409
D22: Weighted avg. | E22: =SUMPRODUCT($X$30:$X$39,E12:E21)/$X40 -> 51.33072334 | F22: 6.44168565 | G22: 0 | H22: 0 | I22: 35.96660096 | J22: 93.73900995
D23: Source: | E23: =D26 -> Table I1
D26: Table I1 | E26: Technology for new individual plant mix
G27: Technical | L27: Unit costs | P27: Emissions | X27: Total system indicators
E28: Technology | F28: Share, % | G28: Fuel | H28: Lifetime | I28: Buildtime | J28: Heat eff. | K28: Elec. eff. | L28: CAPEX | M28: Fixed OPEX | N28: Variable OPEX | O28: Fuel distr. | P28: SO2 | Q28: SO₂ in fuel | R28: CO₂ | S28: CH4 | T28: N2O | U28: SO₂ | V28: NOx | W28: PM2.5 | X28: Fuel | Y28: Effect | Z28: CAPEX | AA28: CAPEX | AB28: FOPEX | AD28: Table I.A2 | AE28: Indices
D29: Mix name | E29: =IF(Individual_ShareSum=1,"Sum ok","Sum not ok") -> Sum ok | F29: =VALUE(F30)+VALUE(F31)+VALUE(F32)+VALUE(F33)+VALUE(F34)+VALUE(F35)+VALUE(F36)+VALUE(F37)+VALUE(F38)+VALUE(F39) -> 1 | G29: text | H29: years | I29: years | J29: % | K29: % | L29: mill EUR/MW | M29: MEUR/MW/y | N29: EUR/MWh | O29: EUR/MWh | P29: % | Q29: g/GJ | R29: kg/GJ fuel | S29: g/GJ fuel | T29: g/GJ fuel | U29: g/GJ fuel | V29: g/GJ fuel | W29: g/GJ fuel | X29: GWh/y | Y29: MW | Z29: mill EUR | AA29: mill. EUR/y | AB29: mill. EUR/y | AD29: Technology | AE29: Fuel
D30: All individual | E30: Gas boiler | F30: 0.1 | G30: =IF(ISNUMBER($AD30),INDEX(Technologies!D$9:D$26,$AD30),0) -> Natural gas | H30: =IF(ISNUMBER($AD30),INDEX(Technologies!E$9:E$26,$AD30),0) -> 20 | I30: =IF(ISNUMBER($AD30),INDEX(Technologies!F$9:F$26,$AD30),0) -> 0.25 | J30: =IF(ISNUMBER($AD30),INDEX(Technologies!G$9:G$26,$AD30),0) -> 0.99 | K30: =IF(ISNUMBER($AD30),INDEX(Technologies!H$9:H$26,$AD30),0) -> 0 | L30: =IF(ISNUMBER($AD30),INDEX(Technologies!I$9:I$26,$AD30),0) -> 0.91 | M30: =IF(ISNUMBER($AD30),INDEX(Technologies!J$9:J$26,$AD30),0) -> 0.01368 | N30: =IF(ISNUMBER($AD30),INDEX(Technologies!K$9:K$26,$AD30),0) -> 0 | O30: =IF(ISNUMBER($AE30),INDEX(Fuels!$E$129:$E$141,$AE30),0) -> 39.6 | P30: =IF(ISNUMBER($AD30),INDEX(Technologies!L$9:L$26,$AD30),0) -> 0 | Q30: =IF(ISNUMBER($AD30),INDEX(Technologies!M$9:M$26,$AD30),0) -> 1 | R30: =IFERROR(VLOOKUP(G30,Fuels!$C$146:$D$160,2,0),0) -> 67 | S30: =IF(ISNUMBER($AD30),INDEX(Technologies!O$9:O$26,$AD30),0) -> 0 | T30: =IF(ISNUMBER($AD30),INDEX(Technologies!P$9:P$26,$AD30),0) -> 0 | U30: =P30*T30 -> 0 | V30: =IF(ISNUMBER($AD30),INDEX(Technologies!Q$9:Q$26,$AD30),0) -> 20 | W30: =IF(ISNUMBER($AD30),INDEX(Technologies!R$9:R$26,$AD30),0) -> 0 | X30: =IF(ISNUMBER($AD30),$F30*$D$34/J30,0) -> 33.63636364 | Y30: =IFERROR(F30*$D$34*1000/$D$38,0) -> 15.13636364 | Z30: =Y30*L30 -> 13.77409091 | AA30: =IFERROR(-PMT(Scenarios_interest_rate,H30,Z30),0) -> 0.8669620944 | AB30: =Y30*M30 -> 0.2070654545 | AD30: =IFERROR(MATCH(E30,Technologies!$B$9:$B$26,0),"") -> 2 | AE30: =IFERROR(MATCH($G30,Fuels!$C$11:$C$23,0),"") -> 1
D31: Design Reserve | E31: Oil boiler | F31: 0.1 | G31: =IF(ISNUMBER($AD31),INDEX(Technologies!D$9:D$26,$AD31),0) -> Fueloil | H31: =IF(ISNUMBER($AD31),INDEX(Technologies!E$9:E$26,$AD31),0) -> 20 | I31: =IF(ISNUMBER($AD31),INDEX(Technologies!F$9:F$26,$AD31),0) -> 0.25 | J31: =IF(ISNUMBER($AD31),INDEX(Technologies!G$9:G$26,$AD31),0) -> 0.93 | K31: =IF(ISNUMBER($AD31),INDEX(Technologies!H$9:H$26,$AD31),0) -> 0 | L31: =IF(ISNUMBER($AD31),INDEX(Technologies!I$9:I$26,$AD31),0) -> 1.17 | M31: =IF(ISNUMBER($AD31),INDEX(Technologies!J$9:J$26,$AD31),0) -> 0.01 | N31: =IF(ISNUMBER($AD31),INDEX(Technologies!K$9:K$26,$AD31),0) -> 0 | O31: =IF(ISNUMBER($AE31),INDEX(Fuels!$E$129:$E$141,$AE31),0) -> 10.8 | P31: =IF(ISNUMBER($AD31),INDEX(Technologies!L$9:L$26,$AD31),0) -> 0 | Q31: =IF(ISNUMBER($AD31),INDEX(Technologies!M$9:M$26,$AD31),0) -> 250 | R31: =IFERROR(VLOOKUP(G31,Fuels!$C$146:$D$160,2,0),0) -> 86 | S31: =IF(ISNUMBER($AD31),INDEX(Technologies!O$9:O$26,$AD31),0) -> 0 | T31: =IF(ISNUMBER($AD31),INDEX(Technologies!P$9:P$26,$AD31),0) -> 0 | U31: 0 | V31: =IF(ISNUMBER($AD31),INDEX(Technologies!Q$9:Q$26,$AD31),0) -> 52 | W31: =IF(ISNUMBER($AD31),INDEX(Technologies!R$9:R$26,$AD31),0) -> 5 | X31: =IF(ISNUMBER($AD31),$F31*$D$34/J31,0) -> 35.80645161 | Y31: 15.13636364 | Z31: =Y31*L31 -> 17.70954545 | AA31: =IFERROR(-PMT(Scenarios_interest_rate,H31,Z31),0) -> 1.11466555 | AB31: 0.1513636364 | AD31: =IFERROR(MATCH(E31,Technologies!$B$9:$B$26,0),"") -> 1 | AE31: =IFERROR(MATCH($G31,Fuels!$C$11:$C$23,0),"") -> 3
D32: 0,00% | E32: Wood pellet boiler | F32: 0.1 | G32: =IF(ISNUMBER($AD32),INDEX(Technologies!D$9:D$26,$AD32),0) -> Wood pellets | H32: =IF(ISNUMBER($AD32),INDEX(Technologies!E$9:E$26,$AD32),0) -> 20 | I32: =IF(ISNUMBER($AD32),INDEX(Technologies!F$9:F$26,$AD32),0) -> 0.25 | J32: =IF(ISNUMBER($AD32),INDEX(Technologies!G$9:G$26,$AD32),0) -> 0.9 | K32: =IF(ISNUMBER($AD32),INDEX(Technologies!H$9:H$26,$AD32),0) -> 0 | L32: =IF(ISNUMBER($AD32),INDEX(Technologies!I$9:I$26,$AD32),0) -> 2.44 | M32: =IF(ISNUMBER($AD32),INDEX(Technologies!J$9:J$26,$AD32),0) -> 0.01 | N32: =IF(ISNUMBER($AD32),INDEX(Technologies!K$9:K$26,$AD32),0) -> 0 | O32: =IF(ISNUMBER($AE32),INDEX(Fuels!$E$129:$E$141,$AE32),0) -> 21.6 | P32: =IF(ISNUMBER($AD32),INDEX(Technologies!L$9:L$26,$AD32),0) -> 0 | Q32: =IF(ISNUMBER($AD32),INDEX(Technologies!M$9:M$26,$AD32),0) -> 4 | R32: =IFERROR(VLOOKUP(G32,Fuels!$C$146:$D$160,2,0),0) -> 5.6 | S32: =IF(ISNUMBER($AD32),INDEX(Technologies!O$9:O$26,$AD32),0) -> 0 | T32: =IF(ISNUMBER($AD32),INDEX(Technologies!P$9:P$26,$AD32),0) -> 0 | U32: 0 | V32: =IF(ISNUMBER($AD32),INDEX(Technologies!Q$9:Q$26,$AD32),0) -> 70 | W32: =IF(ISNUMBER($AD32),INDEX(Technologies!R$9:R$26,$AD32),0) -> 14 | X32: 37 | Y32: 15.13636364 | Z32: 36.93272727 | AA32: 2.32460166 | AB32: 0.1513636364 | AD32: =IFERROR(MATCH(E32,Technologies!$B$9:$B$26,0),"") -> 3 | AE32: =IFERROR(MATCH($G32,Fuels!$C$11:$C$23,0),"") -> 6
D33: Design Energy Demand | E33: Wood chips boiler | F33: 0.1 | G33: =IF(ISNUMBER($AD33),INDEX(Technologies!D$9:D$26,$AD33),0) -> Wood chips | H33: =IF(ISNUMBER($AD33),INDEX(Technologies!E$9:E$26,$AD33),0) -> 20 | I33: =IF(ISNUMBER($AD33),INDEX(Technologies!F$9:F$26,$AD33),0) -> 0.25 | J33: =IF(ISNUMBER($AD33),INDEX(Technologies!G$9:G$26,$AD33),0) -> 0.89 | K33: =IF(ISNUMBER($AD33),INDEX(Technologies!H$9:H$26,$AD33),0) -> 0 | L33: =IF(ISNUMBER($AD33),INDEX(Technologies!I$9:I$26,$AD33),0) -> 2.58 | M33: =IF(ISNUMBER($AD33),INDEX(Technologies!J$9:J$26,$AD33),0) -> 0.02 | N33: =IF(ISNUMBER($AD33),INDEX(Technologies!K$9:K$26,$AD33),0) -> 0 | O33: =IF(ISNUMBER($AE33),INDEX(Fuels!$E$129:$E$141,$AE33),0) -> 21.6 | P33: =IF(ISNUMBER($AD33),INDEX(Technologies!L$9:L$26,$AD33),0) -> 0 | Q33: =IF(ISNUMBER($AD33),INDEX(Technologies!M$9:M$26,$AD33),0) -> 4 | R33: =IFERROR(VLOOKUP(G33,Fuels!$C$146:$D$160,2,0),0) -> 5.6 | S33: =IF(ISNUMBER($AD33),INDEX(Technologies!O$9:O$26,$AD33),0) -> 0 | T33: =IF(ISNUMBER($AD33),INDEX(Technologies!P$9:P$26,$AD33),0) -> 0 | U33: 0 | V33: =IF(ISNUMBER($AD33),INDEX(Technologies!Q$9:Q$26,$AD33),0) -> 70 | W33: =IF(ISNUMBER($AD33),INDEX(Technologies!R$9:R$26,$AD33),0) -> 14 | X33: 37.41573034 | Y33: 15.13636364 | Z33: 39.05181818 | AA33: 2.457980443 | AB33: 0.3027272727 | AD33: =IFERROR(MATCH(E33,Technologies!$B$9:$B$26,0),"") -> 4 | AE33: =IFERROR(MATCH($G33,Fuels!$C$11:$C$23,0),"") -> 5
D34: 333 | E34: Heat pump - water to water, groundwater well | F34: 0.1 | G34: =IF(ISNUMBER($AD34),INDEX(Technologies!D$9:D$26,$AD34),0) -> Electricity | H34: =IF(ISNUMBER($AD34),INDEX(Technologies!E$9:E$26,$AD34),0) -> 20 | I34: =IF(ISNUMBER($AD34),INDEX(Technologies!F$9:F$26,$AD34),0) -> 0.25 | J34: =IF(ISNUMBER($AD34),INDEX(Technologies!G$9:G$26,$AD34),0) -> 5.35 | K34: =IF(ISNUMBER($AD34),INDEX(Technologies!H$9:H$26,$AD34),0) -> 0 | L34: =IF(ISNUMBER($AD34),INDEX(Technologies!I$9:I$26,$AD34),0) -> 2.08 | M34: =IF(ISNUMBER($AD34),INDEX(Technologies!J$9:J$26,$AD34),0) -> 0.03 | N34: =IF(ISNUMBER($AD34),INDEX(Technologies!K$9:K$26,$AD34),0) -> 0 | O34: =IF(ISNUMBER($AE34),INDEX(Fuels!$E$129:$E$141,$AE34),0) -> 72 | P34: =IF(ISNUMBER($AD34),INDEX(Technologies!L$9:L$26,$AD34),0) -> 0 | Q34: =IF(ISNUMBER($AD34),INDEX(Technologies!M$9:M$26,$AD34),0) -> 0 | R34: =IFERROR(VLOOKUP(G34,Fuels!$C$146:$D$160,2,0),0) -> 0 | S34: =IF(ISNUMBER($AD34),INDEX(Technologies!O$9:O$26,$AD34),0) -> 0 | T34: =IF(ISNUMBER($AD34),INDEX(Technologies!P$9:P$26,$AD34),0) -> 0 | U34: 0 | V34: =IF(ISNUMBER($AD34),INDEX(Technologies!Q$9:Q$26,$AD34),0) -> 0 | W34: =IF(ISNUMBER($AD34),INDEX(Technologies!R$9:R$26,$AD34),0) -> 0 | X34: 6.224299065 | Y34: 15.13636364 | Z34: 31.48363636 | AA34: 1.981627644 | AB34: 0.4540909091 | AD34: =IFERROR(MATCH(E34,Technologies!$B$9:$B$26,0),"") -> 7 | AE34: =IFERROR(MATCH($G34,Fuels!$C$11:$C$23,0),"") -> 10
D35: Design Max Effect | E35: Heat pump - air to water | F35: 0.1 | G35: =IF(ISNUMBER($AD35),INDEX(Technologies!D$9:D$26,$AD35),0) -> Electricity | H35: =IF(ISNUMBER($AD35),INDEX(Technologies!E$9:E$26,$AD35),0) -> 20 | I35: =IF(ISNUMBER($AD35),INDEX(Technologies!F$9:F$26,$AD35),0) -> 0.25 | J35: =IF(ISNUMBER($AD35),INDEX(Technologies!G$9:G$26,$AD35),0) -> 3.75 | K35: =IF(ISNUMBER($AD35),INDEX(Technologies!H$9:H$26,$AD35),0) -> 0 | L35: =IF(ISNUMBER($AD35),INDEX(Technologies!I$9:I$26,$AD35),0) -> 2.31 | M35: =IF(ISNUMBER($AD35),INDEX(Technologies!J$9:J$26,$AD35),0) -> 0.03 | N35: =IF(ISNUMBER($AD35),INDEX(Technologies!K$9:K$26,$AD35),0) -> 0 | O35: =IF(ISNUMBER($AE35),INDEX(Fuels!$E$129:$E$141,$AE35),0) -> 72 | P35: =IF(ISNUMBER($AD35),INDEX(Technologies!L$9:L$26,$AD35),0) -> 0 | Q35: =IF(ISNUMBER($AD35),INDEX(Technologies!M$9:M$26,$AD35),0) -> 0 | R35: =IFERROR(VLOOKUP(G35,Fuels!$C$146:$D$160,2,0),0) -> 0 | S35: =IF(ISNUMBER($AD35),INDEX(Technologies!O$9:O$26,$AD35),0) -> 0 | T35: =IF(ISNUMBER($AD35),INDEX(Technologies!P$9:P$26,$AD35),0) -> 0 | U35: 0 | V35: =IF(ISNUMBER($AD35),INDEX(Technologies!Q$9:Q$26,$AD35),0) -> 0 | W35: =IF(ISNUMBER($AD35),INDEX(Technologies!R$9:R$26,$AD35),0) -> 0 | X35: 8.88 | Y35: 15.13636364 | Z35: 34.965 | AA35: 2.200749932 | AB35: 0.4540909091 | AD35: =IFERROR(MATCH(E35,Technologies!$B$9:$B$26,0),"") -> 6 | AE35: =IFERROR(MATCH($G35,Fuels!$C$11:$C$23,0),"") -> 10
D36: 151 | E36: Hydrogen boiler | F36: 0.1 | G36: =IF(ISNUMBER($AD36),INDEX(Technologies!D$9:D$26,$AD36),0) -> Hydrogen | H36: =IF(ISNUMBER($AD36),INDEX(Technologies!E$9:E$26,$AD36),0) -> 20 | I36: =IF(ISNUMBER($AD36),INDEX(Technologies!F$9:F$26,$AD36),0) -> 0.25 | J36: =IF(ISNUMBER($AD36),INDEX(Technologies!G$9:G$26,$AD36),0) -> 0.99 | K36: =IF(ISNUMBER($AD36),INDEX(Technologies!H$9:H$26,$AD36),0) -> 0 | L36: =IF(ISNUMBER($AD36),INDEX(Technologies!I$9:I$26,$AD36),0) -> 0.94 | M36: =IF(ISNUMBER($AD36),INDEX(Technologies!J$9:J$26,$AD36),0) -> 0.01 | N36: =IF(ISNUMBER($AD36),INDEX(Technologies!K$9:K$26,$AD36),0) -> 0 | O36: =IF(ISNUMBER($AE36),INDEX(Fuels!$E$129:$E$141,$AE36),0) -> 61.2 | P36: =IF(ISNUMBER($AD36),INDEX(Technologies!L$9:L$26,$AD36),0) -> 0 | Q36: =IF(ISNUMBER($AD36),INDEX(Technologies!M$9:M$26,$AD36),0) -> 0 | R36: =IFERROR(VLOOKUP(G36,Fuels!$C$146:$D$160,2,0),0) -> 0.9 | S36: =IF(ISNUMBER($AD36),INDEX(Technologies!O$9:O$26,$AD36),0) -> 0 | T36: =IF(ISNUMBER($AD36),INDEX(Technologies!P$9:P$26,$AD36),0) -> 0 | U36: 0 | V36: =IF(ISNUMBER($AD36),INDEX(Technologies!Q$9:Q$26,$AD36),0) -> 20 | W36: =IF(ISNUMBER($AD36),INDEX(Technologies!R$9:R$26,$AD36),0) -> 0 | X36: 33.63636364 | Y36: 15.13636364 | Z36: 14.22818182 | AA36: 0.8955432623 | AB36: 0.1513636364 | AD36: =IFERROR(MATCH(E36,Technologies!$B$9:$B$26,0),"") -> 5 | AE36: =IFERROR(MATCH($G36,Fuels!$C$11:$C$23,0),"") -> 8
D37: Full Load Hours | E37: Solar flat plate colletors | F37: 0.1 | G37: =IF(ISNUMBER($AD37),INDEX(Technologies!D$9:D$26,$AD37),0) -> Solar | H37: =IF(ISNUMBER($AD37),INDEX(Technologies!E$9:E$26,$AD37),0) -> 20 | I37: =IF(ISNUMBER($AD37),INDEX(Technologies!F$9:F$26,$AD37),0) -> 0.25 | J37: =IF(ISNUMBER($AD37),INDEX(Technologies!G$9:G$26,$AD37),0) -> 1 | K37: =IF(ISNUMBER($AD37),INDEX(Technologies!H$9:H$26,$AD37),0) -> 0 | L37: =IF(ISNUMBER($AD37),INDEX(Technologies!I$9:I$26,$AD37),0) -> 1.45 | M37: =IF(ISNUMBER($AD37),INDEX(Technologies!J$9:J$26,$AD37),0) -> 0.01 | N37: =IF(ISNUMBER($AD37),INDEX(Technologies!K$9:K$26,$AD37),0) -> 0 | O37: =IF(ISNUMBER($AE37),INDEX(Fuels!$E$129:$E$141,$AE37),0) -> 0 | P37: =IF(ISNUMBER($AD37),INDEX(Technologies!L$9:L$26,$AD37),0) -> 0 | Q37: =IF(ISNUMBER($AD37),INDEX(Technologies!M$9:M$26,$AD37),0) -> 0 | R37: =IFERROR(VLOOKUP(G37,Fuels!$C$146:$D$160,2,0),0) -> 0 | S37: =IF(ISNUMBER($AD37),INDEX(Technologies!O$9:O$26,$AD37),0) -> 0 | T37: =IF(ISNUMBER($AD37),INDEX(Technologies!P$9:P$26,$AD37),0) -> 0 | U37: 0 | V37: =IF(ISNUMBER($AD37),INDEX(Technologies!Q$9:Q$26,$AD37),0) -> 0 | W37: =IF(ISNUMBER($AD37),INDEX(Technologies!R$9:R$26,$AD37),0) -> 0 | X37: 33.3 | Y37: 15.13636364 | Z37: 21.94772727 | AA37: 1.381423117 | AB37: 0.1513636364 | AD37: =IFERROR(MATCH(E37,Technologies!$B$9:$B$26,0),"") -> 11 | AE37: =IFERROR(MATCH($G37,Fuels!$C$11:$C$23,0),"") -> 13
D38: 2200 | E38: Electric heating | F38: 0.1 | G38: =IF(ISNUMBER($AD38),INDEX(Technologies!D$9:D$26,$AD38),0) -> Electricity | H38: =IF(ISNUMBER($AD38),INDEX(Technologies!E$9:E$26,$AD38),0) -> 25 | I38: =IF(ISNUMBER($AD38),INDEX(Technologies!F$9:F$26,$AD38),0) -> 0.25 | J38: =IF(ISNUMBER($AD38),INDEX(Technologies!G$9:G$26,$AD38),0) -> 1 | K38: =IF(ISNUMBER($AD38),INDEX(Technologies!H$9:H$26,$AD38),0) -> 0 | L38: =IF(ISNUMBER($AD38),INDEX(Technologies!I$9:I$26,$AD38),0) -> 0.68 | M38: =IF(ISNUMBER($AD38),INDEX(Technologies!J$9:J$26,$AD38),0) -> 0.01 | N38: =IF(ISNUMBER($AD38),INDEX(Technologies!K$9:K$26,$AD38),0) -> 0 | O38: =IF(ISNUMBER($AE38),INDEX(Fuels!$E$129:$E$141,$AE38),0) -> 72 | P38: =IF(ISNUMBER($AD38),INDEX(Technologies!L$9:L$26,$AD38),0) -> 0 | Q38: =IF(ISNUMBER($AD38),INDEX(Technologies!M$9:M$26,$AD38),0) -> 0 | R38: =IFERROR(VLOOKUP(G38,Fuels!$C$146:$D$160,2,0),0) -> 0 | S38: =IF(ISNUMBER($AD38),INDEX(Technologies!O$9:O$26,$AD38),0) -> 0 | T38: =IF(ISNUMBER($AD38),INDEX(Technologies!P$9:P$26,$AD38),0) -> 0 | U38: 0 | V38: =IF(ISNUMBER($AD38),INDEX(Technologies!Q$9:Q$26,$AD38),0) -> 0 | W38: =IF(ISNUMBER($AD38),INDEX(Technologies!R$9:R$26,$AD38),0) -> 0 | X38: 33.3 | Y38: 15.13636364 | Z38: 10.29272727 | AA38: 0.5459471793 | AB38: 0.1513636364 | AD38: =IFERROR(MATCH(E38,Technologies!$B$9:$B$26,0),"") -> 18 | AE38: =IFERROR(MATCH($G38,Fuels!$C$11:$C$23,0),"") -> 10
E39: Micro CHP - biogas | F39: 0.1 | G39: =IF(ISNUMBER($AD39),INDEX(Technologies!D$9:D$26,$AD39),0) -> Biogas | H39: =IF(ISNUMBER($AD39),INDEX(Technologies!E$9:E$26,$AD39),0) -> 15 | I39: =IF(ISNUMBER($AD39),INDEX(Technologies!F$9:F$26,$AD39),0) -> 0.25 | J39: =IF(ISNUMBER($AD39),INDEX(Technologies!G$9:G$26,$AD39),0) -> 0.69 | K39: =IF(ISNUMBER($AD39),INDEX(Technologies!H$9:H$26,$AD39),0) -> 0.3 | L39: =IF(ISNUMBER($AD39),INDEX(Technologies!I$9:I$26,$AD39),0) -> 2.62 | M39: =IF(ISNUMBER($AD39),INDEX(Technologies!J$9:J$26,$AD39),0) -> 0.02 | N39: =IF(ISNUMBER($AD39),INDEX(Technologies!K$9:K$26,$AD39),0) -> 0 | O39: =IF(ISNUMBER($AE39),INDEX(Fuels!$E$129:$E$141,$AE39),0) -> 39.6 | P39: =IF(ISNUMBER($AD39),INDEX(Technologies!L$9:L$26,$AD39),0) -> 0 | Q39: =IF(ISNUMBER($AD39),INDEX(Technologies!M$9:M$26,$AD39),0) -> 1 | R39: =IFERROR(VLOOKUP(G39,Fuels!$C$146:$D$160,2,0),0) -> 39 | S39: =IF(ISNUMBER($AD39),INDEX(Technologies!O$9:O$26,$AD39),0) -> 0 | T39: =IF(ISNUMBER($AD39),INDEX(Technologies!P$9:P$26,$AD39),0) -> 0 | U39: 0 | V39: =IF(ISNUMBER($AD39),INDEX(Technologies!Q$9:Q$26,$AD39),0) -> 15 | W39: =IF(ISNUMBER($AD39),INDEX(Technologies!R$9:R$26,$AD39),0) -> 0.1 | X39: 48.26086957 | Y39: 15.13636364 | Z39: 39.65727273 | AA39: 3.156041715 | AB39: 0.3027272727 | AD39: =IFERROR(MATCH(E39,Technologies!$B$9:$B$26,0),"") -> 14 | AE39: =IFERROR(MATCH($G39,Fuels!$C$11:$C$23,0),"") -> 7
D40: Source: | E40: =Technologies!B5& ", " &Fuels!C127& " & " &Fuels!C144 -> Table T1, Table F4 & Table F5 | X40: =SUM(X30:X39) -> 307.4600779 | Y40: =SUM(Y30:Y39) -> 151.3636364 | Z40: 260.0427273 | AA40: 16.9255426 | AB40: 2.47752
D42: Table I.A4
D43: Active mix | E43: Slot
D44: =INDEX(Scenarios!$H$19:$H$78,MATCH(Scenarios!$C$12,Scenarios!$C$19:$C$78,0)) -> Gas 100% | E44: =INDEX(AG50:AG59,MATCH($D$44,$AH$50:$AH$59,0)) -> 02
D46: Table I2 | E46: Mixes Table
G47: =G27 -> Technical | L47: =L27 -> Unit costs | P47: =P27 -> Emissions | X47: =X27 -> Total system indicators
C48: Slot | D48: Mix name | E48: Technology | F48: Share, % | G48: =G28 -> Fuel | H48: =H28 -> Lifetime | I48: Buildtime | J48: Heat eff. | K48: Elec. eff. | L48: =L28 -> CAPEX | M48: =M28 -> Fixed OPEX | N48: Variable OPEX | O48: Fuel distr. | P48: =P28 -> SO2 | Q48: =Q28 -> SO₂ in fuel | R48: CO₂ | S48: CH4 | T48: N2O | U48: SO₂ | V48: NOx | W48: PM2.5 | X48: =X28 -> Fuel | Y48: =Y28 -> Effect | Z48: CAPEX | AA48: CAPEX | AB48: FOPEX | AD48: Table I.A3 | AE48: Indices | AG48: Table I.A5
G49: =G29 -> text | H49: years | I49: years | J49: % | K49: % | L49: =L29 -> mill EUR/MW | M49: MEUR/MW/y | N49: EUR/MWh | O49: EUR/MWh | P49: =P29 -> % | Q49: g/GJ | R49: kg/GJ fuel | S49: g/GJ fuel | T49: g/GJ fuel | U49: g/GJ fuel | V49: g/GJ fuel | W49: g/GJ fuel | X49: =X29 -> GWh/y | Y49: MW | Z49: mill EUR | AA49: mill. EUR/y | AB49: mill. EUR/y | AD49: Technology | AE49: Fuel | AG49: Slots | AH49: Available mixes | AJ49: Combined
C50: 1 | D50: Fuel mix | E50: Heat pump - air to water | F50: 0.7 | G50: Electricity | H50: 20 | I50: 0.25 | J50: 3.75 | K50: 0 | L50: 2.31 | M50: 0.03 | N50: 0 | O50: 0 | P50: 0 | Q50: 0 | R50: 0 | S50: 0 | T50: 0 | U50: 0 | V50: 0 | W50: 0 | X50: 62.16 | Y50: 129.5 | Z50: 299.145 | AA50: 18.82863831 | AB50: 3.885 | AD50: =IFERROR(MATCH(E50,Technologies!$B$9:$B$26,0),"") -> 6 | AE50: =IFERROR(MATCH($G50,Fuels!$C$11:$C$23,0),"") -> 10 | AG50: 01 | AH50: =IF(OFFSET($D$50,10*(AG50-1),)="","<Empty>",OFFSET($D$50,10*(AG50-1),)) -> Fuel mix | AI50: Gas 70%; Coal 15%; Elec. 15% | AJ50: =AG50&" - "&AH50 -> 01 - Fuel mix
D51: Design Reserve | E51: Wood pellet boiler | F51: 0.1 | G51: Wood pellets | H51: 20 | I51: 0.25 | J51: 0.9 | K51: 0 | L51: 2.44 | M51: 0.01 | N51: 0 | O51: 21.6 | P51: 0 | Q51: 4 | R51: 5.6 | S51: 2 | T51: 4 | U51: 0 | V51: 70 | W51: 14 | X51: 37 | Y51: 18.5 | Z51: 45.14 | AA51: 2.841179806 | AB51: 0.185 | AD51: =IFERROR(MATCH(E51,Technologies!$B$9:$B$26,0),"") -> 3 | AE51: =IFERROR(MATCH($G51,Fuels!$C$11:$C$23,0),"") -> 6 | AG51: 02 | AH51: Gas 100% | AJ51: 02 - Gas 100%
D52: 0,00% | E52: Gas boiler | F52: 0.1 | G52: Natural gas | H52: 20 | I52: 0.25 | J52: 0.99 | K52: 0 | L52: 0.91 | M52: 0.01368 | N52: 0 | O52: 39.6 | P52: 0 | Q52: 1 | R52: 67 | S52: 1 | T52: 1 | U52: 0 | V52: 20 | W52: 0 | X52: 33.63636364 | Y52: 18.5 | Z52: 16.835 | AA52: 1.059620338 | AB52: 0.25308 | AD52: =IFERROR(MATCH(E52,Technologies!$B$9:$B$26,0),"") -> 2 | AE52: =IFERROR(MATCH($G52,Fuels!$C$11:$C$23,0),"") -> 1 | AG52: 03 | AH52: All individual | AJ52: 03 - All individual
D53: Design Energy Demand | E53: Electric heating | F53: 0.1 | G53: Electricity | H53: 25 | I53: 0.25 | J53: 1 | K53: 0 | L53: 0.68 | M53: 0.01 | N53: 0 | O53: 0 | P53: 0 | Q53: 0 | R53: 0 | S53: 0 | T53: 0 | U53: 0 | V53: 0 | W53: 0 | X53: 33.3 | Y53: 18.5 | Z53: 12.58 | AA53: 0.6672687746 | AB53: 0.185 | AD53: =IFERROR(MATCH(E53,Technologies!$B$9:$B$26,0),"") -> 18 | AE53: =IFERROR(MATCH($G53,Fuels!$C$11:$C$23,0),"") -> 10 | AG53: 04 | AH53: =IF(OFFSET($D$50,10*(AG53-1),)="","<Empty>",OFFSET($D$50,10*(AG53-1),)) -> <Empty> | AJ53: 04 - <Empty>
D54: 333 | F54: 0 | G54: 0 | H54: 0 | I54: 0 | J54: 0 | K54: 0 | L54: 0 | M54: 0 | N54: 0 | O54: 0 | P54: 0 | Q54: 0 | R54: 0 | S54: 0 | T54: 0 | U54: 0 | V54: 0 | W54: 0 | X54: 0 | Y54: 0 | Z54: 0 | AA54: 0 | AB54: 0 | AD54: =IFERROR(MATCH(E54,Technologies!$B$9:$B$26,0),"") ->  | AE54: =IFERROR(MATCH($G54,Fuels!$C$11:$C$23,0),"") ->  | AG54: 05 | AH54: <Empty> | AJ54: 05 - <Empty>
D55: Design Max Effect | F55: 0 | G55: 0 | H55: 0 | I55: 0 | J55: 0 | K55: 0 | L55: 0 | M55: 0 | N55: 0 | O55: 0 | P55: 0 | Q55: 0 | R55: 0 | S55: 0 | T55: 0 | U55: 0 | V55: 0 | W55: 0 | X55: 0 | Y55: 0 | Z55: 0 | AA55: 0 | AB55: 0 | AD55: =IFERROR(MATCH(E55,Technologies!$B$9:$B$26,0),"") ->  | AE55: =IFERROR(MATCH($G55,Fuels!$C$11:$C$23,0),"") ->  | AG55: 06 | AH55: <Empty> | AJ55: 06 - <Empty>
D56: 185 | F56: 0 | G56: 0 | H56: 0 | I56: 0 | J56: 0 | K56: 0 | L56: 0 | M56: 0 | N56: 0 | O56: 0 | P56: 0 | Q56: 0 | R56: 0 | S56: 0 | T56: 0 | U56: 0 | V56: 0 | W56: 0 | X56: 0 | Y56: 0 | Z56: 0 | AA56: 0 | AB56: 0 | AD56: =IFERROR(MATCH(E56,Technologies!$B$9:$B$26,0),"") ->  | AE56: =IFERROR(MATCH($G56,Fuels!$C$11:$C$23,0),"") ->  | AG56: 07 | AH56: <Empty> | AJ56: 07 - <Empty>
D57: Full Load Hours | F57: 0 | G57: 0 | H57: 0 | I57: 0 | J57: 0 | K57: 0 | L57: 0 | M57: 0 | N57: 0 | O57: 0 | P57: 0 | Q57: 0 | R57: 0 | S57: 0 | T57: 0 | U57: 0 | V57: 0 | W57: 0 | X57: 0 | Y57: 0 | Z57: 0 | AA57: 0 | AB57: 0 | AD57: =IFERROR(MATCH(E57,Technologies!$B$9:$B$26,0),"") ->  | AE57: =IFERROR(MATCH($G57,Fuels!$C$11:$C$23,0),"") ->  | AG57: 08 | AH57: <Empty> | AJ57: 08 - <Empty>
D58: 1800 | F58: 0 | G58: 0 | H58: 0 | I58: 0 | J58: 0 | K58: 0 | L58: 0 | M58: 0 | N58: 0 | O58: 0 | P58: 0 | Q58: 0 | R58: 0 | S58: 0 | T58: 0 | U58: 0 | V58: 0 | W58: 0 | X58: 0 | Y58: 0 | Z58: 0 | AA58: 0 | AB58: 0 | AD58: =IFERROR(MATCH(E58,Technologies!$B$9:$B$26,0),"") ->  | AE58: =IFERROR(MATCH($G58,Fuels!$C$11:$C$23,0),"") ->  | AG58: 09 | AH58: <Empty> | AJ58: 09 - <Empty>
F59: 0 | G59: 0 | H59: 0 | I59: 0 | J59: 0 | K59: 0 | L59: 0 | M59: 0 | N59: 0 | O59: 0 | P59: 0 | Q59: 0 | R59: 0 | S59: 0 | T59: 0 | U59: 0 | V59: 0 | W59: 0 | X59: 0 | Y59: 0 | Z59: 0 | AA59: 0 | AB59: 0 | AD59: =IFERROR(MATCH(E59,Technologies!$B$9:$B$26,0),"") ->  | AE59: =IFERROR(MATCH($G59,Fuels!$C$11:$C$23,0),"") ->  | AG59: 10 | AH59: <Empty> | AJ59: 10 - <Empty>
C60: 2 | D60: Gas 100% | E60: Gas boiler | F60: 1 | G60: Natural gas | H60: 20 | I60: 0.25 | J60: 0.97 | K60: 0 | L60: 0.322 | M60: 0.01368 | N60: 0 | O60: 10.8 | P60: 0 | Q60: 1 | R60: 57 | S60: 1 | T60: 1 | U60: 0 | V60: 20 | W60: 0 | X60: 343.2989691 | Y60: 151.3636364 | Z60: 48.73909091 | AA60: 3.067712026 | AB60: 2.070654545 | AD60: =IFERROR(MATCH(E60,Technologies!$B$9:$B$26,0),"") -> 2 | AE60: =IFERROR(MATCH($G60,Fuels!$C$11:$C$23,0),"") -> 1 | AG60: Source: | AH60: =D46 -> Table I2
D61: Design Reserve | F61: 0 | G61: 0 | H61: 0 | I61: 0 | J61: 0 | K61: 0 | L61: 0 | M61: 0 | N61: 0 | O61: 0 | P61: 0 | Q61: 0 | R61: 0 | S61: 0 | T61: 0 | U61: 0 | V61: 0 | W61: 0 | X61: 0 | Y61: 0 | Z61: 0 | AA61: 0 | AB61: 0 | AD61: =IFERROR(MATCH(E61,Technologies!$B$9:$B$26,0),"") ->  | AE61: =IFERROR(MATCH($G61,Fuels!$C$11:$C$23,0),"") -> 
D62: 0,00% | F62: 0 | G62: 0 | H62: 0 | I62: 0 | J62: 0 | K62: 0 | L62: 0 | M62: 0 | N62: 0 | O62: 0 | P62: 0 | Q62: 0 | R62: 0 | S62: 0 | T62: 0 | U62: 0 | V62: 0 | W62: 0 | X62: 0 | Y62: 0 | Z62: 0 | AA62: 0 | AB62: 0 | AD62: =IFERROR(MATCH(E62,Technologies!$B$9:$B$26,0),"") ->  | AE62: =IFERROR(MATCH($G62,Fuels!$C$11:$C$23,0),"") -> 
D63: Design Energy Demand | F63: 0 | G63: 0 | H63: 0 | I63: 0 | J63: 0 | K63: 0 | L63: 0 | M63: 0 | N63: 0 | O63: 0 | P63: 0 | Q63: 0 | R63: 0 | S63: 0 | T63: 0 | U63: 0 | V63: 0 | W63: 0 | X63: 0 | Y63: 0 | Z63: 0 | AA63: 0 | AB63: 0 | AD63: =IFERROR(MATCH(E63,Technologies!$B$9:$B$26,0),"") ->  | AE63: =IFERROR(MATCH($G63,Fuels!$C$11:$C$23,0),"") -> 
D64: 333 | F64: 0 | G64: 0 | H64: 0 | I64: 0 | J64: 0 | K64: 0 | L64: 0 | M64: 0 | N64: 0 | O64: 0 | P64: 0 | Q64: 0 | R64: 0 | S64: 0 | T64: 0 | U64: 0 | V64: 0 | W64: 0 | X64: 0 | Y64: 0 | Z64: 0 | AA64: 0 | AB64: 0 | AD64: =IFERROR(MATCH(E64,Technologies!$B$9:$B$26,0),"") ->  | AE64: =IFERROR(MATCH($G64,Fuels!$C$11:$C$23,0),"") -> 
D65: Design Max Effect | F65: 0 | G65: 0 | H65: 0 | I65: 0 | J65: 0 | K65: 0 | L65: 0 | M65: 0 | N65: 0 | O65: 0 | P65: 0 | Q65: 0 | R65: 0 | S65: 0 | T65: 0 | U65: 0 | V65: 0 | W65: 0 | X65: 0 | Y65: 0 | Z65: 0 | AA65: 0 | AB65: 0 | AD65: =IFERROR(MATCH(E65,Technologies!$B$9:$B$26,0),"") ->  | AE65: =IFERROR(MATCH($G65,Fuels!$C$11:$C$23,0),"") -> 
D66: 151 | F66: 0 | G66: 0 | H66: 0 | I66: 0 | J66: 0 | K66: 0 | L66: 0 | M66: 0 | N66: 0 | O66: 0 | P66: 0 | Q66: 0 | R66: 0 | S66: 0 | T66: 0 | U66: 0 | V66: 0 | W66: 0 | X66: 0 | Y66: 0 | Z66: 0 | AA66: 0 | AB66: 0 | AD66: =IFERROR(MATCH(E66,Technologies!$B$9:$B$26,0),"") ->  | AE66: =IFERROR(MATCH($G66,Fuels!$C$11:$C$23,0),"") -> 
D67: Full Load Hours | F67: 0 | G67: 0 | H67: 0 | I67: 0 | J67: 0 | K67: 0 | L67: 0 | M67: 0 | N67: 0 | O67: 0 | P67: 0 | Q67: 0 | R67: 0 | S67: 0 | T67: 0 | U67: 0 | V67: 0 | W67: 0 | X67: 0 | Y67: 0 | Z67: 0 | AA67: 0 | AB67: 0 | AD67: =IFERROR(MATCH(E67,Technologies!$B$9:$B$26,0),"") ->  | AE67: =IFERROR(MATCH($G67,Fuels!$C$11:$C$23,0),"") -> 
D68: 2200 | F68: 0 | G68: 0 | H68: 0 | I68: 0 | J68: 0 | K68: 0 | L68: 0 | M68: 0 | N68: 0 | O68: 0 | P68: 0 | Q68: 0 | R68: 0 | S68: 0 | T68: 0 | U68: 0 | V68: 0 | W68: 0 | X68: 0 | Y68: 0 | Z68: 0 | AA68: 0 | AB68: 0 | AD68: =IFERROR(MATCH(E68,Technologies!$B$9:$B$26,0),"") ->  | AE68: =IFERROR(MATCH($G68,Fuels!$C$11:$C$23,0),"") -> 
F69: 0 | G69: 0 | H69: 0 | I69: 0 | J69: 0 | K69: 0 | L69: 0 | M69: 0 | N69: 0 | O69: 0 | P69: 0 | Q69: 0 | R69: 0 | S69: 0 | T69: 0 | U69: 0 | V69: 0 | W69: 0 | X69: 0 | Y69: 0 | Z69: 0 | AA69: 0 | AB69: 0 | AD69: =IFERROR(MATCH(E69,Technologies!$B$9:$B$26,0),"") ->  | AE69: =IFERROR(MATCH($G69,Fuels!$C$11:$C$23,0),"") -> 
C70: 3 | D70: All individual | E70: Gas boiler | F70: 0.1 | G70: Natural gas | H70: 20 | I70: 0.25 | J70: 0.99 | K70: 0 | L70: 0.91 | M70: 0.01368 | N70: 0 | O70: 39.6 | P70: 0 | Q70: 1 | R70: 67 | S70: 0 | T70: 0 | U70: 0 | V70: 20 | W70: 0 | X70: 33.63636364 | Y70: 15.13636364 | Z70: 13.77409091 | AA70: 0.8669620944 | AB70: 0.2070654545 | AD70: =IFERROR(MATCH(E70,Technologies!$B$9:$B$26,0),"") -> 2 | AE70: =IFERROR(MATCH($G70,Fuels!$C$11:$C$23,0),"") -> 1
D71: Design Reserve | E71: Oil boiler | F71: 0.1 | G71: Fueloil | H71: 20 | I71: 0.25 | J71: 0.93 | K71: 0 | L71: 1.17 | M71: 0.01 | N71: 0 | O71: 10.8 | P71: 0 | Q71: 250 | R71: 86 | S71: 0 | T71: 0 | U71: 0 | V71: 52 | W71: 5 | X71: 35.80645161 | Y71: 15.13636364 | Z71: 17.70954545 | AA71: 1.11466555 | AB71: 0.1513636364 | AD71: =IFERROR(MATCH(E71,Technologies!$B$9:$B$26,0),"") -> 1 | AE71: =IFERROR(MATCH($G71,Fuels!$C$11:$C$23,0),"") -> 3
D72: 0,00% | E72: Wood pellet boiler | F72: 0.1 | G72: Wood pellets | H72: 20 | I72: 0.25 | J72: 0.9 | K72: 0 | L72: 2.44 | M72: 0.01 | N72: 0 | O72: 21.6 | P72: 0 | Q72: 4 | R72: 5.6 | S72: 0 | T72: 0 | U72: 0 | V72: 70 | W72: 14 | X72: 37 | Y72: 15.13636364 | Z72: 36.93272727 | AA72: 2.32460166 | AB72: 0.1513636364 | AD72: =IFERROR(MATCH(E72,Technologies!$B$9:$B$26,0),"") -> 3 | AE72: =IFERROR(MATCH($G72,Fuels!$C$11:$C$23,0),"") -> 6
D73: Design Energy Demand | E73: Wood chips boiler | F73: 0.1 | G73: Wood chips | H73: 20 | I73: 0.25 | J73: 0.89 | K73: 0 | L73: 2.58 | M73: 0.02 | N73: 0 | O73: 21.6 | P73: 0 | Q73: 4 | R73: 5.6 | S73: 0 | T73: 0 | U73: 0 | V73: 70 | W73: 14 | X73: 37.41573034 | Y73: 15.13636364 | Z73: 39.05181818 | AA73: 2.457980443 | AB73: 0.3027272727 | AD73: =IFERROR(MATCH(E73,Technologies!$B$9:$B$26,0),"") -> 4 | AE73: =IFERROR(MATCH($G73,Fuels!$C$11:$C$23,0),"") -> 5
D74: 333 | E74: Heat pump - water to water, groundwater well | F74: 0.1 | G74: Electricity | H74: 20 | I74: 0.25 | J74: 5.35 | K74: 0 | L74: 2.08 | M74: 0.03 | N74: 0 | O74: 72 | P74: 0 | Q74: 0 | R74: 0 | S74: 0 | T74: 0 | U74: 0 | V74: 0 | W74: 0 | X74: 6.224299065 | Y74: 15.13636364 | Z74: 31.48363636 | AA74: 1.981627644 | AB74: 0.4540909091 | AD74: =IFERROR(MATCH(E74,Technologies!$B$9:$B$26,0),"") -> 7 | AE74: =IFERROR(MATCH($G74,Fuels!$C$11:$C$23,0),"") -> 10
D75: Design Max Effect | E75: Heat pump - air to water | F75: 0.1 | G75: Electricity | H75: 20 | I75: 0.25 | J75: 3.75 | K75: 0 | L75: 2.31 | M75: 0.03 | N75: 0 | O75: 72 | P75: 0 | Q75: 0 | R75: 0 | S75: 0 | T75: 0 | U75: 0 | V75: 0 | W75: 0 | X75: 8.88 | Y75: 15.13636364 | Z75: 34.965 | AA75: 2.200749932 | AB75: 0.4540909091 | AD75: =IFERROR(MATCH(E75,Technologies!$B$9:$B$26,0),"") -> 6 | AE75: =IFERROR(MATCH($G75,Fuels!$C$11:$C$23,0),"") -> 10
D76: 151 | E76: Hydrogen boiler | F76: 0.1 | G76: Hydrogen | H76: 20 | I76: 0.25 | J76: 0.99 | K76: 0 | L76: 0.94 | M76: 0.01 | N76: 0 | O76: 61.2 | P76: 0 | Q76: 0 | R76: 0.9 | S76: 0 | T76: 0 | U76: 0 | V76: 20 | W76: 0 | X76: 33.63636364 | Y76: 15.13636364 | Z76: 14.22818182 | AA76: 0.8955432623 | AB76: 0.1513636364 | AD76: =IFERROR(MATCH(E76,Technologies!$B$9:$B$26,0),"") -> 5 | AE76: =IFERROR(MATCH($G76,Fuels!$C$11:$C$23,0),"") -> 8
D77: Full Load Hours | E77: Solar flat plate colletors | F77: 0.1 | G77: Solar | H77: 20 | I77: 0.25 | J77: 1 | K77: 0 | L77: 1.45 | M77: 0.01 | N77: 0 | O77: 0 | P77: 0 | Q77: 0 | R77: 0 | S77: 0 | T77: 0 | U77: 0 | V77: 0 | W77: 0 | X77: 33.3 | Y77: 15.13636364 | Z77: 21.94772727 | AA77: 1.381423117 | AB77: 0.1513636364 | AD77: =IFERROR(MATCH(E77,Technologies!$B$9:$B$26,0),"") -> 11 | AE77: =IFERROR(MATCH($G77,Fuels!$C$11:$C$23,0),"") -> 13
D78: 2200 | E78: Electric heating | F78: 0.1 | G78: Electricity | H78: 25 | I78: 0.25 | J78: 1 | K78: 0 | L78: 0.68 | M78: 0.01 | N78: 0 | O78: 72 | P78: 0 | Q78: 0 | R78: 0 | S78: 0 | T78: 0 | U78: 0 | V78: 0 | W78: 0 | X78: 33.3 | Y78: 15.13636364 | Z78: 10.29272727 | AA78: 0.5459471793 | AB78: 0.1513636364 | AD78: =IFERROR(MATCH(E78,Technologies!$B$9:$B$26,0),"") -> 18 | AE78: =IFERROR(MATCH($G78,Fuels!$C$11:$C$23,0),"") -> 10
E79: Micro CHP - biogas | F79: 0.1 | G79: Biogas | H79: 15 | I79: 0.25 | J79: 0.69 | K79: 0.3 | L79: 2.62 | M79: 0.02 | N79: 0 | O79: 39.6 | P79: 0 | Q79: 1 | R79: 39 | S79: 0 | T79: 0 | U79: 0 | V79: 15 | W79: 0.1 | X79: 48.26086957 | Y79: 15.13636364 | Z79: 39.65727273 | AA79: 3.156041715 | AB79: 0.3027272727 | AD79: =IFERROR(MATCH(E79,Technologies!$B$9:$B$26,0),"") -> 14 | AE79: =IFERROR(MATCH($G79,Fuels!$C$11:$C$23,0),"") -> 7
C80: 4 | E80: Gas boiler | F80: 0 | G80: Natural gas | H80: 20 | I80: 0.25 | J80: 0.97 | K80: 0 | L80: 0.322 | M80: 0.01368 | N80: 0 | O80: 10.8 | P80: 0 | Q80: 1 | R80: 57 | S80: 1 | T80: 1 | U80: 0 | V80: 20 | W80: 0 | X80: 0 | Y80: 0 | Z80: 0 | AA80: 0 | AB80: 0 | AD80: =IFERROR(MATCH(E80,Technologies!$B$9:$B$26,0),"") -> 2 | AE80: =IFERROR(MATCH($G80,Fuels!$C$11:$C$23,0),"") -> 1
D81: Design Reserve | F81: 0 | G81: 0 | H81: 0 | I81: 0 | J81: 0 | K81: 0 | L81: 0 | M81: 0 | N81: 0 | O81: 0 | P81: 0 | Q81: 0 | R81: 0 | S81: 0 | T81: 0 | U81: 0 | V81: 0 | W81: 0 | X81: 0 | Y81: 0 | Z81: 0 | AA81: 0 | AB81: 0 | AD81: =IFERROR(MATCH(E81,Technologies!$B$9:$B$26,0),"") ->  | AE81: =IFERROR(MATCH($G81,Fuels!$C$11:$C$23,0),"") -> 
D82: 0,00% | F82: 0 | G82: 0 | H82: 0 | I82: 0 | J82: 0 | K82: 0 | L82: 0 | M82: 0 | N82: 0 | O82: 0 | P82: 0 | Q82: 0 | R82: 0 | S82: 0 | T82: 0 | U82: 0 | V82: 0 | W82: 0 | X82: 0 | Y82: 0 | Z82: 0 | AA82: 0 | AB82: 0 | AD82: =IFERROR(MATCH(E82,Technologies!$B$9:$B$26,0),"") ->  | AE82: =IFERROR(MATCH($G82,Fuels!$C$11:$C$23,0),"") -> 
D83: Design Energy Demand | F83: 0 | G83: 0 | H83: 0 | I83: 0 | J83: 0 | K83: 0 | L83: 0 | M83: 0 | N83: 0 | O83: 0 | P83: 0 | Q83: 0 | R83: 0 | S83: 0 | T83: 0 | U83: 0 | V83: 0 | W83: 0 | X83: 0 | Y83: 0 | Z83: 0 | AA83: 0 | AB83: 0 | AD83: =IFERROR(MATCH(E83,Technologies!$B$9:$B$26,0),"") ->  | AE83: =IFERROR(MATCH($G83,Fuels!$C$11:$C$23,0),"") -> 
F84: 0 | G84: 0 | H84: 0 | I84: 0 | J84: 0 | K84: 0 | L84: 0 | M84: 0 | N84: 0 | O84: 0 | P84: 0 | Q84: 0 | R84: 0 | S84: 0 | T84: 0 | U84: 0 | V84: 0 | W84: 0 | X84: 0 | Y84: 0 | Z84: 0 | AA84: 0 | AB84: 0 | AD84: =IFERROR(MATCH(E84,Technologies!$B$9:$B$26,0),"") ->  | AE84: =IFERROR(MATCH($G84,Fuels!$C$11:$C$23,0),"") -> 
D85: Design Max Effect | F85: 0 | G85: 0 | H85: 0 | I85: 0 | J85: 0 | K85: 0 | L85: 0 | M85: 0 | N85: 0 | O85: 0 | P85: 0 | Q85: 0 | R85: 0 | S85: 0 | T85: 0 | U85: 0 | V85: 0 | W85: 0 | X85: 0 | Y85: 0 | Z85: 0 | AA85: 0 | AB85: 0 | AD85: =IFERROR(MATCH(E85,Technologies!$B$9:$B$26,0),"") ->  | AE85: =IFERROR(MATCH($G85,Fuels!$C$11:$C$23,0),"") -> 
D86: 151 | F86: 0 | G86: 0 | H86: 0 | I86: 0 | J86: 0 | K86: 0 | L86: 0 | M86: 0 | N86: 0 | O86: 0 | P86: 0 | Q86: 0 | R86: 0 | S86: 0 | T86: 0 | U86: 0 | V86: 0 | W86: 0 | X86: 0 | Y86: 0 | Z86: 0 | AA86: 0 | AB86: 0 | AD86: =IFERROR(MATCH(E86,Technologies!$B$9:$B$26,0),"") ->  | AE86: =IFERROR(MATCH($G86,Fuels!$C$11:$C$23,0),"") -> 
D87: Full Load Hours | F87: 0 | G87: 0 | H87: 0 | I87: 0 | J87: 0 | K87: 0 | L87: 0 | M87: 0 | N87: 0 | O87: 0 | P87: 0 | Q87: 0 | R87: 0 | S87: 0 | T87: 0 | U87: 0 | V87: 0 | W87: 0 | X87: 0 | Y87: 0 | Z87: 0 | AA87: 0 | AB87: 0 | AD87: =IFERROR(MATCH(E87,Technologies!$B$9:$B$26,0),"") ->  | AE87: =IFERROR(MATCH($G87,Fuels!$C$11:$C$23,0),"") -> 
F88: 0 | G88: 0 | H88: 0 | I88: 0 | J88: 0 | K88: 0 | L88: 0 | M88: 0 | N88: 0 | O88: 0 | P88: 0 | Q88: 0 | R88: 0 | S88: 0 | T88: 0 | U88: 0 | V88: 0 | W88: 0 | X88: 0 | Y88: 0 | Z88: 0 | AA88: 0 | AB88: 0 | AD88: =IFERROR(MATCH(E88,Technologies!$B$9:$B$26,0),"") ->  | AE88: =IFERROR(MATCH($G88,Fuels!$C$11:$C$23,0),"") -> 
F89: 0 | G89: 0 | H89: 0 | I89: 0 | J89: 0 | K89: 0 | L89: 0 | M89: 0 | N89: 0 | O89: 0 | P89: 0 | Q89: 0 | R89: 0 | S89: 0 | T89: 0 | U89: 0 | V89: 0 | W89: 0 | X89: 0 | Y89: 0 | Z89: 0 | AA89: 0 | AB89: 0 | AD89: =IFERROR(MATCH(E89,Technologies!$B$9:$B$26,0),"") ->  | AE89: =IFERROR(MATCH($G89,Fuels!$C$11:$C$23,0),"") -> 
C90: 5 | F90: 0 | G90: 0 | H90: 0 | I90: 0 | J90: 0 | K90: 0 | L90: 0 | M90: 0 | N90: 0 | O90: 0 | P90: 0 | Q90: 0 | R90: 0 | S90: 0 | T90: 0 | U90: 0 | V90: 0 | W90: 0 | X90: 0 | Y90: 0 | Z90: 0 | AA90: 0 | AB90: 0 | AD90: =IFERROR(MATCH(E90,Technologies!$B$9:$B$26,0),"") ->  | AE90: =IFERROR(MATCH($G90,Fuels!$C$11:$C$23,0),"") -> 
D91: Design Reserve | F91: 0 | G91: 0 | H91: 0 | I91: 0 | J91: 0 | K91: 0 | L91: 0 | M91: 0 | N91: 0 | O91: 0 | P91: 0 | Q91: 0 | R91: 0 | S91: 0 | T91: 0 | U91: 0 | V91: 0 | W91: 0 | X91: 0 | Y91: 0 | Z91: 0 | AA91: 0 | AB91: 0 | AD91: =IFERROR(MATCH(E91,Technologies!$B$9:$B$26,0),"") ->  | AE91: =IFERROR(MATCH($G91,Fuels!$C$11:$C$23,0),"") -> 
D92: 0,00% | F92: 0 | G92: 0 | H92: 0 | I92: 0 | J92: 0 | K92: 0 | L92: 0 | M92: 0 | N92: 0 | O92: 0 | P92: 0 | Q92: 0 | R92: 0 | S92: 0 | T92: 0 | U92: 0 | V92: 0 | W92: 0 | X92: 0 | Y92: 0 | Z92: 0 | AA92: 0 | AB92: 0 | AD92: =IFERROR(MATCH(E92,Technologies!$B$9:$B$26,0),"") ->  | AE92: =IFERROR(MATCH($G92,Fuels!$C$11:$C$23,0),"") -> 
D93: Design Energy Demand | F93: 0 | G93: 0 | H93: 0 | I93: 0 | J93: 0 | K93: 0 | L93: 0 | M93: 0 | N93: 0 | O93: 0 | P93: 0 | Q93: 0 | R93: 0 | S93: 0 | T93: 0 | U93: 0 | V93: 0 | W93: 0 | X93: 0 | Y93: 0 | Z93: 0 | AA93: 0 | AB93: 0 | AD93: =IFERROR(MATCH(E93,Technologies!$B$9:$B$26,0),"") ->  | AE93: =IFERROR(MATCH($G93,Fuels!$C$11:$C$23,0),"") -> 
F94: 0 | G94: 0 | H94: 0 | I94: 0 | J94: 0 | K94: 0 | L94: 0 | M94: 0 | N94: 0 | O94: 0 | P94: 0 | Q94: 0 | R94: 0 | S94: 0 | T94: 0 | U94: 0 | V94: 0 | W94: 0 | X94: 0 | Y94: 0 | Z94: 0 | AA94: 0 | AB94: 0 | AD94: =IFERROR(MATCH(E94,Technologies!$B$9:$B$26,0),"") ->  | AE94: =IFERROR(MATCH($G94,Fuels!$C$11:$C$23,0),"") -> 
D95: Design Max Effect | F95: 0 | G95: 0 | H95: 0 | I95: 0 | J95: 0 | K95: 0 | L95: 0 | M95: 0 | N95: 0 | O95: 0 | P95: 0 | Q95: 0 | R95: 0 | S95: 0 | T95: 0 | U95: 0 | V95: 0 | W95: 0 | X95: 0 | Y95: 0 | Z95: 0 | AA95: 0 | AB95: 0 | AD95: =IFERROR(MATCH(E95,Technologies!$B$9:$B$26,0),"") ->  | AE95: =IFERROR(MATCH($G95,Fuels!$C$11:$C$23,0),"") -> 
D96: 151 | F96: 0 | G96: 0 | H96: 0 | I96: 0 | J96: 0 | K96: 0 | L96: 0 | M96: 0 | N96: 0 | O96: 0 | P96: 0 | Q96: 0 | R96: 0 | S96: 0 | T96: 0 | U96: 0 | V96: 0 | W96: 0 | X96: 0 | Y96: 0 | Z96: 0 | AA96: 0 | AB96: 0 | AD96: =IFERROR(MATCH(E96,Technologies!$B$9:$B$26,0),"") ->  | AE96: =IFERROR(MATCH($G96,Fuels!$C$11:$C$23,0),"") -> 
D97: Full Load Hours | F97: 0 | G97: 0 | H97: 0 | I97: 0 | J97: 0 | K97: 0 | L97: 0 | M97: 0 | N97: 0 | O97: 0 | P97: 0 | Q97: 0 | R97: 0 | S97: 0 | T97: 0 | U97: 0 | V97: 0 | W97: 0 | X97: 0 | Y97: 0 | Z97: 0 | AA97: 0 | AB97: 0 | AD97: =IFERROR(MATCH(E97,Technologies!$B$9:$B$26,0),"") ->  | AE97: =IFERROR(MATCH($G97,Fuels!$C$11:$C$23,0),"") -> 
F98: 0 | G98: 0 | H98: 0 | I98: 0 | J98: 0 | K98: 0 | L98: 0 | M98: 0 | N98: 0 | O98: 0 | P98: 0 | Q98: 0 | R98: 0 | S98: 0 | T98: 0 | U98: 0 | V98: 0 | W98: 0 | X98: 0 | Y98: 0 | Z98: 0 | AA98: 0 | AB98: 0 | AD98: =IFERROR(MATCH(E98,Technologies!$B$9:$B$26,0),"") ->  | AE98: =IFERROR(MATCH($G98,Fuels!$C$11:$C$23,0),"") -> 
F99: 0 | G99: 0 | H99: 0 | I99: 0 | J99: 0 | K99: 0 | L99: 0 | M99: 0 | N99: 0 | O99: 0 | P99: 0 | Q99: 0 | R99: 0 | S99: 0 | T99: 0 | U99: 0 | V99: 0 | W99: 0 | X99: 0 | Y99: 0 | Z99: 0 | AA99: 0 | AB99: 0 | AD99: =IFERROR(MATCH(E99,Technologies!$B$9:$B$26,0),"") ->  | AE99: =IFERROR(MATCH($G99,Fuels!$C$11:$C$23,0),"") -> 
C100: 6 | F100: 0 | G100: 0 | H100: 0 | I100: 0 | J100: 0 | K100: 0 | L100: 0 | M100: 0 | N100: 0 | O100: 0 | P100: 0 | Q100: 0 | R100: 0 | S100: 0 | T100: 0 | U100: 0 | V100: 0 | W100: 0 | X100: 0 | Y100: 0 | Z100: 0 | AA100: 0 | AB100: 0 | AD100: =IFERROR(MATCH(E100,Technologies!$B$9:$B$26,0),"") ->  | AE100: =IFERROR(MATCH($G100,Fuels!$C$11:$C$23,0),"") -> 
D101: Design Reserve | F101: 0 | G101: 0 | H101: 0 | I101: 0 | J101: 0 | K101: 0 | L101: 0 | M101: 0 | N101: 0 | O101: 0 | P101: 0 | Q101: 0 | R101: 0 | S101: 0 | T101: 0 | U101: 0 | V101: 0 | W101: 0 | X101: 0 | Y101: 0 | Z101: 0 | AA101: 0 | AB101: 0 | AD101: =IFERROR(MATCH(E101,Technologies!$B$9:$B$26,0),"") ->  | AE101: =IFERROR(MATCH($G101,Fuels!$C$11:$C$23,0),"") -> 
D102: 0,00% | F102: 0 | G102: 0 | H102: 0 | I102: 0 | J102: 0 | K102: 0 | L102: 0 | M102: 0 | N102: 0 | O102: 0 | P102: 0 | Q102: 0 | R102: 0 | S102: 0 | T102: 0 | U102: 0 | V102: 0 | W102: 0 | X102: 0 | Y102: 0 | Z102: 0 | AA102: 0 | AB102: 0 | AD102: =IFERROR(MATCH(E102,Technologies!$B$9:$B$26,0),"") ->  | AE102: =IFERROR(MATCH($G102,Fuels!$C$11:$C$23,0),"") -> 
D103: Design Energy Demand | F103: 0 | G103: 0 | H103: 0 | I103: 0 | J103: 0 | K103: 0 | L103: 0 | M103: 0 | N103: 0 | O103: 0 | P103: 0 | Q103: 0 | R103: 0 | S103: 0 | T103: 0 | U103: 0 | V103: 0 | W103: 0 | X103: 0 | Y103: 0 | Z103: 0 | AA103: 0 | AB103: 0 | AD103: =IFERROR(MATCH(E101,Technologies!$B$9:$B$26,0),"") ->  | AE103: =IFERROR(MATCH($G103,Fuels!$C$11:$C$23,0),"") -> 
F104: 0 | G104: 0 | H104: 0 | I104: 0 | J104: 0 | K104: 0 | L104: 0 | M104: 0 | N104: 0 | O104: 0 | P104: 0 | Q104: 0 | R104: 0 | S104: 0 | T104: 0 | U104: 0 | V104: 0 | W104: 0 | X104: 0 | Y104: 0 | Z104: 0 | AA104: 0 | AB104: 0 | AD104: =IFERROR(MATCH(E104,Technologies!$B$9:$B$26,0),"") ->  | AE104: =IFERROR(MATCH($G104,Fuels!$C$11:$C$23,0),"") -> 
D105: Design Max Effect | F105: 0 | G105: 0 | H105: 0 | I105: 0 | J105: 0 | K105: 0 | L105: 0 | M105: 0 | N105: 0 | O105: 0 | P105: 0 | Q105: 0 | R105: 0 | S105: 0 | T105: 0 | U105: 0 | V105: 0 | W105: 0 | X105: 0 | Y105: 0 | Z105: 0 | AA105: 0 | AB105: 0 | AD105: =IFERROR(MATCH(E105,Technologies!$B$9:$B$26,0),"") ->  | AE105: =IFERROR(MATCH($G105,Fuels!$C$11:$C$23,0),"") -> 
F106: 0 | G106: 0 | H106: 0 | I106: 0 | J106: 0 | K106: 0 | L106: 0 | M106: 0 | N106: 0 | O106: 0 | P106: 0 | Q106: 0 | R106: 0 | S106: 0 | T106: 0 | U106: 0 | V106: 0 | W106: 0 | X106: 0 | Y106: 0 | Z106: 0 | AA106: 0 | AB106: 0 | AD106: =IFERROR(MATCH(E106,Technologies!$B$9:$B$26,0),"") ->  | AE106: =IFERROR(MATCH($G106,Fuels!$C$11:$C$23,0),"") -> 
D107: Full Load Hours | F107: 0 | G107: 0 | H107: 0 | I107: 0 | J107: 0 | K107: 0 | L107: 0 | M107: 0 | N107: 0 | O107: 0 | P107: 0 | Q107: 0 | R107: 0 | S107: 0 | T107: 0 | U107: 0 | V107: 0 | W107: 0 | X107: 0 | Y107: 0 | Z107: 0 | AA107: 0 | AB107: 0 | AD107: =IFERROR(MATCH(E107,Technologies!$B$9:$B$26,0),"") ->  | AE107: =IFERROR(MATCH($G107,Fuels!$C$11:$C$23,0),"") -> 
F108: 0 | G108: 0 | H108: 0 | I108: 0 | J108: 0 | K108: 0 | L108: 0 | M108: 0 | N108: 0 | O108: 0 | P108: 0 | Q108: 0 | R108: 0 | S108: 0 | T108: 0 | U108: 0 | V108: 0 | W108: 0 | X108: 0 | Y108: 0 | Z108: 0 | AA108: 0 | AB108: 0 | AD108: =IFERROR(MATCH(E108,Technologies!$B$9:$B$26,0),"") ->  | AE108: =IFERROR(MATCH($G108,Fuels!$C$11:$C$23,0),"") -> 
F109: 0 | G109: 0 | H109: 0 | I109: 0 | J109: 0 | K109: 0 | L109: 0 | M109: 0 | N109: 0 | O109: 0 | P109: 0 | Q109: 0 | R109: 0 | S109: 0 | T109: 0 | U109: 0 | V109: 0 | W109: 0 | X109: 0 | Y109: 0 | Z109: 0 | AA109: 0 | AB109: 0 | AD109: =IFERROR(MATCH(E109,Technologies!$B$9:$B$26,0),"") ->  | AE109: =IFERROR(MATCH($G109,Fuels!$C$11:$C$23,0),"") -> 
C110: 7 | F110: 0 | G110: 0 | H110: 0 | I110: 0 | J110: 0 | K110: 0 | L110: 0 | M110: 0 | N110: 0 | O110: 0 | P110: 0 | Q110: 0 | R110: 0 | S110: 0 | T110: 0 | U110: 0 | V110: 0 | W110: 0 | X110: 0 | Y110: 0 | Z110: 0 | AA110: 0 | AB110: 0 | AD110: =IFERROR(MATCH(E110,Technologies!$B$9:$B$26,0),"") ->  | AE110: =IFERROR(MATCH($G110,Fuels!$C$11:$C$23,0),"") -> 
D111: Design Reserve | F111: 0 | G111: 0 | H111: 0 | I111: 0 | J111: 0 | K111: 0 | L111: 0 | M111: 0 | N111: 0 | O111: 0 | P111: 0 | Q111: 0 | R111: 0 | S111: 0 | T111: 0 | U111: 0 | V111: 0 | W111: 0 | X111: 0 | Y111: 0 | Z111: 0 | AA111: 0 | AB111: 0 | AD111: =IFERROR(MATCH(E111,Technologies!$B$9:$B$26,0),"") ->  | AE111: =IFERROR(MATCH($G111,Fuels!$C$11:$C$23,0),"") -> 
D112: 0,00% | F112: 0 | G112: 0 | H112: 0 | I112: 0 | J112: 0 | K112: 0 | L112: 0 | M112: 0 | N112: 0 | O112: 0 | P112: 0 | Q112: 0 | R112: 0 | S112: 0 | T112: 0 | U112: 0 | V112: 0 | W112: 0 | X112: 0 | Y112: 0 | Z112: 0 | AA112: 0 | AB112: 0 | AD112: =IFERROR(MATCH(E112,Technologies!$B$9:$B$26,0),"") ->  | AE112: =IFERROR(MATCH($G112,Fuels!$C$11:$C$23,0),"") -> 
D113: Design Energy Demand | F113: 0.1 | G113: 0 | H113: 0 | I113: 0 | J113: 0 | K113: 0 | L113: 0 | M113: 0 | N113: 0 | O113: 0 | P113: 0 | Q113: 0 | R113: 0 | S113: 0 | T113: 0 | U113: 0 | V113: 0 | W113: 0 | X113: 0 | Y113: 0 | Z113: 0 | AA113: 0 | AB113: 0 | AD113: =IFERROR(MATCH(E113,Technologies!$B$9:$B$26,0),"") ->  | AE113: =IFERROR(MATCH($G113,Fuels!$C$11:$C$23,0),"") -> 
F114: 0 | G114: 0 | H114: 0 | I114: 0 | J114: 0 | K114: 0 | L114: 0 | M114: 0 | N114: 0 | O114: 0 | P114: 0 | Q114: 0 | R114: 0 | S114: 0 | T114: 0 | U114: 0 | V114: 0 | W114: 0 | X114: 0 | Y114: 0 | Z114: 0 | AA114: 0 | AB114: 0 | AD114: =IFERROR(MATCH(E114,Technologies!$B$9:$B$26,0),"") ->  | AE114: =IFERROR(MATCH($G114,Fuels!$C$11:$C$23,0),"") -> 
D115: Design Max Effect | F115: 0 | G115: 0 | H115: 0 | I115: 0 | J115: 0 | K115: 0 | L115: 0 | M115: 0 | N115: 0 | O115: 0 | P115: 0 | Q115: 0 | R115: 0 | S115: 0 | T115: 0 | U115: 0 | V115: 0 | W115: 0 | X115: 0 | Y115: 0 | Z115: 0 | AA115: 0 | AB115: 0 | AD115: =IFERROR(MATCH(E115,Technologies!$B$9:$B$26,0),"") ->  | AE115: =IFERROR(MATCH($G115,Fuels!$C$11:$C$23,0),"") -> 
D116: 166 | F116: 0 | G116: 0 | H116: 0 | I116: 0 | J116: 0 | K116: 0 | L116: 0 | M116: 0 | N116: 0 | O116: 0 | P116: 0 | Q116: 0 | R116: 0 | S116: 0 | T116: 0 | U116: 0 | V116: 0 | W116: 0 | X116: 0 | Y116: 0 | Z116: 0 | AA116: 0 | AB116: 0 | AD116: =IFERROR(MATCH(E116,Technologies!$B$9:$B$26,0),"") ->  | AE116: =IFERROR(MATCH($G116,Fuels!$C$11:$C$23,0),"") -> 
D117: Full Load Hours | F117: 0 | G117: 0 | H117: 0 | I117: 0 | J117: 0 | K117: 0 | L117: 0 | M117: 0 | N117: 0 | O117: 0 | P117: 0 | Q117: 0 | R117: 0 | S117: 0 | T117: 0 | U117: 0 | V117: 0 | W117: 0 | X117: 0 | Y117: 0 | Z117: 0 | AA117: 0 | AB117: 0 | AD117: =IFERROR(MATCH(E117,Technologies!$B$9:$B$26,0),"") ->  | AE117: =IFERROR(MATCH($G117,Fuels!$C$11:$C$23,0),"") -> 
F118: 0 | G118: 0 | H118: 0 | I118: 0 | J118: 0 | K118: 0 | L118: 0 | M118: 0 | N118: 0 | O118: 0 | P118: 0 | Q118: 0 | R118: 0 | S118: 0 | T118: 0 | U118: 0 | V118: 0 | W118: 0 | X118: 0 | Y118: 0 | Z118: 0 | AA118: 0 | AB118: 0 | AD118: =IFERROR(MATCH(E118,Technologies!$B$9:$B$26,0),"") ->  | AE118: =IFERROR(MATCH($G118,Fuels!$C$11:$C$23,0),"") -> 
F119: 0 | G119: 0 | H119: 0 | I119: 0 | J119: 0 | K119: 0 | L119: 0 | M119: 0 | N119: 0 | O119: 0 | P119: 0 | Q119: 0 | R119: 0 | S119: 0 | T119: 0 | U119: 0 | V119: 0 | W119: 0 | X119: 0 | Y119: 0 | Z119: 0 | AA119: 0 | AB119: 0 | AD119: =IFERROR(MATCH(E119,Technologies!$B$9:$B$26,0),"") ->  | AE119: =IFERROR(MATCH($G119,Fuels!$C$11:$C$23,0),"") -> 
C120: 8 | F120: ,00% | G120: 0 | H120: 0 | I120: 0 | J120: 0 | K120: 0 | L120: 0 | M120: 0 | N120: 0 | O120: 0 | P120: 0 | Q120: 0 | R120: 0 | S120: 0 | T120: 0 | U120: 0 | V120: 0 | W120: 0 | X120: 0 | Y120: 0 | Z120: 0 | AA120: 0 | AB120: 0 | AD120: =IFERROR(MATCH(E120,Technologies!$B$9:$B$26,0),"") ->  | AE120: =IFERROR(MATCH($G120,Fuels!$C$11:$C$23,0),"") -> 
D121: Design Reserve | F121: 0,00% | G121: 0 | H121: 0 | I121: 0 | J121: 0 | K121: 0 | L121: 0 | M121: 0 | N121: 0 | O121: 0 | P121: 0 | Q121: 0 | R121: 0 | S121: 0 | T121: 0 | U121: 0 | V121: 0 | W121: 0 | X121: 0 | Y121: 0 | Z121: 0 | AA121: 0 | AB121: 0 | AD121: =IFERROR(MATCH(E121,Technologies!$B$9:$B$26,0),"") ->  | AE121: =IFERROR(MATCH($G121,Fuels!$C$11:$C$23,0),"") -> 
D122: 0,00% | F122: 0,00% | G122: 0 | H122: 0 | I122: 0 | J122: 0 | K122: 0 | L122: 0 | M122: 0 | N122: 0 | O122: 0 | P122: 0 | Q122: 0 | R122: 0 | S122: 0 | T122: 0 | U122: 0 | V122: 0 | W122: 0 | X122: 0 | Y122: 0 | Z122: 0 | AA122: 0 | AB122: 0 | AD122: =IFERROR(MATCH(E122,Technologies!$B$9:$B$26,0),"") ->  | AE122: =IFERROR(MATCH($G122,Fuels!$C$11:$C$23,0),"") -> 
D123: Design Energy Demand | F123: 0,00% | G123: 0 | H123: 0 | I123: 0 | J123: 0 | K123: 0 | L123: 0 | M123: 0 | N123: 0 | O123: 0 | P123: 0 | Q123: 0 | R123: 0 | S123: 0 | T123: 0 | U123: 0 | V123: 0 | W123: 0 | X123: 0 | Y123: 0 | Z123: 0 | AA123: 0 | AB123: 0 | AD123: =IFERROR(MATCH(E123,Technologies!$B$9:$B$26,0),"") ->  | AE123: =IFERROR(MATCH($G123,Fuels!$C$11:$C$23,0),"") -> 
G124: 0 | H124: 0 | I124: 0 | J124: 0 | K124: 0 | L124: 0 | M124: 0 | N124: 0 | O124: 0 | P124: 0 | Q124: 0 | R124: 0 | S124: 0 | T124: 0 | U124: 0 | V124: 0 | W124: 0 | X124: 0 | Y124: 0 | Z124: 0 | AA124: 0 | AB124: 0 | AD124: =IFERROR(MATCH(E124,Technologies!$B$9:$B$26,0),"") ->  | AE124: =IFERROR(MATCH($G124,Fuels!$C$11:$C$23,0),"") -> 
D125: Design Max Effect | G125: 0 | H125: 0 | I125: 0 | J125: 0 | K125: 0 | L125: 0 | M125: 0 | N125: 0 | O125: 0 | P125: 0 | Q125: 0 | R125: 0 | S125: 0 | T125: 0 | U125: 0 | V125: 0 | W125: 0 | X125: 0 | Y125: 0 | Z125: 0 | AA125: 0 | AB125: 0 | AD125: =IFERROR(MATCH(E125,Technologies!$B$9:$B$26,0),"") ->  | AE125: =IFERROR(MATCH($G125,Fuels!$C$11:$C$23,0),"") -> 
D126: 166 | G126: 0 | H126: 0 | I126: 0 | J126: 0 | K126: 0 | L126: 0 | M126: 0 | N126: 0 | O126: 0 | P126: 0 | Q126: 0 | R126: 0 | S126: 0 | T126: 0 | U126: 0 | V126: 0 | W126: 0 | X126: 0 | Y126: 0 | Z126: 0 | AA126: 0 | AB126: 0 | AD126: =IFERROR(MATCH(E126,Technologies!$B$9:$B$26,0),"") ->  | AE126: =IFERROR(MATCH($G126,Fuels!$C$11:$C$23,0),"") -> 
D127: Full Load Hours | G127: 0 | H127: 0 | I127: 0 | J127: 0 | K127: 0 | L127: 0 | M127: 0 | N127: 0 | O127: 0 | P127: 0 | Q127: 0 | R127: 0 | S127: 0 | T127: 0 | U127: 0 | V127: 0 | W127: 0 | X127: 0 | Y127: 0 | Z127: 0 | AA127: 0 | AB127: 0 | AD127: =IFERROR(MATCH(E127,Technologies!$B$9:$B$26,0),"") ->  | AE127: =IFERROR(MATCH($G127,Fuels!$C$11:$C$23,0),"") -> 
G128: 0 | H128: 0 | I128: 0 | J128: 0 | K128: 0 | L128: 0 | M128: 0 | N128: 0 | O128: 0 | P128: 0 | Q128: 0 | R128: 0 | S128: 0 | T128: 0 | U128: 0 | V128: 0 | W128: 0 | X128: 0 | Y128: 0 | Z128: 0 | AA128: 0 | AB128: 0 | AD128: =IFERROR(MATCH(E128,Technologies!$B$9:$B$26,0),"") ->  | AE128: =IFERROR(MATCH($G128,Fuels!$C$11:$C$23,0),"") -> 
G129: 0 | H129: 0 | I129: 0 | J129: 0 | K129: 0 | L129: 0 | M129: 0 | N129: 0 | O129: 0 | P129: 0 | Q129: 0 | R129: 0 | S129: 0 | T129: 0 | U129: 0 | V129: 0 | W129: 0 | X129: 0 | Y129: 0 | Z129: 0 | AA129: 0 | AB129: 0 | AD129: =IFERROR(MATCH(E129,Technologies!$B$9:$B$26,0),"") ->  | AE129: =IFERROR(MATCH($G129,Fuels!$C$11:$C$23,0),"") -> 
C130: 9 | AD130: =IFERROR(MATCH(E130,Technologies!$B$9:$B$26,0),"") ->  | AE130: =IFERROR(MATCH($G130,Fuels!$C$11:$C$23,0),"") -> 
AD131: =IFERROR(MATCH(E131,Technologies!$B$9:$B$26,0),"") ->  | AE131: =IFERROR(MATCH($G131,Fuels!$C$11:$C$23,0),"") -> 
AD132: =IFERROR(MATCH(E132,Technologies!$B$9:$B$26,0),"") ->  | AE132: =IFERROR(MATCH($G132,Fuels!$C$11:$C$23,0),"") -> 
AD133: =IFERROR(MATCH(E133,Technologies!$B$9:$B$26,0),"") ->  | AE133: =IFERROR(MATCH($G133,Fuels!$C$11:$C$23,0),"") -> 
AD134: =IFERROR(MATCH(E134,Technologies!$B$9:$B$26,0),"") ->  | AE134: =IFERROR(MATCH($G134,Fuels!$C$11:$C$23,0),"") -> 
AD135: =IFERROR(MATCH(E135,Technologies!$B$9:$B$26,0),"") ->  | AE135: =IFERROR(MATCH($G135,Fuels!$C$11:$C$23,0),"") -> 
AD136: =IFERROR(MATCH(E136,Technologies!$B$9:$B$26,0),"") ->  | AE136: =IFERROR(MATCH($G136,Fuels!$C$11:$C$23,0),"") -> 
AD137: =IFERROR(MATCH(E137,Technologies!$B$9:$B$26,0),"") ->  | AE137: =IFERROR(MATCH($G137,Fuels!$C$11:$C$23,0),"") -> 
AD138: =IFERROR(MATCH(E138,Technologies!$B$9:$B$26,0),"") ->  | AE138: =IFERROR(MATCH($G138,Fuels!$C$11:$C$23,0),"") -> 
AD139: =IFERROR(MATCH(E139,Technologies!$B$9:$B$26,0),"") ->  | AE139: =IFERROR(MATCH($G139,Fuels!$C$11:$C$23,0),"") -> 
C140: 10 | AD140: =IFERROR(MATCH(E140,Technologies!$B$9:$B$26,0),"") ->  | AE140: =IFERROR(MATCH($G140,Fuels!$C$11:$C$23,0),"") -> 
AD141: =IFERROR(MATCH(E141,Technologies!$B$9:$B$26,0),"") ->  | AE141: =IFERROR(MATCH($G141,Fuels!$C$11:$C$23,0),"") -> 
AD142: =IFERROR(MATCH(E142,Technologies!$B$9:$B$26,0),"") ->  | AE142: =IFERROR(MATCH($G142,Fuels!$C$11:$C$23,0),"") -> 
AD143: =IFERROR(MATCH(E143,Technologies!$B$9:$B$26,0),"") ->  | AE143: =IFERROR(MATCH($G143,Fuels!$C$11:$C$23,0),"") -> 
AD144: =IFERROR(MATCH(E144,Technologies!$B$9:$B$26,0),"") ->  | AE144: =IFERROR(MATCH($G144,Fuels!$C$11:$C$23,0),"") -> 
AD145: =IFERROR(MATCH(E145,Technologies!$B$9:$B$26,0),"") ->  | AE145: =IFERROR(MATCH($G145,Fuels!$C$11:$C$23,0),"") -> 
AD146: =IFERROR(MATCH(E146,Technologies!$B$9:$B$26,0),"") ->  | AE146: =IFERROR(MATCH($G146,Fuels!$C$11:$C$23,0),"") -> 
AD147: =IFERROR(MATCH(E147,Technologies!$B$9:$B$26,0),"") ->  | AE147: =IFERROR(MATCH($G147,Fuels!$C$11:$C$23,0),"") -> 
AD148: =IFERROR(MATCH(E148,Technologies!$B$9:$B$26,0),"") ->  | AE148: =IFERROR(MATCH($G148,Fuels!$C$11:$C$23,0),"") -> 
AD149: =IFERROR(MATCH(E149,Technologies!$B$9:$B$26,0),"") ->  | AE149: =IFERROR(MATCH($G149,Fuels!$C$11:$C$23,0),"") -> 
D150: Source: | E150: =D26 -> Table I1
D152: Table I3 | E152: Active mix
G153: Technical | L153: Unit costs | P153: Emissions | X153: Total system indicators | AD153: Table I.A8
C154: Slot | D154: Mix name | E154: Technology | F154: Share, % | G154: Fuel | H154: Lifetime | I154: Buildtime | J154: Heat eff. | K154: Elec. eff. | L154: CAPEX | M154: Fixed OPEX | N154: Variable OPEX | O154: Fuel distr. | P154: SO2 | Q154: SO₂ in fuel | R154: CO₂ | S154: CH4 | T154: N2O | U154: SO₂ | V154: NOx | W154: PM2.5 | X154: Fuel | Y154: Effect | Z154: CAPEX | AA154: CAPEX | AB154: FOPEX | AD154: Fuel price | AE154: Fuel EX
B155: Row | C155: =E44 -> 02 | G155: text | H155: years | I155: years | J155: % | K155: % | L155: mill EUR/MW | M155: MEUR/MW/y | N155: EUR/MWh | O155: EUR/MWh | P155: % | Q155: g/GJ | R155: kg/GJ fuel | S155: g/GJ fuel | T155: g/GJ fuel | U155: g/GJ fuel | V155: g/GJ fuel | W155: g/GJ fuel | X155: GWh/y | Y155: MW | Z155: mill EUR | AA155: mill. EUR/y | AB155: mill. EUR/y | AD155: EUR/MWh | AE155: mill. EUR/y
B156: =Support_ten*($E$44-1)+ROW()-ROW($E$155) -> 11 | D156: =D44 -> Gas 100% | E156: =INDEX($E$50:$AB$149,$B156,E$166) -> Gas boiler | F156: 1 | G156: Natural gas | H156: 20 | I156: 0.25 | J156: 0.97 | K156: 0 | L156: 0.322 | M156: 0.01368 | N156: 0 | O156: 10.8 | P156: 0 | Q156: 1 | R156: 57 | S156: 1 | T156: 1 | U156: =INDEX($E$50:$AB$149,$B156,U$166) -> 0 | V156: 20 | W156: 0 | X156: =INDEX($E$50:$AB$149,$B156,X$166)*$F$173 -> 343.2989691 | Y156: =INDEX($E$50:$AB$149,$B156,Y$166)*$F$173 -> 151.3636364 | Z156: 48.73909091 | AA156: 3.067712026 | AB156: 2.070654545 | AD156: =IFERROR(VLOOKUP(G156,Fuels!$C$11:$C$23,2,0),0)*Support_GJperGWh/Support_thousand -> 0 | AE156: =SUM(N156:O156,AD156)*X156/Support_thousand -> 3.707628866 | AF156: =SUM(AA156:AE156)/$D$160*Support_thousand -> 26.56455086
B157: 12 | D157: =INDEX($D$50:$D$149,$B157) -> Design Reserve | E157: 0 | F157: 0 | G157: 0 | H157: 0 | I157: 0 | J157: 0 | K157: 0 | L157: 0 | M157: 0 | N157: 0 | O157: 0 | P157: 0 | Q157: 0 | R157: 0 | S157: 0 | T157: 0 | U157: 0 | V157: 0 | W157: 0 | X157: 0 | Y157: 0 | Z157: 0 | AA157: 0 | AB157: 0 | AD157: =IFERROR(VLOOKUP(G157,Fuels!$C$11:$C$23,2,0),0)*Support_GJperGWh/Support_thousand -> 0 | AE157: 0 | AF157: 0
B158: 13 | D158: 0,00% | E158: 0 | F158: 0 | G158: 0 | H158: 0 | I158: 0 | J158: 0 | K158: 0 | L158: 0 | M158: 0 | N158: 0 | O158: 0 | P158: 0 | Q158: 0 | R158: 0 | S158: 0 | T158: 0 | U158: 0 | V158: 0 | W158: 0 | X158: 0 | Y158: 0 | Z158: 0 | AA158: 0 | AB158: 0 | AD158: =IFERROR(VLOOKUP(G158,Fuels!$C$11:$C$23,2,0),0)*Support_GJperGWh/Support_thousand -> 0 | AE158: 0 | AF158: 0
B159: 14 | D159: Design Energy Demand | E159: 0 | F159: 0 | G159: 0 | H159: 0 | I159: 0 | J159: 0 | K159: 0 | L159: 0 | M159: 0 | N159: 0 | O159: 0 | P159: 0 | Q159: 0 | R159: 0 | S159: 0 | T159: 0 | U159: 0 | V159: 0 | W159: 0 | X159: 0 | Y159: 0 | Z159: 0 | AA159: 0 | AB159: 0 | AD159: =IFERROR(VLOOKUP(G159,Fuels!$C$11:$C$23,2,0),0)*Support_GJperGWh/Support_thousand -> 0 | AE159: 0 | AF159: 0
B160: 15 | D160: 333 | E160: 0 | F160: 0 | G160: 0 | H160: 0 | I160: 0 | J160: 0 | K160: 0 | L160: 0 | M160: 0 | N160: 0 | O160: 0 | P160: 0 | Q160: 0 | R160: 0 | S160: 0 | T160: 0 | U160: 0 | V160: 0 | W160: 0 | X160: 0 | Y160: 0 | Z160: 0 | AA160: 0 | AB160: 0 | AD160: =IFERROR(VLOOKUP(G160,Fuels!$C$11:$C$23,2,0),0)*Support_GJperGWh/Support_thousand -> 0 | AE160: 0 | AF160: 0
B161: 16 | D161: Design Max Effect | E161: 0 | F161: 0 | G161: 0 | H161: 0 | I161: 0 | J161: 0 | K161: 0 | L161: 0 | M161: 0 | N161: 0 | O161: 0 | P161: 0 | Q161: 0 | R161: 0 | S161: 0 | T161: 0 | U161: 0 | V161: 0 | W161: 0 | X161: 0 | Y161: 0 | Z161: 0 | AA161: 0 | AB161: 0 | AD161: =IFERROR(VLOOKUP(G161,Fuels!$C$11:$C$23,2,0),0)*Support_GJperGWh/Support_thousand -> 0 | AE161: 0 | AF161: 0
B162: 17 | D162: 151 | E162: 0 | F162: 0 | G162: 0 | H162: 0 | I162: 0 | J162: 0 | K162: 0 | L162: 0 | M162: 0 | N162: 0 | O162: 0 | P162: 0 | Q162: 0 | R162: 0 | S162: 0 | T162: 0 | U162: 0 | V162: 0 | W162: 0 | X162: 0 | Y162: 0 | Z162: 0 | AA162: 0 | AB162: 0 | AD162: =IFERROR(VLOOKUP(G162,Fuels!$C$11:$C$23,2,0),0)*Support_GJperGWh/Support_thousand -> 0 | AE162: 0 | AF162: 0
B163: 18 | D163: Full Load Hours | E163: 0 | F163: 0 | G163: 0 | H163: 0 | I163: 0 | J163: 0 | K163: 0 | L163: 0 | M163: 0 | N163: 0 | O163: 0 | P163: 0 | Q163: 0 | R163: 0 | S163: 0 | T163: 0 | U163: 0 | V163: 0 | W163: 0 | X163: 0 | Y163: 0 | Z163: 0 | AA163: 0 | AB163: 0 | AD163: =IFERROR(VLOOKUP(G163,Fuels!$C$11:$C$23,2,0),0)*Support_GJperGWh/Support_thousand -> 0 | AE163: 0 | AF163: 0
B164: 19 | D164: 2200 | E164: 0 | F164: 0 | G164: 0 | H164: 0 | I164: 0 | J164: 0 | K164: 0 | L164: 0 | M164: 0 | N164: 0 | O164: 0 | P164: 0 | Q164: 0 | R164: 0 | S164: 0 | T164: 0 | U164: 0 | V164: 0 | W164: 0 | X164: 0 | Y164: 0 | Z164: 0 | AA164: 0 | AB164: 0 | AD164: =IFERROR(VLOOKUP(G164,Fuels!$C$11:$C$23,2,0),0)*Support_GJperGWh/Support_thousand -> 0 | AE164: 0 | AF164: 0
B165: 20 | D165: 0 | E165: 0 | F165: 0 | G165: 0 | H165: 0 | I165: 0 | J165: 0 | K165: 0 | L165: 0 | M165: 0 | N165: 0 | O165: 0 | P165: 0 | Q165: 0 | R165: 0 | S165: 0 | T165: 0 | U165: 0 | V165: 0 | W165: 0 | X165: 0 | Y165: 0 | Z165: 0 | AA165: 0 | AB165: 0 | AD165: =IFERROR(VLOOKUP(G165,Fuels!$C$11:$C$23,2,0),0)*Support_GJperGWh/Support_thousand -> 0 | AE165: 0 | AF165: 0
B166: Col | E166: =COLUMN()-COLUMN($D$156) -> 1 | F166: 2 | G166: 3 | H166: 4 | I166: 5 | J166: 6 | K166: 7 | L166: 8 | M166: 9 | N166: 10 | O166: 11 | P166: 12 | Q166: 13 | R166: 14 | S166: 15 | T166: 16 | U166: 17 | V166: 18 | W166: 19 | X166: 20 | Y166: 21 | Z166: 22 | AA166: 23 | AB166: 24
D167: Source: | E167: =D46 -> Table I2
D169: Table I.A6 | E169: Scaling of individual demand mixes to scenario demand
D170: Network | F170: =Scenarios!$E$12 -> Open high
D171: Scenario demand | E171: GWh/year | F171: =Centralised!F318 -> 333
D172: Mix design demand | E172: GWh/year | F172: =D160 -> 333
D173: Scale up for DH loss | E173: % | F173: =F171/F172 -> 1
D174: Source: | E174: =D152& ", " &Scenarios!$B$10& " & " &Centralised!E315 -> Table I3, Table S1 & Table C.A2
D176: Table I.A7 | E176: Auxiliary Table
D177: Mix name | E177: Technology | F177: Share
D178: GWh for the mix /Climate zone | F178: %
D179: All individual | E179: Gas boiler | F179: 0.1
D180: Design Reserve | E180: Oil boiler | F180: 0.1
D181: 0,00% | E181: Wood pellet boiler | F181: 0.1
D182: Design Energy Demand | E182: Wood chips boiler | F182: 0.1
D183: 333 | E183: Heat pump - water to water, groundwater well | F183: 0.1
D184: Design Max Effect | E184: Heat pump - air to water | F184: 0.1
D185: 151 | E185: Hydrogen boiler | F185: 0.1
D186: Full Load Hours | E186: Solar flat plate colletors | F186: 0.1
D187: 2200 | E187: Electric heating | F187: 0.1
E188: Micro CHP - biogas | F188: 0.1

Sheet Network
A1: Network costs
A2: This sheet calculates costs of networks based on different network settings.
D5: Table N1 | E5: Network Costs
E6: Unit | F6: Total
D7: Country | F7: 20 Germany
D8: Location | F8: Capital suburbs
D9: Network CAPEX | E9: Mill. EUR | F9: =BG27 -> 50.0250437
D10: Substations CAPEX | E10: Mill. EUR | F10: =BP27*Network_CAPEX_subs -> 127.464 | G10: 1
D11: Contingencies | E11: Mill. EUR | F11: =(F9+F10)*Network_CAPEX_sens -> 35.49780874 | G11: 0.2
D12: Total network CAPEX | E12: Mill. EUR | F12: =SUM(F9:F11) -> 212.9868524
D18: Table N2 | E18: Network Configuration Basis | AV18: Table N.A1 | AW18: Construction Issues | AZ18: Table N.A4 | BA18: Network Cost Estimation | BK18: Table N.A6 | BL18: Substation Cost Estimation
D19: District structure | E19: Ground area | F19: Net demand | G19: Customer | H19: DH net demand | I19: HH demand | J19: HH connected | AV19: District structure | AW19: Work Access | AX19: Traffic Measures | AZ19: Structure | BA19: Access | BB19: Traffic | BC19: Basis density | BD19: Specific max | BE19: Service pipe | BF19: Specific cost | BG19: CAPEX | BH19: CAPEX | BI19: CAPEX per unit | BK19: Units per | BL19: Substations | BM19: Load hours | BN19: Design Load | BO19: Design cost | BP19: CAPEX | BQ19: CAPEX | BR19: CAPEX per unit
E20: (1000 m2) | F20: GWh/yr | G20: connection level | H20: GWh/yr | I20: kWh/unit/yr | AZ20: factor | BA20: factor | BB20: factor | BC20: kWh/m2 g | BD20: EUR/MWh | BE20: cost share | BF20: EUR/MWh | BG20: mill. EUR | BH20: ="mill."&$AW$37 -> mill.EUR | BI20: =$AW$37&"/unit" -> EUR/unit | BK20: substation | BM20: h | BN20: kW/unit | BO20: EUR/unit | BP20: mill. EUR | BQ20: ="mill."&$AW$37 -> mill.EUR | BR20: =$AW$37&"/unit" -> EUR/unit
D21: 1 Open-Low | E21: 1100 | G21: 1 | H21: =IFERROR(F21*G21,0) -> 0 | I21: 18135 | J21: =ROUND(IFERROR(H21/I21*1000*1000,0),0) -> 0 | AV21: =D21 -> 1 Open-Low | AW21: Wide streets | AX21: Normal | AZ21: =IFERROR(INDEX(Support!$M$7:$M$11,MATCH($AV21,Support!$L$7:$L$11,0)),1) -> 1 | BA21: =IFERROR(INDEX(Support!$M$22:$M$25,MATCH($AW21,Support!$L$22:$L$25,0)),1) -> 0.9 | BB21: =IFERROR(INDEX(Support!$M$29:$M$31,MATCH($AX21,Support!$L$29:$L$31,0)),1) -> 1 | BC21: =IFERROR(Network_Demand1*1000/Network_GroundArea1,0) -> 0 | BD21: =IFERROR($AZ21*$BA21*$BB21*$BA$37*$BA$38*(1+$BA$39)*$BA$40*$BC21^($BA$41),0) -> 0 | BE21: =VLOOKUP($AV21,Support!$L$7:$N$11,3) -> 0.4 | BF21: =IFERROR($BD21*($BE21+(1-$BE21)/Network_Connection1),$BD21) -> 0 | BG21: =BF21*H21/1000 -> 0 | BH21: =IFERROR(BG21/$AW$38,0) -> 0 | BI21: =IFERROR(BH21*1000*1000/$J21,0) -> 0 | BK21: 1 | BL21: =ROUND(IFERROR(J21/BK21,0),0) -> 0 | BM21: 1800 | BN21: =IFERROR(H21*1000*1000/BM21/BL21,0) -> 0 | BO21: =IFERROR(MAX(4000,$BB$37*$BB$38*(1+$BB$39)*$BB$40*BN21^($BB$41)),0) -> 4000 | BP21: =BO21*BL21/1000/1000 -> 0 | BQ21: =IFERROR(BP21/$AW$38,0) -> 0 | BR21: =IFERROR(BQ21*1000*1000/$J21,0) -> 0
D22: 2 Block-Low | E22: 1100 | G22: 1 | H22: =IFERROR(F22*G22,0) -> 0 | I22: 12075 | J22: =ROUND(IFERROR(H22/I22*1000*1000,0),0) -> 0 | AV22: =D22 -> 2 Block-Low | AW22: With open spaces | AX22: Easy | AZ22: =IFERROR(INDEX(Support!$M$7:$M$11,MATCH($AV22,Support!$L$7:$L$11,0)),1) -> 0.6 | BA22: =IFERROR(INDEX(Support!$M$22:$M$25,MATCH($AW22,Support!$L$22:$L$25,0)),1) -> 0.8 | BB22: =IFERROR(INDEX(Support!$M$29:$M$31,MATCH($AX22,Support!$L$29:$L$31,0)),1) -> 0.9 | BC22: =IFERROR(Network_Demand2*1000/Network_GroundArea2,0) -> 0 | BD22: =IFERROR($AZ22*$BA22*$BB22*$BA$37*$BA$38*(1+$BA$39)*$BA$40*$BC22^($BA$41),0) -> 0 | BE22: =VLOOKUP($AV22,Support!$L$7:$N$11,3) -> 0.23 | BF22: =IFERROR($BD22*($BE22+(1-$BE22)/Network_Connection2),$BD22) -> 0 | BG22: =BF22*H22/1000 -> 0 | BH22: =IFERROR(BG22/$AW$38,0) -> 0 | BI22: =IFERROR(BH22*1000*1000/$J22,0) -> 0 | BK22: =IF(BC22>0,6,0) -> 0 | BL22: =ROUND(IFERROR(J22/BK22,0),0) -> 0 | BM22: 2000 | BN22: =IFERROR(H22*1000*1000/BM22/BL22,0) -> 0 | BO22: =IFERROR(MAX(4000,$BB$37*$BB$38*(1+$BB$39)*$BB$40*BN22^($BB$41)),0) -> 4000 | BP22: =BO22*BL22/1000/1000 -> 0 | BQ22: =IFERROR(BP22/$AW$38,0) -> 0 | BR22: =IFERROR(BQ22*1000*1000/$J22,0) -> 0
D23: 3 Dense-Low | E23: 1760 | F23: 333 | G23: 1 | H23: =IFERROR(F23*G23,0) -> 333 | I23: 10450 | J23: 31866 | AV23: =D23 -> 3 Dense-Low | AW23: Narrow streets | AX23: Normal | AZ23: =IFERROR(INDEX(Support!$M$7:$M$11,MATCH($AV23,Support!$L$7:$L$11,0)),1) -> 1.1 | BA23: =IFERROR(INDEX(Support!$M$22:$M$25,MATCH($AW23,Support!$L$22:$L$25,0)),1) -> 1.3 | BB23: =IFERROR(INDEX(Support!$M$29:$M$31,MATCH($AX23,Support!$L$29:$L$31,0)),1) -> 1 | BC23: =IFERROR(Network_Demand3*1000/Network_GroundArea3,0) -> 189.2045455 | BD23: =IFERROR($AZ23*$BA23*$BB23*$BA$37*$BA$38*(1+$BA$39)*$BA$40*$BC23^($BA$41),0) -> 150.2253565 | BE23: =VLOOKUP($AV23,Support!$L$7:$N$11,3) -> 0.4 | BF23: =IFERROR($BD23*($BE23+(1-$BE23)/Network_Connection3),$BD23) -> 150.2253565 | BG23: =BF23*H23/1000 -> 50.0250437 | BH23: 50.0250437 | BI23: =IFERROR(BH23*1000*1000/$J23,0) -> 1569.856389 | BK23: 1 | BL23: =ROUND(IFERROR(J23/BK23,0),0) -> 31866 | BM23: 1800 | BN23: =IFERROR(H23*1000*1000/BM23/BL23,0) -> 5.805560786 | BO23: =IFERROR(MAX(4000,$BB$37*$BB$38*(1+$BB$39)*$BB$40*BN23^($BB$41)),0) -> 4000 | BP23: =BO23*BL23/1000/1000 -> 127.464 | BQ23: 127.464 | BR23: =IFERROR(BQ23*1000*1000/$J23,0) -> 4000
D24: 4 Dense-Hign | E24: 1946 | G24: 1 | H24: =IFERROR(F24*G24,0) -> 0 | I24: 8000 | J24: 0 | AV24: =D24 -> 4 Dense-Hign | AW24: Narrow streets | AX24: Challenging | AZ24: =IFERROR(INDEX(Support!$M$7:$M$11,MATCH($AV24,Support!$L$7:$L$11,0)),1) -> 1 | BA24: =IFERROR(INDEX(Support!$M$22:$M$25,MATCH($AW24,Support!$L$22:$L$25,0)),1) -> 1.3 | BB24: =IFERROR(INDEX(Support!$M$29:$M$31,MATCH($AX24,Support!$L$29:$L$31,0)),1) -> 1.2 | BC24: =IFERROR(Network_Demand4*1000/Network_GroundArea4,0) -> 0 | BD24: =IFERROR($AZ24*$BA24*$BB24*$BA$37*$BA$38*(1+$BA$39)*$BA$40*$BC24^($BA$41),0) -> 0 | BE24: =VLOOKUP($AV24,Support!$L$7:$N$11,3) -> 0.1 | BF24: =IFERROR($BD24*($BE24+(1-$BE24)/Network_Connection4),$BD24) -> 0 | BG24: =BF24*H24/1000 -> 0 | BH24: 0 | BI24: =IFERROR(BH24*1000*1000/$J24,0) -> 0 | BK24: =IF(BC24>0,MAX(8,INT(BC24/20)*2),0) -> 0 | BL24: =ROUND(IFERROR(J24/BK24,0),0) -> 0 | BM24: 2000 | BN24: =IFERROR(H24*1000*1000/BM24/BL24,0) -> 0 | BO24: =IFERROR(MAX(4000,$BB$37*$BB$38*(1+$BB$39)*$BB$40*BN24^($BB$41)),0) -> 4000 | BP24: =BO24*BL24/1000/1000 -> 0 | BQ24: 0 | BR24: =IFERROR(BQ24*1000*1000/$J24,0) -> 0
D25: 5 Open-High | E25: 1760 | G25: 1 | H25: =IFERROR(F25*G25,0) -> 0 | I25: 7500 | J25: 0 | AV25: =D25 -> 5 Open-High | AW25: With open spaces | AX25: Normal | AZ25: =IFERROR(INDEX(Support!$M$7:$M$11,MATCH($AV25,Support!$L$7:$L$11,0)),1) -> 0.75 | BA25: =IFERROR(INDEX(Support!$M$22:$M$25,MATCH($AW25,Support!$L$22:$L$25,0)),1) -> 0.8 | BB25: =IFERROR(INDEX(Support!$M$29:$M$31,MATCH($AX25,Support!$L$29:$L$31,0)),1) -> 1 | BC25: =IFERROR(Network_Demand5*1000/Network_GroundArea5,0) -> 0 | BD25: =IFERROR($AZ25*$BA25*$BB25*$BA$37*$BA$38*(1+$BA$39)*$BA$40*$BC25^($BA$41),0) -> 0 | BE25: =VLOOKUP($AV25,Support!$L$7:$N$11,3) -> 0.28 | BF25: =IFERROR($BD25*($BE25+(1-$BE25)/Network_Connection5),$BD25) -> 0 | BG25: =BF25*H25/1000 -> 0 | BH25: 0 | BI25: =IFERROR(BH25*1000*1000/$J25,0) -> 0 | BK25: =IF(BC25>0,MAX(8,INT(BC25/20*1.5)*2),0) -> 0 | BL25: =ROUND(IFERROR(J25/BK25,0),0) -> 0 | BM25: 2000 | BN25: =IFERROR(H25*1000*1000/BM25/BL25,0) -> 0 | BO25: =IFERROR(MAX(4000,$BB$37*$BB$38*(1+$BB$39)*$BB$40*BN25^($BB$41)),0) -> 4000 | BP25: =BO25*BL25/1000/1000 -> 0 | BQ25: 0 | BR25: =IFERROR(BQ25*1000*1000/$J25,0) -> 0
D27: Sum | E27: =E21+E22+E23+E24+E25 -> 7666 | F27: =SUM(F21:F26) -> 333 | H27: =H21+H22+H23+H24+H25+H26 -> 333 | J27: =J21+J22+J23+J24+J25+J26 -> 31866 | AZ27: Sum | BG27: =BG21+BG22+BG23+BG24+BG25 -> 50.0250437 | BH27: =BH21+BH22+BH23+BH24+BH25 -> 50.0250437 | BI27: =IFERROR(BH27*1000*1000/$J27,0) -> 1569.856389 | BK27: Sum | BL27: =BL21+BL22+BL23+BL24+BL25 -> 31866 | BP27: =BP21+BP22+BP23+BP24+BP25 -> 127.464 | BQ27: =BQ21+BQ22+BQ23+BQ24+BQ25 -> 127.464 | BR27: =IFERROR(BQ27*1000*1000/$J27,0) -> 4000
D35: Table N3 | E35: Chosen assumptions for network in active scenario | AV35: Table N.A2 | AW35: Country Currency | AZ35: Table N.A5 | BA35: Network | BB35: Substation
D36: Scenario Network | E36: Total network CAPEX | F36: FOPEX | G36: Fixed OPEX | H36: Variable OPEX | I36: Substation share | J36: Contingencies | K36: Lifetime | L36: Buildtime | M36: Network_HH | N36: DH_Demand | O36: Country | P36: Location | Q36: Ground_Area1 | R36: Demand1 | S36: HH_Demand1 | T36: Connection1 | U36: Ground_Area2 | V36: Demand2 | W36: HH_Demand2 | X36: Connection2 | Y36: Ground_Area3 | Z36: Demand3 | AA36: HH_Demand3 | AB36: Connection3 | AC36: Ground_Area4 | AD36: Demand4 | AE36: HH_Demand4 | AF36: Connection4 | AG36: Ground_Area5 | AH36: Demand5 | AI36: HH_Demand5 | AJ36: Connection5 | AV36: Country | AW36: =Network_Country -> 20 Germany | AZ36: Basis currency | BA36: EUR | BB36: EUR
E37: mill. EUR | F37: % of CAPEX | G37: mill. EUR/y | H37: EUR/MWh | I37: % | J37: % | K37: years | L37: years | N37: GWh/y | Q37: 1000 m2 | R37: GWh/year | S37: kWh/HH/yr | T37: % | U37: 1000 m2 | V37: GWh/year | W37: kWh/HH/yr | X37: % | Y37: 1000 m2 | Z37: GWh/year | AA37: MWh/HH/yr | AB37: % | AC37: 1000 m2 | AD37: GWh/year | AE37: kWh/HH/yr | AF37: % | AG37: 1000 m2 | AH37: GWh/year | AI37: kWh/HH/yr | AJ37: % | AV37: Currency | AW37: =IFERROR(VLOOKUP(AW36,Support!$P$8:$V$62,2),"EUR") -> EUR | AZ37: Country factor | BA37: =IFERROR(VLOOKUP($F$7,Support!$P$8:$V$62,6),1) -> 0.8645876083 | BB37: =IFERROR(VLOOKUP($F$7,Support!$P$8:$V$62,7),1) -> 0.8481751899
D38: =Scenarios!$E$12 -> Open high | E38: =INDEX(Network!E$45:E$78,$E$39) -> 43.30857546 | F38: =INDEX(Network!F$45:F$78,$E$39) -> 0.0075 | G38: =INDEX(Network!G$45:G$78,$E$39) -> 0.324814316 | H38: =INDEX(Network!H$45:H$78,$E$39) -> 2 | I38: =INDEX(Network!I$45:I$78,$E$39) -> 1 | J38: =INDEX(Network!J$45:J$78,$E$39) -> 0.2 | K38: =INDEX(Network!K$45:K$78,$E$39) -> 50 | L38: =INDEX(Network!L$45:L$78,$E$39) -> 5 | M38: =INDEX(Network!M$45:M$78,$E$39) -> 44400 | N38: =INDEX(Network!N$45:N$78,$E$39) -> 333 | O38: =INDEX(Network!O$45:O$78,$E$39) -> 20 Germany | P38: =INDEX(Network!P$45:P$78,$E$39) -> Capital suburbs | Q38: =INDEX(Network!Q$45:Q$78,$E$39) -> 1100 | R38: =INDEX(Network!R$45:R$78,$E$39) -> 0 | S38: =INDEX(Network!S$45:S$78,$E$39) -> 18135 | T38: =INDEX(Network!T$45:T$78,$E$39) -> 1 | U38: =INDEX(Network!U$45:U$78,$E$39) -> 1100 | V38: =INDEX(Network!V$45:V$78,$E$39) -> 0 | W38: =INDEX(Network!W$45:W$78,$E$39) -> 12075 | X38: =INDEX(Network!X$45:X$78,$E$39) -> 1 | Y38: =INDEX(Network!Y$45:Y$78,$E$39) -> 1760 | Z38: =INDEX(Network!Z$45:Z$78,$E$39) -> 0 | AA38: =INDEX(Network!AA$45:AA$78,$E$39) -> 10450 | AB38: =INDEX(Network!AB$45:AB$78,$E$39) -> 1 | AC38: =INDEX(Network!AC$45:AC$78,$E$39) -> 1946 | AD38: =INDEX(Network!AD$45:AD$78,$E$39) -> 0 | AE38: =INDEX(Network!AE$45:AE$78,$E$39) -> 8000 | AF38: =INDEX(Network!AF$45:AF$78,$E$39) -> 1 | AG38: =INDEX(Network!AG$45:AG$78,$E$39) -> 1760 | AH38: =INDEX(Network!AH$45:AH$78,$E$39) -> 333 | AI38: =INDEX(Network!AI$45:AI$78,$E$39) -> 7500 | AJ38: =INDEX(Network!AJ$45:AJ$78,$E$39) -> 1 | AV38: Exchange rate to EUR | AW38: =IFERROR(VLOOKUP(AW36,Support!$P$8:$V$62,3),1) -> 1 | AZ38: Location factor | BA38: =IFERROR(INDEX(Support!$M$15:$M$18,MATCH($F$8,Support_Locations,0)),1) -> 1 | BB38: 1
D39: Offset | E39: =IFERROR(MATCH(D38,Network!$D$45:$D$78,0),1) -> 1 | AZ39: Cost regulator | BA39: 0 | BB39: 0
D40: Source: | AZ40: Parameter1 | BA40: 12146.91244 | BB40: 838
AZ41: Parameter2 | BA41: -0.878317 | BB41: 0.5576
C42: Table N4 | D42: Database of assumptions and results for various networks
C43: Network Number | D43: Network Name | E43: Total network CAPEX | F43: FOPEX | G43: Fixed OPEX | H43: Variable OPEX | I43: Substation share | J43: Contingencies | K43: Lifetime | L43: Buildtime | M43: Network_HH | N43: DH_Demand | O43: Country | P43: Location | Q43: Ground_Area1 | R43: Demand1 | S43: HH_Demand1 | T43: Connection1 | U43: Ground_Area2 | V43: Demand2 | W43: HH_Demand2 | X43: Connection2 | Y43: Ground_Area3 | Z43: Demand3 | AA43: HH_Demand3 | AB43: Connection3 | AC43: Ground_Area4 | AD43: Demand4 | AE43: HH_Demand4 | AF43: Connection4 | AG43: Ground_Area5 | AH43: Demand5 | AI43: HH_Demand5 | AJ43: Connection5
C44: # | D44: Text | E44: mill. EUR | F44: % of CAPEX | G44: mill. EUR/y | H44: EUR/MWh | I44: % | J44: % | K44: years | L44: years | N44: GWh/y | Q44: 1000 m2 | R44: GWh/y | S44: kWh/HH/yr | T44: % | U44: 1000 m2 | V44: GWh/y | W44: kWh/HH/yr | X44: % | Y44: 1000 m2 | Z44: GWh/y | AA44: MWh/HH/yr | AB44: % | AC44: 1000 m2 | AD44: GWh/y | AE44: kWh/HH/yr | AF44: % | AG44: 1000 m2 | AH44: GWh/y | AI44: kWh/HH/yr | AJ44: %
C45: 1 | D45: Open high | E45: 43.30857546 | F45: 0.0075 | G45: 0.324814316 | H45: 2 | I45: 1 | J45: 0.2 | K45: 50 | L45: 5 | M45: 44400 | N45: 333 | O45: 20 Germany | P45: Capital suburbs | Q45: 1100 | S45: 18135 | T45: 1 | U45: 1100 | W45: 12075 | X45: 1 | Y45: 1760 | AA45: 10450 | AB45: 1 | AC45: 1946 | AE45: 8000 | AF45: 1 | AG45: 1760 | AH45: 333 | AI45: 7500 | AJ45: 1 | AV45: Table N.A3 | AW45: Combined name
C46: 2 | D46: Dense high | E46: 94.08652559 | F46: 0.0075 | G46: 0.705648942 | H46: 2 | I46: 1 | J46: 0.2 | K46: 50 | L46: 5 | M46: 41625 | N46: 333 | O46: 20 Germany | P46: Capital suburbs | Q46: 1100 | S46: 18135 | T46: 1 | U46: 1100 | W46: 12075 | X46: 1 | Y46: 1760 | AA46: 10450 | AB46: 1 | AC46: 1946 | AD46: 333 | AE46: 8000 | AF46: 1 | AG46: 1760 | AI46: 7500 | AJ46: 1 | AV46: Slots | AW46: Combined name
C47: 3 | D47: Dense low | E47: 212.9868524 | F47: 0.0075 | G47: 1.597401393 | H47: 2 | I47: 1 | J47: 0.2 | K47: 50 | L47: 5 | M47: 31866 | N47: 333 | O47: 20 Germany | P47: Capital suburbs | Q47: 1100 | S47: 18135 | T47: 1 | U47: 1100 | W47: 12075 | X47: 1 | Y47: 1760 | Z47: 333 | AA47: 10450 | AB47: 1 | AC47: 1946 | AE47: 8000 | AF47: 1 | AG47: 1760 | AI47: 7500 | AJ47: 1
C48: 4 | AV48: =C45 -> 1 | AW48: =TEXT(C45,"00")&" - "&IF(D45="","<Empty>",D45) -> 01 - Open high
C49: 5 | AV49: 2 | AW49: =TEXT(C46,"00")&" - "&IF(D46="","<Empty>",D46) -> 02 - Dense high
C50: 6 | AV50: 3 | AW50: =TEXT(C47,"00")&" - "&IF(D47="","<Empty>",D47) -> 03 - Dense low
C51: 7 | AV51: 4 | AW51: 04 - <Empty>
C52: 8 | AV52: 5 | AW52: 05 - <Empty>
C53: 9 | AV53: 6 | AW53: 06 - <Empty>
C54: 10 | AV54: 7 | AW54: 07 - <Empty>
C55: 11 | AV55: 8 | AW55: 08 - <Empty>
C56: =C55+1 -> 12 | AV56: 9 | AW56: 09 - <Empty>
C57: =C56+1 -> 13 | AV57: 10 | AW57: 10 - <Empty>
C58: 14 | AV58: 11 | AW58: 11 - <Empty>
C59: 15 | AV59: 12 | AW59: 12 - <Empty>
C60: 16 | AV60: 13 | AW60: 13 - <Empty>
C61: 17 | AV61: 14 | AW61: 14 - <Empty>
C62: 18 | AV62: 15 | AW62: 15 - <Empty>
C63: 19 | AV63: 16 | AW63: 16 - <Empty>
C64: 20 | AV64: 17 | AW64: 17 - <Empty>
C65: 21 | AV65: 18 | AW65: 18 - <Empty>
C66: 22 | AV66: 19 | AW66: 19 - <Empty>
C67: 23 | AV67: 20 | AW67: 20 - <Empty>
C68: 24 | AV68: 21 | AW68: 21 - <Empty>
C69: 25 | AV69: 22 | AW69: 22 - <Empty>
C70: 26 | AV70: 23 | AW70: 23 - <Empty>
C71: 27 | AV71: 24 | AW71: 24 - <Empty>
C72: 28 | AV72: 25 | AW72: 25 - <Empty>
C73: 29 | AV73: 26 | AW73: 26 - <Empty>
C74: 30 | AV74: 27 | AW74: 27 - <Empty>
C75: 31 | AV75: 28 | AW75: 28 - <Empty>
C76: 32 | AV76: 29 | AW76: 29 - <Empty>
C77: 33 | AV77: 30 | AW77: 30 - <Empty>
C78: 34 | AV78: 31 | AW78: 31 - <Empty>
C79: Source: | AV79: 32 | AW79: 32 - <Empty>
AV80: 33 | AW80: 33 - <Empty>
AV81: 34 | AW81: =TEXT(C78,"00")&" - "&IF(D78="","<Empty>",D78) -> 34 - <Empty>
C82: Table N5 | AV82: Source: | AW82: =C42 -> Table N4
C83: Network Number | D83: Network Name | E83: Network CAPEX | F83: FOPEX | G83: Fixed OPEX | H83: Variable OPEX | I83: Substation share | J83: Contingencies | K83: Lifetime | L83: Buildtime | M83: Network_HH | N83: DH_Demand | O83: Country | P83: Location | Q83: Ground_Area1 | R83: Demand1 | S83: HH_Demand1 | T83: Connection1 | U83: Ground_Area2 | V83: Demand2 | W83: HH_Demand2 | X83: Connection2 | Y83: Ground_Area3 | Z83: Demand3 | AA83: HH_Demand3 | AB83: Connection3 | AC83: Ground_Area4 | AD83: Demand4 | AE83: HH_Demand4 | AF83: Connection4 | AG83: Ground_Area5 | AH83: Demand5 | AI83: HH_Demand5 | AJ83: Connection5
C84: # | D84: Text | E84: mill. EUR | F84: % of CAPEX | G84: mill. EUR/y | H84: EUR/MWh | I84: % | J84: % | K84: years | L84: years | Q84: 1000 m2 | R84: MWh/year | S84: kWh/HH/yr | T84: % | U84: 1000 m2 | V84: GWh/year | W84: kWh/HH/yr | X84: % | Y84: 1000 m2 | Z84: GWh/year | AA84: kWh/HH/yr | AB84: % | AC84: 1000 m2 | AD84: GWh/year | AE84: kWh/HH/yr | AF84: % | AG84: 1000 m2 | AH84: GWh/year | AI84: kWh/HH/yr | AJ84: %
